Workbook

Sheet Data Input Instructions (hidden)
A3: Worksheet ID | B3: Worksheet | C3: Input Data Notes
A4: 1 | B4: Data Current Rates | C4: R2 Service Charge should already be net of RRRP credit
A5: 1 | B5: Data Current Rates | C5: Demand billed RTSR should already be loss adjusted
A6: 2 | B6: Data Proposed Rates | C6: Mapped from Draft Rates file prepared for Claude
A7: 2 | B7: Data Proposed Rates | C7: Row 5 with header name TEXT is precedent to templates; changes to TEXT need to reflected in templates
A8: 2 | B8: Data Proposed Rates | C8: Templates are set up with 2-dimension vlookups so it will accommodate inserted/deleted rows and/or columns
A9: 3 | B9: Data Billing Quantities | C9: Row 4 with header name TEXT is precedent to templates; changes to TEXT need to reflected in templates
A10: 3 | B10: Data Billing Quantities | C10: Templates are set up with 2-dimension vlookups so it will accommodate inserted/deleted rows and/or columns
A11: 4 | B11: Data Pass Through | C11: Changes to Pass Through rates can be manually input on this sheet, which is precedent to the templates
A12: 4 | B12: Data Pass Through | C12: Links to templates from Column A TEXT; any changes in the TEXT of the charge names must be reflected in the templates
A13: 5 | B13: Data BI List | C13: Instruction Sheet for macro to create individual bill impact worksheets
A14: 5 | B14: Data BI List | C14: Need to MANUALLY update Test Year to appear as header on all bill impact worksheets
A15: 6 | B15: Data BI Summary | C15: This replaces the need for cell references in summary sheet, and displays value for totals so rows can be added to templates and worksheets without having to update the summary sheet
B16: Bill Impact Summary | C16: This file has 2 hidden columns needed to link to worksheets; see Col E and F

Sheet Data Current Rates (hidden)
A1: Proposed 2019 Rates
A3: 1 | B3: 2 | C3: 3 | D3: 4 | E3: 5 | H3: 6 | I3: 7 | J3: 8 | K3: 9 | L3: 10 | M3: 11 | N3: 12
A4: Rate Class | B4: Fixed Charge ($/month) | C4: Current Variable Charge ($/kWh or $/kW) | D4: Current Foregone Revenue Riders Fixed ($/month) | E4: Current Volumetric Foregone Revenue Rider | F4: Fixed Charge + Fixed Foregone | G4: Volumetric Charge + Volumetric Foregone | H4: Current Def/VA rate rider Fixed ($/month) | I4: Current Def/VA rate rider Volumetric ($/kWh or $/kW) | J4: Vol VA Rider ($/kWh or $/kW) Non WMP | K4: Current Rate Rider for CBR (Non-WMP Class B) ($/kWh or $/kW) | L4: Current Rate Rider for Disposition of Global Adjustment (Non WMP, Non-RPP, Non-LDC, and Class B) ($/kWh) | M4: Current RTSR-NW ($/kWh or $/kW) | N4: Current RTSR-CONN ($/kWh or $/kW)
A5: Rate as shown on Bill Impact Sheet | B5: Service Charge | C5: Distribution Volumetric Charge | D5: Fixed Foregone Revenue Charge | E5: Volumetric Foregone Revenue Charge | F5: Fixed Service Charge | G5: Dx Volumetric Charge | H5: Fixed Deferral/Variance Account Rider (General) | I5: Volumetric Deferral/Variance Account Rider (General) | J5: Volumetric Deferral/Variance Account Rider (Sub-Account RSVA Wholesale Market Service Charge & RSVA Power) - ST only | K5: Volumetric Deferral/Variance Account Rider (Sub Account CBR) | L5: Volumetric Deferral/Variance Account Rider (Sub-Account Global Adjustment) | M5: Retail Transmission Rate – Network Service Rate | N5: Retail Transmission Rate – Line and Transformation Connection Service Rate
A6: UR | B6: =VLOOKUP($A6,'[1]Data Proposed Rates'!$A:$AX,MATCH(B$5,[1]!ProposedHeader,0),FALSE) -> 28.63 | C6: =VLOOKUP($A6,'[1]Data Proposed Rates'!$A:$AX,MATCH(C$5,[1]!ProposedHeader,0),FALSE) -> 0.0075 | D6: =VLOOKUP($A6,'[1]Data Proposed Rates'!$A:$AX,MATCH(D$5,[1]!ProposedHeader,0),FALSE) -> 1.46 | E6: =VLOOKUP($A6,'[1]Data Proposed Rates'!$A:$AX,MATCH(E$5,[1]!ProposedHeader,0),FALSE) -> 0 | F6: =ROUND(SUM(B6,D6),2) -> 30.09 | G6: =ROUND(SUM(C6,E6),4) -> 0.0075 | H6: =VLOOKUP($A6,'[1]Data Proposed Rates'!$A:$AX,MATCH(H$5,[1]!ProposedHeader,0),FALSE) -> 0.05 | I6: =VLOOKUP($A6,'[1]Data Proposed Rates'!$A:$AX,MATCH(I$5,[1]!ProposedHeader,0),FALSE) -> -0.0008 | J6: =VLOOKUP($A6,'[1]Data Proposed Rates'!$A:$AX,MATCH(J$5,[1]!ProposedHeader,0),FALSE) -> 0 | K6: =VLOOKUP($A6,'[1]Data Proposed Rates'!$A:$AX,MATCH(K$5,[1]!ProposedHeader,0),FALSE) -> 0 | L6: =VLOOKUP($A6,'[1]Data Proposed Rates'!$A:$AX,MATCH(L$5,[1]!ProposedHeader,0),FALSE) -> 0 | M6: =VLOOKUP($A6,'[1]Data Proposed Rates'!$A:$AX,MATCH(M$5,[1]!ProposedHeader,0),FALSE) -> 0.0084 | N6: =VLOOKUP($A6,'[1]Data Proposed Rates'!$A:$AX,MATCH(N$5,[1]!ProposedHeader,0),FALSE) -> 0.0074
A7: R1 | B7: =VLOOKUP($A7,'[1]Data Proposed Rates'!$A:$AX,MATCH(B$5,[1]!ProposedHeader,0),FALSE) -> 38.74 | C7: =VLOOKUP($A7,'[1]Data Proposed Rates'!$A:$AX,MATCH(C$5,[1]!ProposedHeader,0),FALSE) -> 0.0222 | D7: =VLOOKUP($A7,'[1]Data Proposed Rates'!$A:$AX,MATCH(D$5,[1]!ProposedHeader,0),FALSE) -> 1.71 | E7: =VLOOKUP($A7,'[1]Data Proposed Rates'!$A:$AX,MATCH(E$5,[1]!ProposedHeader,0),FALSE) -> 0.0009 | F7: =ROUND(SUM(B7,D7),2) -> 40.45 | G7: =ROUND(SUM(C7,E7),4) -> 0.0231 | H7: =VLOOKUP($A7,'[1]Data Proposed Rates'!$A:$AX,MATCH(H$5,[1]!ProposedHeader,0),FALSE) -> 0.04 | I7: =VLOOKUP($A7,'[1]Data Proposed Rates'!$A:$AX,MATCH(I$5,[1]!ProposedHeader,0),FALSE) -> -0.0008 | J7: =VLOOKUP($A7,'[1]Data Proposed Rates'!$A:$AX,MATCH(J$5,[1]!ProposedHeader,0),FALSE) -> 0 | K7: =VLOOKUP($A7,'[1]Data Proposed Rates'!$A:$AX,MATCH(K$5,[1]!ProposedHeader,0),FALSE) -> 0 | L7: =VLOOKUP($A7,'[1]Data Proposed Rates'!$A:$AX,MATCH(L$5,[1]!ProposedHeader,0),FALSE) -> 0 | M7: =VLOOKUP($A7,'[1]Data Proposed Rates'!$A:$AX,MATCH(M$5,[1]!ProposedHeader,0),FALSE) -> 0.0078 | N7: =VLOOKUP($A7,'[1]Data Proposed Rates'!$A:$AX,MATCH(N$5,[1]!ProposedHeader,0),FALSE) -> 0.007
A8: R2 | B8: =VLOOKUP($A8,'[1]Data Proposed Rates'!$A:$AX,MATCH(B$5,[1]!ProposedHeader,0),FALSE) -> 31.35 | C8: =VLOOKUP($A8,'[1]Data Proposed Rates'!$A:$AX,MATCH(C$5,[1]!ProposedHeader,0),FALSE) -> 0.0356 | D8: =VLOOKUP($A8,'[1]Data Proposed Rates'!$A:$AX,MATCH(D$5,[1]!ProposedHeader,0),FALSE) -> 4.37 | E8: =VLOOKUP($A8,'[1]Data Proposed Rates'!$A:$AX,MATCH(E$5,[1]!ProposedHeader,0),FALSE) -> 0.0011 | F8: 35.72 | G8: 0.0367 | H8: =VLOOKUP($A8,'[1]Data Proposed Rates'!$A:$AX,MATCH(H$5,[1]!ProposedHeader,0),FALSE) -> -0.03 | I8: =VLOOKUP($A8,'[1]Data Proposed Rates'!$A:$AX,MATCH(I$5,[1]!ProposedHeader,0),FALSE) -> -0.0008 | J8: =VLOOKUP($A8,'[1]Data Proposed Rates'!$A:$AX,MATCH(J$5,[1]!ProposedHeader,0),FALSE) -> 0 | K8: =VLOOKUP($A8,'[1]Data Proposed Rates'!$A:$AX,MATCH(K$5,[1]!ProposedHeader,0),FALSE) -> 0 | L8: =VLOOKUP($A8,'[1]Data Proposed Rates'!$A:$AX,MATCH(L$5,[1]!ProposedHeader,0),FALSE) -> 0 | M8: =VLOOKUP($A8,'[1]Data Proposed Rates'!$A:$AX,MATCH(M$5,[1]!ProposedHeader,0),FALSE) -> 0.0073 | N8: =VLOOKUP($A8,'[1]Data Proposed Rates'!$A:$AX,MATCH(N$5,[1]!ProposedHeader,0),FALSE) -> 0.0066
A9: Seasonal | B9: =VLOOKUP($A9,'[1]Data Proposed Rates'!$A:$AX,MATCH(B$5,[1]!ProposedHeader,0),FALSE) -> 39.04 | C9: =VLOOKUP($A9,'[1]Data Proposed Rates'!$A:$AX,MATCH(C$5,[1]!ProposedHeader,0),FALSE) -> 0.069 | D9: =VLOOKUP($A9,'[1]Data Proposed Rates'!$A:$AX,MATCH(D$5,[1]!ProposedHeader,0),FALSE) -> 1.13 | E9: =VLOOKUP($A9,'[1]Data Proposed Rates'!$A:$AX,MATCH(E$5,[1]!ProposedHeader,0),FALSE) -> 0.005 | F9: 40.17 | G9: 0.074 | H9: =VLOOKUP($A9,'[1]Data Proposed Rates'!$A:$AX,MATCH(H$5,[1]!ProposedHeader,0),FALSE) -> 0.03 | I9: =VLOOKUP($A9,'[1]Data Proposed Rates'!$A:$AX,MATCH(I$5,[1]!ProposedHeader,0),FALSE) -> -0.0009 | J9: =VLOOKUP($A9,'[1]Data Proposed Rates'!$A:$AX,MATCH(J$5,[1]!ProposedHeader,0),FALSE) -> 0 | K9: =VLOOKUP($A9,'[1]Data Proposed Rates'!$A:$AX,MATCH(K$5,[1]!ProposedHeader,0),FALSE) -> 0 | L9: =VLOOKUP($A9,'[1]Data Proposed Rates'!$A:$AX,MATCH(L$5,[1]!ProposedHeader,0),FALSE) -> 0 | M9: =VLOOKUP($A9,'[1]Data Proposed Rates'!$A:$AX,MATCH(M$5,[1]!ProposedHeader,0),FALSE) -> 0.0061 | N9: =VLOOKUP($A9,'[1]Data Proposed Rates'!$A:$AX,MATCH(N$5,[1]!ProposedHeader,0),FALSE) -> 0.0059
A10: GSe | B10: =VLOOKUP($A10,'[1]Data Proposed Rates'!$A:$AX,MATCH(B$5,[1]!ProposedHeader,0),FALSE) -> 31.14 | C10: =VLOOKUP($A10,'[1]Data Proposed Rates'!$A:$AX,MATCH(C$5,[1]!ProposedHeader,0),FALSE) -> 0.06 | D10: =VLOOKUP($A10,'[1]Data Proposed Rates'!$A:$AX,MATCH(D$5,[1]!ProposedHeader,0),FALSE) -> 2.34 | E10: =VLOOKUP($A10,'[1]Data Proposed Rates'!$A:$AX,MATCH(E$5,[1]!ProposedHeader,0),FALSE) -> 0.0022 | F10: 33.48 | G10: 0.0622 | H10: =VLOOKUP($A10,'[1]Data Proposed Rates'!$A:$AX,MATCH(H$5,[1]!ProposedHeader,0),FALSE) -> 0.03 | I10: =VLOOKUP($A10,'[1]Data Proposed Rates'!$A:$AX,MATCH(I$5,[1]!ProposedHeader,0),FALSE) -> -0.0008 | J10: =VLOOKUP($A10,'[1]Data Proposed Rates'!$A:$AX,MATCH(J$5,[1]!ProposedHeader,0),FALSE) -> 0 | K10: =VLOOKUP($A10,'[1]Data Proposed Rates'!$A:$AX,MATCH(K$5,[1]!ProposedHeader,0),FALSE) -> 0 | L10: =VLOOKUP($A10,'[1]Data Proposed Rates'!$A:$AX,MATCH(L$5,[1]!ProposedHeader,0),FALSE) -> 0 | M10: =VLOOKUP($A10,'[1]Data Proposed Rates'!$A:$AX,MATCH(M$5,[1]!ProposedHeader,0),FALSE) -> 0.0061 | N10: =VLOOKUP($A10,'[1]Data Proposed Rates'!$A:$AX,MATCH(N$5,[1]!ProposedHeader,0),FALSE) -> 0.0054
A11: UGe | B11: =VLOOKUP($A11,'[1]Data Proposed Rates'!$A:$AX,MATCH(B$5,[1]!ProposedHeader,0),FALSE) -> 24.4 | C11: =VLOOKUP($A11,'[1]Data Proposed Rates'!$A:$AX,MATCH(C$5,[1]!ProposedHeader,0),FALSE) -> 0.0286 | D11: =VLOOKUP($A11,'[1]Data Proposed Rates'!$A:$AX,MATCH(D$5,[1]!ProposedHeader,0),FALSE) -> 0.65 | E11: =VLOOKUP($A11,'[1]Data Proposed Rates'!$A:$AX,MATCH(E$5,[1]!ProposedHeader,0),FALSE) -> 0.0015 | F11: 25.05 | G11: 0.0301 | H11: =VLOOKUP($A11,'[1]Data Proposed Rates'!$A:$AX,MATCH(H$5,[1]!ProposedHeader,0),FALSE) -> 0.05 | I11: =VLOOKUP($A11,'[1]Data Proposed Rates'!$A:$AX,MATCH(I$5,[1]!ProposedHeader,0),FALSE) -> -0.0008 | J11: =VLOOKUP($A11,'[1]Data Proposed Rates'!$A:$AX,MATCH(J$5,[1]!ProposedHeader,0),FALSE) -> 0 | K11: =VLOOKUP($A11,'[1]Data Proposed Rates'!$A:$AX,MATCH(K$5,[1]!ProposedHeader,0),FALSE) -> 0 | L11: =VLOOKUP($A11,'[1]Data Proposed Rates'!$A:$AX,MATCH(L$5,[1]!ProposedHeader,0),FALSE) -> 0 | M11: =VLOOKUP($A11,'[1]Data Proposed Rates'!$A:$AX,MATCH(M$5,[1]!ProposedHeader,0),FALSE) -> 0.0066 | N11: =VLOOKUP($A11,'[1]Data Proposed Rates'!$A:$AX,MATCH(N$5,[1]!ProposedHeader,0),FALSE) -> 0.0055
A12: St Lgt | B12: =VLOOKUP($A12,'[1]Data Proposed Rates'!$A:$AX,MATCH(B$5,[1]!ProposedHeader,0),FALSE) -> 3.32 | C12: =VLOOKUP($A12,'[1]Data Proposed Rates'!$A:$AX,MATCH(C$5,[1]!ProposedHeader,0),FALSE) -> 0.1007 | D12: =VLOOKUP($A12,'[1]Data Proposed Rates'!$A:$AX,MATCH(D$5,[1]!ProposedHeader,0),FALSE) -> -0.76 | E12: =VLOOKUP($A12,'[1]Data Proposed Rates'!$A:$AX,MATCH(E$5,[1]!ProposedHeader,0),FALSE) -> 0.0053 | F12: 2.56 | G12: 0.106 | H12: =VLOOKUP($A12,'[1]Data Proposed Rates'!$A:$AX,MATCH(H$5,[1]!ProposedHeader,0),FALSE) -> 0.03 | I12: =VLOOKUP($A12,'[1]Data Proposed Rates'!$A:$AX,MATCH(I$5,[1]!ProposedHeader,0),FALSE) -> -0.0009 | J12: =VLOOKUP($A12,'[1]Data Proposed Rates'!$A:$AX,MATCH(J$5,[1]!ProposedHeader,0),FALSE) -> 0 | K12: =VLOOKUP($A12,'[1]Data Proposed Rates'!$A:$AX,MATCH(K$5,[1]!ProposedHeader,0),FALSE) -> 0 | L12: =VLOOKUP($A12,'[1]Data Proposed Rates'!$A:$AX,MATCH(L$5,[1]!ProposedHeader,0),FALSE) -> 0 | M12: =VLOOKUP($A12,'[1]Data Proposed Rates'!$A:$AX,MATCH(M$5,[1]!ProposedHeader,0),FALSE) -> 0.0051 | N12: =VLOOKUP($A12,'[1]Data Proposed Rates'!$A:$AX,MATCH(N$5,[1]!ProposedHeader,0),FALSE) -> 0.0035
A13: Sen Lgt | B13: =VLOOKUP($A13,'[1]Data Proposed Rates'!$A:$AX,MATCH(B$5,[1]!ProposedHeader,0),FALSE) -> 2.52 | C13: =VLOOKUP($A13,'[1]Data Proposed Rates'!$A:$AX,MATCH(C$5,[1]!ProposedHeader,0),FALSE) -> 0.1366 | D13: =VLOOKUP($A13,'[1]Data Proposed Rates'!$A:$AX,MATCH(D$5,[1]!ProposedHeader,0),FALSE) -> -0.19 | E13: =VLOOKUP($A13,'[1]Data Proposed Rates'!$A:$AX,MATCH(E$5,[1]!ProposedHeader,0),FALSE) -> 0.0123 | F13: 2.33 | G13: 0.1489 | H13: =VLOOKUP($A13,'[1]Data Proposed Rates'!$A:$AX,MATCH(H$5,[1]!ProposedHeader,0),FALSE) -> 0.02 | I13: =VLOOKUP($A13,'[1]Data Proposed Rates'!$A:$AX,MATCH(I$5,[1]!ProposedHeader,0),FALSE) -> -0.0013 | J13: =VLOOKUP($A13,'[1]Data Proposed Rates'!$A:$AX,MATCH(J$5,[1]!ProposedHeader,0),FALSE) -> 0 | K13: =VLOOKUP($A13,'[1]Data Proposed Rates'!$A:$AX,MATCH(K$5,[1]!ProposedHeader,0),FALSE) -> 0 | L13: =VLOOKUP($A13,'[1]Data Proposed Rates'!$A:$AX,MATCH(L$5,[1]!ProposedHeader,0),FALSE) -> 0 | M13: =VLOOKUP($A13,'[1]Data Proposed Rates'!$A:$AX,MATCH(M$5,[1]!ProposedHeader,0),FALSE) -> 0.0051 | N13: =VLOOKUP($A13,'[1]Data Proposed Rates'!$A:$AX,MATCH(N$5,[1]!ProposedHeader,0),FALSE) -> 0.0036
A14: USL | B14: =VLOOKUP($A14,'[1]Data Proposed Rates'!$A:$AX,MATCH(B$5,[1]!ProposedHeader,0),FALSE) -> 37.99 | C14: =VLOOKUP($A14,'[1]Data Proposed Rates'!$A:$AX,MATCH(C$5,[1]!ProposedHeader,0),FALSE) -> 0.0254 | D14: =VLOOKUP($A14,'[1]Data Proposed Rates'!$A:$AX,MATCH(D$5,[1]!ProposedHeader,0),FALSE) -> 1.66 | E14: =VLOOKUP($A14,'[1]Data Proposed Rates'!$A:$AX,MATCH(E$5,[1]!ProposedHeader,0),FALSE) -> -0.0028 | F14: 39.65 | G14: 0.0226 | H14: =VLOOKUP($A14,'[1]Data Proposed Rates'!$A:$AX,MATCH(H$5,[1]!ProposedHeader,0),FALSE) -> 0.01 | I14: =VLOOKUP($A14,'[1]Data Proposed Rates'!$A:$AX,MATCH(I$5,[1]!ProposedHeader,0),FALSE) -> -0.0008 | J14: =VLOOKUP($A14,'[1]Data Proposed Rates'!$A:$AX,MATCH(J$5,[1]!ProposedHeader,0),FALSE) -> 0 | K14: =VLOOKUP($A14,'[1]Data Proposed Rates'!$A:$AX,MATCH(K$5,[1]!ProposedHeader,0),FALSE) -> 0 | L14: =VLOOKUP($A14,'[1]Data Proposed Rates'!$A:$AX,MATCH(L$5,[1]!ProposedHeader,0),FALSE) -> 0 | M14: =VLOOKUP($A14,'[1]Data Proposed Rates'!$A:$AX,MATCH(M$5,[1]!ProposedHeader,0),FALSE) -> 0.0051 | N14: =VLOOKUP($A14,'[1]Data Proposed Rates'!$A:$AX,MATCH(N$5,[1]!ProposedHeader,0),FALSE) -> 0.0044
A15: GSd | B15: =VLOOKUP($A15,'[1]Data Proposed Rates'!$A:$AX,MATCH(B$5,[1]!ProposedHeader,0),FALSE) -> 104.18 | C15: =VLOOKUP($A15,'[1]Data Proposed Rates'!$A:$AX,MATCH(C$5,[1]!ProposedHeader,0),FALSE) -> 17.2259 | D15: =VLOOKUP($A15,'[1]Data Proposed Rates'!$A:$AX,MATCH(D$5,[1]!ProposedHeader,0),FALSE) -> 10.78 | E15: =VLOOKUP($A15,'[1]Data Proposed Rates'!$A:$AX,MATCH(E$5,[1]!ProposedHeader,0),FALSE) -> 0.7293 | F15: 114.96 | G15: 17.9552 | H15: =VLOOKUP($A15,'[1]Data Proposed Rates'!$A:$AX,MATCH(H$5,[1]!ProposedHeader,0),FALSE) -> -0.05 | I15: =VLOOKUP($A15,'[1]Data Proposed Rates'!$A:$AX,MATCH(I$5,[1]!ProposedHeader,0),FALSE) -> -0.2655 | J15: =VLOOKUP($A15,'[1]Data Proposed Rates'!$A:$AX,MATCH(J$5,[1]!ProposedHeader,0),FALSE) -> 0 | K15: =VLOOKUP($A15,'[1]Data Proposed Rates'!$A:$AX,MATCH(K$5,[1]!ProposedHeader,0),FALSE) -> 0 | L15: =VLOOKUP($A15,'[1]Data Proposed Rates'!$A:$AX,MATCH(L$5,[1]!ProposedHeader,0),FALSE) -> -0.0058 | M15: =VLOOKUP($A15,'[1]Data Proposed Rates'!$A:$AX,MATCH(M$5,[1]!ProposedHeader,0),FALSE) -> 1.9327 | N15: =VLOOKUP($A15,'[1]Data Proposed Rates'!$A:$AX,MATCH(N$5,[1]!ProposedHeader,0),FALSE) -> 1.6437
A16: UGd | B16: =VLOOKUP($A16,'[1]Data Proposed Rates'!$A:$AX,MATCH(B$5,[1]!ProposedHeader,0),FALSE) -> 96.99 | C16: =VLOOKUP($A16,'[1]Data Proposed Rates'!$A:$AX,MATCH(C$5,[1]!ProposedHeader,0),FALSE) -> 9.9137 | D16: =VLOOKUP($A16,'[1]Data Proposed Rates'!$A:$AX,MATCH(D$5,[1]!ProposedHeader,0),FALSE) -> 1.95 | E16: =VLOOKUP($A16,'[1]Data Proposed Rates'!$A:$AX,MATCH(E$5,[1]!ProposedHeader,0),FALSE) -> 0.4817 | F16: 98.94 | G16: 10.3954 | H16: =VLOOKUP($A16,'[1]Data Proposed Rates'!$A:$AX,MATCH(H$5,[1]!ProposedHeader,0),FALSE) -> 0.06 | I16: =VLOOKUP($A16,'[1]Data Proposed Rates'!$A:$AX,MATCH(I$5,[1]!ProposedHeader,0),FALSE) -> -0.3072 | J16: =VLOOKUP($A16,'[1]Data Proposed Rates'!$A:$AX,MATCH(J$5,[1]!ProposedHeader,0),FALSE) -> 0 | K16: =VLOOKUP($A16,'[1]Data Proposed Rates'!$A:$AX,MATCH(K$5,[1]!ProposedHeader,0),FALSE) -> 0 | L16: =VLOOKUP($A16,'[1]Data Proposed Rates'!$A:$AX,MATCH(L$5,[1]!ProposedHeader,0),FALSE) -> -0.0058 | M16: =VLOOKUP($A16,'[1]Data Proposed Rates'!$A:$AX,MATCH(M$5,[1]!ProposedHeader,0),FALSE) -> 2.4771 | N16: =VLOOKUP($A16,'[1]Data Proposed Rates'!$A:$AX,MATCH(N$5,[1]!ProposedHeader,0),FALSE) -> 2.0887
A17: Dgen | B17: =VLOOKUP($A17,'[1]Data Proposed Rates'!$A:$AX,MATCH(B$5,[1]!ProposedHeader,0),FALSE) -> 165.97 | C17: =VLOOKUP($A17,'[1]Data Proposed Rates'!$A:$AX,MATCH(C$5,[1]!ProposedHeader,0),FALSE) -> 7.5625 | D17: =VLOOKUP($A17,'[1]Data Proposed Rates'!$A:$AX,MATCH(D$5,[1]!ProposedHeader,0),FALSE) -> 13.93 | E17: =VLOOKUP($A17,'[1]Data Proposed Rates'!$A:$AX,MATCH(E$5,[1]!ProposedHeader,0),FALSE) -> 0.2453 | F17: 179.9 | G17: 7.8078 | H17: =VLOOKUP($A17,'[1]Data Proposed Rates'!$A:$AX,MATCH(H$5,[1]!ProposedHeader,0),FALSE) -> 0.05 | I17: =VLOOKUP($A17,'[1]Data Proposed Rates'!$A:$AX,MATCH(I$5,[1]!ProposedHeader,0),FALSE) -> -0.1097 | J17: =VLOOKUP($A17,'[1]Data Proposed Rates'!$A:$AX,MATCH(J$5,[1]!ProposedHeader,0),FALSE) -> 0 | K17: =VLOOKUP($A17,'[1]Data Proposed Rates'!$A:$AX,MATCH(K$5,[1]!ProposedHeader,0),FALSE) -> 0 | L17: =VLOOKUP($A17,'[1]Data Proposed Rates'!$A:$AX,MATCH(L$5,[1]!ProposedHeader,0),FALSE) -> -0.0058 | M17: =VLOOKUP($A17,'[1]Data Proposed Rates'!$A:$AX,MATCH(M$5,[1]!ProposedHeader,0),FALSE) -> 0.9395 | N17: =VLOOKUP($A17,'[1]Data Proposed Rates'!$A:$AX,MATCH(N$5,[1]!ProposedHeader,0),FALSE) -> 0.8007
A18: ST | B18: =VLOOKUP($A18,'[1]Data Proposed Rates'!$A:$AX,MATCH(B$5,[1]!ProposedHeader,0),FALSE) -> 1183.48 | C18: =VLOOKUP($A18,'[1]Data Proposed Rates'!$A:$AX,MATCH(C$5,[1]!ProposedHeader,0),FALSE) -> 1.3521 | D18: =VLOOKUP($A18,'[1]Data Proposed Rates'!$A:$AX,MATCH(D$5,[1]!ProposedHeader,0),FALSE) -> -65.89355023 | E18: =VLOOKUP($A18,'[1]Data Proposed Rates'!$A:$AX,MATCH(E$5,[1]!ProposedHeader,0),FALSE) -> 0.09127551918 | F18: 1117.59 | G18: 1.4434 | H18: =VLOOKUP($A18,'[1]Data Proposed Rates'!$A:$AX,MATCH(H$5,[1]!ProposedHeader,0),FALSE) -> 13.07 | I18: =VLOOKUP($A18,'[1]Data Proposed Rates'!$A:$AX,MATCH(I$5,[1]!ProposedHeader,0),FALSE) -> 0.8959 | J18: =VLOOKUP($A18,'[1]Data Proposed Rates'!$A:$AX,MATCH(J$5,[1]!ProposedHeader,0),FALSE) -> 0 | K18: =VLOOKUP($A18,'[1]Data Proposed Rates'!$A:$AX,MATCH(K$5,[1]!ProposedHeader,0),FALSE) -> 0 | L18: =VLOOKUP($A18,'[1]Data Proposed Rates'!$A:$AX,MATCH(L$5,[1]!ProposedHeader,0),FALSE) -> 0 | M18: =VLOOKUP($A18,'[1]Data Proposed Rates'!$A:$AX,MATCH(M$5,[1]!ProposedHeader,0),FALSE) -> 3.4034 | N18: =VLOOKUP($A18,'[1]Data Proposed Rates'!$A:$AX,MATCH(N$5,[1]!ProposedHeader,0),FALSE) -> 2.8571

Sheet Data Proposed Rates (hidden)
A1: Proposed 2020 Rates
A3: 1 | B3: 2 | C3: 3 | D3: 4 | E3: 5 | H3: 6 | I3: 7 | J3: 8 | K3: 9 | L3: 10 | M3: 11 | N3: 12
A4: Rate Class | B4: Proposed Fixed Charge ($/month) | C4: Proposed Variable Charge ($/kWh or $/kW) | D4: Proposed Foregone Revenue Charge Fixed ($/month) | E4: Proposed Volumetric Foregone Revenue Charge | F4: Fixed Charge + Fixed Foregone | G4: Volumetric Charge + Volumetric Foregone | H4: Proposed Def/VA rate rider Fixed ($/month) | I4: Proposed Def/VA rate rider Volumetric($/kWh or $/kW) | J4: Vol VA Rider ($/kWh or $/kW) Non WMP | K4: Proposed Rate Rider for CBR (Non-WMP Class B) ($/kWh or $/kW) | L4: Proposed Rate Rider for Disposition of Global Adjustment (Non WMP, Non-RPP, Non-LDC, and Class B) ($/kWh) | M4: Proposed RTSR-NW ($/kWh or $/kW) | N4: Proposed RTSR-CONN ($/kWh or $/kW)
A5: Rate as shown on Bill Impact Sheet | B5: Service Charge | C5: Distribution Volumetric Charge | D5: Fixed Foregone Revenue Charge | E5: Volumetric Foregone Revenue Charge | F5: Fixed Service Charge | G5: Dx Volumetric Charge | H5: Fixed Deferral/Variance Account Rider (General) | I5: Volumetric Deferral/Variance Account Rider (General) | J5: Volumetric Deferral/Variance Account Rider (Sub-Account RSVA Wholesale Market Service Charge & RSVA Power) - ST only | K5: Volumetric Deferral/Variance Account Rider (Sub Account CBR) | L5: Volumetric Deferral/Variance Account Rider (Sub-Account Global Adjustment) | M5: Retail Transmission Rate – Network Service Rate | N5: Retail Transmission Rate – Line and Transformation Connection Service Rate
A6: Rounding Factor | B6: 2 | C6: 4 | D6: 2 | E6: 4 | H6: 2 | I6: 4 | K6: 4 | L6: 4 | M6: 4 | N6: 4
A7: UR | B7: =ROUND(VLOOKUP($A7,'[2]Proposed Rates'!$A:$AY,MATCH(B$5,'[2]Proposed Rates'!$2:$2,0),FALSE),B$6) -> 31.91 | C7: =ROUND(VLOOKUP($A7,'[2]Proposed Rates'!$A:$AY,MATCH(C$5,'[2]Proposed Rates'!$2:$2,0),FALSE),C$6) -> 0.0038 | D7: =ROUND(VLOOKUP($A7,'[2]Proposed Rates'!$A:$AY,MATCH(D$5,'[2]Proposed Rates'!$2:$2,0),FALSE),D$6) -> 1.45 | E7: =ROUND(VLOOKUP($A7,'[2]Proposed Rates'!$A:$AY,MATCH(E$5,'[2]Proposed Rates'!$2:$2,0),FALSE),E$6) -> 0 | F7: =ROUND(SUM(B7,D7),2) -> 33.36 | G7: =ROUND(SUM(C7,E7),4) -> 0.0038 | H7: =ROUND(VLOOKUP($A7,'[2]Proposed Rates'!$A:$AY,MATCH(H$5,'[2]Proposed Rates'!$2:$2,0),FALSE),H$6) -> 0.05 | I7: =ROUND(VLOOKUP($A7,'[2]Proposed Rates'!$A:$AY,MATCH(I$5,'[2]Proposed Rates'!$2:$2,0),FALSE),I$6) -> -0.0008 | K7: =ROUND(VLOOKUP($A7,'[2]Proposed Rates'!$A:$AY,MATCH(K$5,'[2]Proposed Rates'!$2:$2,0),FALSE),K$6) -> 0 | M7: =ROUND(VLOOKUP($A7,'[2]Proposed Rates'!$A:$AY,MATCH(M$5,'[2]Proposed Rates'!$2:$2,0),FALSE),M$6) -> 0.0084 | N7: =ROUND(VLOOKUP($A7,'[2]Proposed Rates'!$A:$AY,MATCH(N$5,'[2]Proposed Rates'!$2:$2,0),FALSE),N$6) -> 0.0074
A8: R1 | B8: =ROUND(VLOOKUP($A8,'[2]Proposed Rates'!$A:$AY,MATCH(B$5,'[2]Proposed Rates'!$2:$2,0),FALSE),B$6) -> 43.36 | C8: =ROUND(VLOOKUP($A8,'[2]Proposed Rates'!$A:$AY,MATCH(C$5,'[2]Proposed Rates'!$2:$2,0),FALSE),C$6) -> 0.0181 | D8: =ROUND(VLOOKUP($A8,'[2]Proposed Rates'!$A:$AY,MATCH(D$5,'[2]Proposed Rates'!$2:$2,0),FALSE),D$6) -> 1.69 | E8: =ROUND(VLOOKUP($A8,'[2]Proposed Rates'!$A:$AY,MATCH(E$5,'[2]Proposed Rates'!$2:$2,0),FALSE),E$6) -> 0.0009 | F8: =ROUND(SUM(B8,D8),2) -> 45.05 | G8: =ROUND(SUM(C8,E8),4) -> 0.019 | H8: =ROUND(VLOOKUP($A8,'[2]Proposed Rates'!$A:$AY,MATCH(H$5,'[2]Proposed Rates'!$2:$2,0),FALSE),H$6) -> 0.04 | I8: =ROUND(VLOOKUP($A8,'[2]Proposed Rates'!$A:$AY,MATCH(I$5,'[2]Proposed Rates'!$2:$2,0),FALSE),I$6) -> -0.0008 | K8: =ROUND(VLOOKUP($A8,'[2]Proposed Rates'!$A:$AY,MATCH(K$5,'[2]Proposed Rates'!$2:$2,0),FALSE),K$6) -> 0 | M8: =ROUND(VLOOKUP($A8,'[2]Proposed Rates'!$A:$AY,MATCH(M$5,'[2]Proposed Rates'!$2:$2,0),FALSE),M$6) -> 0.0078 | N8: =ROUND(VLOOKUP($A8,'[2]Proposed Rates'!$A:$AY,MATCH(N$5,'[2]Proposed Rates'!$2:$2,0),FALSE),N$6) -> 0.007
A9: R2 | B9: =ROUND(VLOOKUP($A9,'[2]Proposed Rates'!$A:$AY,MATCH(B$5,'[2]Proposed Rates'!$2:$2,0),FALSE),B$6)-'Data Pass Through'!C4 -> 41.19 | C9: =ROUND(VLOOKUP($A9,'[2]Proposed Rates'!$A:$AY,MATCH(C$5,'[2]Proposed Rates'!$2:$2,0),FALSE),C$6) -> 0.0291 | D9: =ROUND(VLOOKUP($A9,'[2]Proposed Rates'!$A:$AY,MATCH(D$5,'[2]Proposed Rates'!$2:$2,0),FALSE),D$6) -> 4.35 | E9: =ROUND(VLOOKUP($A9,'[2]Proposed Rates'!$A:$AY,MATCH(E$5,'[2]Proposed Rates'!$2:$2,0),FALSE),E$6) -> 0.0011 | F9: 45.54 | G9: 0.0302 | H9: =ROUND(VLOOKUP($A9,'[2]Proposed Rates'!$A:$AY,MATCH(H$5,'[2]Proposed Rates'!$2:$2,0),FALSE),H$6) -> -0.03 | I9: =ROUND(VLOOKUP($A9,'[2]Proposed Rates'!$A:$AY,MATCH(I$5,'[2]Proposed Rates'!$2:$2,0),FALSE),I$6) -> -0.0008 | K9: =ROUND(VLOOKUP($A9,'[2]Proposed Rates'!$A:$AY,MATCH(K$5,'[2]Proposed Rates'!$2:$2,0),FALSE),K$6) -> 0 | M9: =ROUND(VLOOKUP($A9,'[2]Proposed Rates'!$A:$AY,MATCH(M$5,'[2]Proposed Rates'!$2:$2,0),FALSE),M$6) -> 0.0073 | N9: =ROUND(VLOOKUP($A9,'[2]Proposed Rates'!$A:$AY,MATCH(N$5,'[2]Proposed Rates'!$2:$2,0),FALSE),N$6) -> 0.0066
A10: Seasonal | B10: =ROUND(VLOOKUP($A10,'[2]Proposed Rates'!$A:$AY,MATCH(B$5,'[2]Proposed Rates'!$2:$2,0),FALSE),B$6) -> 44.39 | C10: =ROUND(VLOOKUP($A10,'[2]Proposed Rates'!$A:$AY,MATCH(C$5,'[2]Proposed Rates'!$2:$2,0),FALSE),C$6) -> 0.0565 | D10: =ROUND(VLOOKUP($A10,'[2]Proposed Rates'!$A:$AY,MATCH(D$5,'[2]Proposed Rates'!$2:$2,0),FALSE),D$6) -> 1.13 | E10: =ROUND(VLOOKUP($A10,'[2]Proposed Rates'!$A:$AY,MATCH(E$5,'[2]Proposed Rates'!$2:$2,0),FALSE),E$6) -> 0.0048 | F10: 45.52 | G10: 0.0613 | H10: =ROUND(VLOOKUP($A10,'[2]Proposed Rates'!$A:$AY,MATCH(H$5,'[2]Proposed Rates'!$2:$2,0),FALSE),H$6) -> 0.03 | I10: =ROUND(VLOOKUP($A10,'[2]Proposed Rates'!$A:$AY,MATCH(I$5,'[2]Proposed Rates'!$2:$2,0),FALSE),I$6) -> -0.0009 | K10: =ROUND(VLOOKUP($A10,'[2]Proposed Rates'!$A:$AY,MATCH(K$5,'[2]Proposed Rates'!$2:$2,0),FALSE),K$6) -> 0 | M10: =ROUND(VLOOKUP($A10,'[2]Proposed Rates'!$A:$AY,MATCH(M$5,'[2]Proposed Rates'!$2:$2,0),FALSE),M$6) -> 0.0061 | N10: =ROUND(VLOOKUP($A10,'[2]Proposed Rates'!$A:$AY,MATCH(N$5,'[2]Proposed Rates'!$2:$2,0),FALSE),N$6) -> 0.0059
A11: GSe | B11: =ROUND(VLOOKUP($A11,'[2]Proposed Rates'!$A:$AY,MATCH(B$5,'[2]Proposed Rates'!$2:$2,0),FALSE),B$6) -> 31.51 | C11: =ROUND(VLOOKUP($A11,'[2]Proposed Rates'!$A:$AY,MATCH(C$5,'[2]Proposed Rates'!$2:$2,0),FALSE),C$6) -> 0.0616 | D11: =ROUND(VLOOKUP($A11,'[2]Proposed Rates'!$A:$AY,MATCH(D$5,'[2]Proposed Rates'!$2:$2,0),FALSE),D$6) -> 2.34 | E11: =ROUND(VLOOKUP($A11,'[2]Proposed Rates'!$A:$AY,MATCH(E$5,'[2]Proposed Rates'!$2:$2,0),FALSE),E$6) -> 0.0022 | F11: 33.85 | G11: 0.0638 | H11: =ROUND(VLOOKUP($A11,'[2]Proposed Rates'!$A:$AY,MATCH(H$5,'[2]Proposed Rates'!$2:$2,0),FALSE),H$6) -> 0.03 | I11: =ROUND(VLOOKUP($A11,'[2]Proposed Rates'!$A:$AY,MATCH(I$5,'[2]Proposed Rates'!$2:$2,0),FALSE),I$6) -> -0.0008 | K11: =ROUND(VLOOKUP($A11,'[2]Proposed Rates'!$A:$AY,MATCH(K$5,'[2]Proposed Rates'!$2:$2,0),FALSE),K$6) -> 0 | M11: =ROUND(VLOOKUP($A11,'[2]Proposed Rates'!$A:$AY,MATCH(M$5,'[2]Proposed Rates'!$2:$2,0),FALSE),M$6) -> 0.0061 | N11: =ROUND(VLOOKUP($A11,'[2]Proposed Rates'!$A:$AY,MATCH(N$5,'[2]Proposed Rates'!$2:$2,0),FALSE),N$6) -> 0.0054
A12: UGe | B12: =ROUND(VLOOKUP($A12,'[2]Proposed Rates'!$A:$AY,MATCH(B$5,'[2]Proposed Rates'!$2:$2,0),FALSE),B$6) -> 24.76 | C12: =ROUND(VLOOKUP($A12,'[2]Proposed Rates'!$A:$AY,MATCH(C$5,'[2]Proposed Rates'!$2:$2,0),FALSE),C$6) -> 0.0293 | D12: =ROUND(VLOOKUP($A12,'[2]Proposed Rates'!$A:$AY,MATCH(D$5,'[2]Proposed Rates'!$2:$2,0),FALSE),D$6) -> 0.65 | E12: =ROUND(VLOOKUP($A12,'[2]Proposed Rates'!$A:$AY,MATCH(E$5,'[2]Proposed Rates'!$2:$2,0),FALSE),E$6) -> 0.0014 | F12: 25.41 | G12: 0.0307 | H12: =ROUND(VLOOKUP($A12,'[2]Proposed Rates'!$A:$AY,MATCH(H$5,'[2]Proposed Rates'!$2:$2,0),FALSE),H$6) -> 0.05 | I12: =ROUND(VLOOKUP($A12,'[2]Proposed Rates'!$A:$AY,MATCH(I$5,'[2]Proposed Rates'!$2:$2,0),FALSE),I$6) -> -0.0008 | K12: =ROUND(VLOOKUP($A12,'[2]Proposed Rates'!$A:$AY,MATCH(K$5,'[2]Proposed Rates'!$2:$2,0),FALSE),K$6) -> 0 | M12: =ROUND(VLOOKUP($A12,'[2]Proposed Rates'!$A:$AY,MATCH(M$5,'[2]Proposed Rates'!$2:$2,0),FALSE),M$6) -> 0.0066 | N12: =ROUND(VLOOKUP($A12,'[2]Proposed Rates'!$A:$AY,MATCH(N$5,'[2]Proposed Rates'!$2:$2,0),FALSE),N$6) -> 0.0055
A13: St Lgt | B13: =ROUND(VLOOKUP($A13,'[2]Proposed Rates'!$A:$AY,MATCH(B$5,'[2]Proposed Rates'!$2:$2,0),FALSE),B$6) -> 3.38 | C13: =ROUND(VLOOKUP($A13,'[2]Proposed Rates'!$A:$AY,MATCH(C$5,'[2]Proposed Rates'!$2:$2,0),FALSE),C$6) -> 0.103 | D13: =ROUND(VLOOKUP($A13,'[2]Proposed Rates'!$A:$AY,MATCH(D$5,'[2]Proposed Rates'!$2:$2,0),FALSE),D$6) -> -0.75 | E13: =ROUND(VLOOKUP($A13,'[2]Proposed Rates'!$A:$AY,MATCH(E$5,'[2]Proposed Rates'!$2:$2,0),FALSE),E$6) -> 0.0051 | F13: 2.63 | G13: 0.1081 | H13: =ROUND(VLOOKUP($A13,'[2]Proposed Rates'!$A:$AY,MATCH(H$5,'[2]Proposed Rates'!$2:$2,0),FALSE),H$6) -> 0.03 | I13: =ROUND(VLOOKUP($A13,'[2]Proposed Rates'!$A:$AY,MATCH(I$5,'[2]Proposed Rates'!$2:$2,0),FALSE),I$6) -> -0.0009 | K13: =ROUND(VLOOKUP($A13,'[2]Proposed Rates'!$A:$AY,MATCH(K$5,'[2]Proposed Rates'!$2:$2,0),FALSE),K$6) -> 0 | M13: =ROUND(VLOOKUP($A13,'[2]Proposed Rates'!$A:$AY,MATCH(M$5,'[2]Proposed Rates'!$2:$2,0),FALSE),M$6) -> 0.0051 | N13: =ROUND(VLOOKUP($A13,'[2]Proposed Rates'!$A:$AY,MATCH(N$5,'[2]Proposed Rates'!$2:$2,0),FALSE),N$6) -> 0.0035
A14: Sen Lgt | B14: =ROUND(VLOOKUP($A14,'[2]Proposed Rates'!$A:$AY,MATCH(B$5,'[2]Proposed Rates'!$2:$2,0),FALSE),B$6) -> 2.64 | C14: =ROUND(VLOOKUP($A14,'[2]Proposed Rates'!$A:$AY,MATCH(C$5,'[2]Proposed Rates'!$2:$2,0),FALSE),C$6) -> 0.1435 | D14: =ROUND(VLOOKUP($A14,'[2]Proposed Rates'!$A:$AY,MATCH(D$5,'[2]Proposed Rates'!$2:$2,0),FALSE),D$6) -> -0.19 | E14: =ROUND(VLOOKUP($A14,'[2]Proposed Rates'!$A:$AY,MATCH(E$5,'[2]Proposed Rates'!$2:$2,0),FALSE),E$6) -> 0.0124 | F14: 2.45 | G14: 0.1559 | H14: =ROUND(VLOOKUP($A14,'[2]Proposed Rates'!$A:$AY,MATCH(H$5,'[2]Proposed Rates'!$2:$2,0),FALSE),H$6) -> 0.02 | I14: =ROUND(VLOOKUP($A14,'[2]Proposed Rates'!$A:$AY,MATCH(I$5,'[2]Proposed Rates'!$2:$2,0),FALSE),I$6) -> -0.0013 | K14: =ROUND(VLOOKUP($A14,'[2]Proposed Rates'!$A:$AY,MATCH(K$5,'[2]Proposed Rates'!$2:$2,0),FALSE),K$6) -> 0 | M14: =ROUND(VLOOKUP($A14,'[2]Proposed Rates'!$A:$AY,MATCH(M$5,'[2]Proposed Rates'!$2:$2,0),FALSE),M$6) -> 0.0051 | N14: =ROUND(VLOOKUP($A14,'[2]Proposed Rates'!$A:$AY,MATCH(N$5,'[2]Proposed Rates'!$2:$2,0),FALSE),N$6) -> 0.0036
A15: USL | B15: =ROUND(VLOOKUP($A15,'[2]Proposed Rates'!$A:$AY,MATCH(B$5,'[2]Proposed Rates'!$2:$2,0),FALSE),B$6) -> 36.15 | C15: =ROUND(VLOOKUP($A15,'[2]Proposed Rates'!$A:$AY,MATCH(C$5,'[2]Proposed Rates'!$2:$2,0),FALSE),C$6) -> 0.0241 | D15: =ROUND(VLOOKUP($A15,'[2]Proposed Rates'!$A:$AY,MATCH(D$5,'[2]Proposed Rates'!$2:$2,0),FALSE),D$6) -> 1.65 | E15: =ROUND(VLOOKUP($A15,'[2]Proposed Rates'!$A:$AY,MATCH(E$5,'[2]Proposed Rates'!$2:$2,0),FALSE),E$6) -> -0.0028 | F15: 37.8 | G15: 0.0213 | H15: =ROUND(VLOOKUP($A15,'[2]Proposed Rates'!$A:$AY,MATCH(H$5,'[2]Proposed Rates'!$2:$2,0),FALSE),H$6) -> 0.01 | I15: =ROUND(VLOOKUP($A15,'[2]Proposed Rates'!$A:$AY,MATCH(I$5,'[2]Proposed Rates'!$2:$2,0),FALSE),I$6) -> -0.0008 | K15: =ROUND(VLOOKUP($A15,'[2]Proposed Rates'!$A:$AY,MATCH(K$5,'[2]Proposed Rates'!$2:$2,0),FALSE),K$6) -> 0 | M15: =ROUND(VLOOKUP($A15,'[2]Proposed Rates'!$A:$AY,MATCH(M$5,'[2]Proposed Rates'!$2:$2,0),FALSE),M$6) -> 0.0051 | N15: =ROUND(VLOOKUP($A15,'[2]Proposed Rates'!$A:$AY,MATCH(N$5,'[2]Proposed Rates'!$2:$2,0),FALSE),N$6) -> 0.0044
A16: GSd | B16: =ROUND(VLOOKUP($A16,'[2]Proposed Rates'!$A:$AY,MATCH(B$5,'[2]Proposed Rates'!$2:$2,0),FALSE),B$6) -> 105.21 | C16: =ROUND(VLOOKUP($A16,'[2]Proposed Rates'!$A:$AY,MATCH(C$5,'[2]Proposed Rates'!$2:$2,0),FALSE),C$6) -> 17.6289 | D16: =ROUND(VLOOKUP($A16,'[2]Proposed Rates'!$A:$AY,MATCH(D$5,'[2]Proposed Rates'!$2:$2,0),FALSE),D$6) -> 10.69 | E16: =ROUND(VLOOKUP($A16,'[2]Proposed Rates'!$A:$AY,MATCH(E$5,'[2]Proposed Rates'!$2:$2,0),FALSE),E$6) -> 0.7265 | F16: 115.9 | G16: 18.3554 | H16: =ROUND(VLOOKUP($A16,'[2]Proposed Rates'!$A:$AY,MATCH(H$5,'[2]Proposed Rates'!$2:$2,0),FALSE),H$6) -> -0.05 | I16: =ROUND(VLOOKUP($A16,'[2]Proposed Rates'!$A:$AY,MATCH(I$5,'[2]Proposed Rates'!$2:$2,0),FALSE),I$6) -> -0.2655 | K16: =ROUND(VLOOKUP($A16,'[2]Proposed Rates'!$A:$AY,MATCH(K$5,'[2]Proposed Rates'!$2:$2,0),FALSE),K$6) -> 0 | L16: =ROUND(VLOOKUP($A16,'[2]Proposed Rates'!$A:$AY,MATCH(L$5,'[2]Proposed Rates'!$2:$2,0),FALSE),L$6) -> -0.0058 | M16: =ROUND(VLOOKUP($A16,'[2]Proposed Rates'!$A:$AY,MATCH(M$5,'[2]Proposed Rates'!$2:$2,0),FALSE)*VLOOKUP($A16,'Data Billing Quantities'!$A:$B,2,FALSE),M$6) -> 1.9327 | N16: =ROUND(VLOOKUP($A16,'[2]Proposed Rates'!$A:$AY,MATCH(N$5,'[2]Proposed Rates'!$2:$2,0),FALSE)*VLOOKUP($A16,'Data Billing Quantities'!$A:$B,2,FALSE),N$6) -> 1.6437
A17: UGd | B17: =ROUND(VLOOKUP($A17,'[2]Proposed Rates'!$A:$AY,MATCH(B$5,'[2]Proposed Rates'!$2:$2,0),FALSE),B$6) -> 97.68 | C17: =ROUND(VLOOKUP($A17,'[2]Proposed Rates'!$A:$AY,MATCH(C$5,'[2]Proposed Rates'!$2:$2,0),FALSE),C$6) -> 10.1512 | D17: =ROUND(VLOOKUP($A17,'[2]Proposed Rates'!$A:$AY,MATCH(D$5,'[2]Proposed Rates'!$2:$2,0),FALSE),D$6) -> 1.94 | E17: =ROUND(VLOOKUP($A17,'[2]Proposed Rates'!$A:$AY,MATCH(E$5,'[2]Proposed Rates'!$2:$2,0),FALSE),E$6) -> 0.4674 | F17: 99.62 | G17: 10.6186 | H17: =ROUND(VLOOKUP($A17,'[2]Proposed Rates'!$A:$AY,MATCH(H$5,'[2]Proposed Rates'!$2:$2,0),FALSE),H$6) -> 0.06 | I17: =ROUND(VLOOKUP($A17,'[2]Proposed Rates'!$A:$AY,MATCH(I$5,'[2]Proposed Rates'!$2:$2,0),FALSE),I$6) -> -0.3072 | K17: =ROUND(VLOOKUP($A17,'[2]Proposed Rates'!$A:$AY,MATCH(K$5,'[2]Proposed Rates'!$2:$2,0),FALSE),K$6) -> 0 | L17: =ROUND(VLOOKUP($A17,'[2]Proposed Rates'!$A:$AY,MATCH(L$5,'[2]Proposed Rates'!$2:$2,0),FALSE),L$6) -> -0.0058 | M17: =ROUND(VLOOKUP($A17,'[2]Proposed Rates'!$A:$AY,MATCH(M$5,'[2]Proposed Rates'!$2:$2,0),FALSE)*VLOOKUP($A17,'Data Billing Quantities'!$A:$B,2,FALSE),M$6) -> 2.4771 | N17: =ROUND(VLOOKUP($A17,'[2]Proposed Rates'!$A:$AY,MATCH(N$5,'[2]Proposed Rates'!$2:$2,0),FALSE)*VLOOKUP($A17,'Data Billing Quantities'!$A:$B,2,FALSE),N$6) -> 2.0887
A18: Dgen | B18: =ROUND(VLOOKUP($A18,'[2]Proposed Rates'!$A:$AY,MATCH(B$5,'[2]Proposed Rates'!$2:$2,0),FALSE),B$6) -> 192.28 | C18: =ROUND(VLOOKUP($A18,'[2]Proposed Rates'!$A:$AY,MATCH(C$5,'[2]Proposed Rates'!$2:$2,0),FALSE),C$6) -> 9.2057 | D18: =ROUND(VLOOKUP($A18,'[2]Proposed Rates'!$A:$AY,MATCH(D$5,'[2]Proposed Rates'!$2:$2,0),FALSE),D$6) -> 12.69 | E18: =ROUND(VLOOKUP($A18,'[2]Proposed Rates'!$A:$AY,MATCH(E$5,'[2]Proposed Rates'!$2:$2,0),FALSE),E$6) -> 0.2421 | F18: 204.97 | G18: 9.4478 | H18: =ROUND(VLOOKUP($A18,'[2]Proposed Rates'!$A:$AY,MATCH(H$5,'[2]Proposed Rates'!$2:$2,0),FALSE),H$6) -> 0.05 | I18: =ROUND(VLOOKUP($A18,'[2]Proposed Rates'!$A:$AY,MATCH(I$5,'[2]Proposed Rates'!$2:$2,0),FALSE),I$6) -> -0.1097 | K18: =ROUND(VLOOKUP($A18,'[2]Proposed Rates'!$A:$AY,MATCH(K$5,'[2]Proposed Rates'!$2:$2,0),FALSE),K$6) -> 0 | L18: =ROUND(VLOOKUP($A18,'[2]Proposed Rates'!$A:$AY,MATCH(L$5,'[2]Proposed Rates'!$2:$2,0),FALSE),L$6) -> -0.0058 | M18: =ROUND(VLOOKUP($A18,'[2]Proposed Rates'!$A:$AY,MATCH(M$5,'[2]Proposed Rates'!$2:$2,0),FALSE)*VLOOKUP($A18,'Data Billing Quantities'!$A:$B,2,FALSE),M$6) -> 0.9395 | N18: =ROUND(VLOOKUP($A18,'[2]Proposed Rates'!$A:$AY,MATCH(N$5,'[2]Proposed Rates'!$2:$2,0),FALSE)*VLOOKUP($A18,'Data Billing Quantities'!$A:$B,2,FALSE),N$6) -> 0.8007
A19: ST | B19: =ROUND(SUM('[2]Proposed Rates'!$B$16:$B$17),B$6) -> 1206.73 | C19: =ROUND(VLOOKUP("Common Line",'[2]Proposed Rates'!$A:$H,8,FALSE),C$6) -> 1.3873 | D19: =SUM('[2]Proposed Rates'!$I$16:$I$17) -> -65.66860283 | E19: ='[2]Proposed Rates'!$J$18 -> 0.09205903174 | F19: 1141.06 | G19: 1.4794 | H19: =ROUND(VLOOKUP($A19,'[2]Proposed Rates'!$A:$AY,MATCH(H$5,'[2]Proposed Rates'!$2:$2,0),FALSE),H$6) -> 13.07 | I19: =ROUND(VLOOKUP($A19,'[2]Proposed Rates'!$A:$AY,MATCH(I$5,'[2]Proposed Rates'!$2:$2,0),FALSE),I$6) -> 0.8959 | M19: =ROUND(VLOOKUP($A19,'[2]Proposed Rates'!$A:$AY,MATCH(M$5,'[2]Proposed Rates'!$2:$2,0),FALSE)*VLOOKUP($A19,'Data Billing Quantities'!$A:$B,2,FALSE),M$6) -> 3.4034 | N19: =ROUND(VLOOKUP($A19,'[2]Proposed Rates'!$A:$AY,MATCH(N$5,'[2]Proposed Rates'!$2:$2,0),FALSE)*VLOOKUP($A19,'Data Billing Quantities'!$A:$B,2,FALSE),N$6) -> 2.8571

Sheet Data Billing Quantities (hidden)
A1: Rate Class-Specific Billing Quantities (Applied to Current and Proposed Bill)
E3: Consumption (kWh) | I3: Peak (kW) | M3: TOU Split
A4: Rate Class | B4: Loss Factor | C4: Charge Determinant | D4: Commodity Threshold | E4: Low kWh | F4: Typical kWh | G4: Average kWh | H4: High kWh | I4: Low kW | J4: Typical kW | K4: Average kW | L4: High kW | M4: TOU-Off Peak | N4: TOU-Mid Peak | O4: TOU-On Peak
A5: UR | B5: 1.057 | C5: kWh | D5: 600 | E5: 350 | F5: 750 | G5: =VLOOKUP(A5,[3]Sheet1!$A$9:$I$22,8,FALSE) -> 755 | H5: 1400 | M5: 0.65 | N5: 0.17 | O5: 0.18
A6: R1 | B6: 1.076 | C6: kWh | D6: 600 | E6: 400 | F6: 750 | G6: =VLOOKUP(A6,[3]Sheet1!$A$10:$I$22,8,FALSE) -> 920 | H6: 1800 | M6: 0.65 | N6: 0.17 | O6: 0.18
A7: R2 | B7: 1.105 | C7: kWh | D7: 600 | E7: 450 | F7: 750 | G7: =VLOOKUP(A7,[3]Sheet1!$A$10:$I$22,8,FALSE) -> 1152 | H7: 2300 | M7: 0.65 | N7: 0.17 | O7: 0.18
A8: Seasonal | B8: 1.104 | C8: kWh | D8: 600 | E8: 50 | G8: =VLOOKUP(A8,[3]Sheet1!$A$10:$I$22,8,FALSE) -> 352 | H8: 1000 | M8: 0.65 | N8: 0.17 | O8: 0.18
A9: GSe | B9: 1.096 | C9: kWh | D9: 750 | E9: 1000 | F9: 2000 | G9: =VLOOKUP(A9,[3]Sheet1!$A$10:$I$22,8,FALSE) -> 1982 | H9: 15000 | M9: 0.65 | N9: 0.17 | O9: 0.18
A10: UGe | B10: 1.067 | C10: kWh | D10: 750 | E10: 1000 | F10: 2000 | G10: =VLOOKUP(A10,[3]Sheet1!$A$10:$I$22,8,FALSE) -> 2759 | H10: 15000 | M10: 0.65 | N10: 0.17 | O10: 0.18
A11: St Lgt | B11: 1.092 | C11: kWh | D11: 750 | E11: 100 | G11: =VLOOKUP(A11,[3]Sheet1!$A$10:$I$22,8,FALSE) -> 517 | H11: 2000
A12: Sen Lgt | B12: 1.092 | C12: kWh | D12: 750 | E12: 20 | G12: =VLOOKUP(A12,[3]Sheet1!$A$10:$I$22,8,FALSE) -> 71 | H12: 200
A13: USL | B13: 1.092 | C13: kWh | D13: 750 | E13: 100 | G13: =VLOOKUP(A13,[3]Sheet1!$A$10:$I$22,8,FALSE) -> 364 | H13: 1000
A14: GSd | B14: 1.061 | C14: kW | D14: 0 | E14: 15000 | G14: =VLOOKUP(A14,[3]Sheet1!$A$10:$I$22,8,FALSE) -> 36104 | H14: 175000 | I14: 60 | J14: 117 | K14: =VLOOKUP(A14,[3]Sheet1!$A$10:$I$22,9,FALSE) -> 124 | L14: 500
A15: UGd | B15: 1.05 | C15: kW | D15: 0 | E15: 15000 | G15: =VLOOKUP(A15,[3]Sheet1!$A$10:$I$22,8,FALSE) -> 50525 | H15: 175000 | I15: 60 | J15: 117 | K15: =VLOOKUP(A15,[3]Sheet1!$A$10:$I$22,9,FALSE) -> 135 | L15: 500
A16: Dgen | B16: 1.061 | C16: kW | D16: 0 | E16: 300 | G16: =VLOOKUP(A16,[3]Sheet1!$A$10:$I$22,8,FALSE) -> 1328 | H16: 5000 | I16: 10 | J16: 15 | K16: =VLOOKUP(A16,[3]Sheet1!$A$10:$I$22,9,FALSE) -> 13 | L16: 100
A17: ST | B17: 1.034 | C17: kW | D17: 0 | E17: 200000 | G17: =VLOOKUP(A17,[3]Sheet1!$A$10:$I$22,8,FALSE) -> 1601036 | H17: 4000000 | I17: 500 | J17: 117 | K17: =VLOOKUP(A17,[3]Sheet1!$A$10:$I$22,9,FALSE) -> 3091 | L17: 10000

Sheet Data Pass Through (hidden)
A1: 3. Pass Through Charges
B2: Current Bill | C2: Proposed Bill
A3: Effective Date | B3: 2018-05-01 | C3: 2018-05-01 | D3: TOU % | E3: Notes
A4: R2 Credit | B4: 60.5 | C4: 60.5
A5: Energy (Non-RPP)* | B5: ='[4]Average HOEP plus Average GA'!$C$2/100 -> 0.1155 | C5: ='[4]Average HOEP plus Average GA'!$C$2/100 -> 0.1155 | E5: *Average HOEP plus average GA used to approximate Non-RPP Energy Charges (IESO Monthly Market Report December 2017)
A6: Energy First Tier | B6: 0.077 | C6: 0.077 | E6: Effective May 1 2018
A7: Energy Second Tier | B7: 0.089 | C7: 0.089 | E7: Effective May 1 2018
A8: TOU-Off Peak | B8: 0.065 | C8: 0.065 | D8: 0.65 | E8: Effective May 1 2018
A9: TOU-Mid Peak | B9: 0.094 | C9: 0.094 | D9: 0.17 | E9: Effective May 1 2018
A10: TOU-On Peak | B10: 0.132 | C10: 0.132 | D10: 0.18 | E10: Effective May 1 2018
A11: Wholesale Market Service Rate (WMS) - not including CBR | B11: 0.0032 | C11: 0.0032 | E11: Effective May 1 2017, 0.0036 WMSC broken up between WMSC and CBR
A12: Capacity Based Recovery (CBR) - Applicable for Class B Customers | B12: 0.0004 | C12: 0.0004 | E12: Effective May 1 2017, 0.0036 WMSC broken up between WMSC and CBR
A13: Rural Rate Protection Charge | B13: 0.0005 | C13: 0.0005 | E13: RRRP charge reduced from $0.0021/kWh to $0.0003/kWh effective July 1, 2017; reduced to 0.0005 effective jan 1 2019
A14: Ontario Electricity Support Program Charge | B14: 0 | C14: 0 | E14: OESP charge removed for all rate classes effective May 1, 2017. ROW HIDDEN IN BILL IMPACT FILE
A15: Standard Supply Service – Administration Charge (if applicable) | B15: 0.25 | C15: 0.25
A16: Fair Hydro Plan - Distribution Rate Protection Savings* | B16: =IF('Bill Impact Summary'!L6="TOU",0,IF('Bill Impact Summary'!L6="TOU (DRP applied)",B17,"error")) -> 36.86 | C16: =IF('Bill Impact Summary'!L6="TOU",0,IF('Bill Impact Summary'!L6="TOU (DRP applied)",C17,"error")) -> 36.86 | E16: Highlighted cells are FORMULAS; do not overwrite with hard-entered values. Input DRP limit values in row 17 below
A17: DRP limit (applied when selected from Bill Impact Summary) | B17: 36.86 | C17: 36.86 | E17: Make change to FHP DRP limit here, but to apply DRP, must do in Bill Impact Summary sheet cell L6
A18: Smart Metering Entity Charge | B18: 0.57 | C18: 0.57 | E18: Change from 0.79 to 0.57 effective March 1 2018; only for metered energy-billed (UR, R1, R2, SEA, GSE, UGE)
A19: Debt Retirement Charge (DRC) | B19: 0 | C19: 0 | E19: DRC removed from all rate classes Apr 1 2018 ROW HIDDEN IN BILL IMPACT FILE
A21: Customer Attributes - Assumptions
A22: ST customers are assumed to be WMP Class B; exclude NonWMP rider and Standard Supply Service

Sheet Data BI List (hidden)
A1: Template Name | B1: Bill Impact Worksheet Name | C1: Bill Impact Header
A2: BI Template_Energy | B2: BI_UR_Low | C2: 2020 Bill Impacts (Low Consumption Level) - UR
A3: BI Template_Energy | B3: BI_UR_Typical | C3: 2020 Bill Impacts (Typical Consumption Level) - UR
A4: BI Template_Energy | B4: BI_UR_Avg | C4: 2020 Bill Impacts (Average Consumption Level) - UR
A5: BI Template_Energy | B5: BI_UR_High | C5: 2020 Bill Impacts (High Consumption Level) - UR
A6: BI Template_Energy | B6: BI_R1_Low | C6: 2020 Bill Impacts (Low Consumption Level) - R1
A7: BI Template_Energy | B7: BI_R1_Typical | C7: 2020 Bill Impacts (Typical Consumption Level) - R1
A8: BI Template_Energy | B8: BI_R1_Avg | C8: 2020 Bill Impacts (Average Consumption Level) - R1
A9: BI Template_Energy | B9: BI_R1_High | C9: 2020 Bill Impacts (High Consumption Level) - R1
A10: BI Template_Energy | B10: BI_R2_Low | C10: 2020 Bill Impacts (Low Consumption Level) - R2
A11: BI Template_Energy | B11: BI_R2_Typical | C11: 2020 Bill Impacts (Typical Consumption Level) - R2
A12: BI Template_Energy | B12: BI_R2_Avg | C12: 2020 Bill Impacts (Average Consumption Level) - R2
A13: BI Template_Energy | B13: BI_R2_High | C13: 2020 Bill Impacts (High Consumption Level) - R2
A14: BI Template_Energy | B14: BI_Seas_Low | C14: 2020 Bill Impacts (Low Consumption Level) - Seasonal
A15: BI Template_Energy | B15: BI_Seas_Typical | C15: 2020 Bill Impacts (Typical Consumption Level) - Seasonal
A16: BI Template_Energy | B16: BI_Seas_Avg | C16: 2020 Bill Impacts (Average Consumption Level) - Seasonal
A17: BI Template_Energy | B17: BI_Seas_High | C17: 2020 Bill Impacts (High Consumption Level) - Seasonal
A18: BI Template_Energy | B18: BI_GSe_Low | C18: 2020 Bill Impacts (Low Consumption Level) - GSe
A19: BI Template_Energy | B19: BI_GSe_Typical | C19: 2020 Bill Impacts (Typical Consumption Level) - GSe
A20: BI Template_Energy | B20: BI_GSe_Avg | C20: 2020 Bill Impacts (Average Consumption Level) - GSe
A21: BI Template_Energy | B21: BI_GSe_High | C21: 2020 Bill Impacts (High Consumption Level) - GSe
A22: BI Template_Energy | B22: BI_UGe_Low | C22: 2020 Bill Impacts (Low Consumption Level) - UGe
A23: BI Template_Energy | B23: BI_UGe_Typical | C23: 2020 Bill Impacts (Typical Consumption Level) - UGe
A24: BI Template_Energy | B24: BI_UGe_Avg | C24: 2020 Bill Impacts (Average Consumption Level) - UGe
A25: BI Template_Energy | B25: BI_UGe_High | C25: 2020 Bill Impacts (High Consumption Level) - UGe
A26: BI Template_Demand | B26: BI_GSd_Low | C26: 2020 Bill Impacts (Low Consumption Level) - GSd
A27: BI Template_Demand | B27: BI_GSd_Avg | C27: 2020 Bill Impacts (Average Consumption Level) - GSd
A28: BI Template_Demand | B28: BI_GSd_High | C28: 2020 Bill Impacts (High Consumption Level) - GSd
A29: BI Template_Demand | B29: BI_UGd_Low | C29: 2020 Bill Impacts (Low Consumption Level) - UGd
A30: BI Template_Demand | B30: BI_UGd_Avg | C30: 2020 Bill Impacts (Average Consumption Level) - UGd
A31: BI Template_Demand | B31: BI_UGd_High | C31: 2020 Bill Impacts (High Consumption Level) - UGd
A32: BI Template_EnergyUNM | B32: BI_StLgt_Low | C32: 2020 Bill Impacts (Low Consumption Level) - St Lgt
A33: BI Template_EnergyUNM | B33: BI_StLgt_Avg | C33: 2020 Bill Impacts (Average Consumption Level) - St Lgt
A34: BI Template_EnergyUNM | B34: BI_StLgt_High | C34: 2020 Bill Impacts (High Consumption Level) - St Lgt
A35: BI Template_EnergyUNM | B35: BI_SenLgt_Low | C35: 2020 Bill Impacts (Low Consumption Level) - Sen Lgt
A36: BI Template_EnergyUNM | B36: BI_SenLgt_Avg | C36: 2020 Bill Impacts (Average Consumption Level) - Sen Lgt
A37: BI Template_EnergyUNM | B37: BI_SenLgt_High | C37: 2020 Bill Impacts (High Consumption Level) - Sen Lgt
A38: BI Template_EnergyUNM | B38: BI_USL_Low | C38: 2020 Bill Impacts (Low Consumption Level) - USL
A39: BI Template_EnergyUNM | B39: BI_USL_Avg | C39: 2020 Bill Impacts (Average Consumption Level) - USL
A40: BI Template_EnergyUNM | B40: BI_USL_High | C40: 2020 Bill Impacts (High Consumption Level) - USL
A41: BI Template_Demand | B41: BI_Dgen_Low | C41: 2020 Bill Impacts (Low Consumption Level) - Dgen
A42: BI Template_Demand | B42: BI_Dgen_Avg | C42: 2020 Bill Impacts (Average Consumption Level) - Dgen
A43: BI Template_Demand | B43: BI_Dgen_High | C43: 2020 Bill Impacts (High Consumption Level) - Dgen
A44: BI Template_Demand | B44: BI_ST_Low | C44: 2020 Bill Impacts (Low Consumption Level) - ST
A45: BI Template_Demand | B45: BI_ST_Avg | C45: 2020 Bill Impacts (Average Consumption Level) - ST
A46: BI Template_Demand | B46: BI_ST_High | C46: 2020 Bill Impacts (High Consumption Level) - ST

Sheet Data BI Summary (hidden)
A2: Summary Column | B2: Current Total Bill | C2: Change in DX Bill ($) | D2: Change in DX Bill (%) | E2: Change in Total Bill ($) | F2: Change in Total Bill (%)
A3: BI Template_Energy | B3: Total Amount on TOU | C3: Sub-Total: Distribution (excluding pass through) | D3: Sub-Total: Distribution (excluding pass through) | E3: Total Amount on TOU | F3: Total Amount on TOU
A4: BI Template_EnergyUNM | B4: Total Amount on Two-Tier RPP | C4: Sub-Total: Distribution (excluding pass through) | D4: Sub-Total: Distribution (excluding pass through) | E4: Total Amount on Two-Tier RPP | F4: Total Amount on Two-Tier RPP
A5: BI Template_Demand | B5: Total Amount | C5: Sub-Total: Distribution | D5: Sub-Total: Distribution | E5: Total Amount | F5: Total Amount

Sheet Bill Impact Summary (hidden)
A1: Rate Class | B1: Consumption Level | C1: Monthly Consumption (kWh) | D1: Monthly Peak (kW) | E1: BI Worksheet | F1: Template | G1: Current Total Bill | H1: Change in DX Bill ($) | I1: Change in DX Bill (%) | J1: Change in Total Bill ($) | K1: Change in Total Bill (%) | L1: Commodity Price Used | O1: List for Data Validation of cell L6; do not remove
A2: UR | B2: Low | C2: =VLOOKUP(A$2,'Data Billing Quantities'!A:P,MATCH(B2&" kWh",'Data Billing Quantities'!$4:$4,0),FALSE) -> 350 | E2: BI_UR_Low | F2: BI Template_Energy | G2: =VLOOKUP(VLOOKUP($F2,'Data BI Summary'!$A:$F,MATCH(G$1,'Data BI Summary'!$2:$2,0),FALSE),INDIRECT("'"&$E2&"'!"&"$A:$K"),4,FALSE) -> 74.54916577 | H2: =VLOOKUP(VLOOKUP($F2,'Data BI Summary'!$A:$F,MATCH(H$1,'Data BI Summary'!$2:$2,0),FALSE),INDIRECT("'"&$E2&"'!"&"$A:$K"),8,FALSE) -> 1.975 | I2: =VLOOKUP(VLOOKUP($F2,'Data BI Summary'!$A:$F,MATCH(I$1,'Data BI Summary'!$2:$2,0),FALSE),INDIRECT("'"&$E2&"'!"&"$A:$K"),9,FALSE) -> 0.06079729106 | J2: =VLOOKUP(VLOOKUP($F2,'Data BI Summary'!$A:$F,MATCH(J$1,'Data BI Summary'!$2:$2,0),FALSE),INDIRECT("'"&$E2&"'!"&"$A:$K"),8,FALSE) -> 2.07375 | K2: =VLOOKUP(VLOOKUP($F2,'Data BI Summary'!$A:$F,MATCH(K$1,'Data BI Summary'!$2:$2,0),FALSE),INDIRECT("'"&$E2&"'!"&"$A:$K"),9,FALSE) -> 0.02781721269 | L2: TOU
B3: Typical | C3: =VLOOKUP(A$2,'Data Billing Quantities'!A:P,MATCH(B3&" kWh",'Data Billing Quantities'!$4:$4,0),FALSE) -> 750 | E3: BI_UR_Typical | F3: BI Template_Energy | G3: =VLOOKUP(VLOOKUP($F3,'Data BI Summary'!$A:$F,MATCH(G$1,'Data BI Summary'!$2:$2,0),FALSE),INDIRECT("'"&$E3&"'!"&"$A:$K"),4,FALSE) -> 122.5962124 | H3: =VLOOKUP(VLOOKUP($F3,'Data BI Summary'!$A:$F,MATCH(H$1,'Data BI Summary'!$2:$2,0),FALSE),INDIRECT("'"&$E3&"'!"&"$A:$K"),8,FALSE) -> 0.495 | I3: =VLOOKUP(VLOOKUP($F3,'Data BI Summary'!$A:$F,MATCH(I$1,'Data BI Summary'!$2:$2,0),FALSE),INDIRECT("'"&$E3&"'!"&"$A:$K"),9,FALSE) -> 0.01407649652 | J3: =VLOOKUP(VLOOKUP($F3,'Data BI Summary'!$A:$F,MATCH(J$1,'Data BI Summary'!$2:$2,0),FALSE),INDIRECT("'"&$E3&"'!"&"$A:$K"),8,FALSE) -> 0.51975 | K3: =VLOOKUP(VLOOKUP($F3,'Data BI Summary'!$A:$F,MATCH(K$1,'Data BI Summary'!$2:$2,0),FALSE),INDIRECT("'"&$E3&"'!"&"$A:$K"),9,FALSE) -> 0.004239527388
B4: Average | C4: =VLOOKUP(A$2,'Data Billing Quantities'!A:P,MATCH(B4&" kWh",'Data Billing Quantities'!$4:$4,0),FALSE) -> 755 | E4: BI_UR_Avg | F4: BI Template_Energy | G4: =VLOOKUP(VLOOKUP($F4,'Data BI Summary'!$A:$F,MATCH(G$1,'Data BI Summary'!$2:$2,0),FALSE),INDIRECT("'"&$E4&"'!"&"$A:$K"),4,FALSE) -> 123.1968005 | H4: =VLOOKUP(VLOOKUP($F4,'Data BI Summary'!$A:$F,MATCH(H$1,'Data BI Summary'!$2:$2,0),FALSE),INDIRECT("'"&$E4&"'!"&"$A:$K"),8,FALSE) -> 0.4765 | I4: =VLOOKUP(VLOOKUP($F4,'Data BI Summary'!$A:$F,MATCH(I$1,'Data BI Summary'!$2:$2,0),FALSE),INDIRECT("'"&$E4&"'!"&"$A:$K"),9,FALSE) -> 0.0135375087 | J4: =VLOOKUP(VLOOKUP($F4,'Data BI Summary'!$A:$F,MATCH(J$1,'Data BI Summary'!$2:$2,0),FALSE),INDIRECT("'"&$E4&"'!"&"$A:$K"),8,FALSE) -> 0.500325 | K4: =VLOOKUP(VLOOKUP($F4,'Data BI Summary'!$A:$F,MATCH(K$1,'Data BI Summary'!$2:$2,0),FALSE),INDIRECT("'"&$E4&"'!"&"$A:$K"),9,FALSE) -> 0.004061185016
B5: High | C5: =VLOOKUP(A$2,'Data Billing Quantities'!A:P,MATCH(B5&" kWh",'Data Billing Quantities'!$4:$4,0),FALSE) -> 1400 | E5: BI_UR_High | F5: BI Template_Energy | G5: =VLOOKUP(VLOOKUP($F5,'Data BI Summary'!$A:$F,MATCH(G$1,'Data BI Summary'!$2:$2,0),FALSE),INDIRECT("'"&$E5&"'!"&"$A:$K"),4,FALSE) -> 200.6726631 | H5: =VLOOKUP(VLOOKUP($F5,'Data BI Summary'!$A:$F,MATCH(H$1,'Data BI Summary'!$2:$2,0),FALSE),INDIRECT("'"&$E5&"'!"&"$A:$K"),8,FALSE) -> -1.91 | I5: =VLOOKUP(VLOOKUP($F5,'Data BI Summary'!$A:$F,MATCH(I$1,'Data BI Summary'!$2:$2,0),FALSE),INDIRECT("'"&$E5&"'!"&"$A:$K"),9,FALSE) -> -0.04832995951 | J5: =VLOOKUP(VLOOKUP($F5,'Data BI Summary'!$A:$F,MATCH(J$1,'Data BI Summary'!$2:$2,0),FALSE),INDIRECT("'"&$E5&"'!"&"$A:$K"),8,FALSE) -> -2.0055 | K5: =VLOOKUP(VLOOKUP($F5,'Data BI Summary'!$A:$F,MATCH(K$1,'Data BI Summary'!$2:$2,0),FALSE),INDIRECT("'"&$E5&"'!"&"$A:$K"),9,FALSE) -> -0.009993887404
A6: R1 | B6: Low | C6: =VLOOKUP(A$6,'Data Billing Quantities'!A:P,MATCH(B6&" kWh",'Data Billing Quantities'!$4:$4,0),FALSE) -> 400 | E6: BI_R1_Low | F6: BI Template_Energy | G6: =VLOOKUP(VLOOKUP($F6,'Data BI Summary'!$A:$F,MATCH(G$1,'Data BI Summary'!$2:$2,0),FALSE),INDIRECT("'"&$E6&"'!"&"$A:$K"),4,FALSE) -> 84.8642088 | H6: =VLOOKUP(VLOOKUP($F6,'Data BI Summary'!$A:$F,MATCH(H$1,'Data BI Summary'!$2:$2,0),FALSE),INDIRECT("'"&$E6&"'!"&"$A:$K"),8,FALSE) -> 0 | I6: =VLOOKUP(VLOOKUP($F6,'Data BI Summary'!$A:$F,MATCH(I$1,'Data BI Summary'!$2:$2,0),FALSE),INDIRECT("'"&$E6&"'!"&"$A:$K"),9,FALSE) -> 0 | J6: =VLOOKUP(VLOOKUP($F6,'Data BI Summary'!$A:$F,MATCH(J$1,'Data BI Summary'!$2:$2,0),FALSE),INDIRECT("'"&$E6&"'!"&"$A:$K"),8,FALSE) -> 0 | K6: =VLOOKUP(VLOOKUP($F6,'Data BI Summary'!$A:$F,MATCH(K$1,'Data BI Summary'!$2:$2,0),FALSE),INDIRECT("'"&$E6&"'!"&"$A:$K"),9,FALSE) -> 0 | L6: TOU (DRP applied) | O6: TOU
B7: Typical | C7: =VLOOKUP(A$6,'Data Billing Quantities'!A:P,MATCH(B7&" kWh",'Data Billing Quantities'!$4:$4,0),FALSE) -> 750 | E7: BI_R1_Typical | F7: BI Template_Energy | G7: =VLOOKUP(VLOOKUP($F7,'Data BI Summary'!$A:$F,MATCH(G$1,'Data BI Summary'!$2:$2,0),FALSE),INDIRECT("'"&$E7&"'!"&"$A:$K"),4,FALSE) -> 124.4651415 | H7: =VLOOKUP(VLOOKUP($F7,'Data BI Summary'!$A:$F,MATCH(H$1,'Data BI Summary'!$2:$2,0),FALSE),INDIRECT("'"&$E7&"'!"&"$A:$K"),8,FALSE) -> 0 | I7: =VLOOKUP(VLOOKUP($F7,'Data BI Summary'!$A:$F,MATCH(I$1,'Data BI Summary'!$2:$2,0),FALSE),INDIRECT("'"&$E7&"'!"&"$A:$K"),9,FALSE) -> 0 | J7: =VLOOKUP(VLOOKUP($F7,'Data BI Summary'!$A:$F,MATCH(J$1,'Data BI Summary'!$2:$2,0),FALSE),INDIRECT("'"&$E7&"'!"&"$A:$K"),8,FALSE) -> 0 | K7: =VLOOKUP(VLOOKUP($F7,'Data BI Summary'!$A:$F,MATCH(K$1,'Data BI Summary'!$2:$2,0),FALSE),INDIRECT("'"&$E7&"'!"&"$A:$K"),9,FALSE) -> 0 | O7: TOU (DRP applied)
B8: Average | C8: =VLOOKUP(A$6,'Data Billing Quantities'!A:P,MATCH(B8&" kWh",'Data Billing Quantities'!$4:$4,0),FALSE) -> 920 | E8: BI_R1_Avg | F8: BI Template_Energy | G8: =VLOOKUP(VLOOKUP($F8,'Data BI Summary'!$A:$F,MATCH(G$1,'Data BI Summary'!$2:$2,0),FALSE),INDIRECT("'"&$E8&"'!"&"$A:$K"),4,FALSE) -> 143.6998802 | H8: =VLOOKUP(VLOOKUP($F8,'Data BI Summary'!$A:$F,MATCH(H$1,'Data BI Summary'!$2:$2,0),FALSE),INDIRECT("'"&$E8&"'!"&"$A:$K"),8,FALSE) -> 0 | I8: =VLOOKUP(VLOOKUP($F8,'Data BI Summary'!$A:$F,MATCH(I$1,'Data BI Summary'!$2:$2,0),FALSE),INDIRECT("'"&$E8&"'!"&"$A:$K"),9,FALSE) -> 0 | J8: =VLOOKUP(VLOOKUP($F8,'Data BI Summary'!$A:$F,MATCH(J$1,'Data BI Summary'!$2:$2,0),FALSE),INDIRECT("'"&$E8&"'!"&"$A:$K"),8,FALSE) -> 0 | K8: =VLOOKUP(VLOOKUP($F8,'Data BI Summary'!$A:$F,MATCH(K$1,'Data BI Summary'!$2:$2,0),FALSE),INDIRECT("'"&$E8&"'!"&"$A:$K"),9,FALSE) -> 0
B9: High | C9: =VLOOKUP(A$6,'Data Billing Quantities'!A:P,MATCH(B9&" kWh",'Data Billing Quantities'!$4:$4,0),FALSE) -> 1800 | E9: BI_R1_High | F9: BI Template_Energy | G9: =VLOOKUP(VLOOKUP($F9,'Data BI Summary'!$A:$F,MATCH(G$1,'Data BI Summary'!$2:$2,0),FALSE),INDIRECT("'"&$E9&"'!"&"$A:$K"),4,FALSE) -> 243.2679396 | H9: =VLOOKUP(VLOOKUP($F9,'Data BI Summary'!$A:$F,MATCH(H$1,'Data BI Summary'!$2:$2,0),FALSE),INDIRECT("'"&$E9&"'!"&"$A:$K"),8,FALSE) -> 0 | I9: =VLOOKUP(VLOOKUP($F9,'Data BI Summary'!$A:$F,MATCH(I$1,'Data BI Summary'!$2:$2,0),FALSE),INDIRECT("'"&$E9&"'!"&"$A:$K"),9,FALSE) -> 0 | J9: =VLOOKUP(VLOOKUP($F9,'Data BI Summary'!$A:$F,MATCH(J$1,'Data BI Summary'!$2:$2,0),FALSE),INDIRECT("'"&$E9&"'!"&"$A:$K"),8,FALSE) -> 0 | K9: =VLOOKUP(VLOOKUP($F9,'Data BI Summary'!$A:$F,MATCH(K$1,'Data BI Summary'!$2:$2,0),FALSE),INDIRECT("'"&$E9&"'!"&"$A:$K"),9,FALSE) -> 0
A10: R2 | B10: Low | C10: =VLOOKUP(A$10,'Data Billing Quantities'!A:P,MATCH(B10&" kWh",'Data Billing Quantities'!$4:$4,0),FALSE) -> 450 | E10: BI_R2_Low | F10: BI Template_Energy | G10: =VLOOKUP(VLOOKUP($F10,'Data BI Summary'!$A:$F,MATCH(G$1,'Data BI Summary'!$2:$2,0),FALSE),INDIRECT("'"&$E10&"'!"&"$A:$K"),4,FALSE) -> 91.36052887 | H10: =VLOOKUP(VLOOKUP($F10,'Data BI Summary'!$A:$F,MATCH(H$1,'Data BI Summary'!$2:$2,0),FALSE),INDIRECT("'"&$E10&"'!"&"$A:$K"),8,FALSE) -> 0 | I10: =VLOOKUP(VLOOKUP($F10,'Data BI Summary'!$A:$F,MATCH(I$1,'Data BI Summary'!$2:$2,0),FALSE),INDIRECT("'"&$E10&"'!"&"$A:$K"),9,FALSE) -> 0 | J10: =VLOOKUP(VLOOKUP($F10,'Data BI Summary'!$A:$F,MATCH(J$1,'Data BI Summary'!$2:$2,0),FALSE),INDIRECT("'"&$E10&"'!"&"$A:$K"),8,FALSE) -> 0 | K10: =VLOOKUP(VLOOKUP($F10,'Data BI Summary'!$A:$F,MATCH(K$1,'Data BI Summary'!$2:$2,0),FALSE),INDIRECT("'"&$E10&"'!"&"$A:$K"),9,FALSE) -> 0 | L10: =L6 -> TOU (DRP applied)
B11: Typical | C11: =VLOOKUP(A$10,'Data Billing Quantities'!A:P,MATCH(B11&" kWh",'Data Billing Quantities'!$4:$4,0),FALSE) -> 750 | E11: BI_R2_Typical | F11: BI Template_Energy | G11: =VLOOKUP(VLOOKUP($F11,'Data BI Summary'!$A:$F,MATCH(G$1,'Data BI Summary'!$2:$2,0),FALSE),INDIRECT("'"&$E11&"'!"&"$A:$K"),4,FALSE) -> 125.9125481 | H11: =VLOOKUP(VLOOKUP($F11,'Data BI Summary'!$A:$F,MATCH(H$1,'Data BI Summary'!$2:$2,0),FALSE),INDIRECT("'"&$E11&"'!"&"$A:$K"),8,FALSE) -> 0 | I11: =VLOOKUP(VLOOKUP($F11,'Data BI Summary'!$A:$F,MATCH(I$1,'Data BI Summary'!$2:$2,0),FALSE),INDIRECT("'"&$E11&"'!"&"$A:$K"),9,FALSE) -> 0 | J11: =VLOOKUP(VLOOKUP($F11,'Data BI Summary'!$A:$F,MATCH(J$1,'Data BI Summary'!$2:$2,0),FALSE),INDIRECT("'"&$E11&"'!"&"$A:$K"),8,FALSE) -> 0 | K11: =VLOOKUP(VLOOKUP($F11,'Data BI Summary'!$A:$F,MATCH(K$1,'Data BI Summary'!$2:$2,0),FALSE),INDIRECT("'"&$E11&"'!"&"$A:$K"),9,FALSE) -> 0
B12: Average | C12: =VLOOKUP(A$10,'Data Billing Quantities'!A:P,MATCH(B12&" kWh",'Data Billing Quantities'!$4:$4,0),FALSE) -> 1152 | E12: BI_R2_Avg | F12: BI Template_Energy | G12: =VLOOKUP(VLOOKUP($F12,'Data BI Summary'!$A:$F,MATCH(G$1,'Data BI Summary'!$2:$2,0),FALSE),INDIRECT("'"&$E12&"'!"&"$A:$K"),4,FALSE) -> 172.2122539 | H12: =VLOOKUP(VLOOKUP($F12,'Data BI Summary'!$A:$F,MATCH(H$1,'Data BI Summary'!$2:$2,0),FALSE),INDIRECT("'"&$E12&"'!"&"$A:$K"),8,FALSE) -> 0 | I12: =VLOOKUP(VLOOKUP($F12,'Data BI Summary'!$A:$F,MATCH(I$1,'Data BI Summary'!$2:$2,0),FALSE),INDIRECT("'"&$E12&"'!"&"$A:$K"),9,FALSE) -> 0 | J12: =VLOOKUP(VLOOKUP($F12,'Data BI Summary'!$A:$F,MATCH(J$1,'Data BI Summary'!$2:$2,0),FALSE),INDIRECT("'"&$E12&"'!"&"$A:$K"),8,FALSE) -> 0 | K12: =VLOOKUP(VLOOKUP($F12,'Data BI Summary'!$A:$F,MATCH(K$1,'Data BI Summary'!$2:$2,0),FALSE),INDIRECT("'"&$E12&"'!"&"$A:$K"),9,FALSE) -> 0
B13: High | C13: =VLOOKUP(A$10,'Data Billing Quantities'!A:P,MATCH(B13&" kWh",'Data Billing Quantities'!$4:$4,0),FALSE) -> 2300 | E13: BI_R2_High | F13: BI Template_Energy | G13: =VLOOKUP(VLOOKUP($F13,'Data BI Summary'!$A:$F,MATCH(G$1,'Data BI Summary'!$2:$2,0),FALSE),INDIRECT("'"&$E13&"'!"&"$A:$K"),4,FALSE) -> 304.4313143 | H13: =VLOOKUP(VLOOKUP($F13,'Data BI Summary'!$A:$F,MATCH(H$1,'Data BI Summary'!$2:$2,0),FALSE),INDIRECT("'"&$E13&"'!"&"$A:$K"),8,FALSE) -> 0 | I13: =VLOOKUP(VLOOKUP($F13,'Data BI Summary'!$A:$F,MATCH(I$1,'Data BI Summary'!$2:$2,0),FALSE),INDIRECT("'"&$E13&"'!"&"$A:$K"),9,FALSE) -> 0 | J13: =VLOOKUP(VLOOKUP($F13,'Data BI Summary'!$A:$F,MATCH(J$1,'Data BI Summary'!$2:$2,0),FALSE),INDIRECT("'"&$E13&"'!"&"$A:$K"),8,FALSE) -> 0 | K13: =VLOOKUP(VLOOKUP($F13,'Data BI Summary'!$A:$F,MATCH(K$1,'Data BI Summary'!$2:$2,0),FALSE),INDIRECT("'"&$E13&"'!"&"$A:$K"),9,FALSE) -> 0
A14: Seasonal | B14: Low | C14: =VLOOKUP(A$14,'Data Billing Quantities'!A:P,MATCH(B14&" kWh",'Data Billing Quantities'!$4:$4,0),FALSE) -> 50 | E14: BI_Seas_Low | F14: BI Template_Energy | G14: =VLOOKUP(VLOOKUP($F14,'Data BI Summary'!$A:$F,MATCH(G$1,'Data BI Summary'!$2:$2,0),FALSE),INDIRECT("'"&$E14&"'!"&"$A:$K"),4,FALSE) -> 52.5940464 | H14: =VLOOKUP(VLOOKUP($F14,'Data BI Summary'!$A:$F,MATCH(H$1,'Data BI Summary'!$2:$2,0),FALSE),INDIRECT("'"&$E14&"'!"&"$A:$K"),8,FALSE) -> 4.715 | I14: =VLOOKUP(VLOOKUP($F14,'Data BI Summary'!$A:$F,MATCH(I$1,'Data BI Summary'!$2:$2,0),FALSE),INDIRECT("'"&$E14&"'!"&"$A:$K"),9,FALSE) -> 0.1075133964 | J14: =VLOOKUP(VLOOKUP($F14,'Data BI Summary'!$A:$F,MATCH(J$1,'Data BI Summary'!$2:$2,0),FALSE),INDIRECT("'"&$E14&"'!"&"$A:$K"),8,FALSE) -> 4.95075 | K14: =VLOOKUP(VLOOKUP($F14,'Data BI Summary'!$A:$F,MATCH(K$1,'Data BI Summary'!$2:$2,0),FALSE),INDIRECT("'"&$E14&"'!"&"$A:$K"),9,FALSE) -> 0.09413137682 | L14: TOU
B15: Average | C15: =VLOOKUP(A$14,'Data Billing Quantities'!A:P,MATCH(B15&" kWh",'Data Billing Quantities'!$4:$4,0),FALSE) -> 352 | E15: BI_Seas_Avg | F15: BI Template_Energy | G15: =VLOOKUP(VLOOKUP($F15,'Data BI Summary'!$A:$F,MATCH(G$1,'Data BI Summary'!$2:$2,0),FALSE),INDIRECT("'"&$E15&"'!"&"$A:$K"),4,FALSE) -> 110.1132467 | H15: =VLOOKUP(VLOOKUP($F15,'Data BI Summary'!$A:$F,MATCH(H$1,'Data BI Summary'!$2:$2,0),FALSE),INDIRECT("'"&$E15&"'!"&"$A:$K"),8,FALSE) -> 0.8796 | I15: =VLOOKUP(VLOOKUP($F15,'Data BI Summary'!$A:$F,MATCH(I$1,'Data BI Summary'!$2:$2,0),FALSE),INDIRECT("'"&$E15&"'!"&"$A:$K"),9,FALSE) -> 0.0133411799 | J15: =VLOOKUP(VLOOKUP($F15,'Data BI Summary'!$A:$F,MATCH(J$1,'Data BI Summary'!$2:$2,0),FALSE),INDIRECT("'"&$E15&"'!"&"$A:$K"),8,FALSE) -> 0.92358 | K15: =VLOOKUP(VLOOKUP($F15,'Data BI Summary'!$A:$F,MATCH(K$1,'Data BI Summary'!$2:$2,0),FALSE),INDIRECT("'"&$E15&"'!"&"$A:$K"),9,FALSE) -> 0.008387546713
B16: High | C16: =VLOOKUP(A$14,'Data Billing Quantities'!A:P,MATCH(B16&" kWh",'Data Billing Quantities'!$4:$4,0),FALSE) -> 1000 | E16: BI_Seas_High | F16: BI Template_Energy | G16: =VLOOKUP(VLOOKUP($F16,'Data BI Summary'!$A:$F,MATCH(G$1,'Data BI Summary'!$2:$2,0),FALSE),INDIRECT("'"&$E16&"'!"&"$A:$K"),4,FALSE) -> 233.531928 | H16: =VLOOKUP(VLOOKUP($F16,'Data BI Summary'!$A:$F,MATCH(H$1,'Data BI Summary'!$2:$2,0),FALSE),INDIRECT("'"&$E16&"'!"&"$A:$K"),8,FALSE) -> -7.35 | I16: =VLOOKUP(VLOOKUP($F16,'Data BI Summary'!$A:$F,MATCH(I$1,'Data BI Summary'!$2:$2,0),FALSE),INDIRECT("'"&$E16&"'!"&"$A:$K"),9,FALSE) -> -0.06487202118 | J16: =VLOOKUP(VLOOKUP($F16,'Data BI Summary'!$A:$F,MATCH(J$1,'Data BI Summary'!$2:$2,0),FALSE),INDIRECT("'"&$E16&"'!"&"$A:$K"),8,FALSE) -> -7.7175 | K16: =VLOOKUP(VLOOKUP($F16,'Data BI Summary'!$A:$F,MATCH(K$1,'Data BI Summary'!$2:$2,0),FALSE),INDIRECT("'"&$E16&"'!"&"$A:$K"),9,FALSE) -> -0.03304687315
A17: GSe | B17: Low | C17: =VLOOKUP(A$17,'Data Billing Quantities'!A:P,MATCH(B17&" kWh",'Data Billing Quantities'!$4:$4,0),FALSE) -> 1000 | E17: BI_GSe_Low | F17: BI Template_Energy | G17: =VLOOKUP(VLOOKUP($F17,'Data BI Summary'!$A:$F,MATCH(G$1,'Data BI Summary'!$2:$2,0),FALSE),INDIRECT("'"&$E17&"'!"&"$A:$K"),4,FALSE) -> 212.823072 | H17: =VLOOKUP(VLOOKUP($F17,'Data BI Summary'!$A:$F,MATCH(H$1,'Data BI Summary'!$2:$2,0),FALSE),INDIRECT("'"&$E17&"'!"&"$A:$K"),8,FALSE) -> 1.97 | I17: =VLOOKUP(VLOOKUP($F17,'Data BI Summary'!$A:$F,MATCH(I$1,'Data BI Summary'!$2:$2,0),FALSE),INDIRECT("'"&$E17&"'!"&"$A:$K"),9,FALSE) -> 0.02075650616 | J17: =VLOOKUP(VLOOKUP($F17,'Data BI Summary'!$A:$F,MATCH(J$1,'Data BI Summary'!$2:$2,0),FALSE),INDIRECT("'"&$E17&"'!"&"$A:$K"),8,FALSE) -> 2.0685 | K17: =VLOOKUP(VLOOKUP($F17,'Data BI Summary'!$A:$F,MATCH(K$1,'Data BI Summary'!$2:$2,0),FALSE),INDIRECT("'"&$E17&"'!"&"$A:$K"),9,FALSE) -> 0.009719340956 | L17: TOU
B18: Typical | C18: =VLOOKUP(A$17,'Data Billing Quantities'!A:P,MATCH(B18&" kWh",'Data Billing Quantities'!$4:$4,0),FALSE) -> 2000 | E18: BI_GSe_Typical | F18: BI Template_Energy | G18: =VLOOKUP(VLOOKUP($F18,'Data BI Summary'!$A:$F,MATCH(G$1,'Data BI Summary'!$2:$2,0),FALSE),INDIRECT("'"&$E18&"'!"&"$A:$K"),4,FALSE) -> 389.599644 | H18: =VLOOKUP(VLOOKUP($F18,'Data BI Summary'!$A:$F,MATCH(H$1,'Data BI Summary'!$2:$2,0),FALSE),INDIRECT("'"&$E18&"'!"&"$A:$K"),8,FALSE) -> 3.57 | I18: =VLOOKUP(VLOOKUP($F18,'Data BI Summary'!$A:$F,MATCH(I$1,'Data BI Summary'!$2:$2,0),FALSE),INDIRECT("'"&$E18&"'!"&"$A:$K"),9,FALSE) -> 0.02283922974 | J18: =VLOOKUP(VLOOKUP($F18,'Data BI Summary'!$A:$F,MATCH(J$1,'Data BI Summary'!$2:$2,0),FALSE),INDIRECT("'"&$E18&"'!"&"$A:$K"),8,FALSE) -> 3.7485 | K18: =VLOOKUP(VLOOKUP($F18,'Data BI Summary'!$A:$F,MATCH(K$1,'Data BI Summary'!$2:$2,0),FALSE),INDIRECT("'"&$E18&"'!"&"$A:$K"),9,FALSE) -> 0.009621415362
B19: Average | C19: =VLOOKUP(A$17,'Data Billing Quantities'!A:P,MATCH(B19&" kWh",'Data Billing Quantities'!$4:$4,0),FALSE) -> 1982 | E19: BI_GSe_Avg | F19: BI Template_Energy | G19: =VLOOKUP(VLOOKUP($F19,'Data BI Summary'!$A:$F,MATCH(G$1,'Data BI Summary'!$2:$2,0),FALSE),INDIRECT("'"&$E19&"'!"&"$A:$K"),4,FALSE) -> 386.4176657 | H19: =VLOOKUP(VLOOKUP($F19,'Data BI Summary'!$A:$F,MATCH(H$1,'Data BI Summary'!$2:$2,0),FALSE),INDIRECT("'"&$E19&"'!"&"$A:$K"),8,FALSE) -> 3.5412 | I19: =VLOOKUP(VLOOKUP($F19,'Data BI Summary'!$A:$F,MATCH(I$1,'Data BI Summary'!$2:$2,0),FALSE),INDIRECT("'"&$E19&"'!"&"$A:$K"),9,FALSE) -> 0.02281630465 | J19: =VLOOKUP(VLOOKUP($F19,'Data BI Summary'!$A:$F,MATCH(J$1,'Data BI Summary'!$2:$2,0),FALSE),INDIRECT("'"&$E19&"'!"&"$A:$K"),8,FALSE) -> 3.71826 | K19: =VLOOKUP(VLOOKUP($F19,'Data BI Summary'!$A:$F,MATCH(K$1,'Data BI Summary'!$2:$2,0),FALSE),INDIRECT("'"&$E19&"'!"&"$A:$K"),9,FALSE) -> 0.009622386164
B20: High | C20: =VLOOKUP(A$17,'Data Billing Quantities'!A:P,MATCH(B20&" kWh",'Data Billing Quantities'!$4:$4,0),FALSE) -> 15000 | E20: BI_GSe_High | F20: BI Template_Energy | G20: =VLOOKUP(VLOOKUP($F20,'Data BI Summary'!$A:$F,MATCH(G$1,'Data BI Summary'!$2:$2,0),FALSE),INDIRECT("'"&$E20&"'!"&"$A:$K"),4,FALSE) -> 2687.69508 | H20: =VLOOKUP(VLOOKUP($F20,'Data BI Summary'!$A:$F,MATCH(H$1,'Data BI Summary'!$2:$2,0),FALSE),INDIRECT("'"&$E20&"'!"&"$A:$K"),8,FALSE) -> 24.37 | I20: =VLOOKUP(VLOOKUP($F20,'Data BI Summary'!$A:$F,MATCH(I$1,'Data BI Summary'!$2:$2,0),FALSE),INDIRECT("'"&$E20&"'!"&"$A:$K"),9,FALSE) -> 0.0255314245 | J20: =VLOOKUP(VLOOKUP($F20,'Data BI Summary'!$A:$F,MATCH(J$1,'Data BI Summary'!$2:$2,0),FALSE),INDIRECT("'"&$E20&"'!"&"$A:$K"),8,FALSE) -> 25.5885 | K20: =VLOOKUP(VLOOKUP($F20,'Data BI Summary'!$A:$F,MATCH(K$1,'Data BI Summary'!$2:$2,0),FALSE),INDIRECT("'"&$E20&"'!"&"$A:$K"),9,FALSE) -> 0.009520611244
A21: UGe | B21: Low | C21: =VLOOKUP(A$21,'Data Billing Quantities'!A:P,MATCH(B21&" kWh",'Data Billing Quantities'!$4:$4,0),FALSE) -> 1000 | E21: BI_UGe_Low | F21: BI Template_Energy | G21: =VLOOKUP(VLOOKUP($F21,'Data BI Summary'!$A:$F,MATCH(G$1,'Data BI Summary'!$2:$2,0),FALSE),INDIRECT("'"&$E21&"'!"&"$A:$K"),4,FALSE) -> 167.9881665 | H21: =VLOOKUP(VLOOKUP($F21,'Data BI Summary'!$A:$F,MATCH(H$1,'Data BI Summary'!$2:$2,0),FALSE),INDIRECT("'"&$E21&"'!"&"$A:$K"),8,FALSE) -> 0.96 | I21: =VLOOKUP(VLOOKUP($F21,'Data BI Summary'!$A:$F,MATCH(I$1,'Data BI Summary'!$2:$2,0),FALSE),INDIRECT("'"&$E21&"'!"&"$A:$K"),9,FALSE) -> 0.01764705882 | J21: =VLOOKUP(VLOOKUP($F21,'Data BI Summary'!$A:$F,MATCH(J$1,'Data BI Summary'!$2:$2,0),FALSE),INDIRECT("'"&$E21&"'!"&"$A:$K"),8,FALSE) -> 1.008 | K21: =VLOOKUP(VLOOKUP($F21,'Data BI Summary'!$A:$F,MATCH(K$1,'Data BI Summary'!$2:$2,0),FALSE),INDIRECT("'"&$E21&"'!"&"$A:$K"),9,FALSE) -> 0.006000422655 | L21: TOU
B22: Typical | C22: =VLOOKUP(A$21,'Data Billing Quantities'!A:P,MATCH(B22&" kWh",'Data Billing Quantities'!$4:$4,0),FALSE) -> 2000 | E22: BI_UGe_Typical | F22: BI Template_Energy | G22: =VLOOKUP(VLOOKUP($F22,'Data BI Summary'!$A:$F,MATCH(G$1,'Data BI Summary'!$2:$2,0),FALSE),INDIRECT("'"&$E22&"'!"&"$A:$K"),4,FALSE) -> 308.760333 | H22: =VLOOKUP(VLOOKUP($F22,'Data BI Summary'!$A:$F,MATCH(H$1,'Data BI Summary'!$2:$2,0),FALSE),INDIRECT("'"&$E22&"'!"&"$A:$K"),8,FALSE) -> 1.56 | I22: =VLOOKUP(VLOOKUP($F22,'Data BI Summary'!$A:$F,MATCH(I$1,'Data BI Summary'!$2:$2,0),FALSE),INDIRECT("'"&$E22&"'!"&"$A:$K"),9,FALSE) -> 0.01863799283 | J22: =VLOOKUP(VLOOKUP($F22,'Data BI Summary'!$A:$F,MATCH(J$1,'Data BI Summary'!$2:$2,0),FALSE),INDIRECT("'"&$E22&"'!"&"$A:$K"),8,FALSE) -> 1.638 | K22: =VLOOKUP(VLOOKUP($F22,'Data BI Summary'!$A:$F,MATCH(K$1,'Data BI Summary'!$2:$2,0),FALSE),INDIRECT("'"&$E22&"'!"&"$A:$K"),9,FALSE) -> 0.005305085611
B23: Average | C23: =VLOOKUP(A$21,'Data Billing Quantities'!A:P,MATCH(B23&" kWh",'Data Billing Quantities'!$4:$4,0),FALSE) -> 2759 | E23: BI_UGe_Avg | F23: BI Template_Energy | G23: =VLOOKUP(VLOOKUP($F23,'Data BI Summary'!$A:$F,MATCH(G$1,'Data BI Summary'!$2:$2,0),FALSE),INDIRECT("'"&$E23&"'!"&"$A:$K"),4,FALSE) -> 415.6064074 | H23: =VLOOKUP(VLOOKUP($F23,'Data BI Summary'!$A:$F,MATCH(H$1,'Data BI Summary'!$2:$2,0),FALSE),INDIRECT("'"&$E23&"'!"&"$A:$K"),8,FALSE) -> 2.0154 | I23: =VLOOKUP(VLOOKUP($F23,'Data BI Summary'!$A:$F,MATCH(I$1,'Data BI Summary'!$2:$2,0),FALSE),INDIRECT("'"&$E23&"'!"&"$A:$K"),9,FALSE) -> 0.01902420928 | J23: =VLOOKUP(VLOOKUP($F23,'Data BI Summary'!$A:$F,MATCH(J$1,'Data BI Summary'!$2:$2,0),FALSE),INDIRECT("'"&$E23&"'!"&"$A:$K"),8,FALSE) -> 2.11617 | K23: =VLOOKUP(VLOOKUP($F23,'Data BI Summary'!$A:$F,MATCH(K$1,'Data BI Summary'!$2:$2,0),FALSE),INDIRECT("'"&$E23&"'!"&"$A:$K"),9,FALSE) -> 0.005091764618
B24: High | C24: =VLOOKUP(A$21,'Data Billing Quantities'!A:P,MATCH(B24&" kWh",'Data Billing Quantities'!$4:$4,0),FALSE) -> 15000 | E24: BI_UGe_High | F24: BI Template_Energy | G24: =VLOOKUP(VLOOKUP($F24,'Data BI Summary'!$A:$F,MATCH(G$1,'Data BI Summary'!$2:$2,0),FALSE),INDIRECT("'"&$E24&"'!"&"$A:$K"),4,FALSE) -> 2138.798498 | H24: =VLOOKUP(VLOOKUP($F24,'Data BI Summary'!$A:$F,MATCH(H$1,'Data BI Summary'!$2:$2,0),FALSE),INDIRECT("'"&$E24&"'!"&"$A:$K"),8,FALSE) -> 9.36 | I24: =VLOOKUP(VLOOKUP($F24,'Data BI Summary'!$A:$F,MATCH(I$1,'Data BI Summary'!$2:$2,0),FALSE),INDIRECT("'"&$E24&"'!"&"$A:$K"),9,FALSE) -> 0.02014636246 | J24: =VLOOKUP(VLOOKUP($F24,'Data BI Summary'!$A:$F,MATCH(J$1,'Data BI Summary'!$2:$2,0),FALSE),INDIRECT("'"&$E24&"'!"&"$A:$K"),8,FALSE) -> 9.828 | K24: =VLOOKUP(VLOOKUP($F24,'Data BI Summary'!$A:$F,MATCH(K$1,'Data BI Summary'!$2:$2,0),FALSE),INDIRECT("'"&$E24&"'!"&"$A:$K"),9,FALSE) -> 0.004595103284
A25: GSd | B25: Low | C25: =VLOOKUP(A$25,'Data Billing Quantities'!A:P,MATCH(B25&" kWh",'Data Billing Quantities'!$4:$4,0),FALSE) -> 15000 | D25: =VLOOKUP(A$25,'Data Billing Quantities'!A:P,MATCH(B25&" kW",'Data Billing Quantities'!$4:$4,0),FALSE) -> 60 | E25: BI_GSd_Low | F25: BI Template_Demand | G25: =VLOOKUP(VLOOKUP($F25,'Data BI Summary'!$A:$F,MATCH(G$1,'Data BI Summary'!$2:$2,0),FALSE),INDIRECT("'"&$E25&"'!"&"$A:$K"),4,FALSE) -> 3624.5428 | H25: =VLOOKUP(VLOOKUP($F25,'Data BI Summary'!$A:$F,MATCH(H$1,'Data BI Summary'!$2:$2,0),FALSE),INDIRECT("'"&$E25&"'!"&"$A:$K"),8,FALSE) -> 24.952 | I25: =VLOOKUP(VLOOKUP($F25,'Data BI Summary'!$A:$F,MATCH(I$1,'Data BI Summary'!$2:$2,0),FALSE),INDIRECT("'"&$E25&"'!"&"$A:$K"),9,FALSE) -> 0.02290662192 | J25: =VLOOKUP(VLOOKUP($F25,'Data BI Summary'!$A:$F,MATCH(J$1,'Data BI Summary'!$2:$2,0),FALSE),INDIRECT("'"&$E25&"'!"&"$A:$K"),8,FALSE) -> 28.19576 | K25: =VLOOKUP(VLOOKUP($F25,'Data BI Summary'!$A:$F,MATCH(K$1,'Data BI Summary'!$2:$2,0),FALSE),INDIRECT("'"&$E25&"'!"&"$A:$K"),9,FALSE) -> 0.007779121825 | L25: Non-RPP
B26: Average | C26: =VLOOKUP(A$25,'Data Billing Quantities'!A:P,MATCH(B26&" kWh",'Data Billing Quantities'!$4:$4,0),FALSE) -> 36104 | D26: =VLOOKUP(A$25,'Data Billing Quantities'!A:P,MATCH(B26&" kW",'Data Billing Quantities'!$4:$4,0),FALSE) -> 124 | E26: BI_GSd_Avg | F26: BI Template_Demand | G26: =VLOOKUP(VLOOKUP($F26,'Data BI Summary'!$A:$F,MATCH(G$1,'Data BI Summary'!$2:$2,0),FALSE),INDIRECT("'"&$E26&"'!"&"$A:$K"),4,FALSE) -> 8050.336895 | H26: =VLOOKUP(VLOOKUP($F26,'Data BI Summary'!$A:$F,MATCH(H$1,'Data BI Summary'!$2:$2,0),FALSE),INDIRECT("'"&$E26&"'!"&"$A:$K"),8,FALSE) -> 50.5648 | I26: =VLOOKUP(VLOOKUP($F26,'Data BI Summary'!$A:$F,MATCH(I$1,'Data BI Summary'!$2:$2,0),FALSE),INDIRECT("'"&$E26&"'!"&"$A:$K"),9,FALSE) -> 0.02408960788 | J26: =VLOOKUP(VLOOKUP($F26,'Data BI Summary'!$A:$F,MATCH(J$1,'Data BI Summary'!$2:$2,0),FALSE),INDIRECT("'"&$E26&"'!"&"$A:$K"),8,FALSE) -> 57.138224 | K26: =VLOOKUP(VLOOKUP($F26,'Data BI Summary'!$A:$F,MATCH(K$1,'Data BI Summary'!$2:$2,0),FALSE),INDIRECT("'"&$E26&"'!"&"$A:$K"),9,FALSE) -> 0.007097618987
B27: High | C27: =VLOOKUP(A$25,'Data Billing Quantities'!A:P,MATCH(B27&" kWh",'Data Billing Quantities'!$4:$4,0),FALSE) -> 175000 | D27: =VLOOKUP(A$25,'Data Billing Quantities'!A:P,MATCH(B27&" kW",'Data Billing Quantities'!$4:$4,0),FALSE) -> 500 | E27: BI_GSd_High | F27: BI Template_Demand | G27: =VLOOKUP(VLOOKUP($F27,'Data BI Summary'!$A:$F,MATCH(G$1,'Data BI Summary'!$2:$2,0),FALSE),INDIRECT("'"&$E27&"'!"&"$A:$K"),4,FALSE) -> 36092.1322 | H27: =VLOOKUP(VLOOKUP($F27,'Data BI Summary'!$A:$F,MATCH(H$1,'Data BI Summary'!$2:$2,0),FALSE),INDIRECT("'"&$E27&"'!"&"$A:$K"),8,FALSE) -> 201.04 | I27: =VLOOKUP(VLOOKUP($F27,'Data BI Summary'!$A:$F,MATCH(I$1,'Data BI Summary'!$2:$2,0),FALSE),INDIRECT("'"&$E27&"'!"&"$A:$K"),9,FALSE) -> 0.02530472915 | J27: =VLOOKUP(VLOOKUP($F27,'Data BI Summary'!$A:$F,MATCH(J$1,'Data BI Summary'!$2:$2,0),FALSE),INDIRECT("'"&$E27&"'!"&"$A:$K"),8,FALSE) -> 227.1752 | K27: =VLOOKUP(VLOOKUP($F27,'Data BI Summary'!$A:$F,MATCH(K$1,'Data BI Summary'!$2:$2,0),FALSE),INDIRECT("'"&$E27&"'!"&"$A:$K"),9,FALSE) -> 0.00629431364
A28: UGd | B28: Low | C28: =VLOOKUP(A$28,'Data Billing Quantities'!A:P,MATCH(B28&" kWh",'Data Billing Quantities'!$4:$4,0),FALSE) -> 15000 | D28: =VLOOKUP(A$28,'Data Billing Quantities'!A:P,MATCH(B28&" kW",'Data Billing Quantities'!$4:$4,0),FALSE) -> 60 | E28: BI_UGd_Low | F28: BI Template_Demand | G28: =VLOOKUP(VLOOKUP($F28,'Data BI Summary'!$A:$F,MATCH(G$1,'Data BI Summary'!$2:$2,0),FALSE),INDIRECT("'"&$E28&"'!"&"$A:$K"),4,FALSE) -> 3135.9647 | H28: =VLOOKUP(VLOOKUP($F28,'Data BI Summary'!$A:$F,MATCH(H$1,'Data BI Summary'!$2:$2,0),FALSE),INDIRECT("'"&$E28&"'!"&"$A:$K"),8,FALSE) -> 14.072 | I28: =VLOOKUP(VLOOKUP($F28,'Data BI Summary'!$A:$F,MATCH(I$1,'Data BI Summary'!$2:$2,0),FALSE),INDIRECT("'"&$E28&"'!"&"$A:$K"),9,FALSE) -> 0.02279634274 | J28: =VLOOKUP(VLOOKUP($F28,'Data BI Summary'!$A:$F,MATCH(J$1,'Data BI Summary'!$2:$2,0),FALSE),INDIRECT("'"&$E28&"'!"&"$A:$K"),8,FALSE) -> 15.90136 | K28: =VLOOKUP(VLOOKUP($F28,'Data BI Summary'!$A:$F,MATCH(K$1,'Data BI Summary'!$2:$2,0),FALSE),INDIRECT("'"&$E28&"'!"&"$A:$K"),9,FALSE) -> 0.005070643812 | L28: Non-RPP
B29: Average | C29: =VLOOKUP(A$28,'Data Billing Quantities'!A:P,MATCH(B29&" kWh",'Data Billing Quantities'!$4:$4,0),FALSE) -> 50525 | D29: =VLOOKUP(A$28,'Data Billing Quantities'!A:P,MATCH(B29&" kW",'Data Billing Quantities'!$4:$4,0),FALSE) -> 135 | E29: BI_UGd_Avg | F29: BI Template_Demand | G29: =VLOOKUP(VLOOKUP($F29,'Data BI Summary'!$A:$F,MATCH(G$1,'Data BI Summary'!$2:$2,0),FALSE),INDIRECT("'"&$E29&"'!"&"$A:$K"),4,FALSE) -> 9186.249685 | H29: =VLOOKUP(VLOOKUP($F29,'Data BI Summary'!$A:$F,MATCH(H$1,'Data BI Summary'!$2:$2,0),FALSE),INDIRECT("'"&$E29&"'!"&"$A:$K"),8,FALSE) -> 30.812 | I29: =VLOOKUP(VLOOKUP($F29,'Data BI Summary'!$A:$F,MATCH(I$1,'Data BI Summary'!$2:$2,0),FALSE),INDIRECT("'"&$E29&"'!"&"$A:$K"),9,FALSE) -> 0.02638325419 | J29: =VLOOKUP(VLOOKUP($F29,'Data BI Summary'!$A:$F,MATCH(J$1,'Data BI Summary'!$2:$2,0),FALSE),INDIRECT("'"&$E29&"'!"&"$A:$K"),8,FALSE) -> 34.81756 | K29: =VLOOKUP(VLOOKUP($F29,'Data BI Summary'!$A:$F,MATCH(K$1,'Data BI Summary'!$2:$2,0),FALSE),INDIRECT("'"&$E29&"'!"&"$A:$K"),9,FALSE) -> 0.003790182196
B30: High | C30: =VLOOKUP(A$28,'Data Billing Quantities'!A:P,MATCH(B30&" kWh",'Data Billing Quantities'!$4:$4,0),FALSE) -> 175000 | D30: =VLOOKUP(A$28,'Data Billing Quantities'!A:P,MATCH(B30&" kW",'Data Billing Quantities'!$4:$4,0),FALSE) -> 500 | E30: BI_UGd_High | F30: BI Template_Demand | G30: =VLOOKUP(VLOOKUP($F30,'Data BI Summary'!$A:$F,MATCH(G$1,'Data BI Summary'!$2:$2,0),FALSE),INDIRECT("'"&$E30&"'!"&"$A:$K"),4,FALSE) -> 32078.1575 | H30: =VLOOKUP(VLOOKUP($F30,'Data BI Summary'!$A:$F,MATCH(H$1,'Data BI Summary'!$2:$2,0),FALSE),INDIRECT("'"&$E30&"'!"&"$A:$K"),8,FALSE) -> 112.28 | I30: =VLOOKUP(VLOOKUP($F30,'Data BI Summary'!$A:$F,MATCH(I$1,'Data BI Summary'!$2:$2,0),FALSE),INDIRECT("'"&$E30&"'!"&"$A:$K"),9,FALSE) -> 0.02719895351 | J30: =VLOOKUP(VLOOKUP($F30,'Data BI Summary'!$A:$F,MATCH(J$1,'Data BI Summary'!$2:$2,0),FALSE),INDIRECT("'"&$E30&"'!"&"$A:$K"),8,FALSE) -> 126.8764 | K30: =VLOOKUP(VLOOKUP($F30,'Data BI Summary'!$A:$F,MATCH(K$1,'Data BI Summary'!$2:$2,0),FALSE),INDIRECT("'"&$E30&"'!"&"$A:$K"),9,FALSE) -> 0.003955227167
A31: St Lgt | B31: Low | C31: =VLOOKUP(A$31,'Data Billing Quantities'!A:P,MATCH(B31&" kWh",'Data Billing Quantities'!$4:$4,0),FALSE) -> 100 | E31: BI_StLgt_Low | F31: BI Template_EnergyUNM | G31: =VLOOKUP(VLOOKUP($F31,'Data BI Summary'!$A:$F,MATCH(G$1,'Data BI Summary'!$2:$2,0),FALSE),INDIRECT("'"&$E31&"'!"&"$A:$K"),4,FALSE) -> 24.901002 | H31: =VLOOKUP(VLOOKUP($F31,'Data BI Summary'!$A:$F,MATCH(H$1,'Data BI Summary'!$2:$2,0),FALSE),INDIRECT("'"&$E31&"'!"&"$A:$K"),8,FALSE) -> 0.28 | I31: =VLOOKUP(VLOOKUP($F31,'Data BI Summary'!$A:$F,MATCH(I$1,'Data BI Summary'!$2:$2,0),FALSE),INDIRECT("'"&$E31&"'!"&"$A:$K"),9,FALSE) -> 0.0213740458 | J31: =VLOOKUP(VLOOKUP($F31,'Data BI Summary'!$A:$F,MATCH(J$1,'Data BI Summary'!$2:$2,0),FALSE),INDIRECT("'"&$E31&"'!"&"$A:$K"),8,FALSE) -> 0.294 | K31: =VLOOKUP(VLOOKUP($F31,'Data BI Summary'!$A:$F,MATCH(K$1,'Data BI Summary'!$2:$2,0),FALSE),INDIRECT("'"&$E31&"'!"&"$A:$K"),9,FALSE) -> 0.0118067538 | L31: Two-tier RPP
B32: Average | C32: =VLOOKUP(A$31,'Data Billing Quantities'!A:P,MATCH(B32&" kWh",'Data Billing Quantities'!$4:$4,0),FALSE) -> 517 | E32: BI_StLgt_Avg | F32: BI Template_EnergyUNM | G32: =VLOOKUP(VLOOKUP($F32,'Data BI Summary'!$A:$F,MATCH(G$1,'Data BI Summary'!$2:$2,0),FALSE),INDIRECT("'"&$E32&"'!"&"$A:$K"),4,FALSE) -> 113.8074953 | H32: =VLOOKUP(VLOOKUP($F32,'Data BI Summary'!$A:$F,MATCH(H$1,'Data BI Summary'!$2:$2,0),FALSE),INDIRECT("'"&$E32&"'!"&"$A:$K"),8,FALSE) -> 1.1557 | I32: =VLOOKUP(VLOOKUP($F32,'Data BI Summary'!$A:$F,MATCH(I$1,'Data BI Summary'!$2:$2,0),FALSE),INDIRECT("'"&$E32&"'!"&"$A:$K"),9,FALSE) -> 0.02030154567 | J32: =VLOOKUP(VLOOKUP($F32,'Data BI Summary'!$A:$F,MATCH(J$1,'Data BI Summary'!$2:$2,0),FALSE),INDIRECT("'"&$E32&"'!"&"$A:$K"),8,FALSE) -> 1.213485 | K32: =VLOOKUP(VLOOKUP($F32,'Data BI Summary'!$A:$F,MATCH(K$1,'Data BI Summary'!$2:$2,0),FALSE),INDIRECT("'"&$E32&"'!"&"$A:$K"),9,FALSE) -> 0.01066261055
B33: High | C33: =VLOOKUP(A$31,'Data Billing Quantities'!A:P,MATCH(B33&" kWh",'Data Billing Quantities'!$4:$4,0),FALSE) -> 2000 | E33: BI_StLgt_High | F33: BI Template_EnergyUNM | G33: =VLOOKUP(VLOOKUP($F33,'Data BI Summary'!$A:$F,MATCH(G$1,'Data BI Summary'!$2:$2,0),FALSE),INDIRECT("'"&$E33&"'!"&"$A:$K"),4,FALSE) -> 448.05894 | H33: =VLOOKUP(VLOOKUP($F33,'Data BI Summary'!$A:$F,MATCH(H$1,'Data BI Summary'!$2:$2,0),FALSE),INDIRECT("'"&$E33&"'!"&"$A:$K"),8,FALSE) -> 4.27 | I33: =VLOOKUP(VLOOKUP($F33,'Data BI Summary'!$A:$F,MATCH(I$1,'Data BI Summary'!$2:$2,0),FALSE),INDIRECT("'"&$E33&"'!"&"$A:$K"),9,FALSE) -> 0.02006673246 | J33: =VLOOKUP(VLOOKUP($F33,'Data BI Summary'!$A:$F,MATCH(J$1,'Data BI Summary'!$2:$2,0),FALSE),INDIRECT("'"&$E33&"'!"&"$A:$K"),8,FALSE) -> 4.4835 | K33: =VLOOKUP(VLOOKUP($F33,'Data BI Summary'!$A:$F,MATCH(K$1,'Data BI Summary'!$2:$2,0),FALSE),INDIRECT("'"&$E33&"'!"&"$A:$K"),9,FALSE) -> 0.01000649602
A34: Sen Lgt | B34: Low | C34: =VLOOKUP(A$34,'Data Billing Quantities'!A:P,MATCH(B34&" kWh",'Data Billing Quantities'!$4:$4,0),FALSE) -> 20 | E34: BI_SenLgt_Low | F34: BI Template_EnergyUNM | G34: =VLOOKUP(VLOOKUP($F34,'Data BI Summary'!$A:$F,MATCH(G$1,'Data BI Summary'!$2:$2,0),FALSE),INDIRECT("'"&$E34&"'!"&"$A:$K"),4,FALSE) -> 8.4873936 | H34: =VLOOKUP(VLOOKUP($F34,'Data BI Summary'!$A:$F,MATCH(H$1,'Data BI Summary'!$2:$2,0),FALSE),INDIRECT("'"&$E34&"'!"&"$A:$K"),8,FALSE) -> 0.26 | I34: =VLOOKUP(VLOOKUP($F34,'Data BI Summary'!$A:$F,MATCH(I$1,'Data BI Summary'!$2:$2,0),FALSE),INDIRECT("'"&$E34&"'!"&"$A:$K"),9,FALSE) -> 0.04903809883 | J34: =VLOOKUP(VLOOKUP($F34,'Data BI Summary'!$A:$F,MATCH(J$1,'Data BI Summary'!$2:$2,0),FALSE),INDIRECT("'"&$E34&"'!"&"$A:$K"),8,FALSE) -> 0.273 | K34: =VLOOKUP(VLOOKUP($F34,'Data BI Summary'!$A:$F,MATCH(K$1,'Data BI Summary'!$2:$2,0),FALSE),INDIRECT("'"&$E34&"'!"&"$A:$K"),9,FALSE) -> 0.03216535168 | L34: Two-tier RPP
B35: Average | C35: =VLOOKUP(A$34,'Data Billing Quantities'!A:P,MATCH(B35&" kWh",'Data Billing Quantities'!$4:$4,0),FALSE) -> 71 | E35: BI_SenLgt_Avg | F35: BI Template_EnergyUNM | G35: =VLOOKUP(VLOOKUP($F35,'Data BI Summary'!$A:$F,MATCH(G$1,'Data BI Summary'!$2:$2,0),FALSE),INDIRECT("'"&$E35&"'!"&"$A:$K"),4,FALSE) -> 21.64257228 | H35: =VLOOKUP(VLOOKUP($F35,'Data BI Summary'!$A:$F,MATCH(H$1,'Data BI Summary'!$2:$2,0),FALSE),INDIRECT("'"&$E35&"'!"&"$A:$K"),8,FALSE) -> 0.617 | I35: =VLOOKUP(VLOOKUP($F35,'Data BI Summary'!$A:$F,MATCH(I$1,'Data BI Summary'!$2:$2,0),FALSE),INDIRECT("'"&$E35&"'!"&"$A:$K"),9,FALSE) -> 0.04809191245 | J35: =VLOOKUP(VLOOKUP($F35,'Data BI Summary'!$A:$F,MATCH(J$1,'Data BI Summary'!$2:$2,0),FALSE),INDIRECT("'"&$E35&"'!"&"$A:$K"),8,FALSE) -> 0.64785 | K35: =VLOOKUP(VLOOKUP($F35,'Data BI Summary'!$A:$F,MATCH(K$1,'Data BI Summary'!$2:$2,0),FALSE),INDIRECT("'"&$E35&"'!"&"$A:$K"),9,FALSE) -> 0.02993405736
B36: High | C36: =VLOOKUP(A$34,'Data Billing Quantities'!A:P,MATCH(B36&" kWh",'Data Billing Quantities'!$4:$4,0),FALSE) -> 200 | E36: BI_SenLgt_High | F36: BI Template_EnergyUNM | G36: =VLOOKUP(VLOOKUP($F36,'Data BI Summary'!$A:$F,MATCH(G$1,'Data BI Summary'!$2:$2,0),FALSE),INDIRECT("'"&$E36&"'!"&"$A:$K"),4,FALSE) -> 54.917436 | H36: =VLOOKUP(VLOOKUP($F36,'Data BI Summary'!$A:$F,MATCH(H$1,'Data BI Summary'!$2:$2,0),FALSE),INDIRECT("'"&$E36&"'!"&"$A:$K"),8,FALSE) -> 1.52 | I36: =VLOOKUP(VLOOKUP($F36,'Data BI Summary'!$A:$F,MATCH(I$1,'Data BI Summary'!$2:$2,0),FALSE),INDIRECT("'"&$E36&"'!"&"$A:$K"),9,FALSE) -> 0.04769375588 | J36: =VLOOKUP(VLOOKUP($F36,'Data BI Summary'!$A:$F,MATCH(J$1,'Data BI Summary'!$2:$2,0),FALSE),INDIRECT("'"&$E36&"'!"&"$A:$K"),8,FALSE) -> 1.596 | K36: =VLOOKUP(VLOOKUP($F36,'Data BI Summary'!$A:$F,MATCH(K$1,'Data BI Summary'!$2:$2,0),FALSE),INDIRECT("'"&$E36&"'!"&"$A:$K"),9,FALSE) -> 0.02906180835
A37: USL | B37: Low | C37: =VLOOKUP(A$37,'Data Billing Quantities'!A:P,MATCH(B37&" kWh",'Data Billing Quantities'!$4:$4,0),FALSE) -> 100 | E37: BI_USL_Low | F37: BI Template_EnergyUNM | G37: =VLOOKUP(VLOOKUP($F37,'Data BI Summary'!$A:$F,MATCH(G$1,'Data BI Summary'!$2:$2,0),FALSE),INDIRECT("'"&$E37&"'!"&"$A:$K"),4,FALSE) -> 55.181196 | H37: =VLOOKUP(VLOOKUP($F37,'Data BI Summary'!$A:$F,MATCH(H$1,'Data BI Summary'!$2:$2,0),FALSE),INDIRECT("'"&$E37&"'!"&"$A:$K"),8,FALSE) -> -1.98 | I37: =VLOOKUP(VLOOKUP($F37,'Data BI Summary'!$A:$F,MATCH(I$1,'Data BI Summary'!$2:$2,0),FALSE),INDIRECT("'"&$E37&"'!"&"$A:$K"),9,FALSE) -> -0.04732313576 | J37: =VLOOKUP(VLOOKUP($F37,'Data BI Summary'!$A:$F,MATCH(J$1,'Data BI Summary'!$2:$2,0),FALSE),INDIRECT("'"&$E37&"'!"&"$A:$K"),8,FALSE) -> -2.079 | K37: =VLOOKUP(VLOOKUP($F37,'Data BI Summary'!$A:$F,MATCH(K$1,'Data BI Summary'!$2:$2,0),FALSE),INDIRECT("'"&$E37&"'!"&"$A:$K"),9,FALSE) -> -0.03767587785 | L37: Two-tier RPP
B38: Average | C38: =VLOOKUP(A$37,'Data Billing Quantities'!A:P,MATCH(B38&" kWh",'Data Billing Quantities'!$4:$4,0),FALSE) -> 364 | E38: BI_USL_Avg | F38: BI Template_EnergyUNM | G38: =VLOOKUP(VLOOKUP($F38,'Data BI Summary'!$A:$F,MATCH(G$1,'Data BI Summary'!$2:$2,0),FALSE),INDIRECT("'"&$E38&"'!"&"$A:$K"),4,FALSE) -> 88.64899344 | H38: =VLOOKUP(VLOOKUP($F38,'Data BI Summary'!$A:$F,MATCH(H$1,'Data BI Summary'!$2:$2,0),FALSE),INDIRECT("'"&$E38&"'!"&"$A:$K"),8,FALSE) -> -2.3232 | I38: =VLOOKUP(VLOOKUP($F38,'Data BI Summary'!$A:$F,MATCH(I$1,'Data BI Summary'!$2:$2,0),FALSE),INDIRECT("'"&$E38&"'!"&"$A:$K"),9,FALSE) -> -0.04881164487 | J38: =VLOOKUP(VLOOKUP($F38,'Data BI Summary'!$A:$F,MATCH(J$1,'Data BI Summary'!$2:$2,0),FALSE),INDIRECT("'"&$E38&"'!"&"$A:$K"),8,FALSE) -> -2.43936 | K38: =VLOOKUP(VLOOKUP($F38,'Data BI Summary'!$A:$F,MATCH(K$1,'Data BI Summary'!$2:$2,0),FALSE),INDIRECT("'"&$E38&"'!"&"$A:$K"),9,FALSE) -> -0.02751706371
B39: High | C39: =VLOOKUP(A$37,'Data Billing Quantities'!A:P,MATCH(B39&" kWh",'Data Billing Quantities'!$4:$4,0),FALSE) -> 1000 | E39: BI_USL_High | F39: BI Template_EnergyUNM | G39: =VLOOKUP(VLOOKUP($F39,'Data BI Summary'!$A:$F,MATCH(G$1,'Data BI Summary'!$2:$2,0),FALSE),INDIRECT("'"&$E39&"'!"&"$A:$K"),4,FALSE) -> 173.58516 | H39: =VLOOKUP(VLOOKUP($F39,'Data BI Summary'!$A:$F,MATCH(H$1,'Data BI Summary'!$2:$2,0),FALSE),INDIRECT("'"&$E39&"'!"&"$A:$K"),8,FALSE) -> -3.15 | I39: =VLOOKUP(VLOOKUP($F39,'Data BI Summary'!$A:$F,MATCH(I$1,'Data BI Summary'!$2:$2,0),FALSE),INDIRECT("'"&$E39&"'!"&"$A:$K"),9,FALSE) -> -0.05125284738 | J39: =VLOOKUP(VLOOKUP($F39,'Data BI Summary'!$A:$F,MATCH(J$1,'Data BI Summary'!$2:$2,0),FALSE),INDIRECT("'"&$E39&"'!"&"$A:$K"),8,FALSE) -> -3.3075 | K39: =VLOOKUP(VLOOKUP($F39,'Data BI Summary'!$A:$F,MATCH(K$1,'Data BI Summary'!$2:$2,0),FALSE),INDIRECT("'"&$E39&"'!"&"$A:$K"),9,FALSE) -> -0.01905404817
A40: DGen | B40: Low | C40: =VLOOKUP(A$40,'Data Billing Quantities'!A:P,MATCH($B40&" kWh",'Data Billing Quantities'!$4:$4,0),FALSE) -> 300 | D40: =VLOOKUP(A$40,'Data Billing Quantities'!A:P,MATCH($B40&" kW",'Data Billing Quantities'!$4:$4,0),FALSE) -> 10 | E40: BI_Dgen_Low | F40: BI Template_Demand | G40: =VLOOKUP(VLOOKUP($F40,'Data BI Summary'!$A:$F,MATCH(G$1,'Data BI Summary'!$2:$2,0),FALSE),INDIRECT("'"&$E40&"'!"&"$A:$K"),4,FALSE) -> 351.3301984 | H40: =VLOOKUP(VLOOKUP($F40,'Data BI Summary'!$A:$F,MATCH(H$1,'Data BI Summary'!$2:$2,0),FALSE),INDIRECT("'"&$E40&"'!"&"$A:$K"),8,FALSE) -> 41.47 | I40: =VLOOKUP(VLOOKUP($F40,'Data BI Summary'!$A:$F,MATCH(I$1,'Data BI Summary'!$2:$2,0),FALSE),INDIRECT("'"&$E40&"'!"&"$A:$K"),9,FALSE) -> 0.162505731 | J40: =VLOOKUP(VLOOKUP($F40,'Data BI Summary'!$A:$F,MATCH(J$1,'Data BI Summary'!$2:$2,0),FALSE),INDIRECT("'"&$E40&"'!"&"$A:$K"),8,FALSE) -> 46.8611 | K40: =VLOOKUP(VLOOKUP($F40,'Data BI Summary'!$A:$F,MATCH(K$1,'Data BI Summary'!$2:$2,0),FALSE),INDIRECT("'"&$E40&"'!"&"$A:$K"),9,FALSE) -> 0.1333819302 | L40: Non-RPP
B41: Average | C41: =VLOOKUP(A$40,'Data Billing Quantities'!A:P,MATCH($B41&" kWh",'Data Billing Quantities'!$4:$4,0),FALSE) -> 1328 | D41: =VLOOKUP(A$40,'Data Billing Quantities'!A:P,MATCH($B41&" kW",'Data Billing Quantities'!$4:$4,0),FALSE) -> 13 | E41: BI_Dgen_Avg | F41: BI Template_Demand | G41: =VLOOKUP(VLOOKUP($F41,'Data BI Summary'!$A:$F,MATCH(G$1,'Data BI Summary'!$2:$2,0),FALSE),INDIRECT("'"&$E41&"'!"&"$A:$K"),4,FALSE) -> 523.9955282 | H41: =VLOOKUP(VLOOKUP($F41,'Data BI Summary'!$A:$F,MATCH(H$1,'Data BI Summary'!$2:$2,0),FALSE),INDIRECT("'"&$E41&"'!"&"$A:$K"),8,FALSE) -> 46.39 | I41: =VLOOKUP(VLOOKUP($F41,'Data BI Summary'!$A:$F,MATCH(I$1,'Data BI Summary'!$2:$2,0),FALSE),INDIRECT("'"&$E41&"'!"&"$A:$K"),9,FALSE) -> 0.1703492435 | J41: =VLOOKUP(VLOOKUP($F41,'Data BI Summary'!$A:$F,MATCH(J$1,'Data BI Summary'!$2:$2,0),FALSE),INDIRECT("'"&$E41&"'!"&"$A:$K"),8,FALSE) -> 52.4207 | K41: =VLOOKUP(VLOOKUP($F41,'Data BI Summary'!$A:$F,MATCH(K$1,'Data BI Summary'!$2:$2,0),FALSE),INDIRECT("'"&$E41&"'!"&"$A:$K"),9,FALSE) -> 0.1000403576
B42: High | C42: =VLOOKUP(A$40,'Data Billing Quantities'!A:P,MATCH($B42&" kWh",'Data Billing Quantities'!$4:$4,0),FALSE) -> 5000 | D42: =VLOOKUP(A$40,'Data Billing Quantities'!A:P,MATCH($B42&" kW",'Data Billing Quantities'!$4:$4,0),FALSE) -> 100 | E42: BI_Dgen_High | F42: BI Template_Demand | G42: =VLOOKUP(VLOOKUP($F42,'Data BI Summary'!$A:$F,MATCH(G$1,'Data BI Summary'!$2:$2,0),FALSE),INDIRECT("'"&$E42&"'!"&"$A:$K"),4,FALSE) -> 1954.34404 | H42: =VLOOKUP(VLOOKUP($F42,'Data BI Summary'!$A:$F,MATCH(H$1,'Data BI Summary'!$2:$2,0),FALSE),INDIRECT("'"&$E42&"'!"&"$A:$K"),8,FALSE) -> 189.07 | I42: =VLOOKUP(VLOOKUP($F42,'Data BI Summary'!$A:$F,MATCH(I$1,'Data BI Summary'!$2:$2,0),FALSE),INDIRECT("'"&$E42&"'!"&"$A:$K"),9,FALSE) -> 0.2053412398 | J42: =VLOOKUP(VLOOKUP($F42,'Data BI Summary'!$A:$F,MATCH(J$1,'Data BI Summary'!$2:$2,0),FALSE),INDIRECT("'"&$E42&"'!"&"$A:$K"),8,FALSE) -> 213.6491 | K42: =VLOOKUP(VLOOKUP($F42,'Data BI Summary'!$A:$F,MATCH(K$1,'Data BI Summary'!$2:$2,0),FALSE),INDIRECT("'"&$E42&"'!"&"$A:$K"),9,FALSE) -> 0.1093201072
A43: ST | B43: Low | C43: =VLOOKUP(A$43,'Data Billing Quantities'!A:P,MATCH($B43&" kWh",'Data Billing Quantities'!$4:$4,0),FALSE) -> 200000 | D43: =VLOOKUP(A$43,'Data Billing Quantities'!A:P,MATCH($B43&" kW",'Data Billing Quantities'!$4:$4,0),FALSE) -> 500 | E43: BI_ST_Low | F43: BI Template_Demand | G43: =VLOOKUP(VLOOKUP($F43,'Data BI Summary'!$A:$F,MATCH(G$1,'Data BI Summary'!$2:$2,0),FALSE),INDIRECT("'"&$E43&"'!"&"$A:$K"),4,FALSE) -> 34085.40386 | H43: =VLOOKUP(VLOOKUP($F43,'Data BI Summary'!$A:$F,MATCH(H$1,'Data BI Summary'!$2:$2,0),FALSE),INDIRECT("'"&$E43&"'!"&"$A:$K"),8,FALSE) -> 41.46670368 | I43: =VLOOKUP(VLOOKUP($F43,'Data BI Summary'!$A:$F,MATCH(I$1,'Data BI Summary'!$2:$2,0),FALSE),INDIRECT("'"&$E43&"'!"&"$A:$K"),9,FALSE) -> 0.01802669568 | J43: =VLOOKUP(VLOOKUP($F43,'Data BI Summary'!$A:$F,MATCH(J$1,'Data BI Summary'!$2:$2,0),FALSE),INDIRECT("'"&$E43&"'!"&"$A:$K"),8,FALSE) -> 46.85737516 | K43: =VLOOKUP(VLOOKUP($F43,'Data BI Summary'!$A:$F,MATCH(K$1,'Data BI Summary'!$2:$2,0),FALSE),INDIRECT("'"&$E43&"'!"&"$A:$K"),9,FALSE) -> 0.001374705002 | L43: Non-RPP
B44: Average | C44: =VLOOKUP(A$43,'Data Billing Quantities'!A:P,MATCH($B44&" kWh",'Data Billing Quantities'!$4:$4,0),FALSE) -> 1601036 | D44: =VLOOKUP(A$43,'Data Billing Quantities'!A:P,MATCH($B44&" kW",'Data Billing Quantities'!$4:$4,0),FALSE) -> 3091 | E44: BI_ST_Avg | F44: BI Template_Demand | G44: =VLOOKUP(VLOOKUP($F44,'Data BI Summary'!$A:$F,MATCH(G$1,'Data BI Summary'!$2:$2,0),FALSE),INDIRECT("'"&$E44&"'!"&"$A:$K"),4,FALSE) -> 255049.1032 | H44: =VLOOKUP(VLOOKUP($F44,'Data BI Summary'!$A:$F,MATCH(H$1,'Data BI Summary'!$2:$2,0),FALSE),INDIRECT("'"&$E44&"'!"&"$A:$K"),8,FALSE) -> 134.6999847 | I44: =VLOOKUP(VLOOKUP($F44,'Data BI Summary'!$A:$F,MATCH(I$1,'Data BI Summary'!$2:$2,0),FALSE),INDIRECT("'"&$E44&"'!"&"$A:$K"),9,FALSE) -> 0.01610982326 | J44: =VLOOKUP(VLOOKUP($F44,'Data BI Summary'!$A:$F,MATCH(J$1,'Data BI Summary'!$2:$2,0),FALSE),INDIRECT("'"&$E44&"'!"&"$A:$K"),8,FALSE) -> 152.2109827 | K44: =VLOOKUP(VLOOKUP($F44,'Data BI Summary'!$A:$F,MATCH(K$1,'Data BI Summary'!$2:$2,0),FALSE),INDIRECT("'"&$E44&"'!"&"$A:$K"),9,FALSE) -> 0.0005967908957
B45: High | C45: =VLOOKUP(A$43,'Data Billing Quantities'!A:P,MATCH($B45&" kWh",'Data Billing Quantities'!$4:$4,0),FALSE) -> 4000000 | D45: =VLOOKUP(A$43,'Data Billing Quantities'!A:P,MATCH($B45&" kW",'Data Billing Quantities'!$4:$4,0),FALSE) -> 10000 | E45: BI_ST_High | F45: BI Template_Demand | G45: =VLOOKUP(VLOOKUP($F45,'Data BI Summary'!$A:$F,MATCH(G$1,'Data BI Summary'!$2:$2,0),FALSE),INDIRECT("'"&$E45&"'!"&"$A:$K"),4,FALSE) -> 657427.5157 | H45: =VLOOKUP(VLOOKUP($F45,'Data BI Summary'!$A:$F,MATCH(H$1,'Data BI Summary'!$2:$2,0),FALSE),INDIRECT("'"&$E45&"'!"&"$A:$K"),8,FALSE) -> 383.310073 | I45: =VLOOKUP(VLOOKUP($F45,'Data BI Summary'!$A:$F,MATCH(I$1,'Data BI Summary'!$2:$2,0),FALSE),INDIRECT("'"&$E45&"'!"&"$A:$K"),9,FALSE) -> 0.01563037307 | J45: =VLOOKUP(VLOOKUP($F45,'Data BI Summary'!$A:$F,MATCH(J$1,'Data BI Summary'!$2:$2,0),FALSE),INDIRECT("'"&$E45&"'!"&"$A:$K"),8,FALSE) -> 433.1403825 | K45: =VLOOKUP(VLOOKUP($F45,'Data BI Summary'!$A:$F,MATCH(K$1,'Data BI Summary'!$2:$2,0),FALSE),INDIRECT("'"&$E45&"'!"&"$A:$K"),9,FALSE) -> 0.0006588412748

Sheet BI Template_Energy (hidden)
A1: 2020 Bill Impacts (Average Consumption Level) - R1
A3: Rate Class | B3: =RIGHT(A1,LEN(A1)-FIND("- ",A1,1)-1) -> R1
A4: Monthly Consumption (kWh) | B4: =IF(COUNTIF(A1,"*Low*")>0,VLOOKUP(B3,'Data Billing Quantities'!$A:$Z,MATCH("Low kWh",'Data Billing Quantities'!4:4,0),FALSE),IF(COUNTIF(A1,"*Typical*")>0,VLOOKUP(B3,'Data Billing Quantities'!$A:$Z,MATCH("Typical kWh",'Data Billing Quantities'!4:4,0),FALSE),IF(COUNTIF(A1,"*Average*")>0,VLOOKUP(B3,'Data Billing Quantities'!$A:$Z,MATCH("Average kWh",'Data Billing Quantities'!4:4,0),FALSE),IF(COUNTIF(A1,"*High*")>0,VLOOKUP(B3,'Data Billing Quantities'!$A:$Z,MATCH("High kWh",'Data Billing Quantities'!4:4,0),FALSE),"error")))) -> 920
A5: Peak (kW) | B5: =IF(COUNTIF(A1,"*Low*")>0,VLOOKUP(B3,'Data Billing Quantities'!$A:$Z,MATCH("Low kW",'Data Billing Quantities'!4:4,0),FALSE),IF(COUNTIF(A1,"*Typical*")>0,VLOOKUP(B3,'Data Billing Quantities'!$A:$Z,MATCH("Typical kW",'Data Billing Quantities'!4:4,0),FALSE),IF(COUNTIF(A1,"*Average*")>0,VLOOKUP(B3,'Data Billing Quantities'!$A:$Z,MATCH("Average kW",'Data Billing Quantities'!4:4,0),FALSE),IF(COUNTIF(A1,"*High*")>0,VLOOKUP(B3,'Data Billing Quantities'!$A:$Z,MATCH("High kW",'Data Billing Quantities'!4:4,0),FALSE),"error")))) -> 0
A6: Loss factor | B6: =VLOOKUP(B3,'Data Billing Quantities'!A:D,MATCH(A6,'Data Billing Quantities'!4:4,0),FALSE) -> 1.076
A7: Commodity Threshold | B7: =VLOOKUP(B3,'Data Billing Quantities'!A:D,MATCH(A7,'Data Billing Quantities'!4:4,0),FALSE) -> 600
A8: Monthly Consumption (kWh) - Uplifted | B8: =B4*B6 -> 989.92
A9: Charge determinant | B9: =VLOOKUP(B3,'Data Billing Quantities'!A:D,MATCH(A9,'Data Billing Quantities'!4:4,0),FALSE) -> kWh
B11: Volume | C11: Current Rate ($) | D11: Current Charge ($) | E11: Volume | F11: Proposed Rate ($) | G11: Proposed Charge ($) | H11: Change ($) | I11: Change (%) | J11: % of Total Bill on RPP | K11: % of Total Bill on TOU
A12: Energy First Tier | B12: =IF(B4>B7,B7,B4) -> 600 | C12: =VLOOKUP($A12,'Data Pass Through'!$A:$D,2,FALSE) -> 0.077 | D12: =B12*C12 -> 46.2 | E12: =B12 -> 600 | F12: =VLOOKUP($A12,'Data Pass Through'!$A:$D,3,FALSE) -> 0.077 | G12: =E12*F12 -> 46.2 | H12: =G12-D12 -> 0 | I12: =IF(ISERROR(H12/ABS(D12)),"N/A",(H12/ABS(D12))) -> 0 | J12: =G12/$G$48 -> 0.3221169102
A13: Energy Second Tier | B13: =IF(B4>B7,(B4)-B7,0) -> 320 | C13: =VLOOKUP($A13,'Data Pass Through'!$A:$D,2,FALSE) -> 0.089 | D13: =B13*C13 -> 28.48 | E13: =B13 -> 320 | F13: =VLOOKUP($A13,'Data Pass Through'!$A:$D,3,FALSE) -> 0.089 | G13: =E13*F13 -> 28.48 | H13: 0 | I13: 0 | J13: =G13/$G$48 -> 0.198569039
A14: Sub-Total: Energy (RPP Tiered) | D14: =SUM(D12:D13) -> 74.68 | G14: =SUM(G12:G13) -> 74.68 | H14: 0 | I14: 0 | J14: =G14/$G$48 -> 0.5206859492
A15: TOU-Off Peak | B15: =B$4*VLOOKUP($B$3,'Data Billing Quantities'!$A:$O,MATCH('BI Template_Energy'!$A15,'Data Billing Quantities'!$4:$4,0),FALSE) -> 598 | C15: =VLOOKUP($A15,'Data Pass Through'!$A:$D,2,FALSE) -> 0.065 | D15: =B15*C15 -> 38.87 | E15: 598 | F15: =VLOOKUP($A15,'Data Pass Through'!$A:$D,3,FALSE) -> 0.065 | G15: =E15*F15 -> 38.87 | H15: 0 | I15: 0 | K15: =G15/$G$53 -> 0.2704943103
A16: TOU-Mid Peak | B16: =B$4*VLOOKUP($B$3,'Data Billing Quantities'!$A:$O,MATCH('BI Template_Energy'!$A16,'Data Billing Quantities'!$4:$4,0),FALSE) -> 156.4 | C16: =VLOOKUP($A16,'Data Pass Through'!$A:$D,2,FALSE) -> 0.094 | D16: =B16*C16 -> 14.7016 | E16: 156.4 | F16: =VLOOKUP($A16,'Data Pass Through'!$A:$D,3,FALSE) -> 0.094 | G16: =E16*F16 -> 14.7016 | H16: 0 | I16: 0 | K16: 0.1023076705
A17: TOU-On Peak | B17: =B$4*VLOOKUP($B$3,'Data Billing Quantities'!$A:$O,MATCH('BI Template_Energy'!$A17,'Data Billing Quantities'!$4:$4,0),FALSE) -> 165.6 | C17: =VLOOKUP($A17,'Data Pass Through'!$A:$D,2,FALSE) -> 0.132 | D17: =B17*C17 -> 21.8592 | E17: 165.6 | F17: =VLOOKUP($A17,'Data Pass Through'!$A:$D,3,FALSE) -> 0.132 | G17: =E17*F17 -> 21.8592 | H17: 0 | I17: 0 | K17: 0.152117037
A18: Sub-Total: Energy (RPP TOU) | D18: =SUM(D15:D17) -> 75.4308 | G18: =SUM(G15:G17) -> 75.4308 | H18: 0 | I18: 0 | J18: =G18/$G$48 -> 0.5259206976 | K18: 0.5249190178
A19: Service Charge | B19: 1 | C19: =VLOOKUP($B$3,'Data Current Rates'!$A:$BA,MATCH('BI Template_Energy'!$A19,CurrentHeader,0),FALSE) -> 38.74 | D19: =B19*C19 -> 38.74 | E19: 1 | F19: =VLOOKUP($B$3,'Data Proposed Rates'!$A:$BA,MATCH('BI Template_Energy'!$A19,ProposedHeader,0),FALSE) -> 43.36 | G19: =E19*F19 -> 43.36 | H19: 4.62 | I19: 0.1192565823 | J19: 0.3023157841 | K19: 0.301739987
A20: Fixed Foregone Revenue Charge | B20: 1 | C20: =VLOOKUP($B$3,'Data Current Rates'!$A:$BA,MATCH('BI Template_Energy'!$A20,CurrentHeader,0),FALSE) -> 1.71 | D20: =B20*C20 -> 1.71 | E20: =B20 -> 1 | F20: =VLOOKUP($B$3,'Data Proposed Rates'!$A:$BA,MATCH('BI Template_Energy'!$A20,ProposedHeader,0),FALSE) -> 1.69 | G20: =E20*F20 -> 1.69 | H20: =G20-D20 -> -0.02 | I20: =IF(ISERROR(H20/ABS(D20)),"N/A",(H20/ABS(D20))) -> -0.01169590643 | J20: =G20/$G$48 -> 0.01178306446 | K20: =G20/$G$53 -> 0.01176062219
A21: Fixed Deferral/Variance Account Rider (General) | B21: 1 | C21: =VLOOKUP($B$3,'Data Current Rates'!$A:$BA,MATCH('BI Template_Energy'!$A21,CurrentHeader,0),FALSE) -> 0.04 | D21: 0.04 | E21: 1 | F21: =VLOOKUP($B$3,'Data Proposed Rates'!$A:$BA,MATCH('BI Template_Energy'!$A21,ProposedHeader,0),FALSE) -> 0.04 | G21: 0.04 | H21: 0 | I21: 0 | J21: 0.0002788890997 | K21: 0.0002783579216
A22: Distribution Volumetric Charge | B22: =IF($B$9="kWh",$B$4,$B$5) -> 920 | C22: =VLOOKUP($B$3,'Data Current Rates'!$A:$BA,MATCH('BI Template_Energy'!$A22,CurrentHeader,0),FALSE) -> 0.0222 | D22: 20.424 | E22: 920 | F22: =VLOOKUP($B$3,'Data Proposed Rates'!$A:$BA,MATCH('BI Template_Energy'!$A22,ProposedHeader,0),FALSE) -> 0.0181 | G22: 16.652 | H22: -3.772 | I22: -0.1846846847 | J22: 0.1161015322 | K22: 0.1158804028
A23: Volumetric Foregone Revenue Charge | B23: =IF($B$9="kWh",$B$4,$B$5) -> 920 | C23: =VLOOKUP($B$3,'Data Current Rates'!$A:$BA,MATCH('BI Template_Energy'!$A23,CurrentHeader,0),FALSE) -> 0.0009 | D23: =B23*C23 -> 0.828 | E23: =B23 -> 920 | F23: =VLOOKUP($B$3,'Data Proposed Rates'!$A:$BA,MATCH('BI Template_Energy'!$A23,ProposedHeader,0),FALSE) -> 0.0009 | G23: =E23*F23 -> 0.828 | H23: =G23-D23 -> 0 | I23: =IF(ISERROR(H23/ABS(D23)),"N/A",(H23/ABS(D23))) -> 0 | J23: =G23/$G$48 -> 0.005773004364 | K23: =G23/$G$53 -> 0.005762008977
A24: Volumetric Deferral/Variance Account Rider (General) | B24: =IF($B$9="kWh",$B$4,$B$5) -> 920 | C24: =VLOOKUP($B$3,'Data Current Rates'!$A:$BA,MATCH('BI Template_Energy'!$A24,CurrentHeader,0),FALSE) -> -0.0008 | D24: -0.736 | E24: 920 | F24: =VLOOKUP($B$3,'Data Proposed Rates'!$A:$BA,MATCH('BI Template_Energy'!$A24,ProposedHeader,0),FALSE) -> -0.0008 | G24: -0.736 | H24: 0 | I24: 0 | J24: -0.005131559435 | K24: -0.005121785758
A25: Volumetric Deferral/Variance Account Rider (Sub Account CBR) | B25: 920 | C25: =VLOOKUP($B$3,'Data Current Rates'!$A:$BA,MATCH('BI Template_Energy'!$A25,CurrentHeader,0),FALSE) -> 0 | D25: 0 | E25: 920 | F25: =VLOOKUP($B$3,'Data Proposed Rates'!$A:$BA,MATCH('BI Template_Energy'!$A25,ProposedHeader,0),FALSE) -> 0 | G25: 0 | H25: 0 | I25: N/A | J25: 0 | K25: 0
A26: Fair Hydro Plan - Distribution Rate Protection Savings* | D26: =IF(AND(B3<>"R1",B3<>"R2"),0,IF(VLOOKUP($A26,'Data Pass Through'!$A:$D,2,FALSE)=0,0,IF(SUM(D19:D20,D22:D23)<VLOOKUP($A26,'Data Pass Through'!$A:$D,2,FALSE),0,VLOOKUP($A26,'Data Pass Through'!$A:$D,2,FALSE)-SUM(D19:D20,D22:D23)))) -> -24.842 | G26: =IF(AND(B3<>"R1",B3<>"R2"),0,IF(VLOOKUP($A26,'Data Pass Through'!$A:$D,2,FALSE)=0,0,IF(SUM(G19:G20,G22:G23)<VLOOKUP($A26,'Data Pass Through'!$A:$D,2,FALSE),0,VLOOKUP($A26,'Data Pass Through'!$A:$D,2,FALSE)-SUM(G19:G20,G22:G23)))) -> -25.67 | H26: -0.828 | I26: -0.03333064971 | J26: -0.1789770797 | K26: -0.1786361962
A27: Sub-Total: Distribution (excluding pass through) | D27: =SUM(INDIRECT("D19:D"&ROW()-1)) -> 36.164 | G27: =SUM(INDIRECT("g19:g"&ROW()-1)) -> 36.164 | H27: =G27-D27 -> 0 | I27: =IF(ISERROR(H27/ABS(D27)),"N/A",(H27/ABS(D27))) -> 0 | J27: 0.252143635 | K27: 0.2516633969
A28: Smart Metering Entity Charge | B28: 1 | C28: =VLOOKUP($A28,'Data Pass Through'!$A:$D,2,FALSE) -> 0.57 | D28: =B28*C28 -> 0.57 | E28: 1 | F28: =VLOOKUP($A28,'Data Pass Through'!$A:$D,3,FALSE) -> 0.57 | G28: =E28*F28 -> 0.57 | H28: 0 | I28: 0 | J28: 0.003974169671 | K28: 0.003966600383
A29: Line Losses on Cost of Power (based on two-tier RPP prices) | B29: =B8-B4 -> 69.92 | C29: =IF(B4>B7,C13,C12) -> 0.089 | D29: =B29*C29 -> 6.22288 | E29: 69.92 | F29: =IF(B4>B7,F13,F12) -> 0.089 | G29: =E29*F29 -> 6.22288 | H29: 0 | I29: 0 | J29: 0.04338733502 | K29: 0.04330469858
A30: Line Losses on Cost of Power (based on TOU prices) | B30: =B8-B4 -> 69.92 | C30: =VLOOKUP($B$3,'Data Billing Quantities'!$A:$O,MATCH('BI Template_Energy'!$A15,'Data Billing Quantities'!$4:$4,0),FALSE)*C15+VLOOKUP($B$3,'Data Billing Quantities'!$A:$O,MATCH('BI Template_Energy'!$A16,'Data Billing Quantities'!$4:$4,0),FALSE)*C16+VLOOKUP($B$3,'Data Billing Quantities'!$A:$O,MATCH('BI Template_Energy'!$A17,'Data Billing Quantities'!$4:$4,0),FALSE)*C17 -> 0.08199 | D30: =B30*C30 -> 5.7327408 | E30: 69.92 | F30: =VLOOKUP($B$3,'Data Billing Quantities'!$A:$O,MATCH('BI Template_Energy'!$A15,'Data Billing Quantities'!$4:$4,0),FALSE)*F15+VLOOKUP($B$3,'Data Billing Quantities'!$A:$O,MATCH('BI Template_Energy'!$A16,'Data Billing Quantities'!$4:$4,0),FALSE)*F16+VLOOKUP($B$3,'Data Billing Quantities'!$A:$O,MATCH('BI Template_Energy'!$A17,'Data Billing Quantities'!$4:$4,0),FALSE)*F17 -> 0.08199 | G30: =E30*F30 -> 5.7327408 | H30: 0 | I30: 0 | J30: 0.03996997301 | K30: 0.03989384536
A31: Sub-Total: Distribution (based on two-tier RPP prices) | D31: =SUM(D27,D28:D29) -> 42.95688 | G31: =SUM(G27,G28:G29) -> 42.95688 | H31: 0 | I31: 0 | J31: 0.2995051397 | K31: 0.2989346959
A32: Sub-Total: Distribution (based on TOU prices) | D32: =SUM(D27,D28,D30) -> 42.4667408 | G32: =SUM(G27,G28,G30) -> 42.4667408 | H32: 0 | I32: 0 | J32: 0.2960877777 | K32: 0.2955238427
A33: Retail Transmission Rate – Network Service Rate | B33: =B8 -> 989.92 | C33: =VLOOKUP($B$3,'Data Current Rates'!$A:$BA,MATCH('BI Template_Energy'!$A33,CurrentHeader,0),FALSE) -> 0.0078 | D33: =B33*C33 -> 7.721376 | E33: 989.92 | F33: =VLOOKUP($B$3,'Data Proposed Rates'!$A:$BA,MATCH('BI Template_Energy'!$A33,ProposedHeader,0),FALSE) -> 0.0078 | G33: =E33*F33 -> 7.721376 | H33: =G33-D33 -> 0 | I33: 0 | J33: 0.05383519003 | K33: 0.05373265438
A34: Retail Transmission Rate – Line and Transformation Connection Service Rate | B34: =B8 -> 989.92 | C34: =VLOOKUP($B$3,'Data Current Rates'!$A:$BA,MATCH('BI Template_Energy'!$A34,CurrentHeader,0),FALSE) -> 0.007 | D34: =B34*C34 -> 6.92944 | E34: 989.92 | F34: =VLOOKUP($B$3,'Data Proposed Rates'!$A:$BA,MATCH('BI Template_Energy'!$A34,ProposedHeader,0),FALSE) -> 0.007 | G34: =E34*F34 -> 6.92944 | H34: =G34-D34 -> 0 | I34: 0 | J34: 0.04831363208 | K34: 0.04822161291
A35: Sub-Total: Retail Transmission | D35: =SUM(D33:D34) -> 14.650816 | G35: =SUM(G33:G34) -> 14.650816 | H35: =G35-D35 -> 0 | I35: 0 | J35: 0.1021488221 | K35: 0.1019542673
A36: Sub-Total: Delivery (based on two-tier RPP prices) | D36: =D31+D35 -> 57.607696 | G36: =G31+G35 -> 57.607696 | H36: =G36-D36 -> 0 | I36: 0 | J36: 0.4016539618 | K36: 0.4008889632
A37: Sub-Total: Delivery (based on TOU prices) | D37: =D32+D35 -> 57.1175568 | G37: =G32+G35 -> 57.1175568 | H37: =G37-D37 -> 0 | I37: 0 | J37: 0.3982365998 | K37: 0.39747811
A38: Wholesale Market Service Rate (WMS) - not including CBR | B38: =B8 -> 989.92 | C38: =VLOOKUP($A38,'Data Pass Through'!$A:$D,2,FALSE) -> 0.0032 | D38: =B38*C38 -> 3.167744 | E38: =$B$8 -> 989.92 | F38: =VLOOKUP($A38,'Data Pass Through'!$A:$D,3,FALSE) -> 0.0032 | G38: =E38*F38 -> 3.167744 | H38: 0 | I38: 0 | J38: 0.02208623181 | K38: 0.0220441659
A39: Capacity Based Recovery (CBR) - Applicable for Class B Customers | B39: =B8 -> 989.92 | C39: =VLOOKUP($A39,'Data Pass Through'!$A:$D,2,FALSE) -> 0.0004 | D39: =B39*C39 -> 0.395968 | E39: =$B$8 -> 989.92 | F39: =VLOOKUP($A39,'Data Pass Through'!$A:$D,3,FALSE) -> 0.0004 | G39: =E39*F39 -> 0.395968 | H39: =G39-D39 -> 0 | I39: =IF(ISERROR(H39/ABS(D39)),"N/A",(H39/ABS(D39))) -> 0 | J39: 0.002760778976 | K39: 0.002755520738
A40: Rural Rate Protection Charge | B40: =B8 -> 989.92 | C40: =VLOOKUP($A40,'Data Pass Through'!$A:$D,2,FALSE) -> 0.0005 | D40: 0.49496 | E40: 989.92 | F40: =VLOOKUP($A40,'Data Pass Through'!$A:$D,3,FALSE) -> 0.0005 | G40: 0.49496 | H40: 0 | I40: 0 | J40: 0.00345097372 | K40: 0.003444400922
A41: Standard Supply Service – Administration Charge (if applicable) | B41: 1 | C41: =VLOOKUP($A41,'Data Pass Through'!$A:$D,2,FALSE) -> 0.25 | D41: =B41*C41 -> 0.25 | E41: 1 | F41: =VLOOKUP($A41,'Data Pass Through'!$A:$D,3,FALSE) -> 0.25 | G41: 0.25 | H41: 0 | I41: 0 | J41: 0.001743056873 | K41: 0.00173973701
A42: Sub-Total: Regulatory | D42: =SUM(D38:D41) -> 4.308672 | G42: =SUM(G38:G41) -> 4.308672 | H42: 0 | I42: 0 | J42: 0.03004104138 | K42: 0.02998382457
A43: Debt Retirement Charge (DRC) | B43: =B4 -> 920 | C43: =VLOOKUP($A43,'Data Pass Through'!$A:$D,2,FALSE) -> 0 | D43: =B43*C43 -> 0 | E43: 920 | F43: =VLOOKUP($A43,'Data Pass Through'!$A:$D,3,FALSE) -> 0 | G43: =E43*F43 -> 0 | H43: 0 | I43: N/A | J43: 0 | K43: 0
A44: Total Electricty Charge on Two-Tier RPP | D44: =SUM(D14,D27,D28,D29,D35,D42,D43) -> 136.596368 | G44: =SUM(G14,G27,G28,G29,G35,G42,G43) -> 136.596368 | H44: 0 | I44: 0 | J44: 0.9523809524
A45: HST | C45: 0.13 | D45: =D44*C45 -> 17.75752784 | F45: =C45 -> 0.13 | G45: =G44*F45 -> 17.75752784 | H45: 0 | I45: 0 | J45: 0.1238095238
A46: Total Electricity Charge on Two-Tier RPP (including HST) | D46: =SUM(D44:D45) -> 154.3538958 | G46: =SUM(G44:G45) -> 154.3538958 | H46: 0 | I46: 0 | J46: 1.076190476
A47: Ontario Rebate for Electricity Consumers (OREC) | C47: -0.08 | D47: =D44*C47 -> -10.92770944 | F47: =C47 -> -0.08 | G47: =G44*F47 -> -10.92770944 | H47: 0 | I47: 0 | J47: -0.07619047619
A48: Total Amount on Two-Tier RPP | D48: =SUM(D46:D47) -> 143.4261864 | G48: =SUM(G46:G47) -> 143.4261864 | H48: 0 | I48: 0 | J48: 1
A49: Total Electricty Charge on TOU (before HST) | D49: =SUM(D18,D27,D28,D30,D35,D42,D43) -> 136.8570288 | G49: =SUM(G18,G27,G28,G30,G35,G42,G43) -> 136.8570288 | H49: 0 | I49: 0 | K49: =G49/$G$53 -> 0.9523809524
A50: HST | C50: 0.13 | D50: =D49*C50 -> 17.79141374 | F50: =C50 -> 0.13 | G50: =G49*F50 -> 17.79141374 | H50: 0 | I50: 0 | K50: =G50/$G$53 -> 0.1238095238
A51: Total Electricity Charge on TOU (including HST) | D51: =SUM(D49:D50) -> 154.6484425 | G51: =SUM(G49:G50) -> 154.6484425 | H51: 0 | I51: 0 | K51: =G51/$G$53 -> 1.076190476
A52: Ontario Rebate for Electricity Consumers (OREC) | C52: -0.08 | D52: =D49*C52 -> -10.9485623 | F52: =C52 -> -0.08 | G52: =G49*F52 -> -10.9485623 | H52: 0 | I52: 0 | K52: =G52/$G$53 -> -0.07619047619
A53: Total Amount on TOU | D53: =SUM(D51:D52) -> 143.6998802 | G53: =SUM(G51:G52) -> 143.6998802 | H53: 0 | I53: 0 | K53: =G53/$G$53 -> 1
A54: * Distribution rate protection applies to R1 and R2 customers

Sheet BI Template_EnergyUNM (hidden)
A1: 2020 Bill Impacts (Average Consumption Level) - USL
A3: Rate Class | B3: =RIGHT(A1,LEN(A1)-FIND("- ",A1,1)-1) -> USL
A4: Monthly Consumption (kWh) | B4: =IF(COUNTIF(A1,"*Low*")>0,VLOOKUP(B3,'Data Billing Quantities'!$A:$Z,MATCH("Low kWh",'Data Billing Quantities'!4:4,0),FALSE),IF(COUNTIF(A1,"*Typical*")>0,VLOOKUP(B3,'Data Billing Quantities'!$A:$Z,MATCH("Typical kWh",'Data Billing Quantities'!4:4,0),FALSE),IF(COUNTIF(A1,"*Average*")>0,VLOOKUP(B3,'Data Billing Quantities'!$A:$Z,MATCH("Average kWh",'Data Billing Quantities'!4:4,0),FALSE),IF(COUNTIF(A1,"*High*")>0,VLOOKUP(B3,'Data Billing Quantities'!$A:$Z,MATCH("High kWh",'Data Billing Quantities'!4:4,0),FALSE),"error")))) -> 364
A5: Peak (kW) | B5: =IF(COUNTIF(A1,"*Low*")>0,VLOOKUP(B3,'Data Billing Quantities'!$A:$Z,MATCH("Low kW",'Data Billing Quantities'!4:4,0),FALSE),IF(COUNTIF(A1,"*Typical*")>0,VLOOKUP(B3,'Data Billing Quantities'!$A:$Z,MATCH("Typical kW",'Data Billing Quantities'!4:4,0),FALSE),IF(COUNTIF(A1,"*Average*")>0,VLOOKUP(B3,'Data Billing Quantities'!$A:$Z,MATCH("Average kW",'Data Billing Quantities'!4:4,0),FALSE),IF(COUNTIF(A1,"*High*")>0,VLOOKUP(B3,'Data Billing Quantities'!$A:$Z,MATCH("High kW",'Data Billing Quantities'!4:4,0),FALSE),"error")))) -> 0
A6: Loss factor | B6: =VLOOKUP(B3,'Data Billing Quantities'!A:D,MATCH(A6,'Data Billing Quantities'!4:4,0),FALSE) -> 1.092
A7: Commodity Threshold | B7: =VLOOKUP(B3,'Data Billing Quantities'!A:D,MATCH(A7,'Data Billing Quantities'!4:4,0),FALSE) -> 750
A8: Monthly Consumption (kWh) - Uplifted | B8: =B4*B6 -> 397.488
A9: Charge determinant | B9: =VLOOKUP(B3,'Data Billing Quantities'!A:D,MATCH(A9,'Data Billing Quantities'!4:4,0),FALSE) -> kWh
B11: Volume | C11: Current Rate ($) | D11: Current Charge ($) | E11: Volume | F11: Proposed Rate ($) | G11: Proposed Charge ($) | H11: Change ($) | I11: Change (%) | J11: % of Total Bill on RPP
A12: Energy First Tier | B12: =IF(B4>B7,B7,B4) -> 364 | C12: =VLOOKUP($A12,'Data Pass Through'!$A:$D,2,FALSE) -> 0.077 | D12: =B12*C12 -> 28.028 | E12: =B12 -> 364 | F12: =VLOOKUP($A12,'Data Pass Through'!$A:$D,3,FALSE) -> 0.077 | G12: =E12*F12 -> 28.028 | H12: =G12-D12 -> 0 | I12: =IF(ISERROR(H12/ABS(D12)),"N/A",(H12/ABS(D12))) -> 0 | J12: =G12/$G$41 -> 0.3251144783
A13: Energy Second Tier | B13: =IF(B4>B7,(B4)-B7,0) -> 0 | C13: =VLOOKUP($A13,'Data Pass Through'!$A:$D,2,FALSE) -> 0.089 | D13: =B13*C13 -> 0 | E13: =B13 -> 0 | F13: =VLOOKUP($A13,'Data Pass Through'!$A:$D,3,FALSE) -> 0.089 | G13: =E13*F13 -> 0 | H13: 0 | I13: N/A | J13: 0
A14: Sub-Total: Energy (RPP Tiered) | D14: =SUM(D12:D13) -> 28.028 | G14: =SUM(G12:G13) -> 28.028 | H14: 0 | I14: 0 | J14: 0.3251144783
A15: Service Charge | B15: 1 | C15: =VLOOKUP($B$3,'Data Current Rates'!$A:$BA,MATCH('BI Template_EnergyUNM'!$A15,CurrentHeader,0),FALSE) -> 37.99 | D15: =B15*C15 -> 37.99 | E15: 1 | F15: =VLOOKUP($B$3,'Data Proposed Rates'!$A:$BA,MATCH('BI Template_EnergyUNM'!$A15,ProposedHeader,0),FALSE) -> 36.15 | G15: =E15*F15 -> 36.15 | H15: -1.84 | I15: -0.04843379837 | J15: 0.4193266873
A16: Fixed Foregone Revenue Charge | B16: 1 | C16: =VLOOKUP($B$3,'Data Current Rates'!$A:$BA,MATCH('BI Template_EnergyUNM'!$A16,CurrentHeader,0),FALSE) -> 1.66 | D16: =B16*C16 -> 1.66 | E16: =B16 -> 1 | F16: =VLOOKUP($B$3,'Data Proposed Rates'!$A:$BA,MATCH('BI Template_EnergyUNM'!$A16,ProposedHeader,0),FALSE) -> 1.65 | G16: =E16*F16 -> 1.65 | H16: =G16-D16 -> -0.01 | I16: =IF(ISERROR(H16/ABS(D16)),"N/A",(H16/ABS(D16))) -> -0.006024096386 | J16: =G16/$G$41 -> 0.01913939236
A17: Fixed Deferral/Variance Account Rider (General) | B17: 1 | C17: =VLOOKUP($B$3,'Data Current Rates'!$A:$BA,MATCH('BI Template_EnergyUNM'!$A17,CurrentHeader,0),FALSE) -> 0.01 | D17: 0.01 | E17: 1 | F17: =VLOOKUP($B$3,'Data Proposed Rates'!$A:$BA,MATCH('BI Template_EnergyUNM'!$A17,ProposedHeader,0),FALSE) -> 0.01 | G17: 0.01 | H17: 0 | I17: 0 | J17: 0.0001159963174
A18: Distribution Volumetric Charge | B18: =IF($B$9="kWh",$B$4,$B$5) -> 364 | C18: =VLOOKUP($B$3,'Data Current Rates'!$A:$BA,MATCH('BI Template_EnergyUNM'!$A18,CurrentHeader,0),FALSE) -> 0.0254 | D18: 9.2456 | E18: 364 | F18: =VLOOKUP($B$3,'Data Proposed Rates'!$A:$BA,MATCH('BI Template_EnergyUNM'!$A18,ProposedHeader,0),FALSE) -> 0.0241 | G18: 8.7724 | H18: -0.4732 | I18: -0.05118110236 | J18: 0.1017566094
A19: Volumetric Foregone Revenue Charge | B19: =IF($B$9="kWh",$B$4,$B$5) -> 364 | C19: =VLOOKUP($B$3,'Data Current Rates'!$A:$BA,MATCH('BI Template_EnergyUNM'!$A19,CurrentHeader,0),FALSE) -> -0.0028 | D19: =B19*C19 -> -1.0192 | E19: =B19 -> 364 | F19: =VLOOKUP($B$3,'Data Proposed Rates'!$A:$BA,MATCH('BI Template_EnergyUNM'!$A19,ProposedHeader,0),FALSE) -> -0.0028 | G19: =E19*F19 -> -1.0192 | H19: =G19-D19 -> 0 | I19: =IF(ISERROR(H19/ABS(D19)),"N/A",(H19/ABS(D19))) -> 0 | J19: =G19/$G$41 -> -0.01182234467
A20: Volumetric Deferral/Variance Account Rider (General) | B20: =IF($B$9="kWh",$B$4,$B$5) -> 364 | C20: =VLOOKUP($B$3,'Data Current Rates'!$A:$BA,MATCH('BI Template_EnergyUNM'!$A20,CurrentHeader,0),FALSE) -> -0.0008 | D20: -0.2912 | E20: 364 | F20: =VLOOKUP($B$3,'Data Proposed Rates'!$A:$BA,MATCH('BI Template_EnergyUNM'!$A20,ProposedHeader,0),FALSE) -> -0.0008 | G20: -0.2912 | H20: 0 | I20: 0 | J20: -0.003377812762
A21: Volumetric Deferral/Variance Account Rider (Sub Account CBR) | B21: 364 | C21: =VLOOKUP($B$3,'Data Current Rates'!$A:$BA,MATCH('BI Template_EnergyUNM'!$A21,CurrentHeader,0),FALSE) -> 0 | D21: 0 | E21: 364 | F21: =VLOOKUP($B$3,'Data Proposed Rates'!$A:$BA,MATCH('BI Template_EnergyUNM'!$A21,ProposedHeader,0),FALSE) -> 0 | G21: 0 | H21: 0 | I21: N/A | J21: 0
A22: Volumetric Deferral/Variance Account Rider (Sub-Account Global Adjustment) | B22: 364 | C22: =VLOOKUP($B$3,'Data Current Rates'!$A:$BA,MATCH('BI Template_EnergyUNM'!$A22,CurrentHeader,0),FALSE) -> 0 | D22: 0 | E22: 364 | F22: =VLOOKUP($B$3,'Data Proposed Rates'!$A:$BA,MATCH('BI Template_EnergyUNM'!$A22,ProposedHeader,0),FALSE) -> 0 | G22: 0 | H22: 0 | I22: N/A | J22: 0
A23: Sub-Total: Distribution (excluding pass through) | D23: =SUM(INDIRECT("D15:D"&ROW()-1)) -> 47.5952 | G23: =SUM(INDIRECT("g15:g"&ROW()-1)) -> 45.272 | H23: =G23-D23 -> -2.3232 | I23: -0.04881164487 | J23: 0.525138528
A24: Smart Metering Entity Charge | B24: 1 | C24: =VLOOKUP($A24,'Data Pass Through'!$A:$D,2,FALSE) -> 0.57 | D24: =B24*C24 -> 0.57 | E24: 1 | F24: =VLOOKUP($A24,'Data Pass Through'!$A:$D,3,FALSE) -> 0.57 | G24: =E24*F24 -> 0.57 | H24: 0 | I24: 0 | J24: 0.00661179009
A25: Line Losses on Cost of Power (based on two-tier RPP prices) | B25: =B8-B4 -> 33.488 | C25: =IF(B4>B7,C13,C12) -> 0.077 | D25: =B25*C25 -> 2.578576 | E25: 33.488 | F25: =IF(B4>B7,F13,F12) -> 0.077 | G25: =E25*F25 -> 2.578576 | H25: 0 | I25: 0 | J25: 0.029910532
A26: Sub-Total: Distribution (based on two-tier RPP prices) | D26: =SUM(D23,D24:D25) -> 50.743776 | G26: =SUM(G23,G24:G25) -> 48.420576 | H26: -2.3232 | I26: -0.04578295474 | J26: 0.56166085
A27: Retail Transmission Rate – Network Service Rate | B27: =B8 -> 397.488 | C27: =VLOOKUP($B$3,'Data Current Rates'!$A:$BA,MATCH('BI Template_EnergyUNM'!$A27,CurrentHeader,0),FALSE) -> 0.0051 | D27: =B27*C27 -> 2.0271888 | E27: 397.488 | F27: =VLOOKUP($B$3,'Data Proposed Rates'!$A:$BA,MATCH('BI Template_EnergyUNM'!$A27,ProposedHeader,0),FALSE) -> 0.0051 | G27: =E27*F27 -> 2.0271888 | H27: =G27-D27 -> 0 | I27: 0 | J27: 0.02351464354
A28: Retail Transmission Rate – Line and Transformation Connection Service Rate | B28: =B8 -> 397.488 | C28: =VLOOKUP($B$3,'Data Current Rates'!$A:$BA,MATCH('BI Template_EnergyUNM'!$A28,CurrentHeader,0),FALSE) -> 0.0044 | D28: =B28*C28 -> 1.7489472 | E28: 397.488 | F28: =VLOOKUP($B$3,'Data Proposed Rates'!$A:$BA,MATCH('BI Template_EnergyUNM'!$A28,ProposedHeader,0),FALSE) -> 0.0044 | G28: =E28*F28 -> 1.7489472 | H28: =G28-D28 -> 0 | I28: 0 | J28: 0.02028714345
A29: Sub-Total: Retail Transmission | D29: =SUM(D27:D28) -> 3.776136 | G29: =SUM(G27:G28) -> 3.776136 | H29: =G29-D29 -> 0 | I29: 0 | J29: 0.04380178699
A30: Sub-Total: Delivery (based on two-tier RPP prices) | D30: =D26+D29 -> 54.519912 | G30: =G26+G29 -> 52.196712 | H30: =G30-D30 -> -2.3232 | I30: -0.04261195433 | J30: 0.605462637
A31: Wholesale Market Service Rate (WMS) - not including CBR | B31: =B8 -> 397.488 | C31: =VLOOKUP($A31,'Data Pass Through'!$A:$D,2,FALSE) -> 0.0032 | D31: =B31*C31 -> 1.2719616 | E31: =$B$8 -> 397.488 | F31: =VLOOKUP($A31,'Data Pass Through'!$A:$D,3,FALSE) -> 0.0032 | G31: =E31*F31 -> 1.2719616 | H31: =G31-D31 -> 0 | I31: 0 | J31: 0.01475428614
A32: Capacity Based Recovery (CBR) - Applicable for Class B Customers | B32: =B8 -> 397.488 | C32: =VLOOKUP($A32,'Data Pass Through'!$A:$D,2,FALSE) -> 0.0004 | D32: =B32*C32 -> 0.1589952 | E32: =$B$8 -> 397.488 | F32: =VLOOKUP($A32,'Data Pass Through'!$A:$D,3,FALSE) -> 0.0004 | G32: =E32*F32 -> 0.1589952 | H32: 0 | I32: 0 | J32: 0.001844285768
A33: Rural Rate Protection Charge | B33: =B8 -> 397.488 | C33: =VLOOKUP($A33,'Data Pass Through'!$A:$D,2,FALSE) -> 0.0005 | D33: 0.198744 | E33: 397.488 | F33: =VLOOKUP($A33,'Data Pass Through'!$A:$D,3,FALSE) -> 0.0005 | G33: 0.198744 | H33: 0 | I33: 0 | J33: 0.00230535721
A34: Standard Supply Service – Administration Charge (if applicable) | B34: 1 | C34: =VLOOKUP($A34,'Data Pass Through'!$A:$D,2,FALSE) -> 0.25 | D34: =B34*C34 -> 0.25 | E34: 1 | F34: =VLOOKUP($A34,'Data Pass Through'!$A:$D,3,FALSE) -> 0.25 | G34: 0.25 | H34: 0 | I34: 0 | J34: 0.002899907934
A35: Sub-Total: Regulatory | D35: =SUM(D31:D34) -> 1.8797008 | G35: =SUM(G31:G34) -> 1.8797008 | H35: 0 | I35: 0 | J35: 0.02180383705
A36: Debt Retirement Charge (DRC) | B36: =B4 -> 364 | C36: =VLOOKUP($A36,'Data Pass Through'!$A:$D,2,FALSE) -> 0 | D36: =B36*C36 -> 0 | E36: 364 | F36: =VLOOKUP($A36,'Data Pass Through'!$A:$D,3,FALSE) -> 0 | G36: =E36*F36 -> 0 | H36: 0 | I36: N/A | J36: 0
A37: Total Electricty Charge on Two-Tier RPP | D37: =SUM(D14,D23,D24,D25,D29,D35,D36) -> 84.4276128 | G37: =SUM(G14,G23,G24,G25,G29,G35,G36) -> 82.1044128 | H37: -2.3232 | I37: -0.02751706371 | J37: 0.9523809524
A38: HST | C38: 0.13 | D38: =D37*C38 -> 10.97558966 | F38: =C38 -> 0.13 | G38: =G37*F38 -> 10.67357366 | H38: -0.302016 | I38: -0.02751706371 | J38: 0.1238095238
A39: Total Electricity Charge on Two-Tier RPP (including HST) | D39: =SUM(D37:D38) -> 95.40320246 | G39: =SUM(G37:G38) -> 92.77798646 | H39: -2.625216 | I39: -0.02751706371 | J39: 1.076190476
A40: Ontario Rebate for Electricity Consumers (OREC) | C40: -0.08 | D40: =D37*C40 -> -6.754209024 | F40: =C40 -> -0.08 | G40: =G37*F40 -> -6.568353024 | H40: 0.185856 | I40: 0.02751706371 | J40: -0.07619047619
A41: Total Amount on Two-Tier RPP | D41: =SUM(D39:D40) -> 88.64899344 | G41: =SUM(G39:G40) -> 86.20963344 | H41: -2.43936 | I41: -0.02751706371 | J41: 1

Sheet BI Template_Demand (hidden)
A1: 2020 Bill Impacts (Average Consumption Level) - GSd
A3: Rate Class | B3: =RIGHT(A1,LEN(A1)-FIND("- ",A1,1)-1) -> GSd
A4: Monthly Consumption (kWh) | B4: =IF(COUNTIF(A1,"*Low*")>0,VLOOKUP(B3,'Data Billing Quantities'!$A:$Z,MATCH("Low kWh",'Data Billing Quantities'!4:4,0),FALSE),IF(COUNTIF(A1,"*Typical*")>0,VLOOKUP(B3,'Data Billing Quantities'!$A:$Z,MATCH("Typical kWh",'Data Billing Quantities'!4:4,0),FALSE),IF(COUNTIF(A1,"*Average*")>0,VLOOKUP(B3,'Data Billing Quantities'!$A:$Z,MATCH("Average kWh",'Data Billing Quantities'!4:4,0),FALSE),IF(COUNTIF(A1,"*High*")>0,VLOOKUP(B3,'Data Billing Quantities'!$A:$Z,MATCH("High kWh",'Data Billing Quantities'!4:4,0),FALSE),"error")))) -> 36104
A5: Peak (kW) | B5: =IF(COUNTIF(A1,"*Low*")>0,VLOOKUP(B3,'Data Billing Quantities'!$A:$Z,MATCH("Low kW",'Data Billing Quantities'!4:4,0),FALSE),IF(COUNTIF(A1,"*Typical*")>0,VLOOKUP(B3,'Data Billing Quantities'!$A:$Z,MATCH("Typical kW",'Data Billing Quantities'!4:4,0),FALSE),IF(COUNTIF(A1,"*Average*")>0,VLOOKUP(B3,'Data Billing Quantities'!$A:$Z,MATCH("Average kW",'Data Billing Quantities'!4:4,0),FALSE),IF(COUNTIF(A1,"*High*")>0,VLOOKUP(B3,'Data Billing Quantities'!$A:$Z,MATCH("High kW",'Data Billing Quantities'!4:4,0),FALSE),"error")))) -> 124
A6: Loss factor | B6: =VLOOKUP(B3,'Data Billing Quantities'!A:D,MATCH(A6,'Data Billing Quantities'!4:4,0),FALSE) -> 1.061
A7: Load factor | B7: =B4/(B5*730) -> 0.3988510826
A8: Monthly Consumption (kWh) - Uplifted | B8: =B4*B6 -> 38306.344
A9: Charge determinant | B9: =VLOOKUP(B3,'Data Billing Quantities'!A:D,MATCH(A9,'Data Billing Quantities'!4:4,0),FALSE) -> kW
B11: Volume | C11: Current Rate ($) | D11: Current Charge ($) | E11: Volume | F11: Proposed Rate ($) | G11: Proposed Charge ($) | H11: Change ($) | I11: Change (%) | J11: % of Total Bill
A12: Energy (Non-RPP)* | B12: =B8 -> 38306.344 | C12: =VLOOKUP($A12,'Data Pass Through'!A:E,2,FALSE) -> 0.1155 | D12: =B12*C12 -> 4424.382732 | E12: =B8 -> 38306.344 | F12: =VLOOKUP($A12,'Data Pass Through'!A:E,3,FALSE) -> 0.1155 | G12: =E12*F12 -> 4424.382732 | H12: =G12-D12 -> 0 | I12: =IF(ISERROR(H12/ABS(D12)),"N/A",(H12/ABS(D12))) -> 0 | J12: =G12/$G$36 -> 0.5457164736
A13: Service Charge | B13: 1 | C13: =VLOOKUP($B$3,'Data Current Rates'!$A:$BA,MATCH($A13,CurrentHeader,0),FALSE) -> 104.18 | D13: =B13*C13 -> 104.18 | E13: =B13 -> 1 | F13: =VLOOKUP($B$3,'Data Proposed Rates'!$A:$BA,MATCH($A13,ProposedHeader,0),FALSE) -> 105.21 | G13: =E13*F13 -> 105.21 | H13: 1.03 | I13: 0.009886734498 | J13: 0.01297691309
A14: Fixed Foregone Revenue Charge | B14: 1 | C14: =VLOOKUP($B$3,'Data Current Rates'!$A:$BA,MATCH($A14,CurrentHeader,0),FALSE) -> 10.78 | D14: =B14*C14 -> 10.78 | E14: =B14 -> 1 | F14: =VLOOKUP($B$3,'Data Proposed Rates'!$A:$BA,MATCH($A14,ProposedHeader,0),FALSE) -> 10.69 | G14: =E14*F14 -> 10.69 | H14: =G14-D14 -> -0.09 | I14: =IF(ISERROR(H14/ABS(D14)),"N/A",(H14/ABS(D14))) -> -0.008348794063 | J14: =G14/$G$36 -> 0.00131853627
A15: Fixed Deferral/Variance Account Rider (General) | B15: 1 | C15: =VLOOKUP($B$3,'Data Current Rates'!$A:$BA,MATCH($A15,CurrentHeader,0),FALSE) -> -0.05 | D15: =B15*C15 -> -0.05 | E15: 1 | F15: =VLOOKUP($B$3,'Data Proposed Rates'!$A:$BA,MATCH($A15,ProposedHeader,0),FALSE) -> -0.05 | G15: =E15*F15 -> -0.05 | H15: 0 | I15: 0 | J15: -6.167148128e-06
A16: Distribution Volumetric Charge | B16: =IF($B$9="kWh",$B$4,$B$5) -> 124 | C16: =VLOOKUP($B$3,'Data Current Rates'!$A:$BA,MATCH($A16,CurrentHeader,0),FALSE) -> 17.2259 | D16: 2136.0116 | E16: =$B$5 -> 124 | F16: =VLOOKUP($B$3,'Data Proposed Rates'!$A:$BA,MATCH($A16,ProposedHeader,0),FALSE) -> 17.6289 | G16: 2185.9836 | H16: 49.972 | I16: =IF(ISERROR(H16/ABS(D16)),"N/A",(H16/ABS(D16))) -> 0.02339500403 | J16: 0.2696256933
A17: Volumetric Foregone Revenue Charge | B17: =IF($B$9="kWh",$B$4,$B$5) -> 124 | C17: =VLOOKUP($B$3,'Data Current Rates'!$A:$BA,MATCH($A17,CurrentHeader,0),FALSE) -> 0.7293 | D17: =B17*C17 -> 90.4332 | E17: =$B$5 -> 124 | F17: =VLOOKUP($B$3,'Data Proposed Rates'!$A:$BA,MATCH($A17,ProposedHeader,0),FALSE) -> 0.7265 | G17: =E17*F17 -> 90.086 | H17: =G17-D17 -> -0.3472 | I17: =IF(ISERROR(H17/ABS(D17)),"N/A",(H17/ABS(D17))) -> -0.003839297957 | J17: =G17/$G$36 -> 0.01111147412
A18: Volumetric Deferral/Variance Account Rider (General) | B18: =IF($B$9="kWh",$B$4,$B$5) -> 124 | C18: =VLOOKUP($B$3,'Data Current Rates'!$A:$BA,MATCH($A18,CurrentHeader,0),FALSE) -> -0.2655 | D18: -32.922 | E18: =$B$5 -> 124 | F18: =VLOOKUP($B$3,'Data Proposed Rates'!$A:$BA,MATCH($A18,ProposedHeader,0),FALSE) -> -0.2655 | G18: -32.922 | H18: 0 | I18: =IF(ISERROR(H18/ABS(D18)),"N/A",(H18/ABS(D18))) -> 0 | J18: -0.004060697013
A19: Volumetric Deferral/Variance Account Rider (Sub Account CBR) | B19: 124 | C19: =VLOOKUP($B$3,'Data Current Rates'!$A:$BA,MATCH($A19,CurrentHeader,0),FALSE) -> 0 | D19: 0 | E19: 124 | F19: =VLOOKUP($B$3,'Data Proposed Rates'!$A:$BA,MATCH($A19,ProposedHeader,0),FALSE) -> 0 | G19: 0 | H19: 0 | I19: N/A | J19: 0
A20: Volumetric Deferral/Variance Account Rider (Sub-Account Global Adjustment) | B20: =B4 -> 36104 | C20: =VLOOKUP($B$3,'Data Current Rates'!$A:$BA,MATCH($A20,CurrentHeader,0),FALSE) -> -0.0058 | D20: -209.4032 | E20: =B4 -> 36104 | F20: =VLOOKUP($B$3,'Data Proposed Rates'!$A:$BA,MATCH($A20,ProposedHeader,0),FALSE) -> -0.0058 | G20: -209.4032 | H20: =G20-D20 -> 0 | I20: =IF(ISERROR(H20/ABS(D20)),"N/A",(H20/ABS(D20))) -> 0 | J20: -0.02582841106
A21: Sub-Total: Distribution | D21: =SUM(INDIRECT("D13:D"&ROW()-1)) -> 2099.0296 | G21: =SUM(INDIRECT("g13:g"&ROW()-1)) -> 2149.5944 | H21: 50.5648 | I21: 0.02408960788 | J21: 0.2651373416
A22: Retail Transmission Rate – Network Service Rate | B22: =B5 -> 124 | C22: =VLOOKUP($B$3,'Data Current Rates'!$A:$BA,MATCH($A22,CurrentHeader,0),FALSE) -> 1.9327 | D22: =B22*C22 -> 239.6548 | E22: 124 | F22: =VLOOKUP($B$3,'Data Proposed Rates'!$A:$BA,MATCH($A22,ProposedHeader,0),FALSE) -> 1.9327 | G22: =E22*F22 -> 239.6548 | H22: 0 | I22: 0 | J22: 0.02955973302
A23: Retail Transmission Rate – Line and Transformation Connection Service Rate | B23: =B5 -> 124 | C23: =VLOOKUP($B$3,'Data Current Rates'!$A:$BA,MATCH($A23,CurrentHeader,0),FALSE) -> 1.6437 | D23: =B23*C23 -> 203.8188 | E23: 124 | F23: =VLOOKUP($B$3,'Data Proposed Rates'!$A:$BA,MATCH($A23,ProposedHeader,0),FALSE) -> 1.6437 | G23: =E23*F23 -> 203.8188 | H23: 0 | I23: 0 | J23: 0.02513961462
A24: Sub-Total: Retail Transmission | D24: =SUM(D22:D23) -> 443.4736 | G24: =SUM(G22:G23) -> 443.4736 | H24: 0 | I24: 0 | J24: 0.05469934764
A25: Sub-Total: Delivery | D25: =D21+D24 -> 2542.5032 | G25: =G21+G24 -> 2593.068 | H25: 50.5648 | I25: 0.01988780191 | J25: 0.3198366892
A26: Wholesale Market Service Rate (WMS) - not including CBR | B26: =$B$8 -> 38306.344 | C26: =VLOOKUP($A26,'Data Pass Through'!$A:$D,2,FALSE) -> 0.0032 | D26: =B26*C26 -> 122.5803008 | E26: =$B$8 -> 38306.344 | F26: =VLOOKUP($A26,'Data Pass Through'!$A:$D,3,FALSE) -> 0.0032 | G26: =E26*F26 -> 122.5803008 | H26: 0 | I26: 0 | J26: 0.01511941745
A27: Capacity Based Recovery (CBR) - Applicable for Class B Customers | B27: =$B$8 -> 38306.344 | C27: =VLOOKUP($A27,'Data Pass Through'!$A:$D,2,FALSE) -> 0.0004 | D27: =B27*C27 -> 15.3225376 | E27: =$B$8 -> 38306.344 | F27: =VLOOKUP($A27,'Data Pass Through'!$A:$D,3,FALSE) -> 0.0004 | G27: =E27*F27 -> 15.3225376 | H27: =G27-D27 -> 0 | I27: 0 | J27: 0.001889927181
A28: Rural Rate Protection Charge | B28: =$B$8 -> 38306.344 | C28: =VLOOKUP($A28,'Data Pass Through'!$A:$D,2,FALSE) -> 0.0005 | D28: =B28*C28 -> 19.153172 | E28: =$B$8 -> 38306.344 | F28: =VLOOKUP($A28,'Data Pass Through'!$A:$D,3,FALSE) -> 0.0005 | G28: =E28*F28 -> 19.153172 | H28: =G28-D28 -> 0 | I28: 0 | J28: 0.002362408977
A29: Standard Supply Service – Administration Charge (if applicable) | B29: 1 | C29: =VLOOKUP($A29,'Data Pass Through'!$A:$D,2,FALSE) -> 0.25 | D29: =B29*C29 -> 0.25 | E29: 1 | F29: =VLOOKUP($A29,'Data Pass Through'!$A:$D,3,FALSE) -> 0.25 | G29: =E29*F29 -> 0.25 | H29: 0 | I29: 0 | J29: 3.083574064e-05
A30: Sub-Total: Regulatory | D30: =SUM(D26:D29) -> 157.3060104 | G30: =SUM(G26:G29) -> 157.3060104 | H30: 0 | I30: 0 | J30: 0.01940258935
A31: Debt Retirement Charge (DRC) | B31: =B4 -> 36104 | C31: =VLOOKUP($A31,'Data Pass Through'!$A:$D,2,FALSE) -> 0 | D31: =B31*C31 -> 0 | E31: =B4 -> 36104 | F31: =VLOOKUP($A31,'Data Pass Through'!$A:$D,3,FALSE) -> 0 | G31: =E31*F31 -> 0 | H31: 0 | I31: N/A | J31: 0
A32: Total Electricity Charge (before HST) | D32: =SUM(D12,D21,D24,D30,D31) -> 7124.191942 | G32: =SUM(G12,G21,G24,G30,G31) -> 7174.756742 | H32: 50.5648 | I32: 0.007097618987 | J32: 0.8849557522
A33: HST | C33: 0.13 | D33: =D32*C33 -> 926.1449525 | F33: =C33 -> 0.13 | G33: =G32*F33 -> 932.7183765 | H33: 6.573424 | I33: 0.007097618987 | J33: 0.1150442478
A34: Total Electricity Charge (including HST) | D34: =SUM(D32:D33) -> 8050.336895 | G34: =SUM(G32:G33) -> 8107.475119 | H34: 57.138224 | I34: 0.007097618987 | J34: 1
A35: Ontario Rebate for Electricity Consumers (OREC) | C35: 0 | D35: =D32*C35 -> 0 | F35: =C35 -> 0 | G35: =G32*F35 -> 0 | H35: 0 | I35: N/A | J35: 0
A36: Total Amount | D36: =SUM(D34:D35) -> 8050.336895 | G36: =SUM(G34:G35) -> 8107.475119 | H36: 57.138224 | I36: 0.007097618987 | J36: 1
A37: =VLOOKUP($A12,'Data Pass Through'!A:E,5,FALSE) -> *Average HOEP plus average GA used to approximate Non-RPP Energy Charges (IESO Monthly Market Report December 2017)

Sheet BI_UR_Low
A1: 2020 Bill Impacts (Low Consumption Level) - UR
A3: Rate Class | B3: =RIGHT(A1,LEN(A1)-FIND("- ",A1,1)-1) -> UR
A4: Monthly Consumption (kWh) | B4: =IF(COUNTIF(A1,"*Low*")>0,VLOOKUP(B3,'Data Billing Quantities'!$A:$Z,MATCH("Low kWh",'Data Billing Quantities'!4:4,0),FALSE),IF(COUNTIF(A1,"*Typical*")>0,VLOOKUP(B3,'Data Billing Quantities'!$A:$Z,MATCH("Typical kWh",'Data Billing Quantities'!4:4,0),FALSE),IF(COUNTIF(A1,"*Average*")>0,VLOOKUP(B3,'Data Billing Quantities'!$A:$Z,MATCH("Average kWh",'Data Billing Quantities'!4:4,0),FALSE),IF(COUNTIF(A1,"*High*")>0,VLOOKUP(B3,'Data Billing Quantities'!$A:$Z,MATCH("High kWh",'Data Billing Quantities'!4:4,0),FALSE),"error")))) -> 350
A5: Peak (kW) | B5: =IF(COUNTIF(A1,"*Low*")>0,VLOOKUP(B3,'Data Billing Quantities'!$A:$Z,MATCH("Low kW",'Data Billing Quantities'!4:4,0),FALSE),IF(COUNTIF(A1,"*Typical*")>0,VLOOKUP(B3,'Data Billing Quantities'!$A:$Z,MATCH("Typical kW",'Data Billing Quantities'!4:4,0),FALSE),IF(COUNTIF(A1,"*Average*")>0,VLOOKUP(B3,'Data Billing Quantities'!$A:$Z,MATCH("Average kW",'Data Billing Quantities'!4:4,0),FALSE),IF(COUNTIF(A1,"*High*")>0,VLOOKUP(B3,'Data Billing Quantities'!$A:$Z,MATCH("High kW",'Data Billing Quantities'!4:4,0),FALSE),"error")))) -> 0
A6: Loss factor | B6: =VLOOKUP(B3,'Data Billing Quantities'!A:D,MATCH(A6,'Data Billing Quantities'!4:4,0),FALSE) -> 1.057
A7: Commodity Threshold | B7: =VLOOKUP(B3,'Data Billing Quantities'!A:D,MATCH(A7,'Data Billing Quantities'!4:4,0),FALSE) -> 600
A8: Monthly Consumption (kWh) - Uplifted | B8: =B4*B6 -> 369.95
A9: Charge determinant | B9: =VLOOKUP(B3,'Data Billing Quantities'!A:D,MATCH(A9,'Data Billing Quantities'!4:4,0),FALSE) -> kWh
B11: Volume | C11: Current Rate ($) | D11: Current Charge ($) | E11: Volume | F11: Proposed Rate ($) | G11: Proposed Charge ($) | H11: Change ($) | I11: Change (%) | J11: % of Total Bill on RPP | K11: % of Total Bill on TOU
A12: Energy First Tier | B12: =IF(B4>B7,B7,B4) -> 350 | C12: =VLOOKUP($A12,'Data Pass Through'!$A:$D,2,FALSE) -> 0.077 | D12: =B12*C12 -> 26.95 | E12: =B12 -> 350 | F12: =VLOOKUP($A12,'Data Pass Through'!$A:$D,3,FALSE) -> 0.077 | G12: =E12*F12 -> 26.95 | H12: =G12-D12 -> 0 | I12: =IF(ISERROR(H12/ABS(D12)),"N/A",(H12/ABS(D12))) -> 0 | J12: =G12/$G$48 -> 0.3608510113
A13: Energy Second Tier | B13: =IF(B4>B7,(B4)-B7,0) -> 0 | C13: =VLOOKUP($A13,'Data Pass Through'!$A:$D,2,FALSE) -> 0.089 | D13: =B13*C13 -> 0 | E13: =B13 -> 0 | F13: =VLOOKUP($A13,'Data Pass Through'!$A:$D,3,FALSE) -> 0.089 | G13: =E13*F13 -> 0 | H13: 0 | I13: N/A | J13: =G13/$G$48 -> 0
A14: Sub-Total: Energy (RPP Tiered) | D14: =SUM(D12:D13) -> 26.95 | G14: =SUM(G12:G13) -> 26.95 | H14: 0 | I14: 0 | J14: =G14/$G$48 -> 0.3608510113
A15: TOU-Off Peak | B15: =B$4*VLOOKUP($B$3,'Data Billing Quantities'!$A:$O,MATCH(BI_UR_Low!$A15,'Data Billing Quantities'!$4:$4,0),FALSE) -> 227.5 | C15: =VLOOKUP($A15,'Data Pass Through'!$A:$D,2,FALSE) -> 0.065 | D15: =B15*C15 -> 14.7875 | E15: 227.5 | F15: =VLOOKUP($A15,'Data Pass Through'!$A:$D,3,FALSE) -> 0.065 | G15: =E15*F15 -> 14.7875 | H15: 0 | I15: 0 | K15: =G15/$G$53 -> 0.1929905675
A16: TOU-Mid Peak | B16: =B$4*VLOOKUP($B$3,'Data Billing Quantities'!$A:$O,MATCH(BI_UR_Low!$A16,'Data Billing Quantities'!$4:$4,0),FALSE) -> 59.5 | C16: =VLOOKUP($A16,'Data Pass Through'!$A:$D,2,FALSE) -> 0.094 | D16: =B16*C16 -> 5.593 | E16: 59.5 | F16: =VLOOKUP($A16,'Data Pass Through'!$A:$D,3,FALSE) -> 0.094 | G16: =E16*F16 -> 5.593 | H16: 0 | I16: 0 | K16: 0.07299382885
A17: TOU-On Peak | B17: =B$4*VLOOKUP($B$3,'Data Billing Quantities'!$A:$O,MATCH(BI_UR_Low!$A17,'Data Billing Quantities'!$4:$4,0),FALSE) -> 63 | C17: =VLOOKUP($A17,'Data Pass Through'!$A:$D,2,FALSE) -> 0.132 | D17: =B17*C17 -> 8.316 | E17: 63 | F17: =VLOOKUP($A17,'Data Pass Through'!$A:$D,3,FALSE) -> 0.132 | G17: =E17*F17 -> 8.316 | H17: 0 | I17: 0 | K17: 0.1085315002
A18: Sub-Total: Energy (RPP TOU) | D18: =SUM(D15:D17) -> 28.6965 | G18: =SUM(G15:G17) -> 28.6965 | H18: 0 | I18: 0 | J18: =G18/$G$48 -> 0.3842360314 | K18: 0.3745158966
A19: Service Charge | B19: 1 | C19: =VLOOKUP($B$3,'Data Current Rates'!$A:$BA,MATCH(BI_UR_Low!$A19,CurrentHeader,0),FALSE) -> 28.63 | D19: =B19*C19 -> 28.63 | E19: 1 | F19: =VLOOKUP($B$3,'Data Proposed Rates'!$A:$BA,MATCH(BI_UR_Low!$A19,ProposedHeader,0),FALSE) -> 31.91 | G19: =E19*F19 -> 31.91 | H19: 3.28 | I19: 0.1145651415 | J19: 0.427263665 | K19: 0.4164550471
A20: Fixed Foregone Revenue Charge | B20: 1 | C20: =VLOOKUP($B$3,'Data Current Rates'!$A:$BA,MATCH(BI_UR_Low!$A20,CurrentHeader,0),FALSE) -> 1.46 | D20: 1.46 | E20: 1 | F20: =VLOOKUP($B$3,'Data Proposed Rates'!$A:$BA,MATCH(BI_UR_Low!$A20,ProposedHeader,0),FALSE) -> 1.45 | G20: 1.45 | H20: -0.01 | I20: -0.006849315068 | J20: 0.01941498948 | K20: 0.01892384263
A21: Fixed Deferral/Variance Account Rider (General) | B21: 1 | C21: =VLOOKUP($B$3,'Data Current Rates'!$A:$BA,MATCH(BI_UR_Low!$A21,CurrentHeader,0),FALSE) -> 0.05 | D21: 0.05 | E21: 1 | F21: =VLOOKUP($B$3,'Data Proposed Rates'!$A:$BA,MATCH(BI_UR_Low!$A21,ProposedHeader,0),FALSE) -> 0.05 | G21: 0.05 | H21: 0 | I21: 0 | J21: 0.0006694823958 | K21: 0.0006525462976
A22: Distribution Volumetric Charge | B22: =IF($B$9="kWh",$B$4,$B$5) -> 350 | C22: =VLOOKUP($B$3,'Data Current Rates'!$A:$BA,MATCH(BI_UR_Low!$A22,CurrentHeader,0),FALSE) -> 0.0075 | D22: 2.625 | E22: 350 | F22: =VLOOKUP($B$3,'Data Proposed Rates'!$A:$BA,MATCH(BI_UR_Low!$A22,ProposedHeader,0),FALSE) -> 0.0038 | G22: 1.33 | H22: -1.295 | I22: -0.4933333333 | J22: 0.01780823173 | K22: 0.01735773152
A23: Volumetric Foregone Revenue Charge | B23: =IF($B$9="kWh",$B$4,$B$5) -> 350 | C23: =VLOOKUP($B$3,'Data Current Rates'!$A:$BA,MATCH(BI_UR_Low!$A23,CurrentHeader,0),FALSE) -> 0 | D23: 0 | E23: 350 | F23: =VLOOKUP($B$3,'Data Proposed Rates'!$A:$BA,MATCH(BI_UR_Low!$A23,ProposedHeader,0),FALSE) -> 0 | G23: 0 | H23: 0 | I23: N/A | J23: 0 | K23: 0
A24: Volumetric Deferral/Variance Account Rider (General) | B24: =IF($B$9="kWh",$B$4,$B$5) -> 350 | C24: =VLOOKUP($B$3,'Data Current Rates'!$A:$BA,MATCH(BI_UR_Low!$A24,CurrentHeader,0),FALSE) -> -0.0008 | D24: -0.28 | E24: 350 | F24: =VLOOKUP($B$3,'Data Proposed Rates'!$A:$BA,MATCH(BI_UR_Low!$A24,ProposedHeader,0),FALSE) -> -0.0008 | G24: -0.28 | H24: 0 | I24: 0 | J24: -0.003749101417 | K24: -0.003654259267
A25: Volumetric Deferral/Variance Account Rider (Sub Account CBR) | B25: 350 | C25: =VLOOKUP($B$3,'Data Current Rates'!$A:$BA,MATCH(BI_UR_Low!$A25,CurrentHeader,0),FALSE) -> 0 | D25: 0 | E25: 350 | F25: =VLOOKUP($B$3,'Data Proposed Rates'!$A:$BA,MATCH(BI_UR_Low!$A25,ProposedHeader,0),FALSE) -> 0 | G25: 0 | H25: 0 | I25: N/A | J25: 0 | K25: 0
A26: Fair Hydro Plan - Distribution Rate Protection Savings* | D26: =IF(AND(B3<>"R1",B3<>"R2"),0,IF(VLOOKUP($A26,'Data Pass Through'!$A:$D,2,FALSE)=0,0,IF(SUM(D19:D20,D22:D23)<VLOOKUP($A26,'Data Pass Through'!$A:$D,2,FALSE),0,VLOOKUP($A26,'Data Pass Through'!$A:$D,2,FALSE)-SUM(D19:D20,D22:D23)))) -> 0 | G26: =IF(AND(B3<>"R1",B3<>"R2"),0,IF(VLOOKUP($A26,'Data Pass Through'!$A:$D,2,FALSE)=0,0,IF(SUM(G19:G20,G22:G23)<VLOOKUP($A26,'Data Pass Through'!$A:$D,2,FALSE),0,VLOOKUP($A26,'Data Pass Through'!$A:$D,2,FALSE)-SUM(G19:G20,G22:G23)))) -> 0 | H26: 0 | I26: N/A | J26: 0 | K26: 0
A27: Sub-Total: Distribution (excluding pass through) | D27: =SUM(INDIRECT("D19:D"&ROW()-1)) -> 32.485 | G27: =SUM(INDIRECT("g19:g"&ROW()-1)) -> 34.46 | H27: =G27-D27 -> 1.975 | I27: 0.06079729106 | J27: 0.4614072672 | K27: 0.4497349083
A28: Smart Metering Entity Charge | B28: 1 | C28: =VLOOKUP($A28,'Data Pass Through'!$A:$D,2,FALSE) -> 0.57 | D28: =B28*C28 -> 0.57 | E28: 1 | F28: =VLOOKUP($A28,'Data Pass Through'!$A:$D,3,FALSE) -> 0.57 | G28: =E28*F28 -> 0.57 | H28: 0 | I28: 0 | J28: 0.007632099312 | K28: 0.007439027793
A29: Line Losses on Cost of Power (based on two-tier RPP prices) | B29: =B8-B4 -> 19.95 | C29: =IF(B4>B7,C13,C12) -> 0.077 | D29: =B29*C29 -> 1.53615 | E29: 19.95 | F29: =IF(B4>B7,F13,F12) -> 0.077 | G29: =E29*F29 -> 1.53615 | H29: 0 | I29: 0 | J29: 0.02056850765 | K29: 0.0200481799
A30: Line Losses on Cost of Power (based on TOU prices) | B30: =B8-B4 -> 19.95 | C30: =VLOOKUP($B$3,'Data Billing Quantities'!$A:$O,MATCH(BI_UR_Low!$A15,'Data Billing Quantities'!$4:$4,0),FALSE)*C15+VLOOKUP($B$3,'Data Billing Quantities'!$A:$O,MATCH(BI_UR_Low!$A16,'Data Billing Quantities'!$4:$4,0),FALSE)*C16+VLOOKUP($B$3,'Data Billing Quantities'!$A:$O,MATCH(BI_UR_Low!$A17,'Data Billing Quantities'!$4:$4,0),FALSE)*C17 -> 0.08199 | D30: =B30*C30 -> 1.6357005 | E30: 19.95 | F30: =VLOOKUP($B$3,'Data Billing Quantities'!$A:$O,MATCH(BI_UR_Low!$A15,'Data Billing Quantities'!$4:$4,0),FALSE)*F15+VLOOKUP($B$3,'Data Billing Quantities'!$A:$O,MATCH(BI_UR_Low!$A16,'Data Billing Quantities'!$4:$4,0),FALSE)*F16+VLOOKUP($B$3,'Data Billing Quantities'!$A:$O,MATCH(BI_UR_Low!$A17,'Data Billing Quantities'!$4:$4,0),FALSE)*F17 -> 0.08199 | G30: =E30*F30 -> 1.6357005 | H30: 0 | I30: 0 | J30: 0.02190145379 | K30: 0.02134740611
A31: Sub-Total: Distribution (based on two-tier RPP prices) | D31: =SUM(D27,D28:D29) -> 34.59115 | G31: =SUM(G27,G28:G29) -> 36.56615 | H31: 1.975 | I31: 0.05709552877 | J31: 0.4896078742 | K31: 0.477222116
A32: Sub-Total: Distribution (based on TOU prices) | D32: =SUM(D27,D28,D30) -> 34.6907005 | G32: =SUM(G27,G28,G30) -> 36.6657005 | H32: 1.975 | I32: 0.05693168404 | J32: 0.4909408203 | K32: 0.4785213422
A33: Retail Transmission Rate – Network Service Rate | B33: =B8 -> 369.95 | C33: =VLOOKUP($B$3,'Data Current Rates'!$A:$BA,MATCH(BI_UR_Low!$A33,CurrentHeader,0),FALSE) -> 0.0084 | D33: =B33*C33 -> 3.10758 | E33: 369.95 | F33: =VLOOKUP($B$3,'Data Proposed Rates'!$A:$BA,MATCH(BI_UR_Low!$A33,ProposedHeader,0),FALSE) -> 0.0084 | G33: =E33*F33 -> 3.10758 | H33: =G33-D33 -> 0 | I33: 0 | J33: 0.04160940207 | K33: 0.04055679647
A34: Retail Transmission Rate – Line and Transformation Connection Service Rate | B34: =B8 -> 369.95 | C34: =VLOOKUP($B$3,'Data Current Rates'!$A:$BA,MATCH(BI_UR_Low!$A34,CurrentHeader,0),FALSE) -> 0.0074 | D34: =B34*C34 -> 2.73763 | E34: 369.95 | F34: =VLOOKUP($B$3,'Data Proposed Rates'!$A:$BA,MATCH(BI_UR_Low!$A34,ProposedHeader,0),FALSE) -> 0.0074 | G34: =E34*F34 -> 2.73763 | H34: =G34-D34 -> 0 | I34: 0 | J34: 0.03665590182 | K34: 0.03572860641
A35: Sub-Total: Retail Transmission | D35: =SUM(D33:D34) -> 5.84521 | G35: =SUM(G33:G34) -> 5.84521 | H35: =G35-D35 -> 0 | I35: 0 | J35: 0.0782653039 | K35: 0.07628540288
A36: Sub-Total: Delivery (based on two-tier RPP prices) | D36: =D31+D35 -> 40.43636 | G36: =G31+G35 -> 42.41136 | H36: =G36-D36 -> 1.975 | I36: 0.04884218065 | J36: 0.567873178 | K36: 0.5535075189
A37: Sub-Total: Delivery (based on TOU prices) | D37: =D32+D35 -> 40.5359105 | G37: =G32+G35 -> 42.5109105 | H37: =G37-D37 -> 1.975 | I37: 0.04872223112 | J37: 0.5692061242 | K37: 0.5548067451
A38: Wholesale Market Service Rate (WMS) - not including CBR | B38: =B8 -> 369.95 | C38: =VLOOKUP($A38,'Data Pass Through'!$A:$D,2,FALSE) -> 0.0032 | D38: =B38*C38 -> 1.18384 | E38: =$B$8 -> 369.95 | F38: =VLOOKUP($A38,'Data Pass Through'!$A:$D,3,FALSE) -> 0.0032 | G38: =E38*F38 -> 1.18384 | H38: 0 | I38: 0 | J38: 0.01585120079 | K38: 0.01545020818
A39: Capacity Based Recovery (CBR) - Applicable for Class B Customers | B39: =B8 -> 369.95 | C39: =VLOOKUP($A39,'Data Pass Through'!$A:$D,2,FALSE) -> 0.0004 | D39: =B39*C39 -> 0.14798 | E39: =$B$8 -> 369.95 | F39: =VLOOKUP($A39,'Data Pass Through'!$A:$D,3,FALSE) -> 0.0004 | G39: =E39*F39 -> 0.14798 | H39: 0 | I39: 0 | J39: 0.001981400099 | K39: 0.001931276022
A40: Rural Rate Protection Charge | B40: =B8 -> 369.95 | C40: =VLOOKUP($A40,'Data Pass Through'!$A:$D,2,FALSE) -> 0.0005 | D40: 0.184975 | E40: 369.95 | F40: =VLOOKUP($A40,'Data Pass Through'!$A:$D,3,FALSE) -> 0.0005 | G40: 0.184975 | H40: 0 | I40: 0 | J40: 0.002476750123 | K40: 0.002414095028
A41: Standard Supply Service – Administration Charge (if applicable) | B41: 1 | C41: =VLOOKUP($A41,'Data Pass Through'!$A:$D,2,FALSE) -> 0.25 | D41: =B41*C41 -> 0.25 | E41: 1 | F41: =VLOOKUP($A41,'Data Pass Through'!$A:$D,3,FALSE) -> 0.25 | G41: 0.25 | H41: 0 | I41: 0 | J41: 0.003347411979 | K41: 0.003262731488
A42: Sub-Total: Regulatory | D42: =SUM(D38:D41) -> 1.766795 | G42: =SUM(G38:G41) -> 1.766795 | H42: 0 | I42: 0 | J42: 0.02365676299 | K42: 0.02305831072
A43: Debt Retirement Charge (DRC) | B43: =B4 -> 350 | C43: =VLOOKUP($A43,'Data Pass Through'!$A:$D,2,FALSE) -> 0 | D43: =B43*C43 -> 0 | E43: 350 | F43: =VLOOKUP($A43,'Data Pass Through'!$A:$D,3,FALSE) -> 0 | G43: =E43*F43 -> 0 | H43: 0 | I43: N/A | J43: 0 | K43: 0
A44: Total Electricty Charge on Two-Tier RPP | D44: =SUM(D14,D27,D28,D29,D35,D42,D43) -> 69.153155 | G44: =SUM(G14,G27,G28,G29,G35,G42,G43) -> 71.128155 | H44: 1.975 | I44: 0.02855979601 | J44: 0.9523809524
A45: HST | C45: 0.13 | D45: =D44*C45 -> 8.98991015 | F45: =C45 -> 0.13 | G45: =G44*F45 -> 9.24666015 | H45: 0.25675 | I45: 0.02855979601 | J45: 0.1238095238
A46: Total Electricity Charge on Two-Tier RPP (including HST) | D46: =SUM(D44:D45) -> 78.14306515 | G46: =SUM(G44:G45) -> 80.37481515 | H46: 2.23175 | I46: 0.02855979601 | J46: 1.076190476
A47: Ontario Rebate for Electricity Consumers (OREC) | C47: -0.08 | D47: =D44*C47 -> -5.5322524 | F47: =C47 -> -0.08 | G47: =G44*F47 -> -5.6902524 | H47: -0.158 | I47: -0.02855979601 | J47: -0.07619047619
A48: Total Amount on Two-Tier RPP | D48: =SUM(D46:D47) -> 72.61081275 | G48: =SUM(G46:G47) -> 74.68456275 | H48: 2.07375 | I48: 0.02855979601 | J48: 1
A49: Total Electricty Charge on TOU (before HST) | D49: =SUM(D18,D27,D28,D30,D35,D42,D43) -> 70.9992055 | G49: =SUM(G18,G27,G28,G30,G35,G42,G43) -> 72.9742055 | H49: 1.975 | I49: 0.02781721269 | K49: =G49/$G$53 -> 0.9523809524
A50: HST | C50: 0.13 | D50: =D49*C50 -> 9.229896715 | F50: =C50 -> 0.13 | G50: =G49*F50 -> 9.486646715 | H50: 0.25675 | I50: 0.02781721269 | K50: =G50/$G$53 -> 0.1238095238
A51: Total Electricity Charge on TOU (including HST) | D51: =SUM(D49:D50) -> 80.22910221 | G51: =SUM(G49:G50) -> 82.46085221 | H51: 2.23175 | I51: 0.02781721269 | K51: =G51/$G$53 -> 1.076190476
A52: Ontario Rebate for Electricity Consumers (OREC) | C52: -0.08 | D52: =D49*C52 -> -5.67993644 | F52: =C52 -> -0.08 | G52: =G49*F52 -> -5.83793644 | H52: -0.158 | I52: -0.02781721269 | K52: =G52/$G$53 -> -0.07619047619
A53: Total Amount on TOU | D53: =SUM(D51:D52) -> 74.54916577 | G53: =SUM(G51:G52) -> 76.62291577 | H53: 2.07375 | I53: 0.02781721269 | K53: =G53/$G$53 -> 1
A54: * Distribution rate protection applies to R1 and R2 customers

Sheet BI_UR_Typical
A1: 2020 Bill Impacts (Typical Consumption Level) - UR
A3: Rate Class | B3: =RIGHT(A1,LEN(A1)-FIND("- ",A1,1)-1) -> UR
A4: Monthly Consumption (kWh) | B4: =IF(COUNTIF(A1,"*Low*")>0,VLOOKUP(B3,'Data Billing Quantities'!$A:$Z,MATCH("Low kWh",'Data Billing Quantities'!4:4,0),FALSE),IF(COUNTIF(A1,"*Typical*")>0,VLOOKUP(B3,'Data Billing Quantities'!$A:$Z,MATCH("Typical kWh",'Data Billing Quantities'!4:4,0),FALSE),IF(COUNTIF(A1,"*Average*")>0,VLOOKUP(B3,'Data Billing Quantities'!$A:$Z,MATCH("Average kWh",'Data Billing Quantities'!4:4,0),FALSE),IF(COUNTIF(A1,"*High*")>0,VLOOKUP(B3,'Data Billing Quantities'!$A:$Z,MATCH("High kWh",'Data Billing Quantities'!4:4,0),FALSE),"error")))) -> 750
A5: Peak (kW) | B5: =IF(COUNTIF(A1,"*Low*")>0,VLOOKUP(B3,'Data Billing Quantities'!$A:$Z,MATCH("Low kW",'Data Billing Quantities'!4:4,0),FALSE),IF(COUNTIF(A1,"*Typical*")>0,VLOOKUP(B3,'Data Billing Quantities'!$A:$Z,MATCH("Typical kW",'Data Billing Quantities'!4:4,0),FALSE),IF(COUNTIF(A1,"*Average*")>0,VLOOKUP(B3,'Data Billing Quantities'!$A:$Z,MATCH("Average kW",'Data Billing Quantities'!4:4,0),FALSE),IF(COUNTIF(A1,"*High*")>0,VLOOKUP(B3,'Data Billing Quantities'!$A:$Z,MATCH("High kW",'Data Billing Quantities'!4:4,0),FALSE),"error")))) -> 0
A6: Loss factor | B6: =VLOOKUP(B3,'Data Billing Quantities'!A:D,MATCH(A6,'Data Billing Quantities'!4:4,0),FALSE) -> 1.057
A7: Commodity Threshold | B7: =VLOOKUP(B3,'Data Billing Quantities'!A:D,MATCH(A7,'Data Billing Quantities'!4:4,0),FALSE) -> 600
A8: Monthly Consumption (kWh) - Uplifted | B8: =B4*B6 -> 792.75
A9: Charge determinant | B9: =VLOOKUP(B3,'Data Billing Quantities'!A:D,MATCH(A9,'Data Billing Quantities'!4:4,0),FALSE) -> kWh
B11: Volume | C11: Current Rate ($) | D11: Current Charge ($) | E11: Volume | F11: Proposed Rate ($) | G11: Proposed Charge ($) | H11: Change ($) | I11: Change (%) | J11: % of Total Bill on RPP | K11: % of Total Bill on TOU
A12: Energy First Tier | B12: =IF(B4>B7,B7,B4) -> 600 | C12: =VLOOKUP($A12,'Data Pass Through'!$A:$D,2,FALSE) -> 0.077 | D12: =B12*C12 -> 46.2 | E12: =B12 -> 600 | F12: =VLOOKUP($A12,'Data Pass Through'!$A:$D,3,FALSE) -> 0.077 | G12: =E12*F12 -> 46.2 | H12: =G12-D12 -> 0 | I12: =IF(ISERROR(H12/ABS(D12)),"N/A",(H12/ABS(D12))) -> 0 | J12: =G12/$G$48 -> 0.3805883507
A13: Energy Second Tier | B13: =IF(B4>B7,(B4)-B7,0) -> 150 | C13: =VLOOKUP($A13,'Data Pass Through'!$A:$D,2,FALSE) -> 0.089 | D13: =B13*C13 -> 13.35 | E13: =B13 -> 150 | F13: =VLOOKUP($A13,'Data Pass Through'!$A:$D,3,FALSE) -> 0.089 | G13: =E13*F13 -> 13.35 | H13: 0 | I13: 0 | J13: =G13/$G$48 -> 0.1099752052
A14: Sub-Total: Energy (RPP Tiered) | D14: =SUM(D12:D13) -> 59.55 | G14: =SUM(G12:G13) -> 59.55 | H14: 0 | I14: 0 | J14: =G14/$G$48 -> 0.4905635559
A15: TOU-Off Peak | B15: =B$4*VLOOKUP($B$3,'Data Billing Quantities'!$A:$O,MATCH(BI_UR_Typical!$A15,'Data Billing Quantities'!$4:$4,0),FALSE) -> 487.5 | C15: =VLOOKUP($A15,'Data Pass Through'!$A:$D,2,FALSE) -> 0.065 | D15: =B15*C15 -> 31.6875 | E15: 487.5 | F15: =VLOOKUP($A15,'Data Pass Through'!$A:$D,3,FALSE) -> 0.065 | G15: =E15*F15 -> 31.6875 | H15: 0 | I15: 0 | K15: =G15/$G$53 -> 0.2573792983
A16: TOU-Mid Peak | B16: =B$4*VLOOKUP($B$3,'Data Billing Quantities'!$A:$O,MATCH(BI_UR_Typical!$A16,'Data Billing Quantities'!$4:$4,0),FALSE) -> 127.5 | C16: =VLOOKUP($A16,'Data Pass Through'!$A:$D,2,FALSE) -> 0.094 | D16: =B16*C16 -> 11.985 | E16: 127.5 | F16: =VLOOKUP($A16,'Data Pass Through'!$A:$D,3,FALSE) -> 0.094 | G16: =E16*F16 -> 11.985 | H16: 0 | I16: 0 | K16: 0.09734724701
A17: TOU-On Peak | B17: =B$4*VLOOKUP($B$3,'Data Billing Quantities'!$A:$O,MATCH(BI_UR_Typical!$A17,'Data Billing Quantities'!$4:$4,0),FALSE) -> 135 | C17: =VLOOKUP($A17,'Data Pass Through'!$A:$D,2,FALSE) -> 0.132 | D17: =B17*C17 -> 17.82 | E17: 135 | F17: =VLOOKUP($A17,'Data Pass Through'!$A:$D,3,FALSE) -> 0.132 | G17: =E17*F17 -> 17.82 | H17: 0 | I17: 0 | K17: 0.1447415888
A18: Sub-Total: Energy (RPP TOU) | D18: =SUM(D15:D17) -> 61.4925 | G18: =SUM(G15:G17) -> 61.4925 | H18: 0 | I18: 0 | J18: =G18/$G$48 -> 0.5065655661 | K18: 0.4994681341
A19: Service Charge | B19: 1 | C19: =VLOOKUP($B$3,'Data Current Rates'!$A:$BA,MATCH(BI_UR_Typical!$A19,CurrentHeader,0),FALSE) -> 28.63 | D19: =B19*C19 -> 28.63 | E19: 1 | F19: =VLOOKUP($B$3,'Data Proposed Rates'!$A:$BA,MATCH(BI_UR_Typical!$A19,ProposedHeader,0),FALSE) -> 31.91 | G19: =E19*F19 -> 31.91 | H19: 3.28 | I19: 0.1145651415 | J19: 0.2628695729 | K19: 0.2591865375
A20: Fixed Foregone Revenue Charge | B20: 1 | C20: =VLOOKUP($B$3,'Data Current Rates'!$A:$BA,MATCH(BI_UR_Typical!$A20,CurrentHeader,0),FALSE) -> 1.46 | D20: 1.46 | E20: 1 | F20: =VLOOKUP($B$3,'Data Proposed Rates'!$A:$BA,MATCH(BI_UR_Typical!$A20,ProposedHeader,0),FALSE) -> 1.45 | G20: 1.45 | H20: -0.01 | I20: -0.006849315068 | J20: 0.01194487248 | K20: 0.01177751424
A21: Fixed Deferral/Variance Account Rider (General) | B21: 1 | C21: =VLOOKUP($B$3,'Data Current Rates'!$A:$BA,MATCH(BI_UR_Typical!$A21,CurrentHeader,0),FALSE) -> 0.05 | D21: 0.05 | E21: 1 | F21: =VLOOKUP($B$3,'Data Proposed Rates'!$A:$BA,MATCH(BI_UR_Typical!$A21,ProposedHeader,0),FALSE) -> 0.05 | G21: 0.05 | H21: 0 | I21: 0 | J21: 0.0004118921544 | K21: 0.0004061211807
A22: Distribution Volumetric Charge | B22: =IF($B$9="kWh",$B$4,$B$5) -> 750 | C22: =VLOOKUP($B$3,'Data Current Rates'!$A:$BA,MATCH(BI_UR_Typical!$A22,CurrentHeader,0),FALSE) -> 0.0075 | D22: 5.625 | E22: 750 | F22: =VLOOKUP($B$3,'Data Proposed Rates'!$A:$BA,MATCH(BI_UR_Typical!$A22,ProposedHeader,0),FALSE) -> 0.0038 | G22: 2.85 | H22: -2.775 | I22: -0.4933333333 | J22: 0.0234778528 | K22: 0.0231489073
A23: Volumetric Foregone Revenue Charge | B23: =IF($B$9="kWh",$B$4,$B$5) -> 750 | C23: =VLOOKUP($B$3,'Data Current Rates'!$A:$BA,MATCH(BI_UR_Typical!$A23,CurrentHeader,0),FALSE) -> 0 | D23: 0 | E23: 750 | F23: =VLOOKUP($B$3,'Data Proposed Rates'!$A:$BA,MATCH(BI_UR_Typical!$A23,ProposedHeader,0),FALSE) -> 0 | G23: 0 | H23: 0 | I23: N/A | J23: 0 | K23: 0
A24: Volumetric Deferral/Variance Account Rider (General) | B24: =IF($B$9="kWh",$B$4,$B$5) -> 750 | C24: =VLOOKUP($B$3,'Data Current Rates'!$A:$BA,MATCH(BI_UR_Typical!$A24,CurrentHeader,0),FALSE) -> -0.0008 | D24: -0.6 | E24: 750 | F24: =VLOOKUP($B$3,'Data Proposed Rates'!$A:$BA,MATCH(BI_UR_Typical!$A24,ProposedHeader,0),FALSE) -> -0.0008 | G24: -0.6 | H24: 0 | I24: 0 | J24: -0.004942705853 | K24: -0.004873454168
A25: Volumetric Deferral/Variance Account Rider (Sub Account CBR) | B25: 750 | C25: =VLOOKUP($B$3,'Data Current Rates'!$A:$BA,MATCH(BI_UR_Typical!$A25,CurrentHeader,0),FALSE) -> 0 | D25: 0 | E25: 750 | F25: =VLOOKUP($B$3,'Data Proposed Rates'!$A:$BA,MATCH(BI_UR_Typical!$A25,ProposedHeader,0),FALSE) -> 0 | G25: 0 | H25: 0 | I25: N/A | J25: 0 | K25: 0
A26: Fair Hydro Plan - Distribution Rate Protection Savings* | D26: =IF(AND(B3<>"R1",B3<>"R2"),0,IF(VLOOKUP($A26,'Data Pass Through'!$A:$D,2,FALSE)=0,0,IF(SUM(D19:D20,D22:D23)<VLOOKUP($A26,'Data Pass Through'!$A:$D,2,FALSE),0,VLOOKUP($A26,'Data Pass Through'!$A:$D,2,FALSE)-SUM(D19:D20,D22:D23)))) -> 0 | G26: =IF(AND(B3<>"R1",B3<>"R2"),0,IF(VLOOKUP($A26,'Data Pass Through'!$A:$D,2,FALSE)=0,0,IF(SUM(G19:G20,G22:G23)<VLOOKUP($A26,'Data Pass Through'!$A:$D,2,FALSE),0,VLOOKUP($A26,'Data Pass Through'!$A:$D,2,FALSE)-SUM(G19:G20,G22:G23)))) -> 0 | H26: 0 | I26: N/A | J26: 0 | K26: 0
A27: Sub-Total: Distribution (excluding pass through) | D27: =SUM(INDIRECT("D19:D"&ROW()-1)) -> 35.165 | G27: =SUM(INDIRECT("g19:g"&ROW()-1)) -> 35.66 | H27: =G27-D27 -> 0.495 | I27: 0.01407649652 | J27: 0.2937614845 | K27: 0.2896456261
A28: Smart Metering Entity Charge | B28: 1 | C28: =VLOOKUP($A28,'Data Pass Through'!$A:$D,2,FALSE) -> 0.57 | D28: =B28*C28 -> 0.57 | E28: 1 | F28: =VLOOKUP($A28,'Data Pass Through'!$A:$D,3,FALSE) -> 0.57 | G28: =E28*F28 -> 0.57 | H28: 0 | I28: 0 | J28: 0.00469557056 | K28: 0.00462978146
A29: Line Losses on Cost of Power (based on two-tier RPP prices) | B29: =B8-B4 -> 42.75 | C29: =IF(B4>B7,C13,C12) -> 0.089 | D29: =B29*C29 -> 3.80475 | E29: 42.75 | F29: =IF(B4>B7,F13,F12) -> 0.089 | G29: =E29*F29 -> 3.80475 | H29: 0 | I29: 0 | J29: 0.03134293349 | K29: 0.03090379124
A30: Line Losses on Cost of Power (based on TOU prices) | B30: =B8-B4 -> 42.75 | C30: =VLOOKUP($B$3,'Data Billing Quantities'!$A:$O,MATCH(BI_UR_Typical!$A15,'Data Billing Quantities'!$4:$4,0),FALSE)*C15+VLOOKUP($B$3,'Data Billing Quantities'!$A:$O,MATCH(BI_UR_Typical!$A16,'Data Billing Quantities'!$4:$4,0),FALSE)*C16+VLOOKUP($B$3,'Data Billing Quantities'!$A:$O,MATCH(BI_UR_Typical!$A17,'Data Billing Quantities'!$4:$4,0),FALSE)*C17 -> 0.08199 | D30: =B30*C30 -> 3.5050725 | E30: 42.75 | F30: =VLOOKUP($B$3,'Data Billing Quantities'!$A:$O,MATCH(BI_UR_Typical!$A15,'Data Billing Quantities'!$4:$4,0),FALSE)*F15+VLOOKUP($B$3,'Data Billing Quantities'!$A:$O,MATCH(BI_UR_Typical!$A16,'Data Billing Quantities'!$4:$4,0),FALSE)*F16+VLOOKUP($B$3,'Data Billing Quantities'!$A:$O,MATCH(BI_UR_Typical!$A17,'Data Billing Quantities'!$4:$4,0),FALSE)*F17 -> 0.08199 | G30: =E30*F30 -> 3.5050725 | H30: 0 | I30: 0 | J30: 0.02887423727 | K30: 0.02846968364
A31: Sub-Total: Distribution (based on two-tier RPP prices) | D31: =SUM(D27,D28:D29) -> 39.53975 | G31: =SUM(G27,G28:G29) -> 40.03475 | H31: 0.495 | I31: 0.01251904729 | J31: 0.3297999886 | K31: 0.3251791988
A32: Sub-Total: Distribution (based on TOU prices) | D32: =SUM(D27,D28,D30) -> 39.2400725 | G32: =SUM(G27,G28,G30) -> 39.7350725 | H32: 0.495 | I32: 0.01261465559 | J32: 0.3273312923 | K32: 0.3227450912
A33: Retail Transmission Rate – Network Service Rate | B33: =B8 -> 792.75 | C33: =VLOOKUP($B$3,'Data Current Rates'!$A:$BA,MATCH(BI_UR_Typical!$A33,CurrentHeader,0),FALSE) -> 0.0084 | D33: =B33*C33 -> 6.6591 | E33: 792.75 | F33: =VLOOKUP($B$3,'Data Proposed Rates'!$A:$BA,MATCH(BI_UR_Typical!$A33,ProposedHeader,0),FALSE) -> 0.0084 | G33: =E33*F33 -> 6.6591 | H33: =G33-D33 -> 0 | I33: 0 | J33: 0.05485662091 | K33: 0.05408803109
A34: Retail Transmission Rate – Line and Transformation Connection Service Rate | B34: =B8 -> 792.75 | C34: =VLOOKUP($B$3,'Data Current Rates'!$A:$BA,MATCH(BI_UR_Typical!$A34,CurrentHeader,0),FALSE) -> 0.0074 | D34: =B34*C34 -> 5.86635 | E34: 792.75 | F34: =VLOOKUP($B$3,'Data Proposed Rates'!$A:$BA,MATCH(BI_UR_Typical!$A34,ProposedHeader,0),FALSE) -> 0.0074 | G34: =E34*F34 -> 5.86635 | H34: =G34-D34 -> 0 | I34: 0 | J34: 0.0483260708 | K34: 0.04764897977
A35: Sub-Total: Retail Transmission | D35: =SUM(D33:D34) -> 12.52545 | G35: =SUM(G33:G34) -> 12.52545 | H35: =G35-D35 -> 0 | I35: 0 | J35: 0.1031826917 | K35: 0.1017370109
A36: Sub-Total: Delivery (based on two-tier RPP prices) | D36: =D31+D35 -> 52.0652 | G36: =G31+G35 -> 52.5602 | H36: =G36-D36 -> 0.495 | I36: 0.009507310065 | J36: 0.4329826803 | K36: 0.4269162096
A37: Sub-Total: Delivery (based on TOU prices) | D37: =D32+D35 -> 51.7655225 | G37: =G32+G35 -> 52.2605225 | H37: =G37-D37 -> 0.495 | I37: 0.009562349149 | J37: 0.4305139841 | K37: 0.424482102
A38: Wholesale Market Service Rate (WMS) - not including CBR | B38: =B8 -> 792.75 | C38: =VLOOKUP($A38,'Data Pass Through'!$A:$D,2,FALSE) -> 0.0032 | D38: =B38*C38 -> 2.5368 | E38: =$B$8 -> 792.75 | F38: =VLOOKUP($A38,'Data Pass Through'!$A:$D,3,FALSE) -> 0.0032 | G38: =E38*F38 -> 2.5368 | H38: 0 | I38: 0 | J38: 0.02089776035 | K38: 0.02060496422
A39: Capacity Based Recovery (CBR) - Applicable for Class B Customers | B39: =B8 -> 792.75 | C39: =VLOOKUP($A39,'Data Pass Through'!$A:$D,2,FALSE) -> 0.0004 | D39: =B39*C39 -> 0.3171 | E39: =$B$8 -> 792.75 | F39: =VLOOKUP($A39,'Data Pass Through'!$A:$D,3,FALSE) -> 0.0004 | G39: =E39*F39 -> 0.3171 | H39: 0 | I39: 0 | J39: 0.002612220043 | K39: 0.002575620528
A40: Rural Rate Protection Charge | B40: =B8 -> 792.75 | C40: =VLOOKUP($A40,'Data Pass Through'!$A:$D,2,FALSE) -> 0.0005 | D40: 0.396375 | E40: 792.75 | F40: =VLOOKUP($A40,'Data Pass Through'!$A:$D,3,FALSE) -> 0.0005 | G40: 0.396375 | H40: 0 | I40: 0 | J40: 0.003265275054 | K40: 0.00321952566
A41: Standard Supply Service – Administration Charge (if applicable) | B41: 1 | C41: =VLOOKUP($A41,'Data Pass Through'!$A:$D,2,FALSE) -> 0.25 | D41: =B41*C41 -> 0.25 | E41: 1 | F41: =VLOOKUP($A41,'Data Pass Through'!$A:$D,3,FALSE) -> 0.25 | G41: 0.25 | H41: 0 | I41: 0 | J41: 0.002059460772 | K41: 0.002030605903
A42: Sub-Total: Regulatory | D42: =SUM(D38:D41) -> 3.500275 | G42: =SUM(G38:G41) -> 3.500275 | H42: 0 | I42: 0 | J42: 0.02883471621 | K42: 0.02843071631
A43: Debt Retirement Charge (DRC) | B43: =B4 -> 750 | C43: =VLOOKUP($A43,'Data Pass Through'!$A:$D,2,FALSE) -> 0 | D43: =B43*C43 -> 0 | E43: 750 | F43: =VLOOKUP($A43,'Data Pass Through'!$A:$D,3,FALSE) -> 0 | G43: =E43*F43 -> 0 | H43: 0 | I43: N/A | J43: 0 | K43: 0
A44: Total Electricty Charge on Two-Tier RPP | D44: =SUM(D14,D27,D28,D29,D35,D42,D43) -> 115.115475 | G44: =SUM(G14,G27,G28,G29,G35,G42,G43) -> 115.610475 | H44: 0.495 | I44: 0.004300030035 | J44: 0.9523809524
A45: HST | C45: 0.13 | D45: =D44*C45 -> 14.96501175 | F45: =C45 -> 0.13 | G45: =G44*F45 -> 15.02936175 | H45: 0.06435 | I45: 0.004300030035 | J45: 0.1238095238
A46: Total Electricity Charge on Two-Tier RPP (including HST) | D46: =SUM(D44:D45) -> 130.0804867 | G46: =SUM(G44:G45) -> 130.6398368 | H46: 0.55935 | I46: 0.004300030035 | J46: 1.076190476
A47: Ontario Rebate for Electricity Consumers (OREC) | C47: -0.08 | D47: =D44*C47 -> -9.209238 | F47: =C47 -> -0.08 | G47: =G44*F47 -> -9.248838 | H47: -0.0396 | I47: -0.004300030035 | J47: -0.07619047619
A48: Total Amount on Two-Tier RPP | D48: =SUM(D46:D47) -> 120.8712487 | G48: =SUM(G46:G47) -> 121.3909987 | H48: 0.51975 | I48: 0.004300030035 | J48: 1
A49: Total Electricty Charge on TOU (before HST) | D49: =SUM(D18,D27,D28,D30,D35,D42,D43) -> 116.7582975 | G49: =SUM(G18,G27,G28,G30,G35,G42,G43) -> 117.2532975 | H49: 0.495 | I49: 0.004239527388 | K49: =G49/$G$53 -> 0.9523809524
A50: HST | C50: 0.13 | D50: =D49*C50 -> 15.17857867 | F50: =C50 -> 0.13 | G50: =G49*F50 -> 15.24292867 | H50: 0.06435 | I50: 0.004239527388 | K50: =G50/$G$53 -> 0.1238095238
A51: Total Electricity Charge on TOU (including HST) | D51: =SUM(D49:D50) -> 131.9368762 | G51: =SUM(G49:G50) -> 132.4962262 | H51: 0.55935 | I51: 0.004239527388 | K51: =G51/$G$53 -> 1.076190476
A52: Ontario Rebate for Electricity Consumers (OREC) | C52: -0.08 | D52: =D49*C52 -> -9.3406638 | F52: =C52 -> -0.08 | G52: =G49*F52 -> -9.3802638 | H52: -0.0396 | I52: -0.004239527388 | K52: =G52/$G$53 -> -0.07619047619
A53: Total Amount on TOU | D53: =SUM(D51:D52) -> 122.5962124 | G53: =SUM(G51:G52) -> 123.1159624 | H53: 0.51975 | I53: 0.004239527388 | K53: =G53/$G$53 -> 1
A54: * Distribution rate protection applies to R1 and R2 customers

Sheet BI_UR_Avg
A1: 2020 Bill Impacts (Average Consumption Level) - UR
A3: Rate Class | B3: =RIGHT(A1,LEN(A1)-FIND("- ",A1,1)-1) -> UR
A4: Monthly Consumption (kWh) | B4: =IF(COUNTIF(A1,"*Low*")>0,VLOOKUP(B3,'Data Billing Quantities'!$A:$Z,MATCH("Low kWh",'Data Billing Quantities'!4:4,0),FALSE),IF(COUNTIF(A1,"*Typical*")>0,VLOOKUP(B3,'Data Billing Quantities'!$A:$Z,MATCH("Typical kWh",'Data Billing Quantities'!4:4,0),FALSE),IF(COUNTIF(A1,"*Average*")>0,VLOOKUP(B3,'Data Billing Quantities'!$A:$Z,MATCH("Average kWh",'Data Billing Quantities'!4:4,0),FALSE),IF(COUNTIF(A1,"*High*")>0,VLOOKUP(B3,'Data Billing Quantities'!$A:$Z,MATCH("High kWh",'Data Billing Quantities'!4:4,0),FALSE),"error")))) -> 755
A5: Peak (kW) | B5: =IF(COUNTIF(A1,"*Low*")>0,VLOOKUP(B3,'Data Billing Quantities'!$A:$Z,MATCH("Low kW",'Data Billing Quantities'!4:4,0),FALSE),IF(COUNTIF(A1,"*Typical*")>0,VLOOKUP(B3,'Data Billing Quantities'!$A:$Z,MATCH("Typical kW",'Data Billing Quantities'!4:4,0),FALSE),IF(COUNTIF(A1,"*Average*")>0,VLOOKUP(B3,'Data Billing Quantities'!$A:$Z,MATCH("Average kW",'Data Billing Quantities'!4:4,0),FALSE),IF(COUNTIF(A1,"*High*")>0,VLOOKUP(B3,'Data Billing Quantities'!$A:$Z,MATCH("High kW",'Data Billing Quantities'!4:4,0),FALSE),"error")))) -> 0
A6: Loss factor | B6: =VLOOKUP(B3,'Data Billing Quantities'!A:D,MATCH(A6,'Data Billing Quantities'!4:4,0),FALSE) -> 1.057
A7: Commodity Threshold | B7: =VLOOKUP(B3,'Data Billing Quantities'!A:D,MATCH(A7,'Data Billing Quantities'!4:4,0),FALSE) -> 600
A8: Monthly Consumption (kWh) - Uplifted | B8: =B4*B6 -> 798.035
A9: Charge determinant | B9: =VLOOKUP(B3,'Data Billing Quantities'!A:D,MATCH(A9,'Data Billing Quantities'!4:4,0),FALSE) -> kWh
B11: Volume | C11: Current Rate ($) | D11: Current Charge ($) | E11: Volume | F11: Proposed Rate ($) | G11: Proposed Charge ($) | H11: Change ($) | I11: Change (%) | J11: % of Total Bill on RPP | K11: % of Total Bill on TOU
A12: Energy First Tier | B12: =IF(B4>B7,B7,B4) -> 600 | C12: =VLOOKUP($A12,'Data Pass Through'!$A:$D,2,FALSE) -> 0.077 | D12: =B12*C12 -> 46.2 | E12: =B12 -> 600 | F12: =VLOOKUP($A12,'Data Pass Through'!$A:$D,3,FALSE) -> 0.077 | G12: =E12*F12 -> 46.2 | H12: =G12-D12 -> 0 | I12: =IF(ISERROR(H12/ABS(D12)),"N/A",(H12/ABS(D12))) -> 0 | J12: =G12/$G$48 -> 0.378654191
A13: Energy Second Tier | B13: =IF(B4>B7,(B4)-B7,0) -> 155 | C13: =VLOOKUP($A13,'Data Pass Through'!$A:$D,2,FALSE) -> 0.089 | D13: =B13*C13 -> 13.795 | E13: =B13 -> 155 | F13: =VLOOKUP($A13,'Data Pass Through'!$A:$D,3,FALSE) -> 0.089 | G13: =E13*F13 -> 13.795 | H13: 0 | I13: 0 | J13: =G13/$G$48 -> 0.1130635187
A14: Sub-Total: Energy (RPP Tiered) | D14: =SUM(D12:D13) -> 59.995 | G14: =SUM(G12:G13) -> 59.995 | H14: 0 | I14: 0 | J14: =G14/$G$48 -> 0.4917177097
A15: TOU-Off Peak | B15: =B$4*VLOOKUP($B$3,'Data Billing Quantities'!$A:$O,MATCH(BI_UR_Avg!$A15,'Data Billing Quantities'!$4:$4,0),FALSE) -> 490.75 | C15: =VLOOKUP($A15,'Data Pass Through'!$A:$D,2,FALSE) -> 0.065 | D15: =B15*C15 -> 31.89875 | E15: 490.75 | F15: =VLOOKUP($A15,'Data Pass Through'!$A:$D,3,FALSE) -> 0.065 | G15: =E15*F15 -> 31.89875 | H15: 0 | I15: 0 | K15: =G15/$G$53 -> 0.25787786
A16: TOU-Mid Peak | B16: =B$4*VLOOKUP($B$3,'Data Billing Quantities'!$A:$O,MATCH(BI_UR_Avg!$A16,'Data Billing Quantities'!$4:$4,0),FALSE) -> 128.35 | C16: =VLOOKUP($A16,'Data Pass Through'!$A:$D,2,FALSE) -> 0.094 | D16: =B16*C16 -> 12.0649 | E16: 128.35 | F16: =VLOOKUP($A16,'Data Pass Through'!$A:$D,3,FALSE) -> 0.094 | G16: =E16*F16 -> 12.0649 | H16: 0 | I16: 0 | K16: 0.09753581545
A17: TOU-On Peak | B17: =B$4*VLOOKUP($B$3,'Data Billing Quantities'!$A:$O,MATCH(BI_UR_Avg!$A17,'Data Billing Quantities'!$4:$4,0),FALSE) -> 135.9 | C17: =VLOOKUP($A17,'Data Pass Through'!$A:$D,2,FALSE) -> 0.132 | D17: =B17*C17 -> 17.9388 | E17: 135.9 | F17: =VLOOKUP($A17,'Data Pass Through'!$A:$D,3,FALSE) -> 0.132 | G17: =E17*F17 -> 17.9388 | H17: 0 | I17: 0 | K17: 0.1450219634
A18: Sub-Total: Energy (RPP TOU) | D18: =SUM(D15:D17) -> 61.90245 | G18: =SUM(G15:G17) -> 61.90245 | H18: 0 | I18: 0 | J18: =G18/$G$48 -> 0.5073511282 | K18: 0.5004356388
A19: Service Charge | B19: 1 | C19: =VLOOKUP($B$3,'Data Current Rates'!$A:$BA,MATCH(BI_UR_Avg!$A19,CurrentHeader,0),FALSE) -> 28.63 | D19: =B19*C19 -> 28.63 | E19: 1 | F19: =VLOOKUP($B$3,'Data Proposed Rates'!$A:$BA,MATCH(BI_UR_Avg!$A19,ProposedHeader,0),FALSE) -> 31.91 | G19: =E19*F19 -> 31.91 | H19: 3.28 | I19: 0.1145651415 | J19: 0.2615336631 | K19: 0.2579688079
A20: Fixed Foregone Revenue Charge | B20: 1 | C20: =VLOOKUP($B$3,'Data Current Rates'!$A:$BA,MATCH(BI_UR_Avg!$A20,CurrentHeader,0),FALSE) -> 1.46 | D20: 1.46 | E20: 1 | F20: =VLOOKUP($B$3,'Data Proposed Rates'!$A:$BA,MATCH(BI_UR_Avg!$A20,ProposedHeader,0),FALSE) -> 1.45 | G20: 1.45 | H20: -0.01 | I20: -0.006849315068 | J20: 0.01188416833 | K20: 0.01172218024
A21: Fixed Deferral/Variance Account Rider (General) | B21: 1 | C21: =VLOOKUP($B$3,'Data Current Rates'!$A:$BA,MATCH(BI_UR_Avg!$A21,CurrentHeader,0),FALSE) -> 0.05 | D21: 0.05 | E21: 1 | F21: =VLOOKUP($B$3,'Data Proposed Rates'!$A:$BA,MATCH(BI_UR_Avg!$A21,ProposedHeader,0),FALSE) -> 0.05 | G21: 0.05 | H21: 0 | I21: 0 | J21: 0.000409798908 | K21: 0.0004042131118
A22: Distribution Volumetric Charge | B22: =IF($B$9="kWh",$B$4,$B$5) -> 755 | C22: =VLOOKUP($B$3,'Data Current Rates'!$A:$BA,MATCH(BI_UR_Avg!$A22,CurrentHeader,0),FALSE) -> 0.0075 | D22: 5.6625 | E22: 755 | F22: =VLOOKUP($B$3,'Data Proposed Rates'!$A:$BA,MATCH(BI_UR_Avg!$A22,ProposedHeader,0),FALSE) -> 0.0038 | G22: 2.869 | H22: -2.7935 | I22: -0.4933333333 | J22: 0.02351426134 | K22: 0.02319374835
A23: Volumetric Foregone Revenue Charge | B23: =IF($B$9="kWh",$B$4,$B$5) -> 755 | C23: =VLOOKUP($B$3,'Data Current Rates'!$A:$BA,MATCH(BI_UR_Avg!$A23,CurrentHeader,0),FALSE) -> 0 | D23: 0 | E23: 755 | F23: =VLOOKUP($B$3,'Data Proposed Rates'!$A:$BA,MATCH(BI_UR_Avg!$A23,ProposedHeader,0),FALSE) -> 0 | G23: 0 | H23: 0 | I23: N/A | J23: 0 | K23: 0
A24: Volumetric Deferral/Variance Account Rider (General) | B24: =IF($B$9="kWh",$B$4,$B$5) -> 755 | C24: =VLOOKUP($B$3,'Data Current Rates'!$A:$BA,MATCH(BI_UR_Avg!$A24,CurrentHeader,0),FALSE) -> -0.0008 | D24: -0.604 | E24: 755 | F24: =VLOOKUP($B$3,'Data Proposed Rates'!$A:$BA,MATCH(BI_UR_Avg!$A24,ProposedHeader,0),FALSE) -> -0.0008 | G24: -0.604 | H24: 0 | I24: 0 | J24: -0.004950370808 | K24: -0.00488289439
A25: Volumetric Deferral/Variance Account Rider (Sub Account CBR) | B25: 755 | C25: =VLOOKUP($B$3,'Data Current Rates'!$A:$BA,MATCH(BI_UR_Avg!$A25,CurrentHeader,0),FALSE) -> 0 | D25: 0 | E25: 755 | F25: =VLOOKUP($B$3,'Data Proposed Rates'!$A:$BA,MATCH(BI_UR_Avg!$A25,ProposedHeader,0),FALSE) -> 0 | G25: 0 | H25: 0 | I25: N/A | J25: 0 | K25: 0
A26: Fair Hydro Plan - Distribution Rate Protection Savings* | D26: =IF(AND(B3<>"R1",B3<>"R2"),0,IF(VLOOKUP($A26,'Data Pass Through'!$A:$D,2,FALSE)=0,0,IF(SUM(D19:D20,D22:D23)<VLOOKUP($A26,'Data Pass Through'!$A:$D,2,FALSE),0,VLOOKUP($A26,'Data Pass Through'!$A:$D,2,FALSE)-SUM(D19:D20,D22:D23)))) -> 0 | G26: =IF(AND(B3<>"R1",B3<>"R2"),0,IF(VLOOKUP($A26,'Data Pass Through'!$A:$D,2,FALSE)=0,0,IF(SUM(G19:G20,G22:G23)<VLOOKUP($A26,'Data Pass Through'!$A:$D,2,FALSE),0,VLOOKUP($A26,'Data Pass Through'!$A:$D,2,FALSE)-SUM(G19:G20,G22:G23)))) -> 0 | H26: 0 | I26: N/A | J26: 0 | K26: 0
A27: Sub-Total: Distribution (excluding pass through) | D27: =SUM(INDIRECT("D19:D"&ROW()-1)) -> 35.1985 | G27: =SUM(INDIRECT("g19:g"&ROW()-1)) -> 35.675 | H27: =G27-D27 -> 0.4765 | I27: 0.0135375087 | J27: 0.2923915208 | K27: 0.2884060553
A28: Smart Metering Entity Charge | B28: 1 | C28: =VLOOKUP($A28,'Data Pass Through'!$A:$D,2,FALSE) -> 0.57 | D28: =B28*C28 -> 0.57 | E28: 1 | F28: =VLOOKUP($A28,'Data Pass Through'!$A:$D,3,FALSE) -> 0.57 | G28: =E28*F28 -> 0.57 | H28: 0 | I28: 0 | J28: 0.004671707551 | K28: 0.004608029474
A29: Line Losses on Cost of Power (based on two-tier RPP prices) | B29: =B8-B4 -> 43.035 | C29: =IF(B4>B7,C13,C12) -> 0.089 | D29: =B29*C29 -> 3.830115 | E29: 43.035 | F29: =IF(B4>B7,F13,F12) -> 0.089 | G29: =E29*F29 -> 3.830115 | H29: 0 | I29: 0 | J29: 0.03139153889 | K29: 0.03096365405
A30: Line Losses on Cost of Power (based on TOU prices) | B30: =B8-B4 -> 43.035 | C30: =VLOOKUP($B$3,'Data Billing Quantities'!$A:$O,MATCH(BI_UR_Avg!$A15,'Data Billing Quantities'!$4:$4,0),FALSE)*C15+VLOOKUP($B$3,'Data Billing Quantities'!$A:$O,MATCH(BI_UR_Avg!$A16,'Data Billing Quantities'!$4:$4,0),FALSE)*C16+VLOOKUP($B$3,'Data Billing Quantities'!$A:$O,MATCH(BI_UR_Avg!$A17,'Data Billing Quantities'!$4:$4,0),FALSE)*C17 -> 0.08199 | D30: =B30*C30 -> 3.52843965 | E30: 43.035 | F30: =VLOOKUP($B$3,'Data Billing Quantities'!$A:$O,MATCH(BI_UR_Avg!$A15,'Data Billing Quantities'!$4:$4,0),FALSE)*F15+VLOOKUP($B$3,'Data Billing Quantities'!$A:$O,MATCH(BI_UR_Avg!$A16,'Data Billing Quantities'!$4:$4,0),FALSE)*F16+VLOOKUP($B$3,'Data Billing Quantities'!$A:$O,MATCH(BI_UR_Avg!$A17,'Data Billing Quantities'!$4:$4,0),FALSE)*F17 -> 0.08199 | G30: =E30*F30 -> 3.52843965 | H30: 0 | I30: 0 | J30: 0.02891901431 | K30: 0.02852483141
A31: Sub-Total: Distribution (based on two-tier RPP prices) | D31: =SUM(D27,D28:D29) -> 39.598615 | G31: =SUM(G27,G28:G29) -> 40.075115 | H31: 0.4765 | I31: 0.01203324914 | J31: 0.3284547673 | K31: 0.3239777388
A32: Sub-Total: Distribution (based on TOU prices) | D32: =SUM(D27,D28,D30) -> 39.29693965 | G32: =SUM(G27,G28,G30) -> 39.77343965 | H32: 0.4765 | I32: 0.01212562617 | J32: 0.3259822427 | K32: 0.3215389161
A33: Retail Transmission Rate – Network Service Rate | B33: =B8 -> 798.035 | C33: =VLOOKUP($B$3,'Data Current Rates'!$A:$BA,MATCH(BI_UR_Avg!$A33,CurrentHeader,0),FALSE) -> 0.0084 | D33: =B33*C33 -> 6.703494 | E33: 798.035 | F33: =VLOOKUP($B$3,'Data Proposed Rates'!$A:$BA,MATCH(BI_UR_Avg!$A33,ProposedHeader,0),FALSE) -> 0.0084 | G33: =E33*F33 -> 6.703494 | H33: =G33-D33 -> 0 | I33: 0 | J33: 0.05494169042 | K33: 0.05419280339
A34: Retail Transmission Rate – Line and Transformation Connection Service Rate | B34: =B8 -> 798.035 | C34: =VLOOKUP($B$3,'Data Current Rates'!$A:$BA,MATCH(BI_UR_Avg!$A34,CurrentHeader,0),FALSE) -> 0.0074 | D34: =B34*C34 -> 5.905459 | E34: 798.035 | F34: =VLOOKUP($B$3,'Data Proposed Rates'!$A:$BA,MATCH(BI_UR_Avg!$A34,ProposedHeader,0),FALSE) -> 0.0074 | G34: =E34*F34 -> 5.905459 | H34: =G34-D34 -> 0 | I34: 0 | J34: 0.04840101299 | K34: 0.04774127918
A35: Sub-Total: Retail Transmission | D35: =SUM(D33:D34) -> 12.608953 | G35: =SUM(G33:G34) -> 12.608953 | H35: =G35-D35 -> 0 | I35: 0 | J35: 0.1033427034 | K35: 0.1019340826
A36: Sub-Total: Delivery (based on two-tier RPP prices) | D36: =D31+D35 -> 52.207568 | G36: =G31+G35 -> 52.684068 | H36: =G36-D36 -> 0.4765 | I36: 0.009127029246 | J36: 0.4317974707 | K36: 0.4259118214
A37: Sub-Total: Delivery (based on TOU prices) | D37: =D32+D35 -> 51.90589265 | G37: =G32+G35 -> 52.38239265 | H37: =G37-D37 -> 0.4765 | I37: 0.009180075241 | J37: 0.4293249461 | K37: 0.4234729987
A38: Wholesale Market Service Rate (WMS) - not including CBR | B38: =B8 -> 798.035 | C38: =VLOOKUP($A38,'Data Pass Through'!$A:$D,2,FALSE) -> 0.0032 | D38: =B38*C38 -> 2.553712 | E38: =$B$8 -> 798.035 | F38: =VLOOKUP($A38,'Data Pass Through'!$A:$D,3,FALSE) -> 0.0032 | G38: =E38*F38 -> 2.553712 | H38: 0 | I38: 0 | J38: 0.02093016778 | K38: 0.02064487748
A39: Capacity Based Recovery (CBR) - Applicable for Class B Customers | B39: =B8 -> 798.035 | C39: =VLOOKUP($A39,'Data Pass Through'!$A:$D,2,FALSE) -> 0.0004 | D39: =B39*C39 -> 0.319214 | E39: =$B$8 -> 798.035 | F39: =VLOOKUP($A39,'Data Pass Through'!$A:$D,3,FALSE) -> 0.0004 | G39: =E39*F39 -> 0.319214 | H39: 0 | I39: 0 | J39: 0.002616270972 | K39: 0.002580609685
A40: Rural Rate Protection Charge | B40: =B8 -> 798.035 | C40: =VLOOKUP($A40,'Data Pass Through'!$A:$D,2,FALSE) -> 0.0005 | D40: 0.3990175 | E40: 798.035 | F40: =VLOOKUP($A40,'Data Pass Through'!$A:$D,3,FALSE) -> 0.0005 | G40: 0.3990175 | H40: 0 | I40: 0 | J40: 0.003270338715 | K40: 0.003225762107
A41: Standard Supply Service – Administration Charge (if applicable) | B41: 1 | C41: =VLOOKUP($A41,'Data Pass Through'!$A:$D,2,FALSE) -> 0.25 | D41: =B41*C41 -> 0.25 | E41: 1 | F41: =VLOOKUP($A41,'Data Pass Through'!$A:$D,3,FALSE) -> 0.25 | G41: 0.25 | H41: 0 | I41: 0 | J41: 0.00204899454 | K41: 0.002021065559
A42: Sub-Total: Regulatory | D42: =SUM(D38:D41) -> 3.5219435 | G42: =SUM(G38:G41) -> 3.5219435 | H42: 0 | I42: 0 | J42: 0.02886577201 | K42: 0.02847231483
A43: Debt Retirement Charge (DRC) | B43: =B4 -> 755 | C43: =VLOOKUP($A43,'Data Pass Through'!$A:$D,2,FALSE) -> 0 | D43: =B43*C43 -> 0 | E43: 755 | F43: =VLOOKUP($A43,'Data Pass Through'!$A:$D,3,FALSE) -> 0 | G43: =E43*F43 -> 0 | H43: 0 | I43: N/A | J43: 0 | K43: 0
A44: Total Electricty Charge on Two-Tier RPP | D44: =SUM(D14,D27,D28,D29,D35,D42,D43) -> 115.7245115 | G44: =SUM(G14,G27,G28,G29,G35,G42,G43) -> 116.2010115 | H44: 0.4765 | I44: 0.004117537364 | J44: 0.9523809524
A45: HST | C45: 0.13 | D45: =D44*C45 -> 15.04418649 | F45: =C45 -> 0.13 | G45: =G44*F45 -> 15.10613149 | H45: 0.061945 | I45: 0.004117537364 | J45: 0.1238095238
A46: Total Electricity Charge on Two-Tier RPP (including HST) | D46: =SUM(D44:D45) -> 130.768698 | G46: =SUM(G44:G45) -> 131.307143 | H46: 0.538445 | I46: 0.004117537364 | J46: 1.076190476
A47: Ontario Rebate for Electricity Consumers (OREC) | C47: -0.08 | D47: =D44*C47 -> -9.25796092 | F47: =C47 -> -0.08 | G47: =G44*F47 -> -9.29608092 | H47: -0.03812 | I47: -0.004117537364 | J47: -0.07619047619
A48: Total Amount on Two-Tier RPP | D48: =SUM(D46:D47) -> 121.5107371 | G48: =SUM(G46:G47) -> 122.0110621 | H48: 0.500325 | I48: 0.004117537364 | J48: 1
A49: Total Electricty Charge on TOU (before HST) | D49: =SUM(D18,D27,D28,D30,D35,D42,D43) -> 117.3302862 | G49: =SUM(G18,G27,G28,G30,G35,G42,G43) -> 117.8067861 | H49: 0.4765 | I49: 0.004061185016 | K49: =G49/$G$53 -> 0.9523809524
A50: HST | C50: 0.13 | D50: =D49*C50 -> 15.2529372 | F50: =C50 -> 0.13 | G50: =G49*F50 -> 15.3148822 | H50: 0.061945 | I50: 0.004061185016 | K50: =G50/$G$53 -> 0.1238095238
A51: Total Electricity Charge on TOU (including HST) | D51: =SUM(D49:D50) -> 132.5832233 | G51: =SUM(G49:G50) -> 133.1216683 | H51: 0.538445 | I51: 0.004061185016 | K51: =G51/$G$53 -> 1.076190476
A52: Ontario Rebate for Electricity Consumers (OREC) | C52: -0.08 | D52: =D49*C52 -> -9.386422892 | F52: =C52 -> -0.08 | G52: =G49*F52 -> -9.424542892 | H52: -0.03812 | I52: -0.004061185016 | K52: =G52/$G$53 -> -0.07619047619
A53: Total Amount on TOU | D53: =SUM(D51:D52) -> 123.1968005 | G53: =SUM(G51:G52) -> 123.6971255 | H53: 0.500325 | I53: 0.004061185016 | K53: =G53/$G$53 -> 1
A54: * Distribution rate protection applies to R1 and R2 customers

Sheet BI_UR_High
A1: 2020 Bill Impacts (High Consumption Level) - UR
A3: Rate Class | B3: =RIGHT(A1,LEN(A1)-FIND("- ",A1,1)-1) -> UR
A4: Monthly Consumption (kWh) | B4: =IF(COUNTIF(A1,"*Low*")>0,VLOOKUP(B3,'Data Billing Quantities'!$A:$Z,MATCH("Low kWh",'Data Billing Quantities'!4:4,0),FALSE),IF(COUNTIF(A1,"*Typical*")>0,VLOOKUP(B3,'Data Billing Quantities'!$A:$Z,MATCH("Typical kWh",'Data Billing Quantities'!4:4,0),FALSE),IF(COUNTIF(A1,"*Average*")>0,VLOOKUP(B3,'Data Billing Quantities'!$A:$Z,MATCH("Average kWh",'Data Billing Quantities'!4:4,0),FALSE),IF(COUNTIF(A1,"*High*")>0,VLOOKUP(B3,'Data Billing Quantities'!$A:$Z,MATCH("High kWh",'Data Billing Quantities'!4:4,0),FALSE),"error")))) -> 1400
A5: Peak (kW) | B5: =IF(COUNTIF(A1,"*Low*")>0,VLOOKUP(B3,'Data Billing Quantities'!$A:$Z,MATCH("Low kW",'Data Billing Quantities'!4:4,0),FALSE),IF(COUNTIF(A1,"*Typical*")>0,VLOOKUP(B3,'Data Billing Quantities'!$A:$Z,MATCH("Typical kW",'Data Billing Quantities'!4:4,0),FALSE),IF(COUNTIF(A1,"*Average*")>0,VLOOKUP(B3,'Data Billing Quantities'!$A:$Z,MATCH("Average kW",'Data Billing Quantities'!4:4,0),FALSE),IF(COUNTIF(A1,"*High*")>0,VLOOKUP(B3,'Data Billing Quantities'!$A:$Z,MATCH("High kW",'Data Billing Quantities'!4:4,0),FALSE),"error")))) -> 0
A6: Loss factor | B6: =VLOOKUP(B3,'Data Billing Quantities'!A:D,MATCH(A6,'Data Billing Quantities'!4:4,0),FALSE) -> 1.057
A7: Commodity Threshold | B7: =VLOOKUP(B3,'Data Billing Quantities'!A:D,MATCH(A7,'Data Billing Quantities'!4:4,0),FALSE) -> 600
A8: Monthly Consumption (kWh) - Uplifted | B8: =B4*B6 -> 1479.8
A9: Charge determinant | B9: =VLOOKUP(B3,'Data Billing Quantities'!A:D,MATCH(A9,'Data Billing Quantities'!4:4,0),FALSE) -> kWh
B11: Volume | C11: Current Rate ($) | D11: Current Charge ($) | E11: Volume | F11: Proposed Rate ($) | G11: Proposed Charge ($) | H11: Change ($) | I11: Change (%) | J11: % of Total Bill on RPP | K11: % of Total Bill on TOU
A12: Energy First Tier | B12: =IF(B4>B7,B7,B4) -> 600 | C12: =VLOOKUP($A12,'Data Pass Through'!$A:$D,2,FALSE) -> 0.077 | D12: =B12*C12 -> 46.2 | E12: =B12 -> 600 | F12: =VLOOKUP($A12,'Data Pass Through'!$A:$D,3,FALSE) -> 0.077 | G12: =E12*F12 -> 46.2 | H12: =G12-D12 -> 0 | I12: =IF(ISERROR(H12/ABS(D12)),"N/A",(H12/ABS(D12))) -> 0 | J12: =G12/$G$48 -> 0.228713742
A13: Energy Second Tier | B13: =IF(B4>B7,(B4)-B7,0) -> 800 | C13: =VLOOKUP($A13,'Data Pass Through'!$A:$D,2,FALSE) -> 0.089 | D13: =B13*C13 -> 71.2 | E13: =B13 -> 800 | F13: =VLOOKUP($A13,'Data Pass Through'!$A:$D,3,FALSE) -> 0.089 | G13: =E13*F13 -> 71.2 | H13: 0 | I13: 0 | J13: =G13/$G$48 -> 0.3524765894
A14: Sub-Total: Energy (RPP Tiered) | D14: =SUM(D12:D13) -> 117.4 | G14: =SUM(G12:G13) -> 117.4 | H14: 0 | I14: 0 | J14: =G14/$G$48 -> 0.5811903314
A15: TOU-Off Peak | B15: =B$4*VLOOKUP($B$3,'Data Billing Quantities'!$A:$O,MATCH(BI_UR_High!$A15,'Data Billing Quantities'!$4:$4,0),FALSE) -> 910 | C15: =VLOOKUP($A15,'Data Pass Through'!$A:$D,2,FALSE) -> 0.065 | D15: =B15*C15 -> 59.15 | E15: 910 | F15: =VLOOKUP($A15,'Data Pass Through'!$A:$D,3,FALSE) -> 0.065 | G15: =E15*F15 -> 59.15 | H15: 0 | I15: 0 | K15: =G15/$G$53 -> 0.2977341553
A16: TOU-Mid Peak | B16: =B$4*VLOOKUP($B$3,'Data Billing Quantities'!$A:$O,MATCH(BI_UR_High!$A16,'Data Billing Quantities'!$4:$4,0),FALSE) -> 238 | C16: =VLOOKUP($A16,'Data Pass Through'!$A:$D,2,FALSE) -> 0.094 | D16: =B16*C16 -> 22.372 | E16: 238 | F16: =VLOOKUP($A16,'Data Pass Through'!$A:$D,3,FALSE) -> 0.094 | G16: =E16*F16 -> 22.372 | H16: 0 | I16: 0 | K16: 0.1126104569
A17: TOU-On Peak | B17: =B$4*VLOOKUP($B$3,'Data Billing Quantities'!$A:$O,MATCH(BI_UR_High!$A17,'Data Billing Quantities'!$4:$4,0),FALSE) -> 252 | C17: =VLOOKUP($A17,'Data Pass Through'!$A:$D,2,FALSE) -> 0.132 | D17: =B17*C17 -> 33.264 | E17: 252 | F17: =VLOOKUP($A17,'Data Pass Through'!$A:$D,3,FALSE) -> 0.132 | G17: =E17*F17 -> 33.264 | H17: 0 | I17: 0 | K17: 0.1674358232
A18: Sub-Total: Energy (RPP TOU) | D18: =SUM(D15:D17) -> 114.786 | G18: =SUM(G15:G17) -> 114.786 | H18: 0 | I18: 0 | J18: =G18/$G$48 -> 0.568249688 | K18: 0.5777804354
A19: Service Charge | B19: 1 | C19: =VLOOKUP($B$3,'Data Current Rates'!$A:$BA,MATCH(BI_UR_High!$A19,CurrentHeader,0),FALSE) -> 28.63 | D19: =B19*C19 -> 28.63 | E19: 1 | F19: =VLOOKUP($B$3,'Data Proposed Rates'!$A:$BA,MATCH(BI_UR_High!$A19,ProposedHeader,0),FALSE) -> 31.91 | G19: =E19*F19 -> 31.91 | H19: 3.28 | I19: 0.1145651415 | J19: 0.1579708984 | K19: 0.160620404
A20: Fixed Foregone Revenue Charge | B20: 1 | C20: =VLOOKUP($B$3,'Data Current Rates'!$A:$BA,MATCH(BI_UR_High!$A20,CurrentHeader,0),FALSE) -> 1.46 | D20: 1.46 | E20: 1 | F20: =VLOOKUP($B$3,'Data Proposed Rates'!$A:$BA,MATCH(BI_UR_High!$A20,ProposedHeader,0),FALSE) -> 1.45 | G20: 1.45 | H20: -0.01 | I20: -0.006849315068 | J20: 0.007178245149 | K20: 0.00729863948
A21: Fixed Deferral/Variance Account Rider (General) | B21: 1 | C21: =VLOOKUP($B$3,'Data Current Rates'!$A:$BA,MATCH(BI_UR_High!$A21,CurrentHeader,0),FALSE) -> 0.05 | D21: 0.05 | E21: 1 | F21: =VLOOKUP($B$3,'Data Proposed Rates'!$A:$BA,MATCH(BI_UR_High!$A21,ProposedHeader,0),FALSE) -> 0.05 | G21: 0.05 | H21: 0 | I21: 0 | J21: 0.0002475256948 | K21: 0.0002516772235
A22: Distribution Volumetric Charge | B22: =IF($B$9="kWh",$B$4,$B$5) -> 1400 | C22: =VLOOKUP($B$3,'Data Current Rates'!$A:$BA,MATCH(BI_UR_High!$A22,CurrentHeader,0),FALSE) -> 0.0075 | D22: 10.5 | E22: 1400 | F22: =VLOOKUP($B$3,'Data Proposed Rates'!$A:$BA,MATCH(BI_UR_High!$A22,ProposedHeader,0),FALSE) -> 0.0038 | G22: 5.32 | H22: -5.18 | I22: -0.4933333333 | J22: 0.02633673393 | K22: 0.02677845658
A23: Volumetric Foregone Revenue Charge | B23: =IF($B$9="kWh",$B$4,$B$5) -> 1400 | C23: =VLOOKUP($B$3,'Data Current Rates'!$A:$BA,MATCH(BI_UR_High!$A23,CurrentHeader,0),FALSE) -> 0 | D23: 0 | E23: 1400 | F23: =VLOOKUP($B$3,'Data Proposed Rates'!$A:$BA,MATCH(BI_UR_High!$A23,ProposedHeader,0),FALSE) -> 0 | G23: 0 | H23: 0 | I23: N/A | J23: 0 | K23: 0
A24: Volumetric Deferral/Variance Account Rider (General) | B24: =IF($B$9="kWh",$B$4,$B$5) -> 1400 | C24: =VLOOKUP($B$3,'Data Current Rates'!$A:$BA,MATCH(BI_UR_High!$A24,CurrentHeader,0),FALSE) -> -0.0008 | D24: -1.12 | E24: 1400 | F24: =VLOOKUP($B$3,'Data Proposed Rates'!$A:$BA,MATCH(BI_UR_High!$A24,ProposedHeader,0),FALSE) -> -0.0008 | G24: -1.12 | H24: 0 | I24: 0 | J24: -0.005544575563 | K24: -0.005637569805
A25: Volumetric Deferral/Variance Account Rider (Sub Account CBR) | B25: 1400 | C25: =VLOOKUP($B$3,'Data Current Rates'!$A:$BA,MATCH(BI_UR_High!$A25,CurrentHeader,0),FALSE) -> 0 | D25: 0 | E25: 1400 | F25: =VLOOKUP($B$3,'Data Proposed Rates'!$A:$BA,MATCH(BI_UR_High!$A25,ProposedHeader,0),FALSE) -> 0 | G25: 0 | H25: 0 | I25: N/A | J25: 0 | K25: 0
A26: Fair Hydro Plan - Distribution Rate Protection Savings* | D26: =IF(AND(B3<>"R1",B3<>"R2"),0,IF(VLOOKUP($A26,'Data Pass Through'!$A:$D,2,FALSE)=0,0,IF(SUM(D19:D20,D22:D23)<VLOOKUP($A26,'Data Pass Through'!$A:$D,2,FALSE),0,VLOOKUP($A26,'Data Pass Through'!$A:$D,2,FALSE)-SUM(D19:D20,D22:D23)))) -> 0 | G26: =IF(AND(B3<>"R1",B3<>"R2"),0,IF(VLOOKUP($A26,'Data Pass Through'!$A:$D,2,FALSE)=0,0,IF(SUM(G19:G20,G22:G23)<VLOOKUP($A26,'Data Pass Through'!$A:$D,2,FALSE),0,VLOOKUP($A26,'Data Pass Through'!$A:$D,2,FALSE)-SUM(G19:G20,G22:G23)))) -> 0 | H26: 0 | I26: N/A | J26: 0 | K26: 0
A27: Sub-Total: Distribution (excluding pass through) | D27: =SUM(INDIRECT("D19:D"&ROW()-1)) -> 39.52 | G27: =SUM(INDIRECT("g19:g"&ROW()-1)) -> 37.61 | H27: =G27-D27 -> -1.91 | I27: -0.04832995951 | J27: 0.1861888276 | K27: 0.1893116075
A28: Smart Metering Entity Charge | B28: 1 | C28: =VLOOKUP($A28,'Data Pass Through'!$A:$D,2,FALSE) -> 0.57 | D28: =B28*C28 -> 0.57 | E28: 1 | F28: =VLOOKUP($A28,'Data Pass Through'!$A:$D,3,FALSE) -> 0.57 | G28: =E28*F28 -> 0.57 | H28: 0 | I28: 0 | J28: 0.002821792921 | K28: 0.002869120347
A29: Line Losses on Cost of Power (based on two-tier RPP prices) | B29: =B8-B4 -> 79.8 | C29: =IF(B4>B7,C13,C12) -> 0.089 | D29: =B29*C29 -> 7.1022 | E29: 79.8 | F29: =IF(B4>B7,F13,F12) -> 0.089 | G29: =E29*F29 -> 7.1022 | H29: 0 | I29: 0 | J29: 0.03515953979 | K29: 0.03574923953
A30: Line Losses on Cost of Power (based on TOU prices) | B30: =B8-B4 -> 79.8 | C30: =VLOOKUP($B$3,'Data Billing Quantities'!$A:$O,MATCH(BI_UR_High!$A15,'Data Billing Quantities'!$4:$4,0),FALSE)*C15+VLOOKUP($B$3,'Data Billing Quantities'!$A:$O,MATCH(BI_UR_High!$A16,'Data Billing Quantities'!$4:$4,0),FALSE)*C16+VLOOKUP($B$3,'Data Billing Quantities'!$A:$O,MATCH(BI_UR_High!$A17,'Data Billing Quantities'!$4:$4,0),FALSE)*C17 -> 0.08199 | D30: =B30*C30 -> 6.542802 | E30: 79.8 | F30: =VLOOKUP($B$3,'Data Billing Quantities'!$A:$O,MATCH(BI_UR_High!$A15,'Data Billing Quantities'!$4:$4,0),FALSE)*F15+VLOOKUP($B$3,'Data Billing Quantities'!$A:$O,MATCH(BI_UR_High!$A16,'Data Billing Quantities'!$4:$4,0),FALSE)*F16+VLOOKUP($B$3,'Data Billing Quantities'!$A:$O,MATCH(BI_UR_High!$A17,'Data Billing Quantities'!$4:$4,0),FALSE)*F17 -> 0.08199 | G30: =E30*F30 -> 6.542802 | H30: 0 | I30: 0 | J30: 0.03239023222 | K30: 0.03293348482
A31: Sub-Total: Distribution (based on two-tier RPP prices) | D31: =SUM(D27,D28:D29) -> 47.1922 | G31: =SUM(G27,G28:G29) -> 45.2822 | H31: -1.91 | I31: -0.04047278999 | J31: 0.2241701603 | K31: 0.2279299674
A32: Sub-Total: Distribution (based on TOU prices) | D32: =SUM(D27,D28,D30) -> 46.632802 | G32: =SUM(G27,G28,G30) -> 44.722802 | H32: -1.91 | I32: -0.04095829369 | J32: 0.2214008528 | K32: 0.2251142126
A33: Retail Transmission Rate – Network Service Rate | B33: =B8 -> 1479.8 | C33: =VLOOKUP($B$3,'Data Current Rates'!$A:$BA,MATCH(BI_UR_High!$A33,CurrentHeader,0),FALSE) -> 0.0084 | D33: =B33*C33 -> 12.43032 | E33: 1479.8 | F33: =VLOOKUP($B$3,'Data Proposed Rates'!$A:$BA,MATCH(BI_UR_High!$A33,ProposedHeader,0),FALSE) -> 0.0084 | G33: =E33*F33 -> 12.43032 | H33: =G33-D33 -> 0 | I33: 0 | J33: 0.06153647189 | K33: 0.06256856848
A34: Retail Transmission Rate – Line and Transformation Connection Service Rate | B34: =B8 -> 1479.8 | C34: =VLOOKUP($B$3,'Data Current Rates'!$A:$BA,MATCH(BI_UR_High!$A34,CurrentHeader,0),FALSE) -> 0.0074 | D34: =B34*C34 -> 10.95052 | E34: 1479.8 | F34: =VLOOKUP($B$3,'Data Proposed Rates'!$A:$BA,MATCH(BI_UR_High!$A34,ProposedHeader,0),FALSE) -> 0.0074 | G34: =E34*F34 -> 10.95052 | H34: =G34-D34 -> 0 | I34: 0 | J34: 0.05421070143 | K34: 0.05511992938
A35: Sub-Total: Retail Transmission | D35: =SUM(D33:D34) -> 23.38084 | G35: =SUM(G33:G34) -> 23.38084 | H35: =G35-D35 -> 0 | I35: 0 | J35: 0.1157471733 | K35: 0.1176884979
A36: Sub-Total: Delivery (based on two-tier RPP prices) | D36: =D31+D35 -> 70.57304 | G36: =G31+G35 -> 68.66304 | H36: =G36-D36 -> -1.91 | I36: -0.02706415934 | J36: 0.3399173336 | K36: 0.3456184652
A37: Sub-Total: Delivery (based on TOU prices) | D37: =D32+D35 -> 70.013642 | G37: =G32+G35 -> 68.103642 | H37: =G37-D37 -> -1.91 | I37: -0.02728039773 | J37: 0.3371480261 | K37: 0.3428027105
A38: Wholesale Market Service Rate (WMS) - not including CBR | B38: =B8 -> 1479.8 | C38: =VLOOKUP($A38,'Data Pass Through'!$A:$D,2,FALSE) -> 0.0032 | D38: =B38*C38 -> 4.73536 | E38: =$B$8 -> 1479.8 | F38: =VLOOKUP($A38,'Data Pass Through'!$A:$D,3,FALSE) -> 0.0032 | G38: =E38*F38 -> 4.73536 | H38: 0 | I38: 0 | J38: 0.02344246548 | K38: 0.02383564514
A39: Capacity Based Recovery (CBR) - Applicable for Class B Customers | B39: =B8 -> 1479.8 | C39: =VLOOKUP($A39,'Data Pass Through'!$A:$D,2,FALSE) -> 0.0004 | D39: =B39*C39 -> 0.59192 | E39: =$B$8 -> 1479.8 | F39: =VLOOKUP($A39,'Data Pass Through'!$A:$D,3,FALSE) -> 0.0004 | G39: =E39*F39 -> 0.59192 | H39: 0 | I39: 0 | J39: 0.002930308185 | K39: 0.002979455642
A40: Rural Rate Protection Charge | B40: =B8 -> 1479.8 | C40: =VLOOKUP($A40,'Data Pass Through'!$A:$D,2,FALSE) -> 0.0005 | D40: 0.7399 | E40: 1479.8 | F40: =VLOOKUP($A40,'Data Pass Through'!$A:$D,3,FALSE) -> 0.0005 | G40: 0.7399 | H40: 0 | I40: 0 | J40: 0.003662885231 | K40: 0.003724319553
A41: Standard Supply Service – Administration Charge (if applicable) | B41: 1 | C41: =VLOOKUP($A41,'Data Pass Through'!$A:$D,2,FALSE) -> 0.25 | D41: =B41*C41 -> 0.25 | E41: 1 | F41: =VLOOKUP($A41,'Data Pass Through'!$A:$D,3,FALSE) -> 0.25 | G41: 0.25 | H41: 0 | I41: 0 | J41: 0.001237628474 | K41: 0.001258386117
A42: Sub-Total: Regulatory | D42: =SUM(D38:D41) -> 6.31718 | G42: =SUM(G38:G41) -> 6.31718 | H42: 0 | I42: 0 | J42: 0.03127328737 | K42: 0.03179780645
A43: Debt Retirement Charge (DRC) | B43: =B4 -> 1400 | C43: =VLOOKUP($A43,'Data Pass Through'!$A:$D,2,FALSE) -> 0 | D43: =B43*C43 -> 0 | E43: 1400 | F43: =VLOOKUP($A43,'Data Pass Through'!$A:$D,3,FALSE) -> 0 | G43: =E43*F43 -> 0 | H43: 0 | I43: N/A | J43: 0 | K43: 0
A44: Total Electricty Charge on Two-Tier RPP | D44: =SUM(D14,D27,D28,D29,D35,D42,D43) -> 194.29022 | G44: =SUM(G14,G27,G28,G29,G35,G42,G43) -> 192.38022 | H44: -1.91 | I44: -0.009830654369 | J44: 0.9523809524
A45: HST | C45: 0.13 | D45: =D44*C45 -> 25.2577286 | F45: =C45 -> 0.13 | G45: =G44*F45 -> 25.0094286 | H45: -0.2483 | I45: -0.009830654369 | J45: 0.1238095238
A46: Total Electricity Charge on Two-Tier RPP (including HST) | D46: =SUM(D44:D45) -> 219.5479486 | G46: =SUM(G44:G45) -> 217.3896486 | H46: -2.1583 | I46: -0.009830654369 | J46: 1.076190476
A47: Ontario Rebate for Electricity Consumers (OREC) | C47: -0.08 | D47: =D44*C47 -> -15.5432176 | F47: =C47 -> -0.08 | G47: =G44*F47 -> -15.3904176 | H47: 0.1528 | I47: 0.009830654369 | J47: -0.07619047619
A48: Total Amount on Two-Tier RPP | D48: =SUM(D46:D47) -> 204.004731 | G48: =SUM(G46:G47) -> 201.999231 | H48: -2.0055 | I48: -0.009830654369 | J48: 1
A49: Total Electricty Charge on TOU (before HST) | D49: =SUM(D18,D27,D28,D30,D35,D42,D43) -> 191.116822 | G49: =SUM(G18,G27,G28,G30,G35,G42,G43) -> 189.206822 | H49: -1.91 | I49: -0.009993887404 | K49: =G49/$G$53 -> 0.9523809524
A50: HST | C50: 0.13 | D50: =D49*C50 -> 24.84518686 | F50: =C50 -> 0.13 | G50: =G49*F50 -> 24.59688686 | H50: -0.2483 | I50: -0.009993887404 | K50: =G50/$G$53 -> 0.1238095238
A51: Total Electricity Charge on TOU (including HST) | D51: =SUM(D49:D50) -> 215.9620089 | G51: =SUM(G49:G50) -> 213.8037089 | H51: -2.1583 | I51: -0.009993887404 | K51: =G51/$G$53 -> 1.076190476
A52: Ontario Rebate for Electricity Consumers (OREC) | C52: -0.08 | D52: =D49*C52 -> -15.28934576 | F52: =C52 -> -0.08 | G52: =G49*F52 -> -15.13654576 | H52: 0.1528 | I52: 0.009993887404 | K52: =G52/$G$53 -> -0.07619047619
A53: Total Amount on TOU | D53: =SUM(D51:D52) -> 200.6726631 | G53: =SUM(G51:G52) -> 198.6671631 | H53: -2.0055 | I53: -0.009993887404 | K53: =G53/$G$53 -> 1
A54: * Distribution rate protection applies to R1 and R2 customers

Sheet BI_R1_Low
A1: 2020 Bill Impacts (Low Consumption Level) - R1
A3: Rate Class | B3: =RIGHT(A1,LEN(A1)-FIND("- ",A1,1)-1) -> R1
A4: Monthly Consumption (kWh) | B4: =IF(COUNTIF(A1,"*Low*")>0,VLOOKUP(B3,'Data Billing Quantities'!$A:$Z,MATCH("Low kWh",'Data Billing Quantities'!4:4,0),FALSE),IF(COUNTIF(A1,"*Typical*")>0,VLOOKUP(B3,'Data Billing Quantities'!$A:$Z,MATCH("Typical kWh",'Data Billing Quantities'!4:4,0),FALSE),IF(COUNTIF(A1,"*Average*")>0,VLOOKUP(B3,'Data Billing Quantities'!$A:$Z,MATCH("Average kWh",'Data Billing Quantities'!4:4,0),FALSE),IF(COUNTIF(A1,"*High*")>0,VLOOKUP(B3,'Data Billing Quantities'!$A:$Z,MATCH("High kWh",'Data Billing Quantities'!4:4,0),FALSE),"error")))) -> 400
A5: Peak (kW) | B5: =IF(COUNTIF(A1,"*Low*")>0,VLOOKUP(B3,'Data Billing Quantities'!$A:$Z,MATCH("Low kW",'Data Billing Quantities'!4:4,0),FALSE),IF(COUNTIF(A1,"*Typical*")>0,VLOOKUP(B3,'Data Billing Quantities'!$A:$Z,MATCH("Typical kW",'Data Billing Quantities'!4:4,0),FALSE),IF(COUNTIF(A1,"*Average*")>0,VLOOKUP(B3,'Data Billing Quantities'!$A:$Z,MATCH("Average kW",'Data Billing Quantities'!4:4,0),FALSE),IF(COUNTIF(A1,"*High*")>0,VLOOKUP(B3,'Data Billing Quantities'!$A:$Z,MATCH("High kW",'Data Billing Quantities'!4:4,0),FALSE),"error")))) -> 0
A6: Loss factor | B6: =VLOOKUP(B3,'Data Billing Quantities'!A:D,MATCH(A6,'Data Billing Quantities'!4:4,0),FALSE) -> 1.076
A7: Commodity Threshold | B7: =VLOOKUP(B3,'Data Billing Quantities'!A:D,MATCH(A7,'Data Billing Quantities'!4:4,0),FALSE) -> 600
A8: Monthly Consumption (kWh) - Uplifted | B8: =B4*B6 -> 430.4
A9: Charge determinant | B9: =VLOOKUP(B3,'Data Billing Quantities'!A:D,MATCH(A9,'Data Billing Quantities'!4:4,0),FALSE) -> kWh
B11: Volume | C11: Current Rate ($) | D11: Current Charge ($) | E11: Volume | F11: Proposed Rate ($) | G11: Proposed Charge ($) | H11: Change ($) | I11: Change (%) | J11: % of Total Bill on RPP | K11: % of Total Bill on TOU
A12: Energy First Tier | B12: =IF(B4>B7,B7,B4) -> 400 | C12: =VLOOKUP($A12,'Data Pass Through'!$A:$D,2,FALSE) -> 0.077 | D12: =B12*C12 -> 30.8 | E12: =B12 -> 400 | F12: =VLOOKUP($A12,'Data Pass Through'!$A:$D,3,FALSE) -> 0.077 | G12: =E12*F12 -> 30.8 | H12: =G12-D12 -> 0 | I12: =IF(ISERROR(H12/ABS(D12)),"N/A",(H12/ABS(D12))) -> 0 | J12: =G12/$G$48 -> 0.3728401539
A13: Energy Second Tier | B13: =IF(B4>B7,(B4)-B7,0) -> 0 | C13: =VLOOKUP($A13,'Data Pass Through'!$A:$D,2,FALSE) -> 0.089 | D13: =B13*C13 -> 0 | E13: =B13 -> 0 | F13: =VLOOKUP($A13,'Data Pass Through'!$A:$D,3,FALSE) -> 0.089 | G13: =E13*F13 -> 0 | H13: 0 | I13: N/A | J13: =G13/$G$48 -> 0
A14: Sub-Total: Energy (RPP Tiered) | D14: =SUM(D12:D13) -> 30.8 | G14: =SUM(G12:G13) -> 30.8 | H14: 0 | I14: 0 | J14: =G14/$G$48 -> 0.3728401539
A15: TOU-Off Peak | B15: =B$4*VLOOKUP($B$3,'Data Billing Quantities'!$A:$O,MATCH(BI_R1_Low!$A15,'Data Billing Quantities'!$4:$4,0),FALSE) -> 260 | C15: =VLOOKUP($A15,'Data Pass Through'!$A:$D,2,FALSE) -> 0.065 | D15: =B15*C15 -> 16.9 | E15: 260 | F15: =VLOOKUP($A15,'Data Pass Through'!$A:$D,3,FALSE) -> 0.065 | G15: =E15*F15 -> 16.9 | H15: 0 | I15: 0 | K15: =G15/$G$53 -> 0.1991416669
A16: TOU-Mid Peak | B16: =B$4*VLOOKUP($B$3,'Data Billing Quantities'!$A:$O,MATCH(BI_R1_Low!$A16,'Data Billing Quantities'!$4:$4,0),FALSE) -> 68 | C16: =VLOOKUP($A16,'Data Pass Through'!$A:$D,2,FALSE) -> 0.094 | D16: =B16*C16 -> 6.392 | E16: 68 | F16: =VLOOKUP($A16,'Data Pass Through'!$A:$D,3,FALSE) -> 0.094 | G16: =E16*F16 -> 6.392 | H16: 0 | I16: 0 | K16: 0.0753203275
A17: TOU-On Peak | B17: =B$4*VLOOKUP($B$3,'Data Billing Quantities'!$A:$O,MATCH(BI_R1_Low!$A17,'Data Billing Quantities'!$4:$4,0),FALSE) -> 72 | C17: =VLOOKUP($A17,'Data Pass Through'!$A:$D,2,FALSE) -> 0.132 | D17: =B17*C17 -> 9.504 | E17: 72 | F17: =VLOOKUP($A17,'Data Pass Through'!$A:$D,3,FALSE) -> 0.132 | G17: =E17*F17 -> 9.504 | H17: 0 | I17: 0 | K17: 0.1119906747
A18: Sub-Total: Energy (RPP TOU) | D18: =SUM(D15:D17) -> 32.796 | G18: =SUM(G15:G17) -> 32.796 | H18: 0 | I18: 0 | J18: =G18/$G$48 -> 0.3970021327 | K18: 0.3864526691
A19: Service Charge | B19: 1 | C19: =VLOOKUP($B$3,'Data Current Rates'!$A:$BA,MATCH(BI_R1_Low!$A19,CurrentHeader,0),FALSE) -> 38.74 | D19: =B19*C19 -> 38.74 | E19: 1 | F19: =VLOOKUP($B$3,'Data Proposed Rates'!$A:$BA,MATCH(BI_R1_Low!$A19,ProposedHeader,0),FALSE) -> 43.36 | G19: =E19*F19 -> 43.36 | H19: 4.62 | I19: 0.1192565823 | J19: 0.5248814635 | K19: 0.5109338862
A20: Fixed Foregone Revenue Charge | B20: 1 | C20: =VLOOKUP($B$3,'Data Current Rates'!$A:$BA,MATCH(BI_R1_Low!$A20,CurrentHeader,0),FALSE) -> 1.71 | D20: 1.71 | E20: 1 | F20: =VLOOKUP($B$3,'Data Proposed Rates'!$A:$BA,MATCH(BI_R1_Low!$A20,ProposedHeader,0),FALSE) -> 1.69 | G20: 1.69 | H20: -0.02 | I20: -0.01169590643 | J20: 0.02045778767 | K20: 0.01991416669
A21: Fixed Deferral/Variance Account Rider (General) | B21: 1 | C21: =VLOOKUP($B$3,'Data Current Rates'!$A:$BA,MATCH(BI_R1_Low!$A21,CurrentHeader,0),FALSE) -> 0.04 | D21: 0.04 | E21: 1 | F21: =VLOOKUP($B$3,'Data Proposed Rates'!$A:$BA,MATCH(BI_R1_Low!$A21,ProposedHeader,0),FALSE) -> 0.04 | G21: 0.04 | H21: 0 | I21: 0 | J21: 0.0004842079921 | K21: 0.0004713412234
A22: Distribution Volumetric Charge | B22: =IF($B$9="kWh",$B$4,$B$5) -> 400 | C22: =VLOOKUP($B$3,'Data Current Rates'!$A:$BA,MATCH(BI_R1_Low!$A22,CurrentHeader,0),FALSE) -> 0.0222 | D22: 8.88 | E22: 400 | F22: =VLOOKUP($B$3,'Data Proposed Rates'!$A:$BA,MATCH(BI_R1_Low!$A22,ProposedHeader,0),FALSE) -> 0.0181 | G22: 7.24 | H22: -1.64 | I22: -0.1846846847 | J22: 0.08764164657 | K22: 0.08531276144
A23: Volumetric Foregone Revenue Charge | B23: =IF($B$9="kWh",$B$4,$B$5) -> 400 | C23: =VLOOKUP($B$3,'Data Current Rates'!$A:$BA,MATCH(BI_R1_Low!$A23,CurrentHeader,0),FALSE) -> 0.0009 | D23: 0.36 | E23: 400 | F23: =VLOOKUP($B$3,'Data Proposed Rates'!$A:$BA,MATCH(BI_R1_Low!$A23,ProposedHeader,0),FALSE) -> 0.0009 | G23: 0.36 | H23: 0 | I23: 0 | J23: 0.004357871929 | K23: 0.004242071011
A24: Volumetric Deferral/Variance Account Rider (General) | B24: =IF($B$9="kWh",$B$4,$B$5) -> 400 | C24: =VLOOKUP($B$3,'Data Current Rates'!$A:$BA,MATCH(BI_R1_Low!$A24,CurrentHeader,0),FALSE) -> -0.0008 | D24: -0.32 | E24: 400 | F24: =VLOOKUP($B$3,'Data Proposed Rates'!$A:$BA,MATCH(BI_R1_Low!$A24,ProposedHeader,0),FALSE) -> -0.0008 | G24: -0.32 | H24: 0 | I24: 0 | J24: -0.003873663937 | K24: -0.003770729787
A25: Volumetric Deferral/Variance Account Rider (Sub Account CBR) | B25: 400 | C25: =VLOOKUP($B$3,'Data Current Rates'!$A:$BA,MATCH(BI_R1_Low!$A25,CurrentHeader,0),FALSE) -> 0 | D25: 0 | E25: 400 | F25: =VLOOKUP($B$3,'Data Proposed Rates'!$A:$BA,MATCH(BI_R1_Low!$A25,ProposedHeader,0),FALSE) -> 0 | G25: 0 | H25: 0 | I25: N/A | J25: 0 | K25: 0
A26: Fair Hydro Plan - Distribution Rate Protection Savings* | D26: =IF(AND(B3<>"R1",B3<>"R2"),0,IF(VLOOKUP($A26,'Data Pass Through'!$A:$D,2,FALSE)=0,0,IF(SUM(D19:D20,D22:D23)<VLOOKUP($A26,'Data Pass Through'!$A:$D,2,FALSE),0,VLOOKUP($A26,'Data Pass Through'!$A:$D,2,FALSE)-SUM(D19:D20,D22:D23)))) -> -12.83 | G26: =IF(AND(B3<>"R1",B3<>"R2"),0,IF(VLOOKUP($A26,'Data Pass Through'!$A:$D,2,FALSE)=0,0,IF(SUM(G19:G20,G22:G23)<VLOOKUP($A26,'Data Pass Through'!$A:$D,2,FALSE),0,VLOOKUP($A26,'Data Pass Through'!$A:$D,2,FALSE)-SUM(G19:G20,G22:G23)))) -> -15.79 | H26: -2.96 | I26: -0.2307092751 | J26: -0.1911411049 | K26: -0.1860619479
A27: Sub-Total: Distribution (excluding pass through) | D27: =SUM(INDIRECT("D19:D"&ROW()-1)) -> 36.58 | G27: =SUM(INDIRECT("g19:g"&ROW()-1)) -> 36.58 | H27: =G27-D27 -> 0 | I27: 0 | J27: 0.4428082088 | K27: 0.4310415488
A28: Smart Metering Entity Charge | B28: 1 | C28: =VLOOKUP($A28,'Data Pass Through'!$A:$D,2,FALSE) -> 0.57 | D28: =B28*C28 -> 0.57 | E28: 1 | F28: =VLOOKUP($A28,'Data Pass Through'!$A:$D,3,FALSE) -> 0.57 | G28: =E28*F28 -> 0.57 | H28: 0 | I28: 0 | J28: 0.006899963888 | K28: 0.006716612434
A29: Line Losses on Cost of Power (based on two-tier RPP prices) | B29: =B8-B4 -> 30.4 | C29: =IF(B4>B7,C13,C12) -> 0.077 | D29: =B29*C29 -> 2.3408 | E29: 30.4 | F29: =IF(B4>B7,F13,F12) -> 0.077 | G29: =E29*F29 -> 2.3408 | H29: 0 | I29: 0 | J29: 0.0283358517 | K29: 0.02758288839
A30: Line Losses on Cost of Power (based on TOU prices) | B30: =B8-B4 -> 30.4 | C30: =VLOOKUP($B$3,'Data Billing Quantities'!$A:$O,MATCH(BI_R1_Low!$A15,'Data Billing Quantities'!$4:$4,0),FALSE)*C15+VLOOKUP($B$3,'Data Billing Quantities'!$A:$O,MATCH(BI_R1_Low!$A16,'Data Billing Quantities'!$4:$4,0),FALSE)*C16+VLOOKUP($B$3,'Data Billing Quantities'!$A:$O,MATCH(BI_R1_Low!$A17,'Data Billing Quantities'!$4:$4,0),FALSE)*C17 -> 0.08199 | D30: =B30*C30 -> 2.492496 | E30: 30.4 | F30: =VLOOKUP($B$3,'Data Billing Quantities'!$A:$O,MATCH(BI_R1_Low!$A15,'Data Billing Quantities'!$4:$4,0),FALSE)*F15+VLOOKUP($B$3,'Data Billing Quantities'!$A:$O,MATCH(BI_R1_Low!$A16,'Data Billing Quantities'!$4:$4,0),FALSE)*F16+VLOOKUP($B$3,'Data Billing Quantities'!$A:$O,MATCH(BI_R1_Low!$A17,'Data Billing Quantities'!$4:$4,0),FALSE)*F17 -> 0.08199 | G30: =E30*F30 -> 2.492496 | H30: 0 | I30: 0 | J30: 0.03017216209 | K30: 0.02937040285
A31: Sub-Total: Distribution (based on two-tier RPP prices) | D31: =SUM(D27,D28:D29) -> 39.4908 | G31: =SUM(G27,G28:G29) -> 39.4908 | H31: 0 | I31: 0 | J31: 0.4780440244 | K31: 0.4653410496
A32: Sub-Total: Distribution (based on TOU prices) | D32: =SUM(D27,D28,D30) -> 39.642496 | G32: =SUM(G27,G28,G30) -> 39.642496 | H32: 0 | I32: 0 | J32: 0.4798803348 | K32: 0.4671285641
A33: Retail Transmission Rate – Network Service Rate | B33: =B8 -> 430.4 | C33: =VLOOKUP($B$3,'Data Current Rates'!$A:$BA,MATCH(BI_R1_Low!$A33,CurrentHeader,0),FALSE) -> 0.0078 | D33: =B33*C33 -> 3.35712 | E33: 430.4 | F33: =VLOOKUP($B$3,'Data Proposed Rates'!$A:$BA,MATCH(BI_R1_Low!$A33,ProposedHeader,0),FALSE) -> 0.0078 | G33: =E33*F33 -> 3.35712 | H33: =G33-D33 -> 0 | I33: 0 | J33: 0.04063860836 | K33: 0.0395587262
A34: Retail Transmission Rate – Line and Transformation Connection Service Rate | B34: =B8 -> 430.4 | C34: =VLOOKUP($B$3,'Data Current Rates'!$A:$BA,MATCH(BI_R1_Low!$A34,CurrentHeader,0),FALSE) -> 0.007 | D34: =B34*C34 -> 3.0128 | E34: 430.4 | F34: =VLOOKUP($B$3,'Data Proposed Rates'!$A:$BA,MATCH(BI_R1_Low!$A34,ProposedHeader,0),FALSE) -> 0.007 | G34: =E34*F34 -> 3.0128 | H34: =G34-D34 -> 0 | I34: 0 | J34: 0.03647054597 | K34: 0.03550142095
A35: Sub-Total: Retail Transmission | D35: =SUM(D33:D34) -> 6.36992 | G35: =SUM(G33:G34) -> 6.36992 | H35: =G35-D35 -> 0 | I35: 0 | J35: 0.07710915433 | K35: 0.07506014715
A36: Sub-Total: Delivery (based on two-tier RPP prices) | D36: =D31+D35 -> 45.86072 | G36: =G31+G35 -> 45.86072 | H36: =G36-D36 -> 0 | I36: 0 | J36: 0.5551531787 | K36: 0.5404011968
A37: Sub-Total: Delivery (based on TOU prices) | D37: =D32+D35 -> 46.012416 | G37: =G32+G35 -> 46.012416 | H37: =G37-D37 -> 0 | I37: 0 | J37: 0.5569894891 | K37: 0.5421887112
A38: Wholesale Market Service Rate (WMS) - not including CBR | B38: =B8 -> 430.4 | C38: =VLOOKUP($A38,'Data Pass Through'!$A:$D,2,FALSE) -> 0.0032 | D38: =B38*C38 -> 1.37728 | E38: =$B$8 -> 430.4 | F38: =VLOOKUP($A38,'Data Pass Through'!$A:$D,3,FALSE) -> 0.0032 | G38: =E38*F38 -> 1.37728 | H38: 0 | I38: 0 | J38: 0.01667224958 | K38: 0.016229221
A39: Capacity Based Recovery (CBR) - Applicable for Class B Customers | B39: =B8 -> 430.4 | C39: =VLOOKUP($A39,'Data Pass Through'!$A:$D,2,FALSE) -> 0.0004 | D39: =B39*C39 -> 0.17216 | E39: =$B$8 -> 430.4 | F39: =VLOOKUP($A39,'Data Pass Through'!$A:$D,3,FALSE) -> 0.0004 | G39: =E39*F39 -> 0.17216 | H39: 0 | I39: 0 | J39: 0.002084031198 | K39: 0.002028652626
A40: Rural Rate Protection Charge | B40: =B8 -> 430.4 | C40: =VLOOKUP($A40,'Data Pass Through'!$A:$D,2,FALSE) -> 0.0005 | D40: 0.2152 | E40: 430.4 | F40: =VLOOKUP($A40,'Data Pass Through'!$A:$D,3,FALSE) -> 0.0005 | G40: 0.2152 | H40: 0 | I40: 0 | J40: 0.002605038998 | K40: 0.002535815782
A41: Standard Supply Service – Administration Charge (if applicable) | B41: 1 | C41: =VLOOKUP($A41,'Data Pass Through'!$A:$D,2,FALSE) -> 0.25 | D41: =B41*C41 -> 0.25 | E41: 1 | F41: =VLOOKUP($A41,'Data Pass Through'!$A:$D,3,FALSE) -> 0.25 | G41: 0.25 | H41: 0 | I41: 0 | J41: 0.003026299951 | K41: 0.002945882646
A42: Sub-Total: Regulatory | D42: =SUM(D38:D41) -> 2.01464 | G42: =SUM(G38:G41) -> 2.01464 | H42: 0 | I42: 0 | J42: 0.02438761973 | K42: 0.02373957206
A43: Debt Retirement Charge (DRC) | B43: =B4 -> 400 | C43: =VLOOKUP($A43,'Data Pass Through'!$A:$D,2,FALSE) -> 0 | D43: =B43*C43 -> 0 | E43: 400 | F43: =VLOOKUP($A43,'Data Pass Through'!$A:$D,3,FALSE) -> 0 | G43: =E43*F43 -> 0 | H43: 0 | I43: N/A | J43: 0 | K43: 0
A44: Total Electricty Charge on Two-Tier RPP | D44: =SUM(D14,D27,D28,D29,D35,D42,D43) -> 78.67536 | G44: =SUM(G14,G27,G28,G29,G35,G42,G43) -> 78.67536 | H44: 0 | I44: 0 | J44: 0.9523809524
A45: HST | C45: 0.13 | D45: =D44*C45 -> 10.2277968 | F45: =C45 -> 0.13 | G45: =G44*F45 -> 10.2277968 | H45: 0 | I45: 0 | J45: 0.1238095238
A46: Total Electricity Charge on Two-Tier RPP (including HST) | D46: =SUM(D44:D45) -> 88.9031568 | G46: =SUM(G44:G45) -> 88.9031568 | H46: 0 | I46: 0 | J46: 1.076190476
A47: Ontario Rebate for Electricity Consumers (OREC) | C47: -0.08 | D47: =D44*C47 -> -6.2940288 | F47: =C47 -> -0.08 | G47: =G44*F47 -> -6.2940288 | H47: 0 | I47: 0 | J47: -0.07619047619
A48: Total Amount on Two-Tier RPP | D48: =SUM(D46:D47) -> 82.609128 | G48: =SUM(G46:G47) -> 82.609128 | H48: 0 | I48: 0 | J48: 1
A49: Total Electricty Charge on TOU (before HST) | D49: =SUM(D18,D27,D28,D30,D35,D42,D43) -> 80.823056 | G49: =SUM(G18,G27,G28,G30,G35,G42,G43) -> 80.823056 | H49: 0 | I49: 0 | K49: =G49/$G$53 -> 0.9523809524
A50: HST | C50: 0.13 | D50: =D49*C50 -> 10.50699728 | F50: =C50 -> 0.13 | G50: =G49*F50 -> 10.50699728 | H50: 0 | I50: 0 | K50: =G50/$G$53 -> 0.1238095238
A51: Total Electricity Charge on TOU (including HST) | D51: =SUM(D49:D50) -> 91.33005328 | G51: =SUM(G49:G50) -> 91.33005328 | H51: 0 | I51: 0 | K51: =G51/$G$53 -> 1.076190476
A52: Ontario Rebate for Electricity Consumers (OREC) | C52: -0.08 | D52: =D49*C52 -> -6.46584448 | F52: =C52 -> -0.08 | G52: =G49*F52 -> -6.46584448 | H52: 0 | I52: 0 | K52: =G52/$G$53 -> -0.07619047619
A53: Total Amount on TOU | D53: =SUM(D51:D52) -> 84.8642088 | G53: =SUM(G51:G52) -> 84.8642088 | H53: 0 | I53: 0 | K53: =G53/$G$53 -> 1
A54: * Distribution rate protection applies to R1 and R2 customers

Sheet BI_R1_Typical
A1: 2020 Bill Impacts (Typical Consumption Level) - R1
A3: Rate Class | B3: =RIGHT(A1,LEN(A1)-FIND("- ",A1,1)-1) -> R1
A4: Monthly Consumption (kWh) | B4: =IF(COUNTIF(A1,"*Low*")>0,VLOOKUP(B3,'Data Billing Quantities'!$A:$Z,MATCH("Low kWh",'Data Billing Quantities'!4:4,0),FALSE),IF(COUNTIF(A1,"*Typical*")>0,VLOOKUP(B3,'Data Billing Quantities'!$A:$Z,MATCH("Typical kWh",'Data Billing Quantities'!4:4,0),FALSE),IF(COUNTIF(A1,"*Average*")>0,VLOOKUP(B3,'Data Billing Quantities'!$A:$Z,MATCH("Average kWh",'Data Billing Quantities'!4:4,0),FALSE),IF(COUNTIF(A1,"*High*")>0,VLOOKUP(B3,'Data Billing Quantities'!$A:$Z,MATCH("High kWh",'Data Billing Quantities'!4:4,0),FALSE),"error")))) -> 750
A5: Peak (kW) | B5: =IF(COUNTIF(A1,"*Low*")>0,VLOOKUP(B3,'Data Billing Quantities'!$A:$Z,MATCH("Low kW",'Data Billing Quantities'!4:4,0),FALSE),IF(COUNTIF(A1,"*Typical*")>0,VLOOKUP(B3,'Data Billing Quantities'!$A:$Z,MATCH("Typical kW",'Data Billing Quantities'!4:4,0),FALSE),IF(COUNTIF(A1,"*Average*")>0,VLOOKUP(B3,'Data Billing Quantities'!$A:$Z,MATCH("Average kW",'Data Billing Quantities'!4:4,0),FALSE),IF(COUNTIF(A1,"*High*")>0,VLOOKUP(B3,'Data Billing Quantities'!$A:$Z,MATCH("High kW",'Data Billing Quantities'!4:4,0),FALSE),"error")))) -> 0
A6: Loss factor | B6: =VLOOKUP(B3,'Data Billing Quantities'!A:D,MATCH(A6,'Data Billing Quantities'!4:4,0),FALSE) -> 1.076
A7: Commodity Threshold | B7: =VLOOKUP(B3,'Data Billing Quantities'!A:D,MATCH(A7,'Data Billing Quantities'!4:4,0),FALSE) -> 600
A8: Monthly Consumption (kWh) - Uplifted | B8: =B4*B6 -> 807
A9: Charge determinant | B9: =VLOOKUP(B3,'Data Billing Quantities'!A:D,MATCH(A9,'Data Billing Quantities'!4:4,0),FALSE) -> kWh
B11: Volume | C11: Current Rate ($) | D11: Current Charge ($) | E11: Volume | F11: Proposed Rate ($) | G11: Proposed Charge ($) | H11: Change ($) | I11: Change (%) | J11: % of Total Bill on RPP | K11: % of Total Bill on TOU
A12: Energy First Tier | B12: =IF(B4>B7,B7,B4) -> 600 | C12: =VLOOKUP($A12,'Data Pass Through'!$A:$D,2,FALSE) -> 0.077 | D12: =B12*C12 -> 46.2 | E12: =B12 -> 600 | F12: =VLOOKUP($A12,'Data Pass Through'!$A:$D,3,FALSE) -> 0.077 | G12: =E12*F12 -> 46.2 | H12: =G12-D12 -> 0 | I12: =IF(ISERROR(H12/ABS(D12)),"N/A",(H12/ABS(D12))) -> 0 | J12: =G12/$G$48 -> 0.3760834837
A13: Energy Second Tier | B13: =IF(B4>B7,(B4)-B7,0) -> 150 | C13: =VLOOKUP($A13,'Data Pass Through'!$A:$D,2,FALSE) -> 0.089 | D13: =B13*C13 -> 13.35 | E13: =B13 -> 150 | F13: =VLOOKUP($A13,'Data Pass Through'!$A:$D,3,FALSE) -> 0.089 | G13: =E13*F13 -> 13.35 | H13: 0 | I13: 0 | J13: =G13/$G$48 -> 0.1086734742
A14: Sub-Total: Energy (RPP Tiered) | D14: =SUM(D12:D13) -> 59.55 | G14: =SUM(G12:G13) -> 59.55 | H14: 0 | I14: 0 | J14: =G14/$G$48 -> 0.4847569579
A15: TOU-Off Peak | B15: =B$4*VLOOKUP($B$3,'Data Billing Quantities'!$A:$O,MATCH(BI_R1_Typical!$A15,'Data Billing Quantities'!$4:$4,0),FALSE) -> 487.5 | C15: =VLOOKUP($A15,'Data Pass Through'!$A:$D,2,FALSE) -> 0.065 | D15: =B15*C15 -> 31.6875 | E15: 487.5 | F15: =VLOOKUP($A15,'Data Pass Through'!$A:$D,3,FALSE) -> 0.065 | G15: =E15*F15 -> 31.6875 | H15: 0 | I15: 0 | K15: =G15/$G$53 -> 0.2545893542
A16: TOU-Mid Peak | B16: =B$4*VLOOKUP($B$3,'Data Billing Quantities'!$A:$O,MATCH(BI_R1_Typical!$A16,'Data Billing Quantities'!$4:$4,0),FALSE) -> 127.5 | C16: =VLOOKUP($A16,'Data Pass Through'!$A:$D,2,FALSE) -> 0.094 | D16: =B16*C16 -> 11.985 | E16: 127.5 | F16: =VLOOKUP($A16,'Data Pass Through'!$A:$D,3,FALSE) -> 0.094 | G16: =E16*F16 -> 11.985 | H16: 0 | I16: 0 | K16: 0.09629202085
A17: TOU-On Peak | B17: =B$4*VLOOKUP($B$3,'Data Billing Quantities'!$A:$O,MATCH(BI_R1_Typical!$A17,'Data Billing Quantities'!$4:$4,0),FALSE) -> 135 | C17: =VLOOKUP($A17,'Data Pass Through'!$A:$D,2,FALSE) -> 0.132 | D17: =B17*C17 -> 17.82 | E17: 135 | F17: =VLOOKUP($A17,'Data Pass Through'!$A:$D,3,FALSE) -> 0.132 | G17: =E17*F17 -> 17.82 | H17: 0 | I17: 0 | K17: 0.1431726167
A18: Sub-Total: Energy (RPP TOU) | D18: =SUM(D15:D17) -> 61.4925 | G18: =SUM(G15:G17) -> 61.4925 | H18: 0 | I18: 0 | J18: =G18/$G$48 -> 0.5005695589 | K18: 0.4940539918
A19: Service Charge | B19: 1 | C19: =VLOOKUP($B$3,'Data Current Rates'!$A:$BA,MATCH(BI_R1_Typical!$A19,CurrentHeader,0),FALSE) -> 38.74 | D19: =B19*C19 -> 38.74 | E19: 1 | F19: =VLOOKUP($B$3,'Data Proposed Rates'!$A:$BA,MATCH(BI_R1_Typical!$A19,ProposedHeader,0),FALSE) -> 43.36 | G19: =E19*F19 -> 43.36 | H19: 4.62 | I19: 0.1192565823 | J19: 0.3529649319 | K19: 0.3483706319
A20: Fixed Foregone Revenue Charge | B20: 1 | C20: =VLOOKUP($B$3,'Data Current Rates'!$A:$BA,MATCH(BI_R1_Typical!$A20,CurrentHeader,0),FALSE) -> 1.71 | D20: 1.71 | E20: 1 | F20: =VLOOKUP($B$3,'Data Proposed Rates'!$A:$BA,MATCH(BI_R1_Typical!$A20,ProposedHeader,0),FALSE) -> 1.69 | G20: 1.69 | H20: -0.02 | I20: -0.01169590643 | J20: 0.01375716639 | K20: 0.01357809889
A21: Fixed Deferral/Variance Account Rider (General) | B21: 1 | C21: =VLOOKUP($B$3,'Data Current Rates'!$A:$BA,MATCH(BI_R1_Typical!$A21,CurrentHeader,0),FALSE) -> 0.04 | D21: 0.04 | E21: 1 | F21: =VLOOKUP($B$3,'Data Proposed Rates'!$A:$BA,MATCH(BI_R1_Typical!$A21,ProposedHeader,0),FALSE) -> 0.04 | G21: 0.04 | H21: 0 | I21: 0 | J21: 0.0003256134058 | K21: 0.0003213751217
A22: Distribution Volumetric Charge | B22: =IF($B$9="kWh",$B$4,$B$5) -> 750 | C22: =VLOOKUP($B$3,'Data Current Rates'!$A:$BA,MATCH(BI_R1_Typical!$A22,CurrentHeader,0),FALSE) -> 0.0222 | D22: 16.65 | E22: 750 | F22: =VLOOKUP($B$3,'Data Proposed Rates'!$A:$BA,MATCH(BI_R1_Typical!$A22,ProposedHeader,0),FALSE) -> 0.0181 | G22: 13.575 | H22: -3.075 | I22: -0.1846846847 | J22: 0.1105050496 | K22: 0.1090666819
A23: Volumetric Foregone Revenue Charge | B23: =IF($B$9="kWh",$B$4,$B$5) -> 750 | C23: =VLOOKUP($B$3,'Data Current Rates'!$A:$BA,MATCH(BI_R1_Typical!$A23,CurrentHeader,0),FALSE) -> 0.0009 | D23: 0.675 | E23: 750 | F23: =VLOOKUP($B$3,'Data Proposed Rates'!$A:$BA,MATCH(BI_R1_Typical!$A23,ProposedHeader,0),FALSE) -> 0.0009 | G23: 0.675 | H23: 0 | I23: 0 | J23: 0.005494726223 | K23: 0.005423205179
A24: Volumetric Deferral/Variance Account Rider (General) | B24: =IF($B$9="kWh",$B$4,$B$5) -> 750 | C24: =VLOOKUP($B$3,'Data Current Rates'!$A:$BA,MATCH(BI_R1_Typical!$A24,CurrentHeader,0),FALSE) -> -0.0008 | D24: -0.6 | E24: 750 | F24: =VLOOKUP($B$3,'Data Proposed Rates'!$A:$BA,MATCH(BI_R1_Typical!$A24,ProposedHeader,0),FALSE) -> -0.0008 | G24: -0.6 | H24: 0 | I24: 0 | J24: -0.004884201087 | K24: -0.004820626826
A25: Volumetric Deferral/Variance Account Rider (Sub Account CBR) | B25: 750 | C25: =VLOOKUP($B$3,'Data Current Rates'!$A:$BA,MATCH(BI_R1_Typical!$A25,CurrentHeader,0),FALSE) -> 0 | D25: 0 | E25: 750 | F25: =VLOOKUP($B$3,'Data Proposed Rates'!$A:$BA,MATCH(BI_R1_Typical!$A25,ProposedHeader,0),FALSE) -> 0 | G25: 0 | H25: 0 | I25: N/A | J25: 0 | K25: 0
A26: Fair Hydro Plan - Distribution Rate Protection Savings* | D26: =IF(AND(B3<>"R1",B3<>"R2"),0,IF(VLOOKUP($A26,'Data Pass Through'!$A:$D,2,FALSE)=0,0,IF(SUM(D19:D20,D22:D23)<VLOOKUP($A26,'Data Pass Through'!$A:$D,2,FALSE),0,VLOOKUP($A26,'Data Pass Through'!$A:$D,2,FALSE)-SUM(D19:D20,D22:D23)))) -> -20.915 | G26: =IF(AND(B3<>"R1",B3<>"R2"),0,IF(VLOOKUP($A26,'Data Pass Through'!$A:$D,2,FALSE)=0,0,IF(SUM(G19:G20,G22:G23)<VLOOKUP($A26,'Data Pass Through'!$A:$D,2,FALSE),0,VLOOKUP($A26,'Data Pass Through'!$A:$D,2,FALSE)-SUM(G19:G20,G22:G23)))) -> -22.44 | H26: -1.525 | I26: -0.07291417643 | J26: -0.1826691207 | K26: -0.1802914433
A27: Sub-Total: Distribution (excluding pass through) | D27: =SUM(INDIRECT("D19:D"&ROW()-1)) -> 36.3 | G27: =SUM(INDIRECT("g19:g"&ROW()-1)) -> 36.3 | H27: =G27-D27 -> 0 | I27: 0 | J27: 0.2954941658 | K27: 0.291647923
A28: Smart Metering Entity Charge | B28: 1 | C28: =VLOOKUP($A28,'Data Pass Through'!$A:$D,2,FALSE) -> 0.57 | D28: =B28*C28 -> 0.57 | E28: 1 | F28: =VLOOKUP($A28,'Data Pass Through'!$A:$D,3,FALSE) -> 0.57 | G28: =E28*F28 -> 0.57 | H28: 0 | I28: 0 | J28: 0.004639991033 | K28: 0.004579595485
A29: Line Losses on Cost of Power (based on two-tier RPP prices) | B29: =B8-B4 -> 57 | C29: =IF(B4>B7,C13,C12) -> 0.089 | D29: =B29*C29 -> 5.073 | E29: 57 | F29: =IF(B4>B7,F13,F12) -> 0.089 | G29: =E29*F29 -> 5.073 | H29: 0 | I29: 0 | J29: 0.04129592019 | K29: 0.04075839981
A30: Line Losses on Cost of Power (based on TOU prices) | B30: =B8-B4 -> 57 | C30: =VLOOKUP($B$3,'Data Billing Quantities'!$A:$O,MATCH(BI_R1_Typical!$A15,'Data Billing Quantities'!$4:$4,0),FALSE)*C15+VLOOKUP($B$3,'Data Billing Quantities'!$A:$O,MATCH(BI_R1_Typical!$A16,'Data Billing Quantities'!$4:$4,0),FALSE)*C16+VLOOKUP($B$3,'Data Billing Quantities'!$A:$O,MATCH(BI_R1_Typical!$A17,'Data Billing Quantities'!$4:$4,0),FALSE)*C17 -> 0.08199 | D30: =B30*C30 -> 4.67343 | E30: 57 | F30: =VLOOKUP($B$3,'Data Billing Quantities'!$A:$O,MATCH(BI_R1_Typical!$A15,'Data Billing Quantities'!$4:$4,0),FALSE)*F15+VLOOKUP($B$3,'Data Billing Quantities'!$A:$O,MATCH(BI_R1_Typical!$A16,'Data Billing Quantities'!$4:$4,0),FALSE)*F16+VLOOKUP($B$3,'Data Billing Quantities'!$A:$O,MATCH(BI_R1_Typical!$A17,'Data Billing Quantities'!$4:$4,0),FALSE)*F17 -> 0.08199 | G30: =E30*F30 -> 4.67343 | H30: 0 | I30: 0 | J30: 0.03804328648 | K30: 0.03754810338
A31: Sub-Total: Distribution (based on two-tier RPP prices) | D31: =SUM(D27,D28:D29) -> 41.943 | G31: =SUM(G27,G28:G29) -> 41.943 | H31: 0 | I31: 0 | J31: 0.341430077 | K31: 0.3369859183
A32: Sub-Total: Distribution (based on TOU prices) | D32: =SUM(D27,D28,D30) -> 41.54343 | G32: =SUM(G27,G28,G30) -> 41.54343 | H32: 0 | I32: 0 | J32: 0.3381774433 | K32: 0.3337756218
A33: Retail Transmission Rate – Network Service Rate | B33: =B8 -> 807 | C33: =VLOOKUP($B$3,'Data Current Rates'!$A:$BA,MATCH(BI_R1_Typical!$A33,CurrentHeader,0),FALSE) -> 0.0078 | D33: =B33*C33 -> 6.2946 | E33: 807 | F33: =VLOOKUP($B$3,'Data Proposed Rates'!$A:$BA,MATCH(BI_R1_Typical!$A33,ProposedHeader,0),FALSE) -> 0.0078 | G33: =E33*F33 -> 6.2946 | H33: =G33-D33 -> 0 | I33: 0 | J33: 0.0512401536 | K33: 0.05057319603
A34: Retail Transmission Rate – Line and Transformation Connection Service Rate | B34: =B8 -> 807 | C34: =VLOOKUP($B$3,'Data Current Rates'!$A:$BA,MATCH(BI_R1_Typical!$A34,CurrentHeader,0),FALSE) -> 0.007 | D34: =B34*C34 -> 5.649 | E34: 807 | F34: =VLOOKUP($B$3,'Data Proposed Rates'!$A:$BA,MATCH(BI_R1_Typical!$A34,ProposedHeader,0),FALSE) -> 0.007 | G34: =E34*F34 -> 5.649 | H34: =G34-D34 -> 0 | I34: 0 | J34: 0.04598475323 | K34: 0.04538620157
A35: Sub-Total: Retail Transmission | D35: =SUM(D33:D34) -> 11.9436 | G35: =SUM(G33:G34) -> 11.9436 | H35: =G35-D35 -> 0 | I35: 0 | J35: 0.09722490684 | K35: 0.0959593976
A36: Sub-Total: Delivery (based on two-tier RPP prices) | D36: =D31+D35 -> 53.8866 | G36: =G31+G35 -> 53.8866 | H36: =G36-D36 -> 0 | I36: 0 | J36: 0.4386549838 | K36: 0.4329453159
A37: Sub-Total: Delivery (based on TOU prices) | D37: =D32+D35 -> 53.48703 | G37: =G32+G35 -> 53.48703 | H37: =G37-D37 -> 0 | I37: 0 | J37: 0.4354023501 | K37: 0.4297350194
A38: Wholesale Market Service Rate (WMS) - not including CBR | B38: =B8 -> 807 | C38: =VLOOKUP($A38,'Data Pass Through'!$A:$D,2,FALSE) -> 0.0032 | D38: =B38*C38 -> 2.5824 | E38: =$B$8 -> 807 | F38: =VLOOKUP($A38,'Data Pass Through'!$A:$D,3,FALSE) -> 0.0032 | G38: =E38*F38 -> 2.5824 | H38: 0 | I38: 0 | J38: 0.02102160148 | K38: 0.02074797786
A39: Capacity Based Recovery (CBR) - Applicable for Class B Customers | B39: =B8 -> 807 | C39: =VLOOKUP($A39,'Data Pass Through'!$A:$D,2,FALSE) -> 0.0004 | D39: =B39*C39 -> 0.3228 | E39: =$B$8 -> 807 | F39: =VLOOKUP($A39,'Data Pass Through'!$A:$D,3,FALSE) -> 0.0004 | G39: =E39*F39 -> 0.3228 | H39: 0 | I39: 0 | J39: 0.002627700185 | K39: 0.002593497232
A40: Rural Rate Protection Charge | B40: =B8 -> 807 | C40: =VLOOKUP($A40,'Data Pass Through'!$A:$D,2,FALSE) -> 0.0005 | D40: 0.4035 | E40: 807 | F40: =VLOOKUP($A40,'Data Pass Through'!$A:$D,3,FALSE) -> 0.0005 | G40: 0.4035 | H40: 0 | I40: 0 | J40: 0.003284625231 | K40: 0.00324187154
A41: Standard Supply Service – Administration Charge (if applicable) | B41: 1 | C41: =VLOOKUP($A41,'Data Pass Through'!$A:$D,2,FALSE) -> 0.25 | D41: =B41*C41 -> 0.25 | E41: 1 | F41: =VLOOKUP($A41,'Data Pass Through'!$A:$D,3,FALSE) -> 0.25 | G41: 0.25 | H41: 0 | I41: 0 | J41: 0.002035083786 | K41: 0.002008594511
A42: Sub-Total: Regulatory | D42: =SUM(D38:D41) -> 3.5587 | G42: =SUM(G38:G41) -> 3.5587 | H42: 0 | I42: 0 | J42: 0.02896901068 | K42: 0.02859194114
A43: Debt Retirement Charge (DRC) | B43: =B4 -> 750 | C43: =VLOOKUP($A43,'Data Pass Through'!$A:$D,2,FALSE) -> 0 | D43: =B43*C43 -> 0 | E43: 750 | F43: =VLOOKUP($A43,'Data Pass Through'!$A:$D,3,FALSE) -> 0 | G43: =E43*F43 -> 0 | H43: 0 | I43: N/A | J43: 0 | K43: 0
A44: Total Electricty Charge on Two-Tier RPP | D44: =SUM(D14,D27,D28,D29,D35,D42,D43) -> 116.9953 | G44: =SUM(G14,G27,G28,G29,G35,G42,G43) -> 116.9953 | H44: 0 | I44: 0 | J44: 0.9523809524
A45: HST | C45: 0.13 | D45: =D44*C45 -> 15.209389 | F45: =C45 -> 0.13 | G45: =G44*F45 -> 15.209389 | H45: 0 | I45: 0 | J45: 0.1238095238
A46: Total Electricity Charge on Two-Tier RPP (including HST) | D46: =SUM(D44:D45) -> 132.204689 | G46: =SUM(G44:G45) -> 132.204689 | H46: 0 | I46: 0 | J46: 1.076190476
A47: Ontario Rebate for Electricity Consumers (OREC) | C47: -0.08 | D47: =D44*C47 -> -9.359624 | F47: =C47 -> -0.08 | G47: =G44*F47 -> -9.359624 | H47: 0 | I47: 0 | J47: -0.07619047619
A48: Total Amount on Two-Tier RPP | D48: =SUM(D46:D47) -> 122.845065 | G48: =SUM(G46:G47) -> 122.845065 | H48: 0 | I48: 0 | J48: 1
A49: Total Electricty Charge on TOU (before HST) | D49: =SUM(D18,D27,D28,D30,D35,D42,D43) -> 118.53823 | G49: =SUM(G18,G27,G28,G30,G35,G42,G43) -> 118.53823 | H49: 0 | I49: 0 | K49: =G49/$G$53 -> 0.9523809524
A50: HST | C50: 0.13 | D50: =D49*C50 -> 15.4099699 | F50: =C50 -> 0.13 | G50: =G49*F50 -> 15.4099699 | H50: 0 | I50: 0 | K50: =G50/$G$53 -> 0.1238095238
A51: Total Electricity Charge on TOU (including HST) | D51: =SUM(D49:D50) -> 133.9481999 | G51: =SUM(G49:G50) -> 133.9481999 | H51: 0 | I51: 0 | K51: =G51/$G$53 -> 1.076190476
A52: Ontario Rebate for Electricity Consumers (OREC) | C52: -0.08 | D52: =D49*C52 -> -9.4830584 | F52: =C52 -> -0.08 | G52: =G49*F52 -> -9.4830584 | H52: 0 | I52: 0 | K52: =G52/$G$53 -> -0.07619047619
A53: Total Amount on TOU | D53: =SUM(D51:D52) -> 124.4651415 | G53: =SUM(G51:G52) -> 124.4651415 | H53: 0 | I53: 0 | K53: =G53/$G$53 -> 1
A54: * Distribution rate protection applies to R1 and R2 customers

Sheet BI_R1_Avg
A1: 2020 Bill Impacts (Average Consumption Level) - R1
A3: Rate Class | B3: =RIGHT(A1,LEN(A1)-FIND("- ",A1,1)-1) -> R1
A4: Monthly Consumption (kWh) | B4: =IF(COUNTIF(A1,"*Low*")>0,VLOOKUP(B3,'Data Billing Quantities'!$A:$Z,MATCH("Low kWh",'Data Billing Quantities'!4:4,0),FALSE),IF(COUNTIF(A1,"*Typical*")>0,VLOOKUP(B3,'Data Billing Quantities'!$A:$Z,MATCH("Typical kWh",'Data Billing Quantities'!4:4,0),FALSE),IF(COUNTIF(A1,"*Average*")>0,VLOOKUP(B3,'Data Billing Quantities'!$A:$Z,MATCH("Average kWh",'Data Billing Quantities'!4:4,0),FALSE),IF(COUNTIF(A1,"*High*")>0,VLOOKUP(B3,'Data Billing Quantities'!$A:$Z,MATCH("High kWh",'Data Billing Quantities'!4:4,0),FALSE),"error")))) -> 920
A5: Peak (kW) | B5: =IF(COUNTIF(A1,"*Low*")>0,VLOOKUP(B3,'Data Billing Quantities'!$A:$Z,MATCH("Low kW",'Data Billing Quantities'!4:4,0),FALSE),IF(COUNTIF(A1,"*Typical*")>0,VLOOKUP(B3,'Data Billing Quantities'!$A:$Z,MATCH("Typical kW",'Data Billing Quantities'!4:4,0),FALSE),IF(COUNTIF(A1,"*Average*")>0,VLOOKUP(B3,'Data Billing Quantities'!$A:$Z,MATCH("Average kW",'Data Billing Quantities'!4:4,0),FALSE),IF(COUNTIF(A1,"*High*")>0,VLOOKUP(B3,'Data Billing Quantities'!$A:$Z,MATCH("High kW",'Data Billing Quantities'!4:4,0),FALSE),"error")))) -> 0
A6: Loss factor | B6: =VLOOKUP(B3,'Data Billing Quantities'!A:D,MATCH(A6,'Data Billing Quantities'!4:4,0),FALSE) -> 1.076
A7: Commodity Threshold | B7: =VLOOKUP(B3,'Data Billing Quantities'!A:D,MATCH(A7,'Data Billing Quantities'!4:4,0),FALSE) -> 600
A8: Monthly Consumption (kWh) - Uplifted | B8: =B4*B6 -> 989.92
A9: Charge determinant | B9: =VLOOKUP(B3,'Data Billing Quantities'!A:D,MATCH(A9,'Data Billing Quantities'!4:4,0),FALSE) -> kWh
B11: Volume | C11: Current Rate ($) | D11: Current Charge ($) | E11: Volume | F11: Proposed Rate ($) | G11: Proposed Charge ($) | H11: Change ($) | I11: Change (%) | J11: % of Total Bill on RPP | K11: % of Total Bill on TOU
A12: Energy First Tier | B12: =IF(B4>B7,B7,B4) -> 600 | C12: =VLOOKUP($A12,'Data Pass Through'!$A:$D,2,FALSE) -> 0.077 | D12: =B12*C12 -> 46.2 | E12: =B12 -> 600 | F12: =VLOOKUP($A12,'Data Pass Through'!$A:$D,3,FALSE) -> 0.077 | G12: =E12*F12 -> 46.2 | H12: =G12-D12 -> 0 | I12: =IF(ISERROR(H12/ABS(D12)),"N/A",(H12/ABS(D12))) -> 0 | J12: =G12/$G$48 -> 0.3221169102
A13: Energy Second Tier | B13: =IF(B4>B7,(B4)-B7,0) -> 320 | C13: =VLOOKUP($A13,'Data Pass Through'!$A:$D,2,FALSE) -> 0.089 | D13: =B13*C13 -> 28.48 | E13: =B13 -> 320 | F13: =VLOOKUP($A13,'Data Pass Through'!$A:$D,3,FALSE) -> 0.089 | G13: =E13*F13 -> 28.48 | H13: 0 | I13: 0 | J13: =G13/$G$48 -> 0.198569039
A14: Sub-Total: Energy (RPP Tiered) | D14: =SUM(D12:D13) -> 74.68 | G14: =SUM(G12:G13) -> 74.68 | H14: 0 | I14: 0 | J14: =G14/$G$48 -> 0.5206859492
A15: TOU-Off Peak | B15: =B$4*VLOOKUP($B$3,'Data Billing Quantities'!$A:$O,MATCH(BI_R1_Avg!$A15,'Data Billing Quantities'!$4:$4,0),FALSE) -> 598 | C15: =VLOOKUP($A15,'Data Pass Through'!$A:$D,2,FALSE) -> 0.065 | D15: =B15*C15 -> 38.87 | E15: 598 | F15: =VLOOKUP($A15,'Data Pass Through'!$A:$D,3,FALSE) -> 0.065 | G15: =E15*F15 -> 38.87 | H15: 0 | I15: 0 | K15: =G15/$G$53 -> 0.2704943103
A16: TOU-Mid Peak | B16: =B$4*VLOOKUP($B$3,'Data Billing Quantities'!$A:$O,MATCH(BI_R1_Avg!$A16,'Data Billing Quantities'!$4:$4,0),FALSE) -> 156.4 | C16: =VLOOKUP($A16,'Data Pass Through'!$A:$D,2,FALSE) -> 0.094 | D16: =B16*C16 -> 14.7016 | E16: 156.4 | F16: =VLOOKUP($A16,'Data Pass Through'!$A:$D,3,FALSE) -> 0.094 | G16: =E16*F16 -> 14.7016 | H16: 0 | I16: 0 | K16: 0.1023076705
A17: TOU-On Peak | B17: =B$4*VLOOKUP($B$3,'Data Billing Quantities'!$A:$O,MATCH(BI_R1_Avg!$A17,'Data Billing Quantities'!$4:$4,0),FALSE) -> 165.6 | C17: =VLOOKUP($A17,'Data Pass Through'!$A:$D,2,FALSE) -> 0.132 | D17: =B17*C17 -> 21.8592 | E17: 165.6 | F17: =VLOOKUP($A17,'Data Pass Through'!$A:$D,3,FALSE) -> 0.132 | G17: =E17*F17 -> 21.8592 | H17: 0 | I17: 0 | K17: 0.152117037
A18: Sub-Total: Energy (RPP TOU) | D18: =SUM(D15:D17) -> 75.4308 | G18: =SUM(G15:G17) -> 75.4308 | H18: 0 | I18: 0 | J18: =G18/$G$48 -> 0.5259206976 | K18: 0.5249190178
A19: Service Charge | B19: 1 | C19: =VLOOKUP($B$3,'Data Current Rates'!$A:$BA,MATCH(BI_R1_Avg!$A19,CurrentHeader,0),FALSE) -> 38.74 | D19: =B19*C19 -> 38.74 | E19: 1 | F19: =VLOOKUP($B$3,'Data Proposed Rates'!$A:$BA,MATCH(BI_R1_Avg!$A19,ProposedHeader,0),FALSE) -> 43.36 | G19: =E19*F19 -> 43.36 | H19: 4.62 | I19: 0.1192565823 | J19: 0.3023157841 | K19: 0.301739987
A20: Fixed Foregone Revenue Charge | B20: 1 | C20: =VLOOKUP($B$3,'Data Current Rates'!$A:$BA,MATCH(BI_R1_Avg!$A20,CurrentHeader,0),FALSE) -> 1.71 | D20: 1.71 | E20: 1 | F20: =VLOOKUP($B$3,'Data Proposed Rates'!$A:$BA,MATCH(BI_R1_Avg!$A20,ProposedHeader,0),FALSE) -> 1.69 | G20: 1.69 | H20: -0.02 | I20: -0.01169590643 | J20: 0.01178306446 | K20: 0.01176062219
A21: Fixed Deferral/Variance Account Rider (General) | B21: 1 | C21: =VLOOKUP($B$3,'Data Current Rates'!$A:$BA,MATCH(BI_R1_Avg!$A21,CurrentHeader,0),FALSE) -> 0.04 | D21: 0.04 | E21: 1 | F21: =VLOOKUP($B$3,'Data Proposed Rates'!$A:$BA,MATCH(BI_R1_Avg!$A21,ProposedHeader,0),FALSE) -> 0.04 | G21: 0.04 | H21: 0 | I21: 0 | J21: 0.0002788890997 | K21: 0.0002783579216
A22: Distribution Volumetric Charge | B22: =IF($B$9="kWh",$B$4,$B$5) -> 920 | C22: =VLOOKUP($B$3,'Data Current Rates'!$A:$BA,MATCH(BI_R1_Avg!$A22,CurrentHeader,0),FALSE) -> 0.0222 | D22: 20.424 | E22: 920 | F22: =VLOOKUP($B$3,'Data Proposed Rates'!$A:$BA,MATCH(BI_R1_Avg!$A22,ProposedHeader,0),FALSE) -> 0.0181 | G22: 16.652 | H22: -3.772 | I22: -0.1846846847 | J22: 0.1161015322 | K22: 0.1158804028
A23: Volumetric Foregone Revenue Charge | B23: =IF($B$9="kWh",$B$4,$B$5) -> 920 | C23: =VLOOKUP($B$3,'Data Current Rates'!$A:$BA,MATCH(BI_R1_Avg!$A23,CurrentHeader,0),FALSE) -> 0.0009 | D23: 0.828 | E23: 920 | F23: =VLOOKUP($B$3,'Data Proposed Rates'!$A:$BA,MATCH(BI_R1_Avg!$A23,ProposedHeader,0),FALSE) -> 0.0009 | G23: 0.828 | H23: 0 | I23: 0 | J23: 0.005773004364 | K23: 0.005762008977
A24: Volumetric Deferral/Variance Account Rider (General) | B24: =IF($B$9="kWh",$B$4,$B$5) -> 920 | C24: =VLOOKUP($B$3,'Data Current Rates'!$A:$BA,MATCH(BI_R1_Avg!$A24,CurrentHeader,0),FALSE) -> -0.0008 | D24: -0.736 | E24: 920 | F24: =VLOOKUP($B$3,'Data Proposed Rates'!$A:$BA,MATCH(BI_R1_Avg!$A24,ProposedHeader,0),FALSE) -> -0.0008 | G24: -0.736 | H24: 0 | I24: 0 | J24: -0.005131559435 | K24: -0.005121785758
A25: Volumetric Deferral/Variance Account Rider (Sub Account CBR) | B25: 920 | C25: =VLOOKUP($B$3,'Data Current Rates'!$A:$BA,MATCH(BI_R1_Avg!$A25,CurrentHeader,0),FALSE) -> 0 | D25: 0 | E25: 920 | F25: =VLOOKUP($B$3,'Data Proposed Rates'!$A:$BA,MATCH(BI_R1_Avg!$A25,ProposedHeader,0),FALSE) -> 0 | G25: 0 | H25: 0 | I25: N/A | J25: 0 | K25: 0
A26: Fair Hydro Plan - Distribution Rate Protection Savings* | D26: =IF(AND(B3<>"R1",B3<>"R2"),0,IF(VLOOKUP($A26,'Data Pass Through'!$A:$D,2,FALSE)=0,0,IF(SUM(D19:D20,D22:D23)<VLOOKUP($A26,'Data Pass Through'!$A:$D,2,FALSE),0,VLOOKUP($A26,'Data Pass Through'!$A:$D,2,FALSE)-SUM(D19:D20,D22:D23)))) -> -24.842 | G26: =IF(AND(B3<>"R1",B3<>"R2"),0,IF(VLOOKUP($A26,'Data Pass Through'!$A:$D,2,FALSE)=0,0,IF(SUM(G19:G20,G22:G23)<VLOOKUP($A26,'Data Pass Through'!$A:$D,2,FALSE),0,VLOOKUP($A26,'Data Pass Through'!$A:$D,2,FALSE)-SUM(G19:G20,G22:G23)))) -> -25.67 | H26: -0.828 | I26: -0.03333064971 | J26: -0.1789770797 | K26: -0.1786361962
A27: Sub-Total: Distribution (excluding pass through) | D27: =SUM(INDIRECT("D19:D"&ROW()-1)) -> 36.164 | G27: =SUM(INDIRECT("g19:g"&ROW()-1)) -> 36.164 | H27: =G27-D27 -> 0 | I27: 0 | J27: 0.252143635 | K27: 0.2516633969
A28: Smart Metering Entity Charge | B28: 1 | C28: =VLOOKUP($A28,'Data Pass Through'!$A:$D,2,FALSE) -> 0.57 | D28: =B28*C28 -> 0.57 | E28: 1 | F28: =VLOOKUP($A28,'Data Pass Through'!$A:$D,3,FALSE) -> 0.57 | G28: =E28*F28 -> 0.57 | H28: 0 | I28: 0 | J28: 0.003974169671 | K28: 0.003966600383
A29: Line Losses on Cost of Power (based on two-tier RPP prices) | B29: =B8-B4 -> 69.92 | C29: =IF(B4>B7,C13,C12) -> 0.089 | D29: =B29*C29 -> 6.22288 | E29: 69.92 | F29: =IF(B4>B7,F13,F12) -> 0.089 | G29: =E29*F29 -> 6.22288 | H29: 0 | I29: 0 | J29: 0.04338733502 | K29: 0.04330469858
A30: Line Losses on Cost of Power (based on TOU prices) | B30: =B8-B4 -> 69.92 | C30: =VLOOKUP($B$3,'Data Billing Quantities'!$A:$O,MATCH(BI_R1_Avg!$A15,'Data Billing Quantities'!$4:$4,0),FALSE)*C15+VLOOKUP($B$3,'Data Billing Quantities'!$A:$O,MATCH(BI_R1_Avg!$A16,'Data Billing Quantities'!$4:$4,0),FALSE)*C16+VLOOKUP($B$3,'Data Billing Quantities'!$A:$O,MATCH(BI_R1_Avg!$A17,'Data Billing Quantities'!$4:$4,0),FALSE)*C17 -> 0.08199 | D30: =B30*C30 -> 5.7327408 | E30: 69.92 | F30: =VLOOKUP($B$3,'Data Billing Quantities'!$A:$O,MATCH(BI_R1_Avg!$A15,'Data Billing Quantities'!$4:$4,0),FALSE)*F15+VLOOKUP($B$3,'Data Billing Quantities'!$A:$O,MATCH(BI_R1_Avg!$A16,'Data Billing Quantities'!$4:$4,0),FALSE)*F16+VLOOKUP($B$3,'Data Billing Quantities'!$A:$O,MATCH(BI_R1_Avg!$A17,'Data Billing Quantities'!$4:$4,0),FALSE)*F17 -> 0.08199 | G30: =E30*F30 -> 5.7327408 | H30: 0 | I30: 0 | J30: 0.03996997301 | K30: 0.03989384536
A31: Sub-Total: Distribution (based on two-tier RPP prices) | D31: =SUM(D27,D28:D29) -> 42.95688 | G31: =SUM(G27,G28:G29) -> 42.95688 | H31: 0 | I31: 0 | J31: 0.2995051397 | K31: 0.2989346959
A32: Sub-Total: Distribution (based on TOU prices) | D32: =SUM(D27,D28,D30) -> 42.4667408 | G32: =SUM(G27,G28,G30) -> 42.4667408 | H32: 0 | I32: 0 | J32: 0.2960877777 | K32: 0.2955238427
A33: Retail Transmission Rate – Network Service Rate | B33: =B8 -> 989.92 | C33: =VLOOKUP($B$3,'Data Current Rates'!$A:$BA,MATCH(BI_R1_Avg!$A33,CurrentHeader,0),FALSE) -> 0.0078 | D33: =B33*C33 -> 7.721376 | E33: 989.92 | F33: =VLOOKUP($B$3,'Data Proposed Rates'!$A:$BA,MATCH(BI_R1_Avg!$A33,ProposedHeader,0),FALSE) -> 0.0078 | G33: =E33*F33 -> 7.721376 | H33: =G33-D33 -> 0 | I33: 0 | J33: 0.05383519003 | K33: 0.05373265438
A34: Retail Transmission Rate – Line and Transformation Connection Service Rate | B34: =B8 -> 989.92 | C34: =VLOOKUP($B$3,'Data Current Rates'!$A:$BA,MATCH(BI_R1_Avg!$A34,CurrentHeader,0),FALSE) -> 0.007 | D34: =B34*C34 -> 6.92944 | E34: 989.92 | F34: =VLOOKUP($B$3,'Data Proposed Rates'!$A:$BA,MATCH(BI_R1_Avg!$A34,ProposedHeader,0),FALSE) -> 0.007 | G34: =E34*F34 -> 6.92944 | H34: =G34-D34 -> 0 | I34: 0 | J34: 0.04831363208 | K34: 0.04822161291
A35: Sub-Total: Retail Transmission | D35: =SUM(D33:D34) -> 14.650816 | G35: =SUM(G33:G34) -> 14.650816 | H35: =G35-D35 -> 0 | I35: 0 | J35: 0.1021488221 | K35: 0.1019542673
A36: Sub-Total: Delivery (based on two-tier RPP prices) | D36: =D31+D35 -> 57.607696 | G36: =G31+G35 -> 57.607696 | H36: =G36-D36 -> 0 | I36: 0 | J36: 0.4016539618 | K36: 0.4008889632
A37: Sub-Total: Delivery (based on TOU prices) | D37: =D32+D35 -> 57.1175568 | G37: =G32+G35 -> 57.1175568 | H37: =G37-D37 -> 0 | I37: 0 | J37: 0.3982365998 | K37: 0.39747811
A38: Wholesale Market Service Rate (WMS) - not including CBR | B38: =B8 -> 989.92 | C38: =VLOOKUP($A38,'Data Pass Through'!$A:$D,2,FALSE) -> 0.0032 | D38: =B38*C38 -> 3.167744 | E38: =$B$8 -> 989.92 | F38: =VLOOKUP($A38,'Data Pass Through'!$A:$D,3,FALSE) -> 0.0032 | G38: =E38*F38 -> 3.167744 | H38: 0 | I38: 0 | J38: 0.02208623181 | K38: 0.0220441659
A39: Capacity Based Recovery (CBR) - Applicable for Class B Customers | B39: =B8 -> 989.92 | C39: =VLOOKUP($A39,'Data Pass Through'!$A:$D,2,FALSE) -> 0.0004 | D39: =B39*C39 -> 0.395968 | E39: =$B$8 -> 989.92 | F39: =VLOOKUP($A39,'Data Pass Through'!$A:$D,3,FALSE) -> 0.0004 | G39: =E39*F39 -> 0.395968 | H39: 0 | I39: 0 | J39: 0.002760778976 | K39: 0.002755520738
A40: Rural Rate Protection Charge | B40: =B8 -> 989.92 | C40: =VLOOKUP($A40,'Data Pass Through'!$A:$D,2,FALSE) -> 0.0005 | D40: 0.49496 | E40: 989.92 | F40: =VLOOKUP($A40,'Data Pass Through'!$A:$D,3,FALSE) -> 0.0005 | G40: 0.49496 | H40: 0 | I40: 0 | J40: 0.00345097372 | K40: 0.003444400922
A41: Standard Supply Service – Administration Charge (if applicable) | B41: 1 | C41: =VLOOKUP($A41,'Data Pass Through'!$A:$D,2,FALSE) -> 0.25 | D41: =B41*C41 -> 0.25 | E41: 1 | F41: =VLOOKUP($A41,'Data Pass Through'!$A:$D,3,FALSE) -> 0.25 | G41: 0.25 | H41: 0 | I41: 0 | J41: 0.001743056873 | K41: 0.00173973701
A42: Sub-Total: Regulatory | D42: =SUM(D38:D41) -> 4.308672 | G42: =SUM(G38:G41) -> 4.308672 | H42: 0 | I42: 0 | J42: 0.03004104138 | K42: 0.02998382457
A43: Debt Retirement Charge (DRC) | B43: =B4 -> 920 | C43: =VLOOKUP($A43,'Data Pass Through'!$A:$D,2,FALSE) -> 0 | D43: =B43*C43 -> 0 | E43: 920 | F43: =VLOOKUP($A43,'Data Pass Through'!$A:$D,3,FALSE) -> 0 | G43: =E43*F43 -> 0 | H43: 0 | I43: N/A | J43: 0 | K43: 0
A44: Total Electricty Charge on Two-Tier RPP | D44: =SUM(D14,D27,D28,D29,D35,D42,D43) -> 136.596368 | G44: =SUM(G14,G27,G28,G29,G35,G42,G43) -> 136.596368 | H44: 0 | I44: 0 | J44: 0.9523809524
A45: HST | C45: 0.13 | D45: =D44*C45 -> 17.75752784 | F45: =C45 -> 0.13 | G45: =G44*F45 -> 17.75752784 | H45: 0 | I45: 0 | J45: 0.1238095238
A46: Total Electricity Charge on Two-Tier RPP (including HST) | D46: =SUM(D44:D45) -> 154.3538958 | G46: =SUM(G44:G45) -> 154.3538958 | H46: 0 | I46: 0 | J46: 1.076190476
A47: Ontario Rebate for Electricity Consumers (OREC) | C47: -0.08 | D47: =D44*C47 -> -10.92770944 | F47: =C47 -> -0.08 | G47: =G44*F47 -> -10.92770944 | H47: 0 | I47: 0 | J47: -0.07619047619
A48: Total Amount on Two-Tier RPP | D48: =SUM(D46:D47) -> 143.4261864 | G48: =SUM(G46:G47) -> 143.4261864 | H48: 0 | I48: 0 | J48: 1
A49: Total Electricty Charge on TOU (before HST) | D49: =SUM(D18,D27,D28,D30,D35,D42,D43) -> 136.8570288 | G49: =SUM(G18,G27,G28,G30,G35,G42,G43) -> 136.8570288 | H49: 0 | I49: 0 | K49: =G49/$G$53 -> 0.9523809524
A50: HST | C50: 0.13 | D50: =D49*C50 -> 17.79141374 | F50: =C50 -> 0.13 | G50: =G49*F50 -> 17.79141374 | H50: 0 | I50: 0 | K50: =G50/$G$53 -> 0.1238095238
A51: Total Electricity Charge on TOU (including HST) | D51: =SUM(D49:D50) -> 154.6484425 | G51: =SUM(G49:G50) -> 154.6484425 | H51: 0 | I51: 0 | K51: =G51/$G$53 -> 1.076190476
A52: Ontario Rebate for Electricity Consumers (OREC) | C52: -0.08 | D52: =D49*C52 -> -10.9485623 | F52: =C52 -> -0.08 | G52: =G49*F52 -> -10.9485623 | H52: 0 | I52: 0 | K52: =G52/$G$53 -> -0.07619047619
A53: Total Amount on TOU | D53: =SUM(D51:D52) -> 143.6998802 | G53: =SUM(G51:G52) -> 143.6998802 | H53: 0 | I53: 0 | K53: =G53/$G$53 -> 1
A54: * Distribution rate protection applies to R1 and R2 customers

Sheet BI_R1_High
A1: 2020 Bill Impacts (High Consumption Level) - R1
A3: Rate Class | B3: =RIGHT(A1,LEN(A1)-FIND("- ",A1,1)-1) -> R1
A4: Monthly Consumption (kWh) | B4: =IF(COUNTIF(A1,"*Low*")>0,VLOOKUP(B3,'Data Billing Quantities'!$A:$Z,MATCH("Low kWh",'Data Billing Quantities'!4:4,0),FALSE),IF(COUNTIF(A1,"*Typical*")>0,VLOOKUP(B3,'Data Billing Quantities'!$A:$Z,MATCH("Typical kWh",'Data Billing Quantities'!4:4,0),FALSE),IF(COUNTIF(A1,"*Average*")>0,VLOOKUP(B3,'Data Billing Quantities'!$A:$Z,MATCH("Average kWh",'Data Billing Quantities'!4:4,0),FALSE),IF(COUNTIF(A1,"*High*")>0,VLOOKUP(B3,'Data Billing Quantities'!$A:$Z,MATCH("High kWh",'Data Billing Quantities'!4:4,0),FALSE),"error")))) -> 1800
A5: Peak (kW) | B5: =IF(COUNTIF(A1,"*Low*")>0,VLOOKUP(B3,'Data Billing Quantities'!$A:$Z,MATCH("Low kW",'Data Billing Quantities'!4:4,0),FALSE),IF(COUNTIF(A1,"*Typical*")>0,VLOOKUP(B3,'Data Billing Quantities'!$A:$Z,MATCH("Typical kW",'Data Billing Quantities'!4:4,0),FALSE),IF(COUNTIF(A1,"*Average*")>0,VLOOKUP(B3,'Data Billing Quantities'!$A:$Z,MATCH("Average kW",'Data Billing Quantities'!4:4,0),FALSE),IF(COUNTIF(A1,"*High*")>0,VLOOKUP(B3,'Data Billing Quantities'!$A:$Z,MATCH("High kW",'Data Billing Quantities'!4:4,0),FALSE),"error")))) -> 0
A6: Loss factor | B6: =VLOOKUP(B3,'Data Billing Quantities'!A:D,MATCH(A6,'Data Billing Quantities'!4:4,0),FALSE) -> 1.076
A7: Commodity Threshold | B7: =VLOOKUP(B3,'Data Billing Quantities'!A:D,MATCH(A7,'Data Billing Quantities'!4:4,0),FALSE) -> 600
A8: Monthly Consumption (kWh) - Uplifted | B8: =B4*B6 -> 1936.8
A9: Charge determinant | B9: =VLOOKUP(B3,'Data Billing Quantities'!A:D,MATCH(A9,'Data Billing Quantities'!4:4,0),FALSE) -> kWh
B11: Volume | C11: Current Rate ($) | D11: Current Charge ($) | E11: Volume | F11: Proposed Rate ($) | G11: Proposed Charge ($) | H11: Change ($) | I11: Change (%) | J11: % of Total Bill on RPP | K11: % of Total Bill on TOU
A12: Energy First Tier | B12: =IF(B4>B7,B7,B4) -> 600 | C12: =VLOOKUP($A12,'Data Pass Through'!$A:$D,2,FALSE) -> 0.077 | D12: =B12*C12 -> 46.2 | E12: =B12 -> 600 | F12: =VLOOKUP($A12,'Data Pass Through'!$A:$D,3,FALSE) -> 0.077 | G12: =E12*F12 -> 46.2 | H12: =G12-D12 -> 0 | I12: =IF(ISERROR(H12/ABS(D12)),"N/A",(H12/ABS(D12))) -> 0 | J12: =G12/$G$48 -> 0.1848267954
A13: Energy Second Tier | B13: =IF(B4>B7,(B4)-B7,0) -> 1200 | C13: =VLOOKUP($A13,'Data Pass Through'!$A:$D,2,FALSE) -> 0.089 | D13: =B13*C13 -> 106.8 | E13: =B13 -> 1200 | F13: =VLOOKUP($A13,'Data Pass Through'!$A:$D,3,FALSE) -> 0.089 | G13: =E13*F13 -> 106.8 | H13: 0 | I13: 0 | J13: =G13/$G$48 -> 0.4272619427
A14: Sub-Total: Energy (RPP Tiered) | D14: =SUM(D12:D13) -> 153 | G14: =SUM(G12:G13) -> 153 | H14: 0 | I14: 0 | J14: =G14/$G$48 -> 0.6120887382
A15: TOU-Off Peak | B15: =B$4*VLOOKUP($B$3,'Data Billing Quantities'!$A:$O,MATCH(BI_R1_High!$A15,'Data Billing Quantities'!$4:$4,0),FALSE) -> 1170 | C15: =VLOOKUP($A15,'Data Pass Through'!$A:$D,2,FALSE) -> 0.065 | D15: =B15*C15 -> 76.05 | E15: 1170 | F15: =VLOOKUP($A15,'Data Pass Through'!$A:$D,3,FALSE) -> 0.065 | G15: =E15*F15 -> 76.05 | H15: 0 | I15: 0 | K15: =G15/$G$53 -> 0.31261826
A16: TOU-Mid Peak | B16: =B$4*VLOOKUP($B$3,'Data Billing Quantities'!$A:$O,MATCH(BI_R1_High!$A16,'Data Billing Quantities'!$4:$4,0),FALSE) -> 306 | C16: =VLOOKUP($A16,'Data Pass Through'!$A:$D,2,FALSE) -> 0.094 | D16: =B16*C16 -> 28.764 | E16: 306 | F16: =VLOOKUP($A16,'Data Pass Through'!$A:$D,3,FALSE) -> 0.094 | G16: =E16*F16 -> 28.764 | H16: 0 | I16: 0 | K16: 0.1182399952
A17: TOU-On Peak | B17: =B$4*VLOOKUP($B$3,'Data Billing Quantities'!$A:$O,MATCH(BI_R1_High!$A17,'Data Billing Quantities'!$4:$4,0),FALSE) -> 324 | C17: =VLOOKUP($A17,'Data Pass Through'!$A:$D,2,FALSE) -> 0.132 | D17: =B17*C17 -> 42.768 | E17: 324 | F17: =VLOOKUP($A17,'Data Pass Through'!$A:$D,3,FALSE) -> 0.132 | G17: =E17*F17 -> 42.768 | H17: 0 | I17: 0 | K17: 0.1758061505
A18: Sub-Total: Energy (RPP TOU) | D18: =SUM(D15:D17) -> 147.582 | G18: =SUM(G15:G17) -> 147.582 | H18: 0 | I18: 0 | J18: =G18/$G$48 -> 0.5904135958 | K18: 0.6066644057
A19: Service Charge | B19: 1 | C19: =VLOOKUP($B$3,'Data Current Rates'!$A:$BA,MATCH(BI_R1_High!$A19,CurrentHeader,0),FALSE) -> 38.74 | D19: =B19*C19 -> 38.74 | E19: 1 | F19: =VLOOKUP($B$3,'Data Proposed Rates'!$A:$BA,MATCH(BI_R1_High!$A19,ProposedHeader,0),FALSE) -> 43.36 | G19: =E19*F19 -> 43.36 | H19: 4.62 | I19: 0.1192565823 | J19: 0.1734651483 | K19: 0.1782396812
A20: Fixed Foregone Revenue Charge | B20: 1 | C20: =VLOOKUP($B$3,'Data Current Rates'!$A:$BA,MATCH(BI_R1_High!$A20,CurrentHeader,0),FALSE) -> 1.71 | D20: 1.71 | E20: 1 | F20: =VLOOKUP($B$3,'Data Proposed Rates'!$A:$BA,MATCH(BI_R1_High!$A20,ProposedHeader,0),FALSE) -> 1.69 | G20: 1.69 | H20: -0.02 | I20: -0.01169590643 | J20: 0.00676098018 | K20: 0.006947072445
A21: Fixed Deferral/Variance Account Rider (General) | B21: 1 | C21: =VLOOKUP($B$3,'Data Current Rates'!$A:$BA,MATCH(BI_R1_High!$A21,CurrentHeader,0),FALSE) -> 0.04 | D21: 0.04 | E21: 1 | F21: =VLOOKUP($B$3,'Data Proposed Rates'!$A:$BA,MATCH(BI_R1_High!$A21,ProposedHeader,0),FALSE) -> 0.04 | G21: 0.04 | H21: 0 | I21: 0 | J21: 0.0001600231995 | K21: 0.0001644277502
A22: Distribution Volumetric Charge | B22: =IF($B$9="kWh",$B$4,$B$5) -> 1800 | C22: =VLOOKUP($B$3,'Data Current Rates'!$A:$BA,MATCH(BI_R1_High!$A22,CurrentHeader,0),FALSE) -> 0.0222 | D22: 39.96 | E22: 1800 | F22: =VLOOKUP($B$3,'Data Proposed Rates'!$A:$BA,MATCH(BI_R1_High!$A22,ProposedHeader,0),FALSE) -> 0.0181 | G22: 32.58 | H22: -7.38 | I22: -0.1846846847 | J22: 0.130338896 | K22: 0.1339264025
A23: Volumetric Foregone Revenue Charge | B23: =IF($B$9="kWh",$B$4,$B$5) -> 1800 | C23: =VLOOKUP($B$3,'Data Current Rates'!$A:$BA,MATCH(BI_R1_High!$A23,CurrentHeader,0),FALSE) -> 0.0009 | D23: 1.62 | E23: 1800 | F23: =VLOOKUP($B$3,'Data Proposed Rates'!$A:$BA,MATCH(BI_R1_High!$A23,ProposedHeader,0),FALSE) -> 0.0009 | G23: 1.62 | H23: 0 | I23: 0 | J23: 0.006480939581 | K23: 0.006659323882
A24: Volumetric Deferral/Variance Account Rider (General) | B24: =IF($B$9="kWh",$B$4,$B$5) -> 1800 | C24: =VLOOKUP($B$3,'Data Current Rates'!$A:$BA,MATCH(BI_R1_High!$A24,CurrentHeader,0),FALSE) -> -0.0008 | D24: -1.44 | E24: 1800 | F24: =VLOOKUP($B$3,'Data Proposed Rates'!$A:$BA,MATCH(BI_R1_High!$A24,ProposedHeader,0),FALSE) -> -0.0008 | G24: -1.44 | H24: 0 | I24: 0 | J24: -0.005760835183 | K24: -0.005919399007
A25: Volumetric Deferral/Variance Account Rider (Sub Account CBR) | B25: 1800 | C25: =VLOOKUP($B$3,'Data Current Rates'!$A:$BA,MATCH(BI_R1_High!$A25,CurrentHeader,0),FALSE) -> 0 | D25: 0 | E25: 1800 | F25: =VLOOKUP($B$3,'Data Proposed Rates'!$A:$BA,MATCH(BI_R1_High!$A25,ProposedHeader,0),FALSE) -> 0 | G25: 0 | H25: 0 | I25: N/A | J25: 0 | K25: 0
A26: Fair Hydro Plan - Distribution Rate Protection Savings* | D26: =IF(AND(B3<>"R1",B3<>"R2"),0,IF(VLOOKUP($A26,'Data Pass Through'!$A:$D,2,FALSE)=0,0,IF(SUM(D19:D20,D22:D23)<VLOOKUP($A26,'Data Pass Through'!$A:$D,2,FALSE),0,VLOOKUP($A26,'Data Pass Through'!$A:$D,2,FALSE)-SUM(D19:D20,D22:D23)))) -> -45.17 | G26: =IF(AND(B3<>"R1",B3<>"R2"),0,IF(VLOOKUP($A26,'Data Pass Through'!$A:$D,2,FALSE)=0,0,IF(SUM(G19:G20,G22:G23)<VLOOKUP($A26,'Data Pass Through'!$A:$D,2,FALSE),0,VLOOKUP($A26,'Data Pass Through'!$A:$D,2,FALSE)-SUM(G19:G20,G22:G23)))) -> -42.39 | H26: 2.78 | I26: 0.06154527341 | J26: -0.1695845857 | K26: -0.1742523083
A27: Sub-Total: Distribution (excluding pass through) | D27: =SUM(INDIRECT("D19:D"&ROW()-1)) -> 35.46 | G27: =SUM(INDIRECT("g19:g"&ROW()-1)) -> 35.46 | H27: =G27-D27 -> 0 | I27: 0 | J27: 0.1418605664 | K27: 0.1457652005
A28: Smart Metering Entity Charge | B28: 1 | C28: =VLOOKUP($A28,'Data Pass Through'!$A:$D,2,FALSE) -> 0.57 | D28: =B28*C28 -> 0.57 | E28: 1 | F28: =VLOOKUP($A28,'Data Pass Through'!$A:$D,3,FALSE) -> 0.57 | G28: =E28*F28 -> 0.57 | H28: 0 | I28: 0 | J28: 0.002280330593 | K28: 0.00234309544
A29: Line Losses on Cost of Power (based on two-tier RPP prices) | B29: =B8-B4 -> 136.8 | C29: =IF(B4>B7,C13,C12) -> 0.089 | D29: =B29*C29 -> 12.1752 | E29: 136.8 | F29: =IF(B4>B7,F13,F12) -> 0.089 | G29: =E29*F29 -> 12.1752 | H29: 0 | I29: 0 | J29: 0.04870786147 | K29: 0.0500485186
A30: Line Losses on Cost of Power (based on TOU prices) | B30: =B8-B4 -> 136.8 | C30: =VLOOKUP($B$3,'Data Billing Quantities'!$A:$O,MATCH(BI_R1_High!$A15,'Data Billing Quantities'!$4:$4,0),FALSE)*C15+VLOOKUP($B$3,'Data Billing Quantities'!$A:$O,MATCH(BI_R1_High!$A16,'Data Billing Quantities'!$4:$4,0),FALSE)*C16+VLOOKUP($B$3,'Data Billing Quantities'!$A:$O,MATCH(BI_R1_High!$A17,'Data Billing Quantities'!$4:$4,0),FALSE)*C17 -> 0.08199 | D30: =B30*C30 -> 11.216232 | E30: 136.8 | F30: =VLOOKUP($B$3,'Data Billing Quantities'!$A:$O,MATCH(BI_R1_High!$A15,'Data Billing Quantities'!$4:$4,0),FALSE)*F15+VLOOKUP($B$3,'Data Billing Quantities'!$A:$O,MATCH(BI_R1_High!$A16,'Data Billing Quantities'!$4:$4,0),FALSE)*F16+VLOOKUP($B$3,'Data Billing Quantities'!$A:$O,MATCH(BI_R1_High!$A17,'Data Billing Quantities'!$4:$4,0),FALSE)*F17 -> 0.08199 | G30: =E30*F30 -> 11.216232 | H30: 0 | I30: 0 | J30: 0.04487143328 | K30: 0.04610649483
A31: Sub-Total: Distribution (based on two-tier RPP prices) | D31: =SUM(D27,D28:D29) -> 48.2052 | G31: =SUM(G27,G28:G29) -> 48.2052 | H31: 0 | I31: 0 | J31: 0.1928487584 | K31: 0.1981568146
A32: Sub-Total: Distribution (based on TOU prices) | D32: =SUM(D27,D28,D30) -> 47.246232 | G32: =SUM(G27,G28,G30) -> 47.246232 | H32: 0 | I32: 0 | J32: 0.1890123303 | K32: 0.1942147908
A33: Retail Transmission Rate – Network Service Rate | B33: =B8 -> 1936.8 | C33: =VLOOKUP($B$3,'Data Current Rates'!$A:$BA,MATCH(BI_R1_High!$A33,CurrentHeader,0),FALSE) -> 0.0078 | D33: =B33*C33 -> 15.10704 | E33: 1936.8 | F33: =VLOOKUP($B$3,'Data Proposed Rates'!$A:$BA,MATCH(BI_R1_High!$A33,ProposedHeader,0),FALSE) -> 0.0078 | G33: =E33*F33 -> 15.10704 | H33: =G33-D33 -> 0 | I33: 0 | J33: 0.0604369219 | K33: 0.06210041498
A34: Retail Transmission Rate – Line and Transformation Connection Service Rate | B34: =B8 -> 1936.8 | C34: =VLOOKUP($B$3,'Data Current Rates'!$A:$BA,MATCH(BI_R1_High!$A34,CurrentHeader,0),FALSE) -> 0.007 | D34: =B34*C34 -> 13.5576 | E34: 1936.8 | F34: =VLOOKUP($B$3,'Data Proposed Rates'!$A:$BA,MATCH(BI_R1_High!$A34,ProposedHeader,0),FALSE) -> 0.007 | G34: =E34*F34 -> 13.5576 | H34: =G34-D34 -> 0 | I34: 0 | J34: 0.05423826325 | K34: 0.05573114165
A35: Sub-Total: Retail Transmission | D35: =SUM(D33:D34) -> 28.66464 | G35: =SUM(G33:G34) -> 28.66464 | H35: =G35-D35 -> 0 | I35: 0 | J35: 0.1146751851 | K35: 0.1178315566
A36: Sub-Total: Delivery (based on two-tier RPP prices) | D36: =D31+D35 -> 76.86984 | G36: =G31+G35 -> 76.86984 | H36: =G36-D36 -> 0 | I36: 0 | J36: 0.3075239436 | K36: 0.3159883712
A37: Sub-Total: Delivery (based on TOU prices) | D37: =D32+D35 -> 75.910872 | G37: =G32+G35 -> 75.910872 | H37: =G37-D37 -> 0 | I37: 0 | J37: 0.3036875154 | K37: 0.3120463474
A38: Wholesale Market Service Rate (WMS) - not including CBR | B38: =B8 -> 1936.8 | C38: =VLOOKUP($A38,'Data Pass Through'!$A:$D,2,FALSE) -> 0.0032 | D38: =B38*C38 -> 6.19776 | E38: =$B$8 -> 1936.8 | F38: =VLOOKUP($A38,'Data Pass Through'!$A:$D,3,FALSE) -> 0.0032 | G38: =E38*F38 -> 6.19776 | H38: 0 | I38: 0 | J38: 0.02479463463 | K38: 0.02547709332
A39: Capacity Based Recovery (CBR) - Applicable for Class B Customers | B39: =B8 -> 1936.8 | C39: =VLOOKUP($A39,'Data Pass Through'!$A:$D,2,FALSE) -> 0.0004 | D39: =B39*C39 -> 0.77472 | E39: =$B$8 -> 1936.8 | F39: =VLOOKUP($A39,'Data Pass Through'!$A:$D,3,FALSE) -> 0.0004 | G39: =E39*F39 -> 0.77472 | H39: 0 | I39: 0 | J39: 0.003099329328 | K39: 0.003184636666
A40: Rural Rate Protection Charge | B40: =B8 -> 1936.8 | C40: =VLOOKUP($A40,'Data Pass Through'!$A:$D,2,FALSE) -> 0.0005 | D40: 0.9684 | E40: 1936.8 | F40: =VLOOKUP($A40,'Data Pass Through'!$A:$D,3,FALSE) -> 0.0005 | G40: 0.9684 | H40: 0 | I40: 0 | J40: 0.00387416166 | K40: 0.003980795832
A41: Standard Supply Service – Administration Charge (if applicable) | B41: 1 | C41: =VLOOKUP($A41,'Data Pass Through'!$A:$D,2,FALSE) -> 0.25 | D41: =B41*C41 -> 0.25 | E41: 1 | F41: =VLOOKUP($A41,'Data Pass Through'!$A:$D,3,FALSE) -> 0.25 | G41: 0.25 | H41: 0 | I41: 0 | J41: 0.001000144997 | K41: 0.001027673439
A42: Sub-Total: Regulatory | D42: =SUM(D38:D41) -> 8.19088 | G42: =SUM(G38:G41) -> 8.19088 | H42: 0 | I42: 0 | J42: 0.03276827061 | K42: 0.03367019926
A43: Debt Retirement Charge (DRC) | B43: =B4 -> 1800 | C43: =VLOOKUP($A43,'Data Pass Through'!$A:$D,2,FALSE) -> 0 | D43: =B43*C43 -> 0 | E43: 1800 | F43: =VLOOKUP($A43,'Data Pass Through'!$A:$D,3,FALSE) -> 0 | G43: =E43*F43 -> 0 | H43: 0 | I43: N/A | J43: 0 | K43: 0
A44: Total Electricty Charge on Two-Tier RPP | D44: =SUM(D14,D27,D28,D29,D35,D42,D43) -> 238.06072 | G44: =SUM(G14,G27,G28,G29,G35,G42,G43) -> 238.06072 | H44: 0 | I44: 0 | J44: 0.9523809524
A45: HST | C45: 0.13 | D45: =D44*C45 -> 30.9478936 | F45: =C45 -> 0.13 | G45: =G44*F45 -> 30.9478936 | H45: 0 | I45: 0 | J45: 0.1238095238
A46: Total Electricity Charge on Two-Tier RPP (including HST) | D46: =SUM(D44:D45) -> 269.0086136 | G46: =SUM(G44:G45) -> 269.0086136 | H46: 0 | I46: 0 | J46: 1.076190476
A47: Ontario Rebate for Electricity Consumers (OREC) | C47: -0.08 | D47: =D44*C47 -> -19.0448576 | F47: =C47 -> -0.08 | G47: =G44*F47 -> -19.0448576 | H47: 0 | I47: 0 | J47: -0.07619047619
A48: Total Amount on Two-Tier RPP | D48: =SUM(D46:D47) -> 249.963756 | G48: =SUM(G46:G47) -> 249.963756 | H48: 0 | I48: 0 | J48: 1
A49: Total Electricty Charge on TOU (before HST) | D49: =SUM(D18,D27,D28,D30,D35,D42,D43) -> 231.683752 | G49: =SUM(G18,G27,G28,G30,G35,G42,G43) -> 231.683752 | H49: 0 | I49: 0 | K49: =G49/$G$53 -> 0.9523809524
A50: HST | C50: 0.13 | D50: =D49*C50 -> 30.11888776 | F50: =C50 -> 0.13 | G50: =G49*F50 -> 30.11888776 | H50: 0 | I50: 0 | K50: =G50/$G$53 -> 0.1238095238
A51: Total Electricity Charge on TOU (including HST) | D51: =SUM(D49:D50) -> 261.8026398 | G51: =SUM(G49:G50) -> 261.8026398 | H51: 0 | I51: 0 | K51: =G51/$G$53 -> 1.076190476
A52: Ontario Rebate for Electricity Consumers (OREC) | C52: -0.08 | D52: =D49*C52 -> -18.53470016 | F52: =C52 -> -0.08 | G52: =G49*F52 -> -18.53470016 | H52: 0 | I52: 0 | K52: =G52/$G$53 -> -0.07619047619
A53: Total Amount on TOU | D53: =SUM(D51:D52) -> 243.2679396 | G53: =SUM(G51:G52) -> 243.2679396 | H53: 0 | I53: 0 | K53: =G53/$G$53 -> 1
A54: * Distribution rate protection applies to R1 and R2 customers

Sheet BI_R2_Low
A1: 2020 Bill Impacts (Low Consumption Level) - R2
A3: Rate Class | B3: =RIGHT(A1,LEN(A1)-FIND("- ",A1,1)-1) -> R2
A4: Monthly Consumption (kWh) | B4: =IF(COUNTIF(A1,"*Low*")>0,VLOOKUP(B3,'Data Billing Quantities'!$A:$Z,MATCH("Low kWh",'Data Billing Quantities'!4:4,0),FALSE),IF(COUNTIF(A1,"*Typical*")>0,VLOOKUP(B3,'Data Billing Quantities'!$A:$Z,MATCH("Typical kWh",'Data Billing Quantities'!4:4,0),FALSE),IF(COUNTIF(A1,"*Average*")>0,VLOOKUP(B3,'Data Billing Quantities'!$A:$Z,MATCH("Average kWh",'Data Billing Quantities'!4:4,0),FALSE),IF(COUNTIF(A1,"*High*")>0,VLOOKUP(B3,'Data Billing Quantities'!$A:$Z,MATCH("High kWh",'Data Billing Quantities'!4:4,0),FALSE),"error")))) -> 450
A5: Peak (kW) | B5: =IF(COUNTIF(A1,"*Low*")>0,VLOOKUP(B3,'Data Billing Quantities'!$A:$Z,MATCH("Low kW",'Data Billing Quantities'!4:4,0),FALSE),IF(COUNTIF(A1,"*Typical*")>0,VLOOKUP(B3,'Data Billing Quantities'!$A:$Z,MATCH("Typical kW",'Data Billing Quantities'!4:4,0),FALSE),IF(COUNTIF(A1,"*Average*")>0,VLOOKUP(B3,'Data Billing Quantities'!$A:$Z,MATCH("Average kW",'Data Billing Quantities'!4:4,0),FALSE),IF(COUNTIF(A1,"*High*")>0,VLOOKUP(B3,'Data Billing Quantities'!$A:$Z,MATCH("High kW",'Data Billing Quantities'!4:4,0),FALSE),"error")))) -> 0
A6: Loss factor | B6: =VLOOKUP(B3,'Data Billing Quantities'!A:D,MATCH(A6,'Data Billing Quantities'!4:4,0),FALSE) -> 1.105
A7: Commodity Threshold | B7: =VLOOKUP(B3,'Data Billing Quantities'!A:D,MATCH(A7,'Data Billing Quantities'!4:4,0),FALSE) -> 600
A8: Monthly Consumption (kWh) - Uplifted | B8: =B4*B6 -> 497.25
A9: Charge determinant | B9: =VLOOKUP(B3,'Data Billing Quantities'!A:D,MATCH(A9,'Data Billing Quantities'!4:4,0),FALSE) -> kWh
B11: Volume | C11: Current Rate ($) | D11: Current Charge ($) | E11: Volume | F11: Proposed Rate ($) | G11: Proposed Charge ($) | H11: Change ($) | I11: Change (%) | J11: % of Total Bill on RPP | K11: % of Total Bill on TOU
A12: Energy First Tier | B12: =IF(B4>B7,B7,B4) -> 450 | C12: =VLOOKUP($A12,'Data Pass Through'!$A:$D,2,FALSE) -> 0.077 | D12: =B12*C12 -> 34.65 | E12: =B12 -> 450 | F12: =VLOOKUP($A12,'Data Pass Through'!$A:$D,3,FALSE) -> 0.077 | G12: =E12*F12 -> 34.65 | H12: =G12-D12 -> 0 | I12: =IF(ISERROR(H12/ABS(D12)),"N/A",(H12/ABS(D12))) -> 0 | J12: =G12/$G$48 -> 0.3903997161
A13: Energy Second Tier | B13: =IF(B4>B7,(B4)-B7,0) -> 0 | C13: =VLOOKUP($A13,'Data Pass Through'!$A:$D,2,FALSE) -> 0.089 | D13: =B13*C13 -> 0 | E13: =B13 -> 0 | F13: =VLOOKUP($A13,'Data Pass Through'!$A:$D,3,FALSE) -> 0.089 | G13: =E13*F13 -> 0 | H13: 0 | I13: N/A | J13: =G13/$G$48 -> 0
A14: Sub-Total: Energy (RPP Tiered) | D14: =SUM(D12:D13) -> 34.65 | G14: =SUM(G12:G13) -> 34.65 | H14: 0 | I14: 0 | J14: =G14/$G$48 -> 0.3903997161
A15: TOU-Off Peak | B15: =B$4*VLOOKUP($B$3,'Data Billing Quantities'!$A:$O,MATCH(BI_R2_Low!$A15,'Data Billing Quantities'!$4:$4,0),FALSE) -> 292.5 | C15: =VLOOKUP($A15,'Data Pass Through'!$A:$D,2,FALSE) -> 0.065 | D15: =B15*C15 -> 19.0125 | E15: 292.5 | F15: =VLOOKUP($A15,'Data Pass Through'!$A:$D,3,FALSE) -> 0.065 | G15: =E15*F15 -> 19.0125 | H15: 0 | I15: 0 | K15: =G15/$G$53 -> 0.208104093
A16: TOU-Mid Peak | B16: =B$4*VLOOKUP($B$3,'Data Billing Quantities'!$A:$O,MATCH(BI_R2_Low!$A16,'Data Billing Quantities'!$4:$4,0),FALSE) -> 76.5 | C16: =VLOOKUP($A16,'Data Pass Through'!$A:$D,2,FALSE) -> 0.094 | D16: =B16*C16 -> 7.191 | E16: 76.5 | F16: =VLOOKUP($A16,'Data Pass Through'!$A:$D,3,FALSE) -> 0.094 | G16: =E16*F16 -> 7.191 | H16: 0 | I16: 0 | K16: 0.0787101398
A17: TOU-On Peak | B17: =B$4*VLOOKUP($B$3,'Data Billing Quantities'!$A:$O,MATCH(BI_R2_Low!$A17,'Data Billing Quantities'!$4:$4,0),FALSE) -> 81 | C17: =VLOOKUP($A17,'Data Pass Through'!$A:$D,2,FALSE) -> 0.132 | D17: =B17*C17 -> 10.692 | E17: 81 | F17: =VLOOKUP($A17,'Data Pass Through'!$A:$D,3,FALSE) -> 0.132 | G17: =E17*F17 -> 10.692 | H17: 0 | I17: 0 | K17: 0.1170308462
A18: Sub-Total: Energy (RPP TOU) | D18: =SUM(D15:D17) -> 36.8955 | G18: =SUM(G15:G17) -> 36.8955 | H18: 0 | I18: 0 | J18: =G18/$G$48 -> 0.4156996457 | K18: 0.403845079
A19: Service Charge | B19: 1 | C19: =VLOOKUP($B$3,'Data Current Rates'!$A:$BA,MATCH(BI_R2_Low!$A19,CurrentHeader,0),FALSE) -> 31.35 | D19: =B19*C19 -> 31.35 | E19: 1 | F19: =VLOOKUP($B$3,'Data Proposed Rates'!$A:$BA,MATCH(BI_R2_Low!$A19,ProposedHeader,0),FALSE) -> 41.19 | G19: =E19*F19 -> 41.19 | H19: 9.84 | I19: 0.3138755981 | J19: 0.4640855499 | K19: 0.4508511554
A20: Fixed Foregone Revenue Charge | B20: 1 | C20: =VLOOKUP($B$3,'Data Current Rates'!$A:$BA,MATCH(BI_R2_Low!$A20,CurrentHeader,0),FALSE) -> 4.37 | D20: 4.37 | E20: 1 | F20: =VLOOKUP($B$3,'Data Proposed Rates'!$A:$BA,MATCH(BI_R2_Low!$A20,ProposedHeader,0),FALSE) -> 4.35 | G20: 4.35 | H20: -0.02 | I20: -0.004576659039 | J20: 0.04901121977 | K20: 0.04761355975
A21: Fixed Deferral/Variance Account Rider (General) | B21: 1 | C21: =VLOOKUP($B$3,'Data Current Rates'!$A:$BA,MATCH(BI_R2_Low!$A21,CurrentHeader,0),FALSE) -> -0.03 | D21: -0.03 | E21: 1 | F21: =VLOOKUP($B$3,'Data Proposed Rates'!$A:$BA,MATCH(BI_R2_Low!$A21,ProposedHeader,0),FALSE) -> -0.03 | G21: -0.03 | H21: 0 | I21: 0 | J21: -0.0003380084122 | K21: -0.0003283693776
A22: Distribution Volumetric Charge | B22: =IF($B$9="kWh",$B$4,$B$5) -> 450 | C22: =VLOOKUP($B$3,'Data Current Rates'!$A:$BA,MATCH(BI_R2_Low!$A22,CurrentHeader,0),FALSE) -> 0.0356 | D22: 16.02 | E22: 450 | F22: =VLOOKUP($B$3,'Data Proposed Rates'!$A:$BA,MATCH(BI_R2_Low!$A22,ProposedHeader,0),FALSE) -> 0.0291 | G22: 13.095 | H22: -2.925 | I22: -0.1825842697 | J22: 0.1475406719 | K22: 0.1433332333
A23: Volumetric Foregone Revenue Charge | B23: =IF($B$9="kWh",$B$4,$B$5) -> 450 | C23: =VLOOKUP($B$3,'Data Current Rates'!$A:$BA,MATCH(BI_R2_Low!$A23,CurrentHeader,0),FALSE) -> 0.0011 | D23: 0.495 | E23: 450 | F23: =VLOOKUP($B$3,'Data Proposed Rates'!$A:$BA,MATCH(BI_R2_Low!$A23,ProposedHeader,0),FALSE) -> 0.0011 | G23: 0.495 | H23: 0 | I23: 0 | J23: 0.005577138801 | K23: 0.00541809473
A24: Volumetric Deferral/Variance Account Rider (General) | B24: =IF($B$9="kWh",$B$4,$B$5) -> 450 | C24: =VLOOKUP($B$3,'Data Current Rates'!$A:$BA,MATCH(BI_R2_Low!$A24,CurrentHeader,0),FALSE) -> -0.0008 | D24: -0.36 | E24: 450 | F24: =VLOOKUP($B$3,'Data Proposed Rates'!$A:$BA,MATCH(BI_R2_Low!$A24,ProposedHeader,0),FALSE) -> -0.0008 | G24: -0.36 | H24: 0 | I24: 0 | J24: -0.004056100946 | K24: -0.003940432531
A25: Volumetric Deferral/Variance Account Rider (Sub Account CBR) | B25: 450 | C25: =VLOOKUP($B$3,'Data Current Rates'!$A:$BA,MATCH(BI_R2_Low!$A25,CurrentHeader,0),FALSE) -> 0 | D25: 0 | E25: 450 | F25: =VLOOKUP($B$3,'Data Proposed Rates'!$A:$BA,MATCH(BI_R2_Low!$A25,ProposedHeader,0),FALSE) -> 0 | G25: 0 | H25: 0 | I25: N/A | J25: 0 | K25: 0
A26: Fair Hydro Plan - Distribution Rate Protection Savings* | D26: =IF(AND(B3<>"R1",B3<>"R2"),0,IF(VLOOKUP($A26,'Data Pass Through'!$A:$D,2,FALSE)=0,0,IF(SUM(D19:D20,D22:D23)<VLOOKUP($A26,'Data Pass Through'!$A:$D,2,FALSE),0,VLOOKUP($A26,'Data Pass Through'!$A:$D,2,FALSE)-SUM(D19:D20,D22:D23)))) -> -15.375 | G26: =IF(AND(B3<>"R1",B3<>"R2"),0,IF(VLOOKUP($A26,'Data Pass Through'!$A:$D,2,FALSE)=0,0,IF(SUM(G19:G20,G22:G23)<VLOOKUP($A26,'Data Pass Through'!$A:$D,2,FALSE),0,VLOOKUP($A26,'Data Pass Through'!$A:$D,2,FALSE)-SUM(G19:G20,G22:G23)))) -> -22.27 | H26: -6.895 | I26: -0.4484552846 | J26: -0.2509149113 | K26: -0.2437595346
A27: Sub-Total: Distribution (excluding pass through) | D27: =SUM(INDIRECT("D19:D"&ROW()-1)) -> 36.47 | G27: =SUM(INDIRECT("g19:g"&ROW()-1)) -> 36.47 | H27: =G27-D27 -> 0 | I27: 0 | J27: 0.4109055597 | K27: 0.3991877067
A28: Smart Metering Entity Charge | B28: 1 | C28: =VLOOKUP($A28,'Data Pass Through'!$A:$D,2,FALSE) -> 0.57 | D28: =B28*C28 -> 0.57 | E28: 1 | F28: =VLOOKUP($A28,'Data Pass Through'!$A:$D,3,FALSE) -> 0.57 | G28: =E28*F28 -> 0.57 | H28: 0 | I28: 0 | J28: 0.006422159832 | K28: 0.006239018174
A29: Line Losses on Cost of Power (based on two-tier RPP prices) | B29: =B8-B4 -> 47.25 | C29: =IF(B4>B7,C13,C12) -> 0.077 | D29: =B29*C29 -> 3.63825 | E29: 47.25 | F29: =IF(B4>B7,F13,F12) -> 0.077 | G29: =E29*F29 -> 3.63825 | H29: 0 | I29: 0 | J29: 0.04099197019 | K29: 0.03982299626
A30: Line Losses on Cost of Power (based on TOU prices) | B30: =B8-B4 -> 47.25 | C30: =VLOOKUP($B$3,'Data Billing Quantities'!$A:$O,MATCH(BI_R2_Low!$A15,'Data Billing Quantities'!$4:$4,0),FALSE)*C15+VLOOKUP($B$3,'Data Billing Quantities'!$A:$O,MATCH(BI_R2_Low!$A16,'Data Billing Quantities'!$4:$4,0),FALSE)*C16+VLOOKUP($B$3,'Data Billing Quantities'!$A:$O,MATCH(BI_R2_Low!$A17,'Data Billing Quantities'!$4:$4,0),FALSE)*C17 -> 0.08199 | D30: =B30*C30 -> 3.8740275 | E30: 47.25 | F30: =VLOOKUP($B$3,'Data Billing Quantities'!$A:$O,MATCH(BI_R2_Low!$A15,'Data Billing Quantities'!$4:$4,0),FALSE)*F15+VLOOKUP($B$3,'Data Billing Quantities'!$A:$O,MATCH(BI_R2_Low!$A16,'Data Billing Quantities'!$4:$4,0),FALSE)*F16+VLOOKUP($B$3,'Data Billing Quantities'!$A:$O,MATCH(BI_R2_Low!$A17,'Data Billing Quantities'!$4:$4,0),FALSE)*F17 -> 0.08199 | G30: =E30*F30 -> 3.8740275 | H30: 0 | I30: 0 | J30: 0.0436484628 | K30: 0.04240373329
A31: Sub-Total: Distribution (based on two-tier RPP prices) | D31: =SUM(D27,D28:D29) -> 40.67825 | G31: =SUM(G27,G28:G29) -> 40.67825 | H31: 0 | I31: 0 | J31: 0.4583196898 | K31: 0.4452497211
A32: Sub-Total: Distribution (based on TOU prices) | D32: =SUM(D27,D28,D30) -> 40.9140275 | G32: =SUM(G27,G28,G30) -> 40.9140275 | H32: 0 | I32: 0 | J32: 0.4609761824 | K32: 0.4478304581
A33: Retail Transmission Rate – Network Service Rate | B33: =B8 -> 497.25 | C33: =VLOOKUP($B$3,'Data Current Rates'!$A:$BA,MATCH(BI_R2_Low!$A33,CurrentHeader,0),FALSE) -> 0.0073 | D33: =B33*C33 -> 3.629925 | E33: 497.25 | F33: =VLOOKUP($B$3,'Data Proposed Rates'!$A:$BA,MATCH(BI_R2_Low!$A33,ProposedHeader,0),FALSE) -> 0.0073 | G33: =E33*F33 -> 3.629925 | H33: =G33-D33 -> 0 | I33: 0 | J33: 0.04089817285 | K33: 0.03973187376
A34: Retail Transmission Rate – Line and Transformation Connection Service Rate | B34: =B8 -> 497.25 | C34: =VLOOKUP($B$3,'Data Current Rates'!$A:$BA,MATCH(BI_R2_Low!$A34,CurrentHeader,0),FALSE) -> 0.0066 | D34: =B34*C34 -> 3.28185 | E34: 497.25 | F34: =VLOOKUP($B$3,'Data Proposed Rates'!$A:$BA,MATCH(BI_R2_Low!$A34,ProposedHeader,0),FALSE) -> 0.0066 | G34: =E34*F34 -> 3.28185 | H34: =G34-D34 -> 0 | I34: 0 | J34: 0.03697643025 | K34: 0.03592196806
A35: Sub-Total: Retail Transmission | D35: =SUM(D33:D34) -> 6.911775 | G35: =SUM(G33:G34) -> 6.911775 | H35: =G35-D35 -> 0 | I35: 0 | J35: 0.0778746031 | K35: 0.07565384182
A36: Sub-Total: Delivery (based on two-tier RPP prices) | D36: =D31+D35 -> 47.590025 | G36: =G31+G35 -> 47.590025 | H36: =G36-D36 -> 0 | I36: 0 | J36: 0.5361942929 | K36: 0.5209035629
A37: Sub-Total: Delivery (based on TOU prices) | D37: =D32+D35 -> 47.8258025 | G37: =G32+G35 -> 47.8258025 | H37: =G37-D37 -> 0 | I37: 0 | J37: 0.5388507855 | K37: 0.5234842999
A38: Wholesale Market Service Rate (WMS) - not including CBR | B38: =B8 -> 497.25 | C38: =VLOOKUP($A38,'Data Pass Through'!$A:$D,2,FALSE) -> 0.0032 | D38: =B38*C38 -> 1.5912 | E38: =$B$8 -> 497.25 | F38: =VLOOKUP($A38,'Data Pass Through'!$A:$D,3,FALSE) -> 0.0032 | G38: =E38*F38 -> 1.5912 | H38: 0 | I38: 0 | J38: 0.01792796618 | K38: 0.01741671179
A39: Capacity Based Recovery (CBR) - Applicable for Class B Customers | B39: =B8 -> 497.25 | C39: =VLOOKUP($A39,'Data Pass Through'!$A:$D,2,FALSE) -> 0.0004 | D39: =B39*C39 -> 0.1989 | E39: =$B$8 -> 497.25 | F39: =VLOOKUP($A39,'Data Pass Through'!$A:$D,3,FALSE) -> 0.0004 | G39: =E39*F39 -> 0.1989 | H39: 0 | I39: 0 | J39: 0.002240995773 | K39: 0.002177088973
A40: Rural Rate Protection Charge | B40: =B8 -> 497.25 | C40: =VLOOKUP($A40,'Data Pass Through'!$A:$D,2,FALSE) -> 0.0005 | D40: 0.248625 | E40: 497.25 | F40: =VLOOKUP($A40,'Data Pass Through'!$A:$D,3,FALSE) -> 0.0005 | G40: 0.248625 | H40: 0 | I40: 0 | J40: 0.002801244716 | K40: 0.002721361217
A41: Standard Supply Service – Administration Charge (if applicable) | B41: 1 | C41: =VLOOKUP($A41,'Data Pass Through'!$A:$D,2,FALSE) -> 0.25 | D41: =B41*C41 -> 0.25 | E41: 1 | F41: =VLOOKUP($A41,'Data Pass Through'!$A:$D,3,FALSE) -> 0.25 | G41: 0.25 | H41: 0 | I41: 0 | J41: 0.002816736768 | K41: 0.00273641148
A42: Sub-Total: Regulatory | D42: =SUM(D38:D41) -> 2.288725 | G42: =SUM(G38:G41) -> 2.288725 | H42: 0 | I42: 0 | J42: 0.02578694344 | K42: 0.02505157346
A43: Debt Retirement Charge (DRC) | B43: =B4 -> 450 | C43: =VLOOKUP($A43,'Data Pass Through'!$A:$D,2,FALSE) -> 0 | D43: =B43*C43 -> 0 | E43: 450 | F43: =VLOOKUP($A43,'Data Pass Through'!$A:$D,3,FALSE) -> 0 | G43: =E43*F43 -> 0 | H43: 0 | I43: N/A | J43: 0 | K43: 0
A44: Total Electricty Charge on Two-Tier RPP | D44: =SUM(D14,D27,D28,D29,D35,D42,D43) -> 84.52875 | G44: =SUM(G14,G27,G28,G29,G35,G42,G43) -> 84.52875 | H44: 0 | I44: 0 | J44: 0.9523809524
A45: HST | C45: 0.13 | D45: =D44*C45 -> 10.9887375 | F45: =C45 -> 0.13 | G45: =G44*F45 -> 10.9887375 | H45: 0 | I45: 0 | J45: 0.1238095238
A46: Total Electricity Charge on Two-Tier RPP (including HST) | D46: =SUM(D44:D45) -> 95.5174875 | G46: =SUM(G44:G45) -> 95.5174875 | H46: 0 | I46: 0 | J46: 1.076190476
A47: Ontario Rebate for Electricity Consumers (OREC) | C47: -0.08 | D47: =D44*C47 -> -6.7623 | F47: =C47 -> -0.08 | G47: =G44*F47 -> -6.7623 | H47: 0 | I47: 0 | J47: -0.07619047619
A48: Total Amount on Two-Tier RPP | D48: =SUM(D46:D47) -> 88.7551875 | G48: =SUM(G46:G47) -> 88.7551875 | H48: 0 | I48: 0 | J48: 1
A49: Total Electricty Charge on TOU (before HST) | D49: =SUM(D18,D27,D28,D30,D35,D42,D43) -> 87.0100275 | G49: =SUM(G18,G27,G28,G30,G35,G42,G43) -> 87.0100275 | H49: 0 | I49: 0 | K49: =G49/$G$53 -> 0.9523809524
A50: HST | C50: 0.13 | D50: =D49*C50 -> 11.31130358 | F50: =C50 -> 0.13 | G50: =G49*F50 -> 11.31130358 | H50: 0 | I50: 0 | K50: =G50/$G$53 -> 0.1238095238
A51: Total Electricity Charge on TOU (including HST) | D51: =SUM(D49:D50) -> 98.32133107 | G51: =SUM(G49:G50) -> 98.32133107 | H51: 0 | I51: 0 | K51: =G51/$G$53 -> 1.076190476
A52: Ontario Rebate for Electricity Consumers (OREC) | C52: -0.08 | D52: =D49*C52 -> -6.9608022 | F52: =C52 -> -0.08 | G52: =G49*F52 -> -6.9608022 | H52: 0 | I52: 0 | K52: =G52/$G$53 -> -0.07619047619
A53: Total Amount on TOU | D53: =SUM(D51:D52) -> 91.36052887 | G53: =SUM(G51:G52) -> 91.36052887 | H53: 0 | I53: 0 | K53: =G53/$G$53 -> 1
A54: * Distribution rate protection applies to R1 and R2 customers

Sheet BI_R2_Typical
A1: 2020 Bill Impacts (Typical Consumption Level) - R2
A3: Rate Class | B3: =RIGHT(A1,LEN(A1)-FIND("- ",A1,1)-1) -> R2
A4: Monthly Consumption (kWh) | B4: =IF(COUNTIF(A1,"*Low*")>0,VLOOKUP(B3,'Data Billing Quantities'!$A:$Z,MATCH("Low kWh",'Data Billing Quantities'!4:4,0),FALSE),IF(COUNTIF(A1,"*Typical*")>0,VLOOKUP(B3,'Data Billing Quantities'!$A:$Z,MATCH("Typical kWh",'Data Billing Quantities'!4:4,0),FALSE),IF(COUNTIF(A1,"*Average*")>0,VLOOKUP(B3,'Data Billing Quantities'!$A:$Z,MATCH("Average kWh",'Data Billing Quantities'!4:4,0),FALSE),IF(COUNTIF(A1,"*High*")>0,VLOOKUP(B3,'Data Billing Quantities'!$A:$Z,MATCH("High kWh",'Data Billing Quantities'!4:4,0),FALSE),"error")))) -> 750
A5: Peak (kW) | B5: =IF(COUNTIF(A1,"*Low*")>0,VLOOKUP(B3,'Data Billing Quantities'!$A:$Z,MATCH("Low kW",'Data Billing Quantities'!4:4,0),FALSE),IF(COUNTIF(A1,"*Typical*")>0,VLOOKUP(B3,'Data Billing Quantities'!$A:$Z,MATCH("Typical kW",'Data Billing Quantities'!4:4,0),FALSE),IF(COUNTIF(A1,"*Average*")>0,VLOOKUP(B3,'Data Billing Quantities'!$A:$Z,MATCH("Average kW",'Data Billing Quantities'!4:4,0),FALSE),IF(COUNTIF(A1,"*High*")>0,VLOOKUP(B3,'Data Billing Quantities'!$A:$Z,MATCH("High kW",'Data Billing Quantities'!4:4,0),FALSE),"error")))) -> 0
A6: Loss factor | B6: =VLOOKUP(B3,'Data Billing Quantities'!A:D,MATCH(A6,'Data Billing Quantities'!4:4,0),FALSE) -> 1.105
A7: Commodity Threshold | B7: =VLOOKUP(B3,'Data Billing Quantities'!A:D,MATCH(A7,'Data Billing Quantities'!4:4,0),FALSE) -> 600
A8: Monthly Consumption (kWh) - Uplifted | B8: =B4*B6 -> 828.75
A9: Charge determinant | B9: =VLOOKUP(B3,'Data Billing Quantities'!A:D,MATCH(A9,'Data Billing Quantities'!4:4,0),FALSE) -> kWh
B11: Volume | C11: Current Rate ($) | D11: Current Charge ($) | E11: Volume | F11: Proposed Rate ($) | G11: Proposed Charge ($) | H11: Change ($) | I11: Change (%) | J11: % of Total Bill on RPP | K11: % of Total Bill on TOU
A12: Energy First Tier | B12: =IF(B4>B7,B7,B4) -> 600 | C12: =VLOOKUP($A12,'Data Pass Through'!$A:$D,2,FALSE) -> 0.077 | D12: =B12*C12 -> 46.2 | E12: =B12 -> 600 | F12: =VLOOKUP($A12,'Data Pass Through'!$A:$D,3,FALSE) -> 0.077 | G12: =E12*F12 -> 46.2 | H12: =G12-D12 -> 0 | I12: =IF(ISERROR(H12/ABS(D12)),"N/A",(H12/ABS(D12))) -> 0 | J12: =G12/$G$48 -> 0.3712257833
A13: Energy Second Tier | B13: =IF(B4>B7,(B4)-B7,0) -> 150 | C13: =VLOOKUP($A13,'Data Pass Through'!$A:$D,2,FALSE) -> 0.089 | D13: =B13*C13 -> 13.35 | E13: =B13 -> 150 | F13: =VLOOKUP($A13,'Data Pass Through'!$A:$D,3,FALSE) -> 0.089 | G13: =E13*F13 -> 13.35 | H13: 0 | I13: 0 | J13: =G13/$G$48 -> 0.107269788
A14: Sub-Total: Energy (RPP Tiered) | D14: =SUM(D12:D13) -> 59.55 | G14: =SUM(G12:G13) -> 59.55 | H14: 0 | I14: 0 | J14: =G14/$G$48 -> 0.4784955714
A15: TOU-Off Peak | B15: =B$4*VLOOKUP($B$3,'Data Billing Quantities'!$A:$O,MATCH(BI_R2_Typical!$A15,'Data Billing Quantities'!$4:$4,0),FALSE) -> 487.5 | C15: =VLOOKUP($A15,'Data Pass Through'!$A:$D,2,FALSE) -> 0.065 | D15: =B15*C15 -> 31.6875 | E15: 487.5 | F15: =VLOOKUP($A15,'Data Pass Through'!$A:$D,3,FALSE) -> 0.065 | G15: =E15*F15 -> 31.6875 | H15: 0 | I15: 0 | K15: =G15/$G$53 -> 0.2516627649
A16: TOU-Mid Peak | B16: =B$4*VLOOKUP($B$3,'Data Billing Quantities'!$A:$O,MATCH(BI_R2_Typical!$A16,'Data Billing Quantities'!$4:$4,0),FALSE) -> 127.5 | C16: =VLOOKUP($A16,'Data Pass Through'!$A:$D,2,FALSE) -> 0.094 | D16: =B16*C16 -> 11.985 | E16: 127.5 | F16: =VLOOKUP($A16,'Data Pass Through'!$A:$D,3,FALSE) -> 0.094 | G16: =E16*F16 -> 11.985 | H16: 0 | I16: 0 | K16: 0.09518511204
A17: TOU-On Peak | B17: =B$4*VLOOKUP($B$3,'Data Billing Quantities'!$A:$O,MATCH(BI_R2_Typical!$A17,'Data Billing Quantities'!$4:$4,0),FALSE) -> 135 | C17: =VLOOKUP($A17,'Data Pass Through'!$A:$D,2,FALSE) -> 0.132 | D17: =B17*C17 -> 17.82 | E17: 135 | F17: =VLOOKUP($A17,'Data Pass Through'!$A:$D,3,FALSE) -> 0.132 | G17: =E17*F17 -> 17.82 | H17: 0 | I17: 0 | K17: 0.1415267999
A18: Sub-Total: Energy (RPP TOU) | D18: =SUM(D15:D17) -> 61.4925 | G18: =SUM(G15:G17) -> 61.4925 | H18: 0 | I18: 0 | J18: =G18/$G$48 -> 0.4941039282 | K18: 0.4883746768
A19: Service Charge | B19: 1 | C19: =VLOOKUP($B$3,'Data Current Rates'!$A:$BA,MATCH(BI_R2_Typical!$A19,CurrentHeader,0),FALSE) -> 31.35 | D19: =B19*C19 -> 31.35 | E19: 1 | F19: =VLOOKUP($B$3,'Data Proposed Rates'!$A:$BA,MATCH(BI_R2_Typical!$A19,ProposedHeader,0),FALSE) -> 41.19 | G19: =E19*F19 -> 41.19 | H19: 9.84 | I19: 0.3138755981 | J19: 0.3309694808 | K19: 0.3271318118
A20: Fixed Foregone Revenue Charge | B20: 1 | C20: =VLOOKUP($B$3,'Data Current Rates'!$A:$BA,MATCH(BI_R2_Typical!$A20,CurrentHeader,0),FALSE) -> 4.37 | D20: 4.37 | E20: 1 | F20: =VLOOKUP($B$3,'Data Proposed Rates'!$A:$BA,MATCH(BI_R2_Typical!$A20,ProposedHeader,0),FALSE) -> 4.35 | G20: 4.35 | H20: -0.02 | I20: -0.004576659039 | J20: 0.034953077 | K20: 0.03454778785
A21: Fixed Deferral/Variance Account Rider (General) | B21: 1 | C21: =VLOOKUP($B$3,'Data Current Rates'!$A:$BA,MATCH(BI_R2_Typical!$A21,CurrentHeader,0),FALSE) -> -0.03 | D21: -0.03 | E21: 1 | F21: =VLOOKUP($B$3,'Data Proposed Rates'!$A:$BA,MATCH(BI_R2_Typical!$A21,ProposedHeader,0),FALSE) -> -0.03 | G21: -0.03 | H21: 0 | I21: 0 | J21: -0.0002410557035 | K21: -0.0002382606058
A22: Distribution Volumetric Charge | B22: =IF($B$9="kWh",$B$4,$B$5) -> 750 | C22: =VLOOKUP($B$3,'Data Current Rates'!$A:$BA,MATCH(BI_R2_Typical!$A22,CurrentHeader,0),FALSE) -> 0.0356 | D22: 26.7 | E22: 750 | F22: =VLOOKUP($B$3,'Data Proposed Rates'!$A:$BA,MATCH(BI_R2_Typical!$A22,ProposedHeader,0),FALSE) -> 0.0291 | G22: 21.825 | H22: -4.875 | I22: -0.1825842697 | J22: 0.1753680243 | K22: 0.1733345908
A23: Volumetric Foregone Revenue Charge | B23: =IF($B$9="kWh",$B$4,$B$5) -> 750 | C23: =VLOOKUP($B$3,'Data Current Rates'!$A:$BA,MATCH(BI_R2_Typical!$A23,CurrentHeader,0),FALSE) -> 0.0011 | D23: 0.825 | E23: 750 | F23: =VLOOKUP($B$3,'Data Proposed Rates'!$A:$BA,MATCH(BI_R2_Typical!$A23,ProposedHeader,0),FALSE) -> 0.0011 | G23: 0.825 | H23: 0 | I23: 0 | J23: 0.006629031845 | K23: 0.006552166661
A24: Volumetric Deferral/Variance Account Rider (General) | B24: =IF($B$9="kWh",$B$4,$B$5) -> 750 | C24: =VLOOKUP($B$3,'Data Current Rates'!$A:$BA,MATCH(BI_R2_Typical!$A24,CurrentHeader,0),FALSE) -> -0.0008 | D24: -0.6 | E24: 750 | F24: =VLOOKUP($B$3,'Data Proposed Rates'!$A:$BA,MATCH(BI_R2_Typical!$A24,ProposedHeader,0),FALSE) -> -0.0008 | G24: -0.6 | H24: 0 | I24: 0 | J24: -0.004821114069 | K24: -0.004765212117
A25: Volumetric Deferral/Variance Account Rider (Sub Account CBR) | B25: 750 | C25: =VLOOKUP($B$3,'Data Current Rates'!$A:$BA,MATCH(BI_R2_Typical!$A25,CurrentHeader,0),FALSE) -> 0 | D25: 0 | E25: 750 | F25: =VLOOKUP($B$3,'Data Proposed Rates'!$A:$BA,MATCH(BI_R2_Typical!$A25,ProposedHeader,0),FALSE) -> 0 | G25: 0 | H25: 0 | I25: N/A | J25: 0 | K25: 0
A26: Fair Hydro Plan - Distribution Rate Protection Savings* | D26: =IF(AND(B3<>"R1",B3<>"R2"),0,IF(VLOOKUP($A26,'Data Pass Through'!$A:$D,2,FALSE)=0,0,IF(SUM(D19:D20,D22:D23)<VLOOKUP($A26,'Data Pass Through'!$A:$D,2,FALSE),0,VLOOKUP($A26,'Data Pass Through'!$A:$D,2,FALSE)-SUM(D19:D20,D22:D23)))) -> -26.385 | G26: =IF(AND(B3<>"R1",B3<>"R2"),0,IF(VLOOKUP($A26,'Data Pass Through'!$A:$D,2,FALSE)=0,0,IF(SUM(G19:G20,G22:G23)<VLOOKUP($A26,'Data Pass Through'!$A:$D,2,FALSE),0,VLOOKUP($A26,'Data Pass Through'!$A:$D,2,FALSE)-SUM(G19:G20,G22:G23)))) -> -31.33 | H26: -4.945 | I26: -0.187417093 | J26: -0.2517425063 | K26: -0.2488234927
A27: Sub-Total: Distribution (excluding pass through) | D27: =SUM(INDIRECT("D19:D"&ROW()-1)) -> 36.23 | G27: =SUM(INDIRECT("g19:g"&ROW()-1)) -> 36.23 | H27: =G27-D27 -> 0 | I27: 0 | J27: 0.2911149379 | K27: 0.2877393917
A28: Smart Metering Entity Charge | B28: 1 | C28: =VLOOKUP($A28,'Data Pass Through'!$A:$D,2,FALSE) -> 0.57 | D28: =B28*C28 -> 0.57 | E28: 1 | F28: =VLOOKUP($A28,'Data Pass Through'!$A:$D,3,FALSE) -> 0.57 | G28: =E28*F28 -> 0.57 | H28: 0 | I28: 0 | J28: 0.004580058366 | K28: 0.004526951511
A29: Line Losses on Cost of Power (based on two-tier RPP prices) | B29: =B8-B4 -> 78.75 | C29: =IF(B4>B7,C13,C12) -> 0.089 | D29: =B29*C29 -> 7.00875 | E29: 78.75 | F29: =IF(B4>B7,F13,F12) -> 0.089 | G29: =E29*F29 -> 7.00875 | H29: 0 | I29: 0 | J29: 0.05631663872 | K29: 0.05566363404
A30: Line Losses on Cost of Power (based on TOU prices) | B30: =B8-B4 -> 78.75 | C30: =VLOOKUP($B$3,'Data Billing Quantities'!$A:$O,MATCH(BI_R2_Typical!$A15,'Data Billing Quantities'!$4:$4,0),FALSE)*C15+VLOOKUP($B$3,'Data Billing Quantities'!$A:$O,MATCH(BI_R2_Typical!$A16,'Data Billing Quantities'!$4:$4,0),FALSE)*C16+VLOOKUP($B$3,'Data Billing Quantities'!$A:$O,MATCH(BI_R2_Typical!$A17,'Data Billing Quantities'!$4:$4,0),FALSE)*C17 -> 0.08199 | D30: =B30*C30 -> 6.4567125 | E30: 78.75 | F30: =VLOOKUP($B$3,'Data Billing Quantities'!$A:$O,MATCH(BI_R2_Typical!$A15,'Data Billing Quantities'!$4:$4,0),FALSE)*F15+VLOOKUP($B$3,'Data Billing Quantities'!$A:$O,MATCH(BI_R2_Typical!$A16,'Data Billing Quantities'!$4:$4,0),FALSE)*F16+VLOOKUP($B$3,'Data Billing Quantities'!$A:$O,MATCH(BI_R2_Typical!$A17,'Data Billing Quantities'!$4:$4,0),FALSE)*F17 -> 0.08199 | G30: =E30*F30 -> 6.4567125 | H30: 0 | I30: 0 | J30: 0.05188091246 | K30: 0.05127934107
A31: Sub-Total: Distribution (based on two-tier RPP prices) | D31: =SUM(D27,D28:D29) -> 43.80875 | G31: =SUM(G27,G28:G29) -> 43.80875 | H31: 0 | I31: 0 | J31: 0.352011635 | K31: 0.3479299772
A32: Sub-Total: Distribution (based on TOU prices) | D32: =SUM(D27,D28,D30) -> 43.2567125 | G32: =SUM(G27,G28,G30) -> 43.2567125 | H32: 0 | I32: 0 | J32: 0.3475759087 | K32: 0.3435456842
A33: Retail Transmission Rate – Network Service Rate | B33: =B8 -> 828.75 | C33: =VLOOKUP($B$3,'Data Current Rates'!$A:$BA,MATCH(BI_R2_Typical!$A33,CurrentHeader,0),FALSE) -> 0.0073 | D33: =B33*C33 -> 6.049875 | E33: 828.75 | F33: =VLOOKUP($B$3,'Data Proposed Rates'!$A:$BA,MATCH(BI_R2_Typical!$A33,ProposedHeader,0),FALSE) -> 0.0073 | G33: =E33*F33 -> 6.049875 | H33: =G33-D33 -> 0 | I33: 0 | J33: 0.0486118958 | K33: 0.04804822943
A34: Retail Transmission Rate – Line and Transformation Connection Service Rate | B34: =B8 -> 828.75 | C34: =VLOOKUP($B$3,'Data Current Rates'!$A:$BA,MATCH(BI_R2_Typical!$A34,CurrentHeader,0),FALSE) -> 0.0066 | D34: =B34*C34 -> 5.46975 | E34: 828.75 | F34: =VLOOKUP($B$3,'Data Proposed Rates'!$A:$BA,MATCH(BI_R2_Typical!$A34,ProposedHeader,0),FALSE) -> 0.0066 | G34: =E34*F34 -> 5.46975 | H34: =G34-D34 -> 0 | I34: 0 | J34: 0.04395048113 | K34: 0.04344086496
A35: Sub-Total: Retail Transmission | D35: =SUM(D33:D34) -> 11.519625 | G35: =SUM(G33:G34) -> 11.519625 | H35: =G35-D35 -> 0 | I35: 0 | J35: 0.09256237693 | K35: 0.09148909439
A36: Sub-Total: Delivery (based on two-tier RPP prices) | D36: =D31+D35 -> 55.328375 | G36: =G31+G35 -> 55.328375 | H36: =G36-D36 -> 0 | I36: 0 | J36: 0.4445740119 | K36: 0.4394190716
A37: Sub-Total: Delivery (based on TOU prices) | D37: =D32+D35 -> 54.7763375 | G37: =G32+G35 -> 54.7763375 | H37: =G37-D37 -> 0 | I37: 0 | J37: 0.4401382856 | K37: 0.4350347786
A38: Wholesale Market Service Rate (WMS) - not including CBR | B38: =B8 -> 828.75 | C38: =VLOOKUP($A38,'Data Pass Through'!$A:$D,2,FALSE) -> 0.0032 | D38: =B38*C38 -> 2.652 | E38: =$B$8 -> 828.75 | F38: =VLOOKUP($A38,'Data Pass Through'!$A:$D,3,FALSE) -> 0.0032 | G38: =E38*F38 -> 2.652 | H38: 0 | I38: 0 | J38: 0.02130932419 | K38: 0.02106223756
A39: Capacity Based Recovery (CBR) - Applicable for Class B Customers | B39: =B8 -> 828.75 | C39: =VLOOKUP($A39,'Data Pass Through'!$A:$D,2,FALSE) -> 0.0004 | D39: =B39*C39 -> 0.3315 | E39: =$B$8 -> 828.75 | F39: =VLOOKUP($A39,'Data Pass Through'!$A:$D,3,FALSE) -> 0.0004 | G39: =E39*F39 -> 0.3315 | H39: 0 | I39: 0 | J39: 0.002663665523 | K39: 0.002632779695
A40: Rural Rate Protection Charge | B40: =B8 -> 828.75 | C40: =VLOOKUP($A40,'Data Pass Through'!$A:$D,2,FALSE) -> 0.0005 | D40: 0.414375 | E40: 828.75 | F40: =VLOOKUP($A40,'Data Pass Through'!$A:$D,3,FALSE) -> 0.0005 | G40: 0.414375 | H40: 0 | I40: 0 | J40: 0.003329581904 | K40: 0.003290974618
A41: Standard Supply Service – Administration Charge (if applicable) | B41: 1 | C41: =VLOOKUP($A41,'Data Pass Through'!$A:$D,2,FALSE) -> 0.25 | D41: =B41*C41 -> 0.25 | E41: 1 | F41: =VLOOKUP($A41,'Data Pass Through'!$A:$D,3,FALSE) -> 0.25 | G41: 0.25 | H41: 0 | I41: 0 | J41: 0.002008797529 | K41: 0.001985505049
A42: Sub-Total: Regulatory | D42: =SUM(D38:D41) -> 3.647875 | G42: =SUM(G38:G41) -> 3.647875 | H42: 0 | I42: 0 | J42: 0.02931136914 | K42: 0.02897149692
A43: Debt Retirement Charge (DRC) | B43: =B4 -> 750 | C43: =VLOOKUP($A43,'Data Pass Through'!$A:$D,2,FALSE) -> 0 | D43: =B43*C43 -> 0 | E43: 750 | F43: =VLOOKUP($A43,'Data Pass Through'!$A:$D,3,FALSE) -> 0 | G43: =E43*F43 -> 0 | H43: 0 | I43: N/A | J43: 0 | K43: 0
A44: Total Electricty Charge on Two-Tier RPP | D44: =SUM(D14,D27,D28,D29,D35,D42,D43) -> 118.52625 | G44: =SUM(G14,G27,G28,G29,G35,G42,G43) -> 118.52625 | H44: 0 | I44: 0 | J44: 0.9523809524
A45: HST | C45: 0.13 | D45: =D44*C45 -> 15.4084125 | F45: =C45 -> 0.13 | G45: =G44*F45 -> 15.4084125 | H45: 0 | I45: 0 | J45: 0.1238095238
A46: Total Electricity Charge on Two-Tier RPP (including HST) | D46: =SUM(D44:D45) -> 133.9346625 | G46: =SUM(G44:G45) -> 133.9346625 | H46: 0 | I46: 0 | J46: 1.076190476
A47: Ontario Rebate for Electricity Consumers (OREC) | C47: -0.08 | D47: =D44*C47 -> -9.4821 | F47: =C47 -> -0.08 | G47: =G44*F47 -> -9.4821 | H47: 0 | I47: 0 | J47: -0.07619047619
A48: Total Amount on Two-Tier RPP | D48: =SUM(D46:D47) -> 124.4525625 | G48: =SUM(G46:G47) -> 124.4525625 | H48: 0 | I48: 0 | J48: 1
A49: Total Electricty Charge on TOU (before HST) | D49: =SUM(D18,D27,D28,D30,D35,D42,D43) -> 119.9167125 | G49: =SUM(G18,G27,G28,G30,G35,G42,G43) -> 119.9167125 | H49: 0 | I49: 0 | K49: =G49/$G$53 -> 0.9523809524
A50: HST | C50: 0.13 | D50: =D49*C50 -> 15.58917262 | F50: =C50 -> 0.13 | G50: =G49*F50 -> 15.58917262 | H50: 0 | I50: 0 | K50: =G50/$G$53 -> 0.1238095238
A51: Total Electricity Charge on TOU (including HST) | D51: =SUM(D49:D50) -> 135.5058851 | G51: =SUM(G49:G50) -> 135.5058851 | H51: 0 | I51: 0 | K51: =G51/$G$53 -> 1.076190476
A52: Ontario Rebate for Electricity Consumers (OREC) | C52: -0.08 | D52: =D49*C52 -> -9.593337 | F52: =C52 -> -0.08 | G52: =G49*F52 -> -9.593337 | H52: 0 | I52: 0 | K52: =G52/$G$53 -> -0.07619047619
A53: Total Amount on TOU | D53: =SUM(D51:D52) -> 125.9125481 | G53: =SUM(G51:G52) -> 125.9125481 | H53: 0 | I53: 0 | K53: =G53/$G$53 -> 1
A54: * Distribution rate protection applies to R1 and R2 customers

Sheet BI_R2_Avg
A1: 2020 Bill Impacts (Average Consumption Level) - R2
A3: Rate Class | B3: =RIGHT(A1,LEN(A1)-FIND("- ",A1,1)-1) -> R2
A4: Monthly Consumption (kWh) | B4: =IF(COUNTIF(A1,"*Low*")>0,VLOOKUP(B3,'Data Billing Quantities'!$A:$Z,MATCH("Low kWh",'Data Billing Quantities'!4:4,0),FALSE),IF(COUNTIF(A1,"*Typical*")>0,VLOOKUP(B3,'Data Billing Quantities'!$A:$Z,MATCH("Typical kWh",'Data Billing Quantities'!4:4,0),FALSE),IF(COUNTIF(A1,"*Average*")>0,VLOOKUP(B3,'Data Billing Quantities'!$A:$Z,MATCH("Average kWh",'Data Billing Quantities'!4:4,0),FALSE),IF(COUNTIF(A1,"*High*")>0,VLOOKUP(B3,'Data Billing Quantities'!$A:$Z,MATCH("High kWh",'Data Billing Quantities'!4:4,0),FALSE),"error")))) -> 1152
A5: Peak (kW) | B5: =IF(COUNTIF(A1,"*Low*")>0,VLOOKUP(B3,'Data Billing Quantities'!$A:$Z,MATCH("Low kW",'Data Billing Quantities'!4:4,0),FALSE),IF(COUNTIF(A1,"*Typical*")>0,VLOOKUP(B3,'Data Billing Quantities'!$A:$Z,MATCH("Typical kW",'Data Billing Quantities'!4:4,0),FALSE),IF(COUNTIF(A1,"*Average*")>0,VLOOKUP(B3,'Data Billing Quantities'!$A:$Z,MATCH("Average kW",'Data Billing Quantities'!4:4,0),FALSE),IF(COUNTIF(A1,"*High*")>0,VLOOKUP(B3,'Data Billing Quantities'!$A:$Z,MATCH("High kW",'Data Billing Quantities'!4:4,0),FALSE),"error")))) -> 0
A6: Loss factor | B6: =VLOOKUP(B3,'Data Billing Quantities'!A:D,MATCH(A6,'Data Billing Quantities'!4:4,0),FALSE) -> 1.105
A7: Commodity Threshold | B7: =VLOOKUP(B3,'Data Billing Quantities'!A:D,MATCH(A7,'Data Billing Quantities'!4:4,0),FALSE) -> 600
A8: Monthly Consumption (kWh) - Uplifted | B8: =B4*B6 -> 1272.96
A9: Charge determinant | B9: =VLOOKUP(B3,'Data Billing Quantities'!A:D,MATCH(A9,'Data Billing Quantities'!4:4,0),FALSE) -> kWh
B11: Volume | C11: Current Rate ($) | D11: Current Charge ($) | E11: Volume | F11: Proposed Rate ($) | G11: Proposed Charge ($) | H11: Change ($) | I11: Change (%) | J11: % of Total Bill on RPP | K11: % of Total Bill on TOU
A12: Energy First Tier | B12: =IF(B4>B7,B7,B4) -> 600 | C12: =VLOOKUP($A12,'Data Pass Through'!$A:$D,2,FALSE) -> 0.077 | D12: =B12*C12 -> 46.2 | E12: =B12 -> 600 | F12: =VLOOKUP($A12,'Data Pass Through'!$A:$D,3,FALSE) -> 0.077 | G12: =E12*F12 -> 46.2 | H12: =G12-D12 -> 0 | I12: =IF(ISERROR(H12/ABS(D12)),"N/A",(H12/ABS(D12))) -> 0 | J12: =G12/$G$48 -> 0.2654838636
A13: Energy Second Tier | B13: =IF(B4>B7,(B4)-B7,0) -> 552 | C13: =VLOOKUP($A13,'Data Pass Through'!$A:$D,2,FALSE) -> 0.089 | D13: =B13*C13 -> 49.128 | E13: =B13 -> 552 | F13: =VLOOKUP($A13,'Data Pass Through'!$A:$D,3,FALSE) -> 0.089 | G13: =E13*F13 -> 49.128 | H13: 0 | I13: 0 | J13: =G13/$G$48 -> 0.2823093345
A14: Sub-Total: Energy (RPP Tiered) | D14: =SUM(D12:D13) -> 95.328 | G14: =SUM(G12:G13) -> 95.328 | H14: 0 | I14: 0 | J14: =G14/$G$48 -> 0.5477931981
A15: TOU-Off Peak | B15: =B$4*VLOOKUP($B$3,'Data Billing Quantities'!$A:$O,MATCH(BI_R2_Avg!$A15,'Data Billing Quantities'!$4:$4,0),FALSE) -> 748.8 | C15: =VLOOKUP($A15,'Data Pass Through'!$A:$D,2,FALSE) -> 0.065 | D15: =B15*C15 -> 48.672 | E15: 748.8 | F15: =VLOOKUP($A15,'Data Pass Through'!$A:$D,3,FALSE) -> 0.065 | G15: =E15*F15 -> 48.672 | H15: 0 | I15: 0 | K15: =G15/$G$53 -> 0.2826279715
A16: TOU-Mid Peak | B16: =B$4*VLOOKUP($B$3,'Data Billing Quantities'!$A:$O,MATCH(BI_R2_Avg!$A16,'Data Billing Quantities'!$4:$4,0),FALSE) -> 195.84 | C16: =VLOOKUP($A16,'Data Pass Through'!$A:$D,2,FALSE) -> 0.094 | D16: =B16*C16 -> 18.40896 | E16: 195.84 | F16: =VLOOKUP($A16,'Data Pass Through'!$A:$D,3,FALSE) -> 0.094 | G16: =E16*F16 -> 18.40896 | H16: 0 | I16: 0 | K16: 0.1068969227
A17: TOU-On Peak | B17: =B$4*VLOOKUP($B$3,'Data Billing Quantities'!$A:$O,MATCH(BI_R2_Avg!$A17,'Data Billing Quantities'!$4:$4,0),FALSE) -> 207.36 | C17: =VLOOKUP($A17,'Data Pass Through'!$A:$D,2,FALSE) -> 0.132 | D17: =B17*C17 -> 27.37152 | E17: 207.36 | F17: =VLOOKUP($A17,'Data Pass Through'!$A:$D,3,FALSE) -> 0.132 | G17: =E17*F17 -> 27.37152 | H17: 0 | I17: 0 | K17: 0.158940606
A18: Sub-Total: Energy (RPP TOU) | D18: =SUM(D15:D17) -> 94.45248 | G18: =SUM(G15:G17) -> 94.45248 | H18: 0 | I18: 0 | J18: =G18/$G$48 -> 0.5427621065 | K18: 0.5484655003
A19: Service Charge | B19: 1 | C19: =VLOOKUP($B$3,'Data Current Rates'!$A:$BA,MATCH(BI_R2_Avg!$A19,CurrentHeader,0),FALSE) -> 31.35 | D19: =B19*C19 -> 31.35 | E19: 1 | F19: =VLOOKUP($B$3,'Data Proposed Rates'!$A:$BA,MATCH(BI_R2_Avg!$A19,ProposedHeader,0),FALSE) -> 41.19 | G19: =E19*F19 -> 41.19 | H19: 9.84 | I19: 0.3138755981 | J19: 0.2366943797 | K19: 0.2391815859
A20: Fixed Foregone Revenue Charge | B20: 1 | C20: =VLOOKUP($B$3,'Data Current Rates'!$A:$BA,MATCH(BI_R2_Avg!$A20,CurrentHeader,0),FALSE) -> 4.37 | D20: 4.37 | E20: 1 | F20: =VLOOKUP($B$3,'Data Proposed Rates'!$A:$BA,MATCH(BI_R2_Avg!$A20,ProposedHeader,0),FALSE) -> 4.35 | G20: 4.35 | H20: -0.02 | I20: -0.004576659039 | J20: 0.02499685729 | K20: 0.02525952655
A21: Fixed Deferral/Variance Account Rider (General) | B21: 1 | C21: =VLOOKUP($B$3,'Data Current Rates'!$A:$BA,MATCH(BI_R2_Avg!$A21,CurrentHeader,0),FALSE) -> -0.03 | D21: -0.03 | E21: 1 | F21: =VLOOKUP($B$3,'Data Proposed Rates'!$A:$BA,MATCH(BI_R2_Avg!$A21,ProposedHeader,0),FALSE) -> -0.03 | G21: -0.03 | H21: 0 | I21: 0 | J21: -0.0001723921193 | K21: -0.0001742036314
A22: Distribution Volumetric Charge | B22: =IF($B$9="kWh",$B$4,$B$5) -> 1152 | C22: =VLOOKUP($B$3,'Data Current Rates'!$A:$BA,MATCH(BI_R2_Avg!$A22,CurrentHeader,0),FALSE) -> 0.0356 | D22: 41.0112 | E22: 1152 | F22: =VLOOKUP($B$3,'Data Proposed Rates'!$A:$BA,MATCH(BI_R2_Avg!$A22,ProposedHeader,0),FALSE) -> 0.0291 | G22: 33.5232 | H22: -7.488 | I22: -0.1825842697 | J22: 0.1926378497 | K22: 0.1946621058
A23: Volumetric Foregone Revenue Charge | B23: =IF($B$9="kWh",$B$4,$B$5) -> 1152 | C23: =VLOOKUP($B$3,'Data Current Rates'!$A:$BA,MATCH(BI_R2_Avg!$A23,CurrentHeader,0),FALSE) -> 0.0011 | D23: 1.2672 | E23: 1152 | F23: =VLOOKUP($B$3,'Data Proposed Rates'!$A:$BA,MATCH(BI_R2_Avg!$A23,ProposedHeader,0),FALSE) -> 0.0011 | G23: 1.2672 | H23: 0 | I23: 0 | J23: 0.007281843117 | K23: 0.007358361389
A24: Volumetric Deferral/Variance Account Rider (General) | B24: =IF($B$9="kWh",$B$4,$B$5) -> 1152 | C24: =VLOOKUP($B$3,'Data Current Rates'!$A:$BA,MATCH(BI_R2_Avg!$A24,CurrentHeader,0),FALSE) -> -0.0008 | D24: -0.9216 | E24: 1152 | F24: =VLOOKUP($B$3,'Data Proposed Rates'!$A:$BA,MATCH(BI_R2_Avg!$A24,ProposedHeader,0),FALSE) -> -0.0008 | G24: -0.9216 | H24: 0 | I24: 0 | J24: -0.005295885903 | K24: -0.005351535556
A25: Volumetric Deferral/Variance Account Rider (Sub Account CBR) | B25: 1152 | C25: =VLOOKUP($B$3,'Data Current Rates'!$A:$BA,MATCH(BI_R2_Avg!$A25,CurrentHeader,0),FALSE) -> 0 | D25: 0 | E25: 1152 | F25: =VLOOKUP($B$3,'Data Proposed Rates'!$A:$BA,MATCH(BI_R2_Avg!$A25,ProposedHeader,0),FALSE) -> 0 | G25: 0 | H25: 0 | I25: N/A | J25: 0 | K25: 0
A26: Fair Hydro Plan - Distribution Rate Protection Savings* | D26: =IF(AND(B3<>"R1",B3<>"R2"),0,IF(VLOOKUP($A26,'Data Pass Through'!$A:$D,2,FALSE)=0,0,IF(SUM(D19:D20,D22:D23)<VLOOKUP($A26,'Data Pass Through'!$A:$D,2,FALSE),0,VLOOKUP($A26,'Data Pass Through'!$A:$D,2,FALSE)-SUM(D19:D20,D22:D23)))) -> -41.1384 | G26: =IF(AND(B3<>"R1",B3<>"R2"),0,IF(VLOOKUP($A26,'Data Pass Through'!$A:$D,2,FALSE)=0,0,IF(SUM(G19:G20,G22:G23)<VLOOKUP($A26,'Data Pass Through'!$A:$D,2,FALSE),0,VLOOKUP($A26,'Data Pass Through'!$A:$D,2,FALSE)-SUM(G19:G20,G22:G23)))) -> -43.4704 | H26: -2.332 | I26: -0.05668669661 | J26: -0.2497984794 | K26: -0.2524233846
A27: Sub-Total: Distribution (excluding pass through) | D27: =SUM(INDIRECT("D19:D"&ROW()-1)) -> 35.9084 | G27: =SUM(INDIRECT("g19:g"&ROW()-1)) -> 35.9084 | H27: =G27-D27 -> 0 | I27: 0 | J27: 0.2063441725 | K27: 0.2085124559
A28: Smart Metering Entity Charge | B28: 1 | C28: =VLOOKUP($A28,'Data Pass Through'!$A:$D,2,FALSE) -> 0.57 | D28: =B28*C28 -> 0.57 | E28: 1 | F28: =VLOOKUP($A28,'Data Pass Through'!$A:$D,3,FALSE) -> 0.57 | G28: =E28*F28 -> 0.57 | H28: 0 | I28: 0 | J28: 0.003275450266 | K28: 0.003309868996
A29: Line Losses on Cost of Power (based on two-tier RPP prices) | B29: =B8-B4 -> 120.96 | C29: =IF(B4>B7,C13,C12) -> 0.089 | D29: =B29*C29 -> 10.76544 | E29: 120.96 | F29: =IF(B4>B7,F13,F12) -> 0.089 | G29: =E29*F29 -> 10.76544 | H29: 0 | I29: 0 | J29: 0.06186256721 | K29: 0.06251262471
A30: Line Losses on Cost of Power (based on TOU prices) | B30: =B8-B4 -> 120.96 | C30: =VLOOKUP($B$3,'Data Billing Quantities'!$A:$O,MATCH(BI_R2_Avg!$A15,'Data Billing Quantities'!$4:$4,0),FALSE)*C15+VLOOKUP($B$3,'Data Billing Quantities'!$A:$O,MATCH(BI_R2_Avg!$A16,'Data Billing Quantities'!$4:$4,0),FALSE)*C16+VLOOKUP($B$3,'Data Billing Quantities'!$A:$O,MATCH(BI_R2_Avg!$A17,'Data Billing Quantities'!$4:$4,0),FALSE)*C17 -> 0.08199 | D30: =B30*C30 -> 9.9175104 | E30: 120.96 | F30: =VLOOKUP($B$3,'Data Billing Quantities'!$A:$O,MATCH(BI_R2_Avg!$A15,'Data Billing Quantities'!$4:$4,0),FALSE)*F15+VLOOKUP($B$3,'Data Billing Quantities'!$A:$O,MATCH(BI_R2_Avg!$A16,'Data Billing Quantities'!$4:$4,0),FALSE)*F16+VLOOKUP($B$3,'Data Billing Quantities'!$A:$O,MATCH(BI_R2_Avg!$A17,'Data Billing Quantities'!$4:$4,0),FALSE)*F17 -> 0.08199 | G30: =E30*F30 -> 9.9175104 | H30: 0 | I30: 0 | J30: 0.05699002119 | K30: 0.05758887753
A31: Sub-Total: Distribution (based on two-tier RPP prices) | D31: =SUM(D27,D28:D29) -> 47.24384 | G31: =SUM(G27,G28:G29) -> 47.24384 | H31: 0 | I31: 0 | J31: 0.27148219 | K31: 0.2743349496
A32: Sub-Total: Distribution (based on TOU prices) | D32: =SUM(D27,D28,D30) -> 46.3959104 | G32: =SUM(G27,G28,G30) -> 46.3959104 | H32: 0 | I32: 0 | J32: 0.266609644 | K32: 0.2694112024
A33: Retail Transmission Rate – Network Service Rate | B33: =B8 -> 1272.96 | C33: =VLOOKUP($B$3,'Data Current Rates'!$A:$BA,MATCH(BI_R2_Avg!$A33,CurrentHeader,0),FALSE) -> 0.0073 | D33: =B33*C33 -> 9.292608 | E33: 1272.96 | F33: =VLOOKUP($B$3,'Data Proposed Rates'!$A:$BA,MATCH(BI_R2_Avg!$A33,ProposedHeader,0),FALSE) -> 0.0073 | G33: =E33*F33 -> 9.292608 | H33: =G33-D33 -> 0 | I33: 0 | J33: 0.05339907955 | K33: 0.05396020195
A34: Retail Transmission Rate – Line and Transformation Connection Service Rate | B34: =B8 -> 1272.96 | C34: =VLOOKUP($B$3,'Data Current Rates'!$A:$BA,MATCH(BI_R2_Avg!$A34,CurrentHeader,0),FALSE) -> 0.0066 | D34: =B34*C34 -> 8.401536 | E34: 1272.96 | F34: =VLOOKUP($B$3,'Data Proposed Rates'!$A:$BA,MATCH(BI_R2_Avg!$A34,ProposedHeader,0),FALSE) -> 0.0066 | G34: =E34*F34 -> 8.401536 | H34: =G34-D34 -> 0 | I34: 0 | J34: 0.04827861987 | K34: 0.04878593601
A35: Sub-Total: Retail Transmission | D35: =SUM(D33:D34) -> 17.694144 | G35: =SUM(G33:G34) -> 17.694144 | H35: =G35-D35 -> 0 | I35: 0 | J35: 0.1016776994 | K35: 0.102746138
A36: Sub-Total: Delivery (based on two-tier RPP prices) | D36: =D31+D35 -> 64.937984 | G36: =G31+G35 -> 64.937984 | H36: =G36-D36 -> 0 | I36: 0 | J36: 0.3731598894 | K36: 0.3770810876
A37: Sub-Total: Delivery (based on TOU prices) | D37: =D32+D35 -> 64.0900544 | G37: =G32+G35 -> 64.0900544 | H37: =G37-D37 -> 0 | I37: 0 | J37: 0.3682873434 | K37: 0.3721573404
A38: Wholesale Market Service Rate (WMS) - not including CBR | B38: =B8 -> 1272.96 | C38: =VLOOKUP($A38,'Data Pass Through'!$A:$D,2,FALSE) -> 0.0032 | D38: =B38*C38 -> 4.073472 | E38: =$B$8 -> 1272.96 | F38: =VLOOKUP($A38,'Data Pass Through'!$A:$D,3,FALSE) -> 0.0032 | G38: =E38*F38 -> 4.073472 | H38: 0 | I38: 0 | J38: 0.02340781569 | K38: 0.02365378716
A39: Capacity Based Recovery (CBR) - Applicable for Class B Customers | B39: =B8 -> 1272.96 | C39: =VLOOKUP($A39,'Data Pass Through'!$A:$D,2,FALSE) -> 0.0004 | D39: =B39*C39 -> 0.509184 | E39: =$B$8 -> 1272.96 | F39: =VLOOKUP($A39,'Data Pass Through'!$A:$D,3,FALSE) -> 0.0004 | G39: =E39*F39 -> 0.509184 | H39: 0 | I39: 0 | J39: 0.002925976962 | K39: 0.002956723395
A40: Rural Rate Protection Charge | B40: =B8 -> 1272.96 | C40: =VLOOKUP($A40,'Data Pass Through'!$A:$D,2,FALSE) -> 0.0005 | D40: 0.63648 | E40: 1272.96 | F40: =VLOOKUP($A40,'Data Pass Through'!$A:$D,3,FALSE) -> 0.0005 | G40: 0.63648 | H40: 0 | I40: 0 | J40: 0.003657471202 | K40: 0.003695904243
A41: Standard Supply Service – Administration Charge (if applicable) | B41: 1 | C41: =VLOOKUP($A41,'Data Pass Through'!$A:$D,2,FALSE) -> 0.25 | D41: =B41*C41 -> 0.25 | E41: 1 | F41: =VLOOKUP($A41,'Data Pass Through'!$A:$D,3,FALSE) -> 0.25 | G41: 0.25 | H41: 0 | I41: 0 | J41: 0.001436600994 | K41: 0.001451696928
A42: Sub-Total: Regulatory | D42: =SUM(D38:D41) -> 5.469136 | G42: =SUM(G38:G41) -> 5.469136 | H42: 0 | I42: 0 | J42: 0.03142786485 | K42: 0.03175811172
A43: Debt Retirement Charge (DRC) | B43: =B4 -> 1152 | C43: =VLOOKUP($A43,'Data Pass Through'!$A:$D,2,FALSE) -> 0 | D43: =B43*C43 -> 0 | E43: 1152 | F43: =VLOOKUP($A43,'Data Pass Through'!$A:$D,3,FALSE) -> 0 | G43: =E43*F43 -> 0 | H43: 0 | I43: N/A | J43: 0 | K43: 0
A44: Total Electricty Charge on Two-Tier RPP | D44: =SUM(D14,D27,D28,D29,D35,D42,D43) -> 165.73512 | G44: =SUM(G14,G27,G28,G29,G35,G42,G43) -> 165.73512 | H44: 0 | I44: 0 | J44: 0.9523809524
A45: HST | C45: 0.13 | D45: =D44*C45 -> 21.5455656 | F45: =C45 -> 0.13 | G45: =G44*F45 -> 21.5455656 | H45: 0 | I45: 0 | J45: 0.1238095238
A46: Total Electricity Charge on Two-Tier RPP (including HST) | D46: =SUM(D44:D45) -> 187.2806856 | G46: =SUM(G44:G45) -> 187.2806856 | H46: 0 | I46: 0 | J46: 1.076190476
A47: Ontario Rebate for Electricity Consumers (OREC) | C47: -0.08 | D47: =D44*C47 -> -13.2588096 | F47: =C47 -> -0.08 | G47: =G44*F47 -> -13.2588096 | H47: 0 | I47: 0 | J47: -0.07619047619
A48: Total Amount on Two-Tier RPP | D48: =SUM(D46:D47) -> 174.021876 | G48: =SUM(G46:G47) -> 174.021876 | H48: 0 | I48: 0 | J48: 1
A49: Total Electricty Charge on TOU (before HST) | D49: =SUM(D18,D27,D28,D30,D35,D42,D43) -> 164.0116704 | G49: =SUM(G18,G27,G28,G30,G35,G42,G43) -> 164.0116704 | H49: 0 | I49: 0 | K49: =G49/$G$53 -> 0.9523809524
A50: HST | C50: 0.13 | D50: =D49*C50 -> 21.32151715 | F50: =C50 -> 0.13 | G50: =G49*F50 -> 21.32151715 | H50: 0 | I50: 0 | K50: =G50/$G$53 -> 0.1238095238
A51: Total Electricity Charge on TOU (including HST) | D51: =SUM(D49:D50) -> 185.3331876 | G51: =SUM(G49:G50) -> 185.3331876 | H51: 0 | I51: 0 | K51: =G51/$G$53 -> 1.076190476
A52: Ontario Rebate for Electricity Consumers (OREC) | C52: -0.08 | D52: =D49*C52 -> -13.12093363 | F52: =C52 -> -0.08 | G52: =G49*F52 -> -13.12093363 | H52: 0 | I52: 0 | K52: =G52/$G$53 -> -0.07619047619
A53: Total Amount on TOU | D53: =SUM(D51:D52) -> 172.2122539 | G53: =SUM(G51:G52) -> 172.2122539 | H53: 0 | I53: 0 | K53: =G53/$G$53 -> 1
A54: * Distribution rate protection applies to R1 and R2 customers

Sheet BI_R2_High
A1: 2020 Bill Impacts (High Consumption Level) - R2
A3: Rate Class | B3: =RIGHT(A1,LEN(A1)-FIND("- ",A1,1)-1) -> R2
A4: Monthly Consumption (kWh) | B4: =IF(COUNTIF(A1,"*Low*")>0,VLOOKUP(B3,'Data Billing Quantities'!$A:$Z,MATCH("Low kWh",'Data Billing Quantities'!4:4,0),FALSE),IF(COUNTIF(A1,"*Typical*")>0,VLOOKUP(B3,'Data Billing Quantities'!$A:$Z,MATCH("Typical kWh",'Data Billing Quantities'!4:4,0),FALSE),IF(COUNTIF(A1,"*Average*")>0,VLOOKUP(B3,'Data Billing Quantities'!$A:$Z,MATCH("Average kWh",'Data Billing Quantities'!4:4,0),FALSE),IF(COUNTIF(A1,"*High*")>0,VLOOKUP(B3,'Data Billing Quantities'!$A:$Z,MATCH("High kWh",'Data Billing Quantities'!4:4,0),FALSE),"error")))) -> 2300
A5: Peak (kW) | B5: =IF(COUNTIF(A1,"*Low*")>0,VLOOKUP(B3,'Data Billing Quantities'!$A:$Z,MATCH("Low kW",'Data Billing Quantities'!4:4,0),FALSE),IF(COUNTIF(A1,"*Typical*")>0,VLOOKUP(B3,'Data Billing Quantities'!$A:$Z,MATCH("Typical kW",'Data Billing Quantities'!4:4,0),FALSE),IF(COUNTIF(A1,"*Average*")>0,VLOOKUP(B3,'Data Billing Quantities'!$A:$Z,MATCH("Average kW",'Data Billing Quantities'!4:4,0),FALSE),IF(COUNTIF(A1,"*High*")>0,VLOOKUP(B3,'Data Billing Quantities'!$A:$Z,MATCH("High kW",'Data Billing Quantities'!4:4,0),FALSE),"error")))) -> 0
A6: Loss factor | B6: =VLOOKUP(B3,'Data Billing Quantities'!A:D,MATCH(A6,'Data Billing Quantities'!4:4,0),FALSE) -> 1.105
A7: Commodity Threshold | B7: =VLOOKUP(B3,'Data Billing Quantities'!A:D,MATCH(A7,'Data Billing Quantities'!4:4,0),FALSE) -> 600
A8: Monthly Consumption (kWh) - Uplifted | B8: =B4*B6 -> 2541.5
A9: Charge determinant | B9: =VLOOKUP(B3,'Data Billing Quantities'!A:D,MATCH(A9,'Data Billing Quantities'!4:4,0),FALSE) -> kWh
B11: Volume | C11: Current Rate ($) | D11: Current Charge ($) | E11: Volume | F11: Proposed Rate ($) | G11: Proposed Charge ($) | H11: Change ($) | I11: Change (%) | J11: % of Total Bill on RPP | K11: % of Total Bill on TOU
A12: Energy First Tier | B12: =IF(B4>B7,B7,B4) -> 600 | C12: =VLOOKUP($A12,'Data Pass Through'!$A:$D,2,FALSE) -> 0.077 | D12: =B12*C12 -> 46.2 | E12: =B12 -> 600 | F12: =VLOOKUP($A12,'Data Pass Through'!$A:$D,3,FALSE) -> 0.077 | G12: =E12*F12 -> 46.2 | H12: =G12-D12 -> 0 | I12: =IF(ISERROR(H12/ABS(D12)),"N/A",(H12/ABS(D12))) -> 0 | J12: =G12/$G$48 -> 0.1463980263
A13: Energy Second Tier | B13: =IF(B4>B7,(B4)-B7,0) -> 1700 | C13: =VLOOKUP($A13,'Data Pass Through'!$A:$D,2,FALSE) -> 0.089 | D13: =B13*C13 -> 151.3 | E13: =B13 -> 1700 | F13: =VLOOKUP($A13,'Data Pass Through'!$A:$D,3,FALSE) -> 0.089 | G13: =E13*F13 -> 151.3 | H13: 0 | I13: 0 | J13: =G13/$G$48 -> 0.4794376922
A14: Sub-Total: Energy (RPP Tiered) | D14: =SUM(D12:D13) -> 197.5 | G14: =SUM(G12:G13) -> 197.5 | H14: 0 | I14: 0 | J14: =G14/$G$48 -> 0.6258357184
A15: TOU-Off Peak | B15: =B$4*VLOOKUP($B$3,'Data Billing Quantities'!$A:$O,MATCH(BI_R2_High!$A15,'Data Billing Quantities'!$4:$4,0),FALSE) -> 1495 | C15: =VLOOKUP($A15,'Data Pass Through'!$A:$D,2,FALSE) -> 0.065 | D15: =B15*C15 -> 97.175 | E15: 1495 | F15: =VLOOKUP($A15,'Data Pass Through'!$A:$D,3,FALSE) -> 0.065 | G15: =E15*F15 -> 97.175 | H15: 0 | I15: 0 | K15: =G15/$G$53 -> 0.3192017229
A16: TOU-Mid Peak | B16: =B$4*VLOOKUP($B$3,'Data Billing Quantities'!$A:$O,MATCH(BI_R2_High!$A16,'Data Billing Quantities'!$4:$4,0),FALSE) -> 391 | C16: =VLOOKUP($A16,'Data Pass Through'!$A:$D,2,FALSE) -> 0.094 | D16: =B16*C16 -> 36.754 | E16: 391 | F16: =VLOOKUP($A16,'Data Pass Through'!$A:$D,3,FALSE) -> 0.094 | G16: =E16*F16 -> 36.754 | H16: 0 | I16: 0 | K16: 0.1207300244
A17: TOU-On Peak | B17: =B$4*VLOOKUP($B$3,'Data Billing Quantities'!$A:$O,MATCH(BI_R2_High!$A17,'Data Billing Quantities'!$4:$4,0),FALSE) -> 414 | C17: =VLOOKUP($A17,'Data Pass Through'!$A:$D,2,FALSE) -> 0.132 | D17: =B17*C17 -> 54.648 | E17: 414 | F17: =VLOOKUP($A17,'Data Pass Through'!$A:$D,3,FALSE) -> 0.132 | G17: =E17*F17 -> 54.648 | H17: 0 | I17: 0 | K17: 0.1795084718
A18: Sub-Total: Energy (RPP TOU) | D18: =SUM(D15:D17) -> 188.577 | G18: =SUM(G15:G17) -> 188.577 | H18: 0 | I18: 0 | J18: =G18/$G$48 -> 0.5975606191 | K18: 0.6194402191
A19: Service Charge | B19: 1 | C19: =VLOOKUP($B$3,'Data Current Rates'!$A:$BA,MATCH(BI_R2_High!$A19,CurrentHeader,0),FALSE) -> 31.35 | D19: =B19*C19 -> 31.35 | E19: 1 | F19: =VLOOKUP($B$3,'Data Proposed Rates'!$A:$BA,MATCH(BI_R2_High!$A19,ProposedHeader,0),FALSE) -> 41.19 | G19: =E19*F19 -> 41.19 | H19: 9.84 | I19: 0.3138755981 | J19: 0.1305223962 | K19: 0.1353014558
A20: Fixed Foregone Revenue Charge | B20: 1 | C20: =VLOOKUP($B$3,'Data Current Rates'!$A:$BA,MATCH(BI_R2_High!$A20,CurrentHeader,0),FALSE) -> 4.37 | D20: 4.37 | E20: 1 | F20: =VLOOKUP($B$3,'Data Proposed Rates'!$A:$BA,MATCH(BI_R2_High!$A20,ProposedHeader,0),FALSE) -> 4.35 | G20: 4.35 | H20: -0.02 | I20: -0.004576659039 | J20: 0.01378422975 | K20: 0.01428893743
A21: Fixed Deferral/Variance Account Rider (General) | B21: 1 | C21: =VLOOKUP($B$3,'Data Current Rates'!$A:$BA,MATCH(BI_R2_High!$A21,CurrentHeader,0),FALSE) -> -0.03 | D21: -0.03 | E21: 1 | F21: =VLOOKUP($B$3,'Data Proposed Rates'!$A:$BA,MATCH(BI_R2_High!$A21,ProposedHeader,0),FALSE) -> -0.03 | G21: -0.03 | H21: 0 | I21: 0 | J21: -9.506365343e-05 | K21: -9.854439605e-05
A22: Distribution Volumetric Charge | B22: =IF($B$9="kWh",$B$4,$B$5) -> 2300 | C22: =VLOOKUP($B$3,'Data Current Rates'!$A:$BA,MATCH(BI_R2_High!$A22,CurrentHeader,0),FALSE) -> 0.0356 | D22: 81.88 | E22: 2300 | F22: =VLOOKUP($B$3,'Data Proposed Rates'!$A:$BA,MATCH(BI_R2_High!$A22,ProposedHeader,0),FALSE) -> 0.0291 | G22: 66.93 | H22: -14.95 | I22: -0.1825842697 | J22: 0.2120870108 | K22: 0.2198525476
A23: Volumetric Foregone Revenue Charge | B23: =IF($B$9="kWh",$B$4,$B$5) -> 2300 | C23: =VLOOKUP($B$3,'Data Current Rates'!$A:$BA,MATCH(BI_R2_High!$A23,CurrentHeader,0),FALSE) -> 0.0011 | D23: 2.53 | E23: 2300 | F23: =VLOOKUP($B$3,'Data Proposed Rates'!$A:$BA,MATCH(BI_R2_High!$A23,ProposedHeader,0),FALSE) -> 0.0011 | G23: 2.53 | H23: 0 | I23: 0 | J23: 0.008017034773 | K23: 0.0083105774
A24: Volumetric Deferral/Variance Account Rider (General) | B24: =IF($B$9="kWh",$B$4,$B$5) -> 2300 | C24: =VLOOKUP($B$3,'Data Current Rates'!$A:$BA,MATCH(BI_R2_High!$A24,CurrentHeader,0),FALSE) -> -0.0008 | D24: -1.84 | E24: 2300 | F24: =VLOOKUP($B$3,'Data Proposed Rates'!$A:$BA,MATCH(BI_R2_High!$A24,ProposedHeader,0),FALSE) -> -0.0008 | G24: -1.84 | H24: 0 | I24: 0 | J24: -0.005830570744 | K24: -0.006044056291
A25: Volumetric Deferral/Variance Account Rider (Sub Account CBR) | B25: 2300 | C25: =VLOOKUP($B$3,'Data Current Rates'!$A:$BA,MATCH(BI_R2_High!$A25,CurrentHeader,0),FALSE) -> 0 | D25: 0 | E25: 2300 | F25: =VLOOKUP($B$3,'Data Proposed Rates'!$A:$BA,MATCH(BI_R2_High!$A25,ProposedHeader,0),FALSE) -> 0 | G25: 0 | H25: 0 | I25: N/A | J25: 0 | K25: 0
A26: Fair Hydro Plan - Distribution Rate Protection Savings* | D26: =IF(AND(B3<>"R1",B3<>"R2"),0,IF(VLOOKUP($A26,'Data Pass Through'!$A:$D,2,FALSE)=0,0,IF(SUM(D19:D20,D22:D23)<VLOOKUP($A26,'Data Pass Through'!$A:$D,2,FALSE),0,VLOOKUP($A26,'Data Pass Through'!$A:$D,2,FALSE)-SUM(D19:D20,D22:D23)))) -> -83.27 | G26: =IF(AND(B3<>"R1",B3<>"R2"),0,IF(VLOOKUP($A26,'Data Pass Through'!$A:$D,2,FALSE)=0,0,IF(SUM(G19:G20,G22:G23)<VLOOKUP($A26,'Data Pass Through'!$A:$D,2,FALSE),0,VLOOKUP($A26,'Data Pass Through'!$A:$D,2,FALSE)-SUM(G19:G20,G22:G23)))) -> -78.14 | H26: 5.13 | I26: 0.06160682118 | J26: -0.2476091293 | K26: -0.2566753036
A27: Sub-Total: Distribution (excluding pass through) | D27: =SUM(INDIRECT("D19:D"&ROW()-1)) -> 34.99 | G27: =SUM(INDIRECT("g19:g"&ROW()-1)) -> 34.99 | H27: =G27-D27 -> 0 | I27: 0 | J27: 0.1108759078 | K27: 0.1149356139
A28: Smart Metering Entity Charge | B28: 1 | C28: =VLOOKUP($A28,'Data Pass Through'!$A:$D,2,FALSE) -> 0.57 | D28: =B28*C28 -> 0.57 | E28: 1 | F28: =VLOOKUP($A28,'Data Pass Through'!$A:$D,3,FALSE) -> 0.57 | G28: =E28*F28 -> 0.57 | H28: 0 | I28: 0 | J28: 0.001806209415 | K28: 0.001872343525
A29: Line Losses on Cost of Power (based on two-tier RPP prices) | B29: =B8-B4 -> 241.5 | C29: =IF(B4>B7,C13,C12) -> 0.089 | D29: =B29*C29 -> 21.4935 | E29: 241.5 | F29: =IF(B4>B7,F13,F12) -> 0.089 | G29: =E29*F29 -> 21.4935 | H29: 0 | I29: 0 | J29: 0.0681083545 | K29: 0.07060213255
A30: Line Losses on Cost of Power (based on TOU prices) | B30: =B8-B4 -> 241.5 | C30: =VLOOKUP($B$3,'Data Billing Quantities'!$A:$O,MATCH(BI_R2_High!$A15,'Data Billing Quantities'!$4:$4,0),FALSE)*C15+VLOOKUP($B$3,'Data Billing Quantities'!$A:$O,MATCH(BI_R2_High!$A16,'Data Billing Quantities'!$4:$4,0),FALSE)*C16+VLOOKUP($B$3,'Data Billing Quantities'!$A:$O,MATCH(BI_R2_High!$A17,'Data Billing Quantities'!$4:$4,0),FALSE)*C17 -> 0.08199 | D30: =B30*C30 -> 19.800585 | E30: 241.5 | F30: =VLOOKUP($B$3,'Data Billing Quantities'!$A:$O,MATCH(BI_R2_High!$A15,'Data Billing Quantities'!$4:$4,0),FALSE)*F15+VLOOKUP($B$3,'Data Billing Quantities'!$A:$O,MATCH(BI_R2_High!$A16,'Data Billing Quantities'!$4:$4,0),FALSE)*F16+VLOOKUP($B$3,'Data Billing Quantities'!$A:$O,MATCH(BI_R2_High!$A17,'Data Billing Quantities'!$4:$4,0),FALSE)*F17 -> 0.08199 | G30: =E30*F30 -> 19.800585 | H30: 0 | I30: 0 | J30: 0.06274386501 | K30: 0.06504122301
A31: Sub-Total: Distribution (based on two-tier RPP prices) | D31: =SUM(D27,D28:D29) -> 57.0535 | G31: =SUM(G27,G28:G29) -> 57.0535 | H31: 0 | I31: 0 | J31: 0.1807904717 | K31: 0.18741009
A32: Sub-Total: Distribution (based on TOU prices) | D32: =SUM(D27,D28,D30) -> 55.360585 | G32: =SUM(G27,G28,G30) -> 55.360585 | H32: 0 | I32: 0 | J32: 0.1754259822 | K32: 0.1818491805
A33: Retail Transmission Rate – Network Service Rate | B33: =B8 -> 2541.5 | C33: =VLOOKUP($B$3,'Data Current Rates'!$A:$BA,MATCH(BI_R2_High!$A33,CurrentHeader,0),FALSE) -> 0.0073 | D33: =B33*C33 -> 18.55295 | E33: 2541.5 | F33: =VLOOKUP($B$3,'Data Proposed Rates'!$A:$BA,MATCH(BI_R2_High!$A33,ProposedHeader,0),FALSE) -> 0.0073 | G33: =E33*F33 -> 18.55295 | H33: =G33-D33 -> 0 | I33: 0 | J33: 0.05879037363 | K33: 0.06094297509
A34: Retail Transmission Rate – Line and Transformation Connection Service Rate | B34: =B8 -> 2541.5 | C34: =VLOOKUP($B$3,'Data Current Rates'!$A:$BA,MATCH(BI_R2_High!$A34,CurrentHeader,0),FALSE) -> 0.0066 | D34: =B34*C34 -> 16.7739 | E34: 2541.5 | F34: =VLOOKUP($B$3,'Data Proposed Rates'!$A:$BA,MATCH(BI_R2_High!$A34,ProposedHeader,0),FALSE) -> 0.0066 | G34: =E34*F34 -> 16.7739 | H34: =G34-D34 -> 0 | I34: 0 | J34: 0.05315294054 | K34: 0.05509912816
A35: Sub-Total: Retail Transmission | D35: =SUM(D33:D34) -> 35.32685 | G35: =SUM(G33:G34) -> 35.32685 | H35: =G35-D35 -> 0 | I35: 0 | J35: 0.1119433142 | K35: 0.1160421032
A36: Sub-Total: Delivery (based on two-tier RPP prices) | D36: =D31+D35 -> 92.38035 | G36: =G31+G35 -> 92.38035 | H36: =G36-D36 -> 0 | I36: 0 | J36: 0.2927337859 | K36: 0.3034521932
A37: Sub-Total: Delivery (based on TOU prices) | D37: =D32+D35 -> 90.687435 | G37: =G32+G35 -> 90.687435 | H37: =G37-D37 -> 0 | I37: 0 | J37: 0.2873692964 | K37: 0.2978912837
A38: Wholesale Market Service Rate (WMS) - not including CBR | B38: =B8 -> 2541.5 | C38: =VLOOKUP($A38,'Data Pass Through'!$A:$D,2,FALSE) -> 0.0032 | D38: =B38*C38 -> 8.1328 | E38: =$B$8 -> 2541.5 | F38: =VLOOKUP($A38,'Data Pass Through'!$A:$D,3,FALSE) -> 0.0032 | G38: =E38*F38 -> 8.1328 | H38: 0 | I38: 0 | J38: 0.02577112269 | K38: 0.02671472881
A39: Capacity Based Recovery (CBR) - Applicable for Class B Customers | B39: =B8 -> 2541.5 | C39: =VLOOKUP($A39,'Data Pass Through'!$A:$D,2,FALSE) -> 0.0004 | D39: =B39*C39 -> 1.0166 | E39: =$B$8 -> 2541.5 | F39: =VLOOKUP($A39,'Data Pass Through'!$A:$D,3,FALSE) -> 0.0004 | G39: =E39*F39 -> 1.0166 | H39: 0 | I39: 0 | J39: 0.003221390336 | K39: 0.003339341101
A40: Rural Rate Protection Charge | B40: =B8 -> 2541.5 | C40: =VLOOKUP($A40,'Data Pass Through'!$A:$D,2,FALSE) -> 0.0005 | D40: 1.27075 | E40: 2541.5 | F40: =VLOOKUP($A40,'Data Pass Through'!$A:$D,3,FALSE) -> 0.0005 | G40: 1.27075 | H40: 0 | I40: 0 | J40: 0.00402673792 | K40: 0.004174176376
A41: Standard Supply Service – Administration Charge (if applicable) | B41: 1 | C41: =VLOOKUP($A41,'Data Pass Through'!$A:$D,2,FALSE) -> 0.25 | D41: =B41*C41 -> 0.25 | E41: 1 | F41: =VLOOKUP($A41,'Data Pass Through'!$A:$D,3,FALSE) -> 0.25 | G41: 0.25 | H41: 0 | I41: 0 | J41: 0.000792197112 | K41: 0.0008212033004
A42: Sub-Total: Regulatory | D42: =SUM(D38:D41) -> 10.67015 | G42: =SUM(G38:G41) -> 10.67015 | H42: 0 | I42: 0 | J42: 0.03381144806 | K42: 0.03504944958
A43: Debt Retirement Charge (DRC) | B43: =B4 -> 2300 | C43: =VLOOKUP($A43,'Data Pass Through'!$A:$D,2,FALSE) -> 0 | D43: =B43*C43 -> 0 | E43: 2300 | F43: =VLOOKUP($A43,'Data Pass Through'!$A:$D,3,FALSE) -> 0 | G43: =E43*F43 -> 0 | H43: 0 | I43: N/A | J43: 0 | K43: 0
A44: Total Electricty Charge on Two-Tier RPP | D44: =SUM(D14,D27,D28,D29,D35,D42,D43) -> 300.5505 | G44: =SUM(G14,G27,G28,G29,G35,G42,G43) -> 300.5505 | H44: 0 | I44: 0 | J44: 0.9523809524
A45: HST | C45: 0.13 | D45: =D44*C45 -> 39.071565 | F45: =C45 -> 0.13 | G45: =G44*F45 -> 39.071565 | H45: 0 | I45: 0 | J45: 0.1238095238
A46: Total Electricity Charge on Two-Tier RPP (including HST) | D46: =SUM(D44:D45) -> 339.622065 | G46: =SUM(G44:G45) -> 339.622065 | H46: 0 | I46: 0 | J46: 1.076190476
A47: Ontario Rebate for Electricity Consumers (OREC) | C47: -0.08 | D47: =D44*C47 -> -24.04404 | F47: =C47 -> -0.08 | G47: =G44*F47 -> -24.04404 | H47: 0 | I47: 0 | J47: -0.07619047619
A48: Total Amount on Two-Tier RPP | D48: =SUM(D46:D47) -> 315.578025 | G48: =SUM(G46:G47) -> 315.578025 | H48: 0 | I48: 0 | J48: 1
A49: Total Electricty Charge on TOU (before HST) | D49: =SUM(D18,D27,D28,D30,D35,D42,D43) -> 289.934585 | G49: =SUM(G18,G27,G28,G30,G35,G42,G43) -> 289.934585 | H49: 0 | I49: 0 | K49: =G49/$G$53 -> 0.9523809524
A50: HST | C50: 0.13 | D50: =D49*C50 -> 37.69149605 | F50: =C50 -> 0.13 | G50: =G49*F50 -> 37.69149605 | H50: 0 | I50: 0 | K50: =G50/$G$53 -> 0.1238095238
A51: Total Electricity Charge on TOU (including HST) | D51: =SUM(D49:D50) -> 327.626081 | G51: =SUM(G49:G50) -> 327.626081 | H51: 0 | I51: 0 | K51: =G51/$G$53 -> 1.076190476
A52: Ontario Rebate for Electricity Consumers (OREC) | C52: -0.08 | D52: =D49*C52 -> -23.1947668 | F52: =C52 -> -0.08 | G52: =G49*F52 -> -23.1947668 | H52: 0 | I52: 0 | K52: =G52/$G$53 -> -0.07619047619
A53: Total Amount on TOU | D53: =SUM(D51:D52) -> 304.4313143 | G53: =SUM(G51:G52) -> 304.4313143 | H53: 0 | I53: 0 | K53: =G53/$G$53 -> 1
A54: * Distribution rate protection applies to R1 and R2 customers

Sheet BI_Seas_Low
A1: 2020 Bill Impacts (Low Consumption Level) - Seasonal
A3: Rate Class | B3: =RIGHT(A1,LEN(A1)-FIND("- ",A1,1)-1) -> Seasonal
A4: Monthly Consumption (kWh) | B4: =IF(COUNTIF(A1,"*Low*")>0,VLOOKUP(B3,'Data Billing Quantities'!$A:$Z,MATCH("Low kWh",'Data Billing Quantities'!4:4,0),FALSE),IF(COUNTIF(A1,"*Typical*")>0,VLOOKUP(B3,'Data Billing Quantities'!$A:$Z,MATCH("Typical kWh",'Data Billing Quantities'!4:4,0),FALSE),IF(COUNTIF(A1,"*Average*")>0,VLOOKUP(B3,'Data Billing Quantities'!$A:$Z,MATCH("Average kWh",'Data Billing Quantities'!4:4,0),FALSE),IF(COUNTIF(A1,"*High*")>0,VLOOKUP(B3,'Data Billing Quantities'!$A:$Z,MATCH("High kWh",'Data Billing Quantities'!4:4,0),FALSE),"error")))) -> 50
A5: Peak (kW) | B5: =IF(COUNTIF(A1,"*Low*")>0,VLOOKUP(B3,'Data Billing Quantities'!$A:$Z,MATCH("Low kW",'Data Billing Quantities'!4:4,0),FALSE),IF(COUNTIF(A1,"*Typical*")>0,VLOOKUP(B3,'Data Billing Quantities'!$A:$Z,MATCH("Typical kW",'Data Billing Quantities'!4:4,0),FALSE),IF(COUNTIF(A1,"*Average*")>0,VLOOKUP(B3,'Data Billing Quantities'!$A:$Z,MATCH("Average kW",'Data Billing Quantities'!4:4,0),FALSE),IF(COUNTIF(A1,"*High*")>0,VLOOKUP(B3,'Data Billing Quantities'!$A:$Z,MATCH("High kW",'Data Billing Quantities'!4:4,0),FALSE),"error")))) -> 0
A6: Loss factor | B6: =VLOOKUP(B3,'Data Billing Quantities'!A:D,MATCH(A6,'Data Billing Quantities'!4:4,0),FALSE) -> 1.104
A7: Commodity Threshold | B7: =VLOOKUP(B3,'Data Billing Quantities'!A:D,MATCH(A7,'Data Billing Quantities'!4:4,0),FALSE) -> 600
A8: Monthly Consumption (kWh) - Uplifted | B8: =B4*B6 -> 55.2
A9: Charge determinant | B9: =VLOOKUP(B3,'Data Billing Quantities'!A:D,MATCH(A9,'Data Billing Quantities'!4:4,0),FALSE) -> kWh
B11: Volume | C11: Current Rate ($) | D11: Current Charge ($) | E11: Volume | F11: Proposed Rate ($) | G11: Proposed Charge ($) | H11: Change ($) | I11: Change (%) | J11: % of Total Bill on RPP | K11: % of Total Bill on TOU
A12: Energy First Tier | B12: =IF(B4>B7,B7,B4) -> 50 | C12: =VLOOKUP($A12,'Data Pass Through'!$A:$D,2,FALSE) -> 0.077 | D12: =B12*C12 -> 3.85 | E12: =B12 -> 50 | F12: =VLOOKUP($A12,'Data Pass Through'!$A:$D,3,FALSE) -> 0.077 | G12: =E12*F12 -> 3.85 | H12: =G12-D12 -> 0 | I12: =IF(ISERROR(H12/ABS(D12)),"N/A",(H12/ABS(D12))) -> 0 | J12: =G12/$G$48 -> 0.06724235907
A13: Energy Second Tier | B13: =IF(B4>B7,(B4)-B7,0) -> 0 | C13: =VLOOKUP($A13,'Data Pass Through'!$A:$D,2,FALSE) -> 0.089 | D13: =B13*C13 -> 0 | E13: =B13 -> 0 | F13: =VLOOKUP($A13,'Data Pass Through'!$A:$D,3,FALSE) -> 0.089 | G13: =E13*F13 -> 0 | H13: 0 | I13: N/A | J13: =G13/$G$48 -> 0
A14: Sub-Total: Energy (RPP Tiered) | D14: =SUM(D12:D13) -> 3.85 | G14: =SUM(G12:G13) -> 3.85 | H14: 0 | I14: 0 | J14: =G14/$G$48 -> 0.06724235907
A15: TOU-Off Peak | B15: =B$4*VLOOKUP($B$3,'Data Billing Quantities'!$A:$O,MATCH(BI_Seas_Low!$A15,'Data Billing Quantities'!$4:$4,0),FALSE) -> 32.5 | C15: =VLOOKUP($A15,'Data Pass Through'!$A:$D,2,FALSE) -> 0.065 | D15: =B15*C15 -> 2.1125 | E15: 32.5 | F15: =VLOOKUP($A15,'Data Pass Through'!$A:$D,3,FALSE) -> 0.065 | G15: =E15*F15 -> 2.1125 | H15: 0 | I15: 0 | K15: =G15/$G$53 -> 0.03671053044
A16: TOU-Mid Peak | B16: =B$4*VLOOKUP($B$3,'Data Billing Quantities'!$A:$O,MATCH(BI_Seas_Low!$A16,'Data Billing Quantities'!$4:$4,0),FALSE) -> 8.5 | C16: =VLOOKUP($A16,'Data Pass Through'!$A:$D,2,FALSE) -> 0.094 | D16: =B16*C16 -> 0.799 | E16: 8.5 | F16: =VLOOKUP($A16,'Data Pass Through'!$A:$D,3,FALSE) -> 0.094 | G16: =E16*F16 -> 0.799 | H16: 0 | I16: 0 | K16: 0.01388483495
A17: TOU-On Peak | B17: =B$4*VLOOKUP($B$3,'Data Billing Quantities'!$A:$O,MATCH(BI_Seas_Low!$A17,'Data Billing Quantities'!$4:$4,0),FALSE) -> 9 | C17: =VLOOKUP($A17,'Data Pass Through'!$A:$D,2,FALSE) -> 0.132 | D17: =B17*C17 -> 1.188 | E17: 9 | F17: =VLOOKUP($A17,'Data Pass Through'!$A:$D,3,FALSE) -> 0.132 | G17: =E17*F17 -> 1.188 | H17: 0 | I17: 0 | K17: 0.02064478588
